{"text_format":"1","workbook":"xlsx","n_sheets":35,"sheets":["Основные данные","Титульный лист","Описание","Содержание","1","2","3","4","5","6","7","8","9","10","11","12","13","14","15","16","17","18","19","20","Подпись","Логический контроль","Түсіндірме","Пояснения","Валюты","Страны","Классификация услуг","Вид исполнения обязательства","Инструкция","Настройки","Расшифровки строк"],"not_rendered":{"charts":0,"images":8,"macros":1,"external_links":0,"defined_names":257,"comments":0,"pivot_tables":0},"unopened":[],"bounds":{"document_bytes":16777216,"sheet_cells":100000,"rows_first":2000,"rows_last":500,"rows_between":2000,"halvings":0,"cell_chars":16384,"cell_head_chars":4096},"cells_cut":0,"cells_raw":0,"read":"whole","date_system":"1900"}

{"sheet":"Основные данные","index":0,"n_rows":38,"n_cols":7,"rows_kept":38,"cut":false,"hidden":false,"merged":[[0,2,1,6],[3,2,4,6],[15,3,15,6],[6,3,6,6],[9,3,9,6],[10,3,10,6],[11,3,11,6],[12,3,12,6],[7,3,7,6],[8,3,8,6],[13,3,13,6],[37,2,37,6],[21,3,21,6],[24,3,24,6],[28,3,28,6],[30,2,31,2],[33,2,33,6],[35,2,35,6],[29,3,29,6],[22,3,22,6],[26,3,26,6],[27,3,27,6],[25,3,25,6],[19,3,19,6],[23,3,23,6],[18,3,18,6],[16,3,16,6],[17,3,17,6],[20,3,20,6]]}
[null,"Мемлекеттік басқару секторының  халықаралық операциялары, сыртқы активтері және міндеттемелері туралы есеп","Мемлекеттік басқару секторының  халықаралық операциялары, сыртқы активтері және міндеттемелері туралы есеп\nОтчет о международных операциях, внешних активах и обязательствах сектора государственного управления"]
[null,"Отчет о международных операциях, внешних активах и обязательствах сектора государственного управления"]
[]
[null,null,"Негізгі мәліметтер\nОсновные данные"]
[]
[]
[null,null,"Есептің коды / Код отчета","pb07_2025"]
[null,null,"Тілі / Язык заполнения *"]
[{"$f":"CONCATENATE(p1_enterprise)","v":""},null,"Резидент типі / Тип резидента","Предприятие"]
[{"$f":"CONCATENATE(p1_enterprise)","v":""},null,"Кәсіпорын / Предприятие"]
[null,null,"БСН / БИН",""]
[{"$f":"CONCATENATE(p1_bank)","v":""},null,"Шетелдік банктің атауы / Наименование иностранного банка",""]
[null,null,"Шетел банкінің елі / Страна иностранного банка"]
[null,null,"Есептік нөмірі / Учетный номер",""]
[null,null,"Кезең / Период","Тоқсан\nКвартал",null,"Жыл / Год"]
[null,null,"Есепті беру күні / Дата предоставления отчета"]
[{"$f":"CONCATENATE(p1_currency)","v":"АҚШ ДОЛЛАРЫ\nДОЛЛАР США"},null,"Валюта","АҚШ ДОЛЛАРЫ\nДОЛЛАР США"]
[null,null,"Басшы немесе есепке қол қою функциясы жүктелген адам\nРуководитель или лицо, на которое возложена функция по подписанию отчета",""]
[null,null,"Бас бухгалтер немесе есепке қол қою функциясы жүктелген адам\nГлавный бухгалтер или лицо, на которое возложена функция по подписанию отчета",""]
[null,null,"Т.А.Ә. Орындаушының / Ф.И.О. Исполнителя",""]
[null,null,"Орындаушының телефоны / Телефон исполнителя",""]
[null,null,"Стационарлық телефоны (респонденттің)\nСтационарный телефон (респондента)",""]
[null,null,"Ұялы телефоны (респонденттің)\nМобильный телефон (респондента)",""]
[{"$f":"CONCATENATE(p1_address)","v":""},null,"Мекенжайы (респонденттің) / Адрес (респондента)",""]
[null,null,"Электрондық пошта мекенжайы (респонденттің)\nАдрес электронной почты (респондента)",""]
["2\n1",null,"Алғашқы статистикалық деректерді таратуға келісеміз\nСогласны на распространение первичных статистических данных **",""]
[{"$f":"CONCATENATE(p1_comment)","v":""},null,"Түсініктемелер\nКомментарий"]
[null,null,"Есептің күні / Дата отчета"]
[null,null,"Қазақстан Республикасы Ұлттық Банкі толтырады\nЗаполняется Национальным Банком Республики Казахстан"]
[null,null,"Есепті беру күні / Дата предоставления отчета"]
[null,null,"Бөлімдер\nРазделы",1,4,5,6]
["2\n1",null,null,true,true,true,false]
[]
[null,{"$f":"C34","v":"* Тілді өзгерткен кезде есептің мәліметтері нөлге аударылады. Есепті толтыра бастамай тілді таңдаңыз.\nПри смене языка данные отчета обнулятся. Выберите язык до начала заполнения отчета"},"* Тілді өзгерткен кезде есептің мәліметтері нөлге аударылады. Есепті толтыра бастамай тілді таңдаңыз.\nПри смене языка данные отчета обнулятся. Выберите язык до начала заполнения отчета"]
[]
[null,{"$f":"C36","v":"** Аталған тармақ «Мемлекеттік статистика туралы» Қазақстан Республикасының 2010 жылғы 19 наурыздағы Заңының 8-бабының 5-тармағына сәйкес толтырылады\nДанный пункт заполняется согласно пункту 5 статьи 8 Закона Республики Казахстан от 19 марта 2010 года «О государственной статистике»"},"** Аталған тармақ «Мемлекеттік статистика туралы» Қазақстан Республикасының 2010 жылғы 19 наурыздағы Заңының 8-бабының 5-тармағына сәйкес толтырылады\nДанный пункт заполняется согласно пункту 5 статьи 8 Закона Республики Казахстан от 19 марта 2010 года «О государственной статистике»"]
[]
[null,{"$f":"C38","v":"Мемлекеттік статистиканың тиісті органдарына анық емес бастапқы статистикалық деректерді ұсыну және бастапқы статистикалық деректерді белгіленген мерзімде ұсынбау «Әкімшілік құқық бұзушылық туралы» Қазақстан Республикасы Кодексінің 497-бабында көзделген әкімшілік құқық бұзушылықтар болып табылады\nПредставление недостоверных и непредставление первичных статистических данных в соответствующие органы государственной статистики в установленный срок являются административными правонарушениями, предусмотренными статьей 497 Кодекса Республики Казахстан «Об административных правонарушениях»"},"Мемлекеттік статистиканың тиісті органдарына анық емес бастапқы статистикалық деректерді ұсыну және бастапқы статистикалық деректерді белгіленген мерзімде ұсынбау «Әкімшілік құқық бұзушылық туралы» Қазақстан Республикасы Кодексінің 497-бабында көзделген әкімшілік құқық бұзушылықтар болып табылады\nПредставление недостоверных и непредставление первичных статистических данных в соответствующие органы государственной статистики в установленный срок являются административными правонарушениями, предусмотренными статьей 497 Кодекса Республики Казахстан «Об административных правонарушениях»"]

{"sheet":"Титульный лист","index":1,"n_rows":138,"n_cols":21,"rows_kept":138,"cut":false,"hidden":false,"merged":[[69,18,69,21],[68,18,68,21],[85,15,85,21],[86,15,86,21],[108,3,108,21],[109,3,109,21],[70,18,70,21],[71,18,71,21],[80,15,80,21],[73,15,73,21],[74,15,74,21],[75,15,75,21],[77,15,77,21],[78,15,78,21],[76,15,76,21],[87,15,87,21],[88,15,88,21],[79,15,79,21],[136,15,137,15],[136,16,137,16],[136,17,137,17],[81,15,81,21],[82,15,82,21],[104,3,104,21],[105,3,105,21],[83,15,83,21],[136,6,137,6],[136,7,137,7],[136,8,137,8],[136,9,137,9],[136,10,137,10],[136,11,137,11],[136,12,137,12],[136,13,137,13],[136,14,137,14],[97,13,98,13],[97,16,98,16],[97,17,98,17],[97,18,98,18],[97,19,98,19],[84,15,84,21],[94,3,94,21],[116,3,116,21],[117,3,117,21],[89,15,89,21],[90,15,90,21],[91,15,91,21],[92,15,92,21],[112,3,112,21],[113,3,113,21],[114,3,114,21],[115,3,115,21],[106,3,106,21],[107,3,107,21],[102,3,102,21],[103,3,103,21],[95,3,95,21],[110,3,110,21],[111,3,111,21],[36,3,36,22],[37,3,37,22],[38,3,38,22],[39,3,39,22],[41,3,41,22],[42,3,42,22],[43,3,43,22],[44,3,44,22],[45,3,45,22],[40,3,40,22],[46,3,46,22],[47,3,47,22],[48,3,48,22],[49,3,49,22],[66,3,66,22],[67,3,67,22],[61,3,61,22],[62,3,62,22],[63,3,63,22],[64,3,64,22],[65,3,65,22],[51,3,51,22],[52,3,52,22],[53,3,53,22],[54,3,54,22],[55,3,55,22],[56,3,56,22],[57,3,57,22],[58,3,58,22],[59,3,59,22],[60,3,60,22],[50,3,50,22],[0,3,0,22],[1,3,1,22],[2,3,2,22],[3,3,3,22],[4,3,4,22],[10,3,10,22],[16,3,16,22],[17,3,17,22],[18,3,18,22],[5,3,5,22],[6,3,6,22],[7,3,7,22],[8,3,8,22],[9,3,9,22],[33,3,33,22],[34,3,34,22],[35,3,35,22],[25,3,25,22],[19,3,19,22],[11,3,11,22],[12,3,12,22],[13,3,13,22],[14,3,14,22],[15,3,15,22],[29,3,29,22],[30,3,30,22],[31,3,31,22],[20,3,20,22],[26,3,26,22],[27,3,27,22],[28,3,28,22],[21,3,21,22],[22,3,22,22],[23,3,23,22],[24,3,24,22],[32,3,32,22]]}
[4,null,"3\n2\n1","Қазақстан Республикасында\nвалюталық операцияларды\nмониторингтеу қағидаларына"]
[4,null,null,{"$f":"CONCATENATE(VLOOKUP(p_report_current_id,p_report,COLUMN(p_report_pril),FALSE),\"-қосымша\")","v":"15-қосымша"}]
[4,null,null,{"$f":"CONCATENATE(\"Приложение \",VLOOKUP(p_report_current_id,p_report,COLUMN(p_report_pril),FALSE))","v":"Приложение 15"}]
[4,null,"3\n2\n1","к Правилам мониторинга\nвалютных операций в\nРеспублике Казахстан"]
[4]
[4,null,null,"Әкімшілік деректерді"]
[4,null,null,"жинау үшін арналған нысан"]
[4,null,null,"Форма, предназначенная для сбора"]
[4,null,null,"административных данных"]
[4]
[4,null,null,{"$f":"CONCATENATE(\"«\",VLOOKUP(p_report_current_id,p_report,COLUMN(p_report_name_2)-1,FALSE),\"»\")","v":"«Мемлекеттік басқару секторының  халықаралық операциялары, сыртқы активтері және міндеттемелері туралы есеп»"}]
[4,null,null,{"$f":"CONCATENATE(\"«\",VLOOKUP(p_report_current_id,p_report,COLUMN(p_report_name_2)-2,FALSE),\"»\")","v":"«Отчет о международных операциях, внешних активах и обязательствах сектора государственного управления»"}]
[4]
[4,null,null,{"$f":"CONCATENATE(\"Есепті кезең: \",IF(p1_year=\"\",\"________\",p1_year),\" жылғы \",IF(p1_quarter=\"\",\"__\",p1_quarter),\" тоқсан\")","v":"Есепті кезең: ________ жылғы __ тоқсан"}]
[4,null,null,{"$f":"CONCATENATE(\"Отчетный период: \",IF(p1_quarter=\"\",\"__\",p1_quarter),\" квартал \",IF(p1_year=\"\",\"________\",p1_year),\" года\")","v":"Отчетный период: __ квартал ________ года"}]
[4]
[4,null,null,{"$f":"CONCATENATE(\"Нысанның индексі: \",VLOOKUP(p_report_current_id,p_report,COLUMN(p_report_index),FALSE))","v":"Нысанның индексі: 7-ТБ\n7-ПБ"}]
[4,null,null,{"$f":"CONCATENATE(\"Индекс: \",VLOOKUP(p_report_current_id,p_report,COLUMN(p_report_index),FALSE))","v":"Индекс: 7-ТБ\n7-ПБ"}]
[4]
[4,null,null,"Кезеңділігі: тоқсан сайын"]
[4,null,null,"Периодичность: ежеквартальная"]
[4]
[4,null,null,{"$f":"CONCATENATE(\"Ақпаратты ұсынатын тұлғалар тобы: \",IF(VLOOKUP(p_report_current_id,p_report,COLUMN(p_report_type)+1,FALSE)=1,\"резидент\",\"резидент-заңды тұлға\"))","v":"Ақпаратты ұсынатын тұлғалар тобы: резидент"}]
[4,null,null,{"$f":"CONCATENATE(\"Круг лиц представляющих информацию: \",IF(VLOOKUP(p_report_current_id,p_report,COLUMN(p_report_type)+1,FALSE)=1,\"резидент\",\"юридическое лицо-резидент\"))","v":"Круг лиц представляющих информацию: резидент"}]
[4]
[4,null,null,"Есептік нөмір беру орны бойынша Қазақстан Республикасы Ұлттық Банкінің аумақтық филиалына ұсынылады"]
[4,null,null,"Представляется в территориальный филиал Национального Банка Республики Казахстан по месту присвоения учетного номера"]
[4]
[4,null,null,"Әкімшілік деректерге арналған нысан Қазақстан Республикасы Ұлттық Банкінің www.nationalbank.kz интернет-ресурсына орналастырылған"]
[4,null,null,"Форма административных данных размещена на интернет-ресурсе Национального Банка Республики Казахстан www.nationalbank.kz"]
[4]
[4,null,null,"Ұсыну мерзімі: есепті кезеңнен кейінгі айдың 10 (оныншы) күніне (қоса алғанда) дейін"]
[4,null,null,"Срок представления: до десятого числа (включительно) месяца, следующего за отчетным периодом"]
[5,null,null,"Шетелдік қаржылық емес ұйымдардың"]
[5,null,null,"Қазақстан Республикасында қызметін"]
[5,null,null,"жүзеге асыратын филиалдарының (өкілдіктерінің)"]
[5,null,null,"ақпарат ұсыну қағидаларына"]
[5,null,null,{"$f":"CONCATENATE(VLOOKUP(p_report_current_id,p_report,COLUMN(p_report_pril),FALSE),\"-қосымша\")","v":"15-қосымша"}]
[5,null,null,{"$f":"CONCATENATE(\"Приложение \",VLOOKUP(p_report_current_id,p_report,COLUMN(p_report_pril),FALSE))","v":"Приложение 15"}]
[5,null,null,"к Правилам представления"]
[5,null,null,"информации филиалами (представительствами)"]
[5,null,null,"иностранных нефинансовых организаций,"]
[5,null,null,"осуществляющими деятельность"]
[5,null,null,"в Республике Казахстан"]
[5]
[5,null,null,"Әкімшілік деректерді жинауға арналған нысан"]
[5,null,null,"Форма, предназначенная для сбора административных данных"]
[5]
[5,null,null,{"$f":"CONCATENATE(\"«\",VLOOKUP(p_report_current_id,p_report,COLUMN(p_report_name_2)-1,FALSE),\"»\")","v":"«Мемлекеттік басқару секторының  халықаралық операциялары, сыртқы активтері және міндеттемелері туралы есеп»"}]
[5,null,null,{"$f":"CONCATENATE(\"«\",VLOOKUP(p_report_current_id,p_report,COLUMN(p_report_name_2)-2,FALSE),\"»\")","v":"«Отчет о международных операциях, внешних активах и обязательствах сектора государственного управления»"}]
[5]
[5,null,null,{"$f":"CONCATENATE(\"Есепті кезең: \",IF(p1_year=\"\",\"________\",p1_year),\" жылғы \",IF(p1_quarter=\"\",\"__\",p1_quarter),\" тоқсан\")","v":"Есепті кезең: ________ жылғы __ тоқсан"}]
[5,null,null,{"$f":"CONCATENATE(\"Отчетный период: \",IF(p1_quarter=\"\",\"__\",p1_quarter),\" квартал \",IF(p1_year=\"\",\"________\",p1_year),\" года\")","v":"Отчетный период: __ квартал ________ года"}]
[5]
[5,null,null,{"$f":"CONCATENATE(\"Индексі: \",VLOOKUP(p_report_current_id,p_report,COLUMN(p_report_index),FALSE))","v":"Индексі: 7-ТБ\n7-ПБ"}]
[5,null,null,{"$f":"CONCATENATE(\"Индекс: \",VLOOKUP(p_report_current_id,p_report,COLUMN(p_report_index),FALSE))","v":"Индекс: 7-ТБ\n7-ПБ"}]
[5]
[5,null,null,"Кезеңділігі: тоқсан сайын"]
[5,null,null,"Периодичность: ежеквартальная"]
[5]
[5,null,"2\n1","Ұсынады: Шетелдік қаржылық емес ұйымдардың Қазақстан Республикасында қызметін жүзеге асыратын филиалдарының (өкілдіктерінің) ақпарат ұсыну қағидаларының 5-тармағына сәйкес қалыптастырылатын филиалдардың (өкілдіктердің) тізіміне енгізілген шетелдік қаржылық емес ұйымның филиалы (өкілдігі)"]
[5,null,"2\n1","Представляют: филиал (представительство) иностранной нефинансовой организации, включенный в список филиалов (представительств), формируемый в соответствии с пунктом 5 Правил представления информации филиалами (представительствами) иностранных нефинансовых организаций, осуществляющими деятельность в Республике Казахстан"]
[5]
[5,null,"2\n1","Нысан қайда ұсынылады: Қазақстан Республикасында қызметін бір жылдан астам жүзеге асыратын шетелдік қаржылық емес ұйымның филиалы (өкілдігі) орналасқан орны бойынша Қазақстан Республикасы Ұлттық Банкінің аумақтық филиалы"]
[5,null,"2\n1","Куда представляется форма: территориальный филиал Национального Банка Республики Казахстан по месту нахождения филиала (представительства) иностранной нефинансовой организации, осуществляющего деятельность в Республике Казахстан более одного года"]
[5]
[5,null,null,"Ұсыну мерзімі: есепті тоқсаннан кейінгі бірінші айдың жиырмасына (қоса алғанда) дейін"]
[5,null,null,"Срок представления: до двадцатого числа (включительно) первого месяца, следующего за отчетным кварталом"]
[1,6,null,null,null,null,null,null,null,null,null,null,null,null,null,null,null,null,"2025 жылғы 23 маусымдағы № 33"]
[1,6,null,null,null,null,null,null,null,null,null,null,null,null,null,null,null,null,"қаулыға 11-қосымша"]
[1,6,null,null,null,null,null,null,null,null,null,null,null,null,null,null,null,null,"Приложение 11 к постановлению"]
[1,6,null,null,null,null,null,null,null,null,null,null,null,null,null,null,null,null,"от 23 июня 2025 года № 33"]
[1]
[1,null,"2\n1",null,null,null,null,null,null,null,null,null,null,null,null,"Ақпаратты алушы органдар құпиялылығына кепілдік береді"]
[1,null,"2\n1",null,null,null,null,null,null,null,null,null,null,null,null,"Конфиденциальность гарантируется органами получателями информации"]
[1,null,"2\n1",null,null,null,null,null,null,null,null,null,null,null,null,"Ведомстволық статистикалық байқаудың статистикалық нысаны"]
[1,null,"2\n1",null,null,null,null,null,null,null,null,null,null,null,null,"Статистическая форма ведомственного статистического наблюдения"]
[1,11,"3\n2\n1",null,null,null,null,null,null,null,null,null,null,null,null,"Қазақстан Республикасы Ұлттық Банкінің аумақтық филиалына  респонденттің орналасқан жері бойынша ұсынылады"]
[1,11,"3\n2\n1",null,null,null,null,null,null,null,null,null,null,null,null,"Представляется территориальному филиалу Национального Банка Республики Казахстан по месту нахождения респондента"]
[1,1,"3\n2\n1",null,null,null,null,null,null,null,null,null,null,null,null,"Қазақстан Республикасы Ұлттық Банкінің аумақтық филиалына  респонденттің орналасқан жері бойынша ұсынылады"]
[1,1,"3\n2\n1",null,null,null,null,null,null,null,null,null,null,null,null,"Представляется территориальному филиалу Национального Банка Республики Казахстан по месту нахождения респондента"]
[1,2,"3\n2\n1",null,null,null,null,null,null,null,null,null,null,null,null,"Қазақстан Республикасы Ұлттық Банкінің аумақтық филиалына  респонденттің орналасқан жері бойынша ұсынылады"]
[1,2,"3\n2\n1",null,null,null,null,null,null,null,null,null,null,null,null,"Представляется территориальному филиалу Национального Банка Республики Казахстан по месту нахождения респондента"]
[1,3,"3\n2\n1",null,null,null,null,null,null,null,null,null,null,null,null,"Қазақстан Республикасы Ұлттық Банкінің аумақтық филиалына  респонденттің орналасқан жері бойынша ұсынылады"]
[1,3,"3\n2\n1",null,null,null,null,null,null,null,null,null,null,null,null,"Представляется территориальному филиалу Национального Банка Республики Казахстан по месту нахождения респондента"]
[1,4,"3\n2\n1",null,null,null,null,null,null,null,null,null,null,null,null,"Қазақстан Республикасы Ұлттық Банкінің аумақтық филиалына  респонденттің орналасқан жері бойынша ұсынылады"]
[1,4,"3\n2\n1",null,null,null,null,null,null,null,null,null,null,null,null,"Представляется территориальному филиалу Национального Банка Республики Казахстан по месту нахождения респондента"]
[1,6,"3\n2\n1",null,null,null,null,null,null,null,null,null,null,null,null,"Қазақстан Республикасы Ұлттық Банкінің аумақтық филиалына  респонденттің орналасқан жері бойынша ұсынылады"]
[1,6,"3\n2\n1",null,null,null,null,null,null,null,null,null,null,null,null,"Представляется территориальному филиалу Национального Банка Республики Казахстан по месту нахождения респондента"]
[1,7,"3\n2\n1",null,null,null,null,null,null,null,null,null,null,null,null,"Қазақстан Республикасы Ұлттық Банкінің аумақтық филиалына  респонденттің орналасқан жері бойынша ұсынылады"]
[1,7,"3\n2\n1",null,null,null,null,null,null,null,null,null,null,null,null,"Представляется территориальному филиалу Национального Банка Республики Казахстан по месту нахождения респондента"]
[1,8,null,null,null,null,null,null,null,null,null,null,null,null,null,"Қазақстан Республикасының Ұлттық Банкіне ұсынылады"]
[1,8,null,null,null,null,null,null,null,null,null,null,null,null,null,"Представляется  Национальному Банку Республики Казахстан"]
[1]
[1,null,"2\n1",{"$f":"VLOOKUP(p_report_current_id,p_report,COLUMN(p_report_name_2)-1,FALSE)","v":"Мемлекеттік басқару секторының  халықаралық операциялары, сыртқы активтері және міндеттемелері туралы есеп"}]
[1,null,"2\n1",{"$f":"VLOOKUP(p_report_current_id,p_report,COLUMN(p_report_name_2)-2,FALSE)","v":"Отчет о международных операциях, внешних активах и обязательствах сектора государственного управления"}]
[1]
[1,null,null,"Индексі",null,{"$f":"VLOOKUP(p_report_current_id,p_report,COLUMN(p_report_name_1)-1,FALSE)","v":"7-ТБ"},null,"Тоқсандық",null,null,"Есепті кезең",null,null,{"$f":"CONCATENATE(p1_quarter)","v":""},"тоқсан",null,{"$f":"LEFT(p1_year,1)","v":""},{"$f":"LEFT(RIGHT(p1_year,3),1)","v":""},{"$f":"LEFT(RIGHT(p1_year,2),1)","v":""},{"$f":"RIGHT(p1_year,1)","v":""},"жыл"]
[1,null,null,"Индекс",null,{"$f":"VLOOKUP(p_report_current_id,p_report,COLUMN(p_report_name_1)-2,FALSE)","v":"7-ПБ"},null,"Квартальная",null,null,"Отчетный период",null,null,null,"квартал",null,null,null,null,null,"год"]
[1]
[1,11,null,"Респонденттер тізіміне енгізілген заңды тұлғалар ұсынады"]
[1,11,null,"Представляют юридические лица, включенные в перечень респондентов"]
[1,1,"2\n1","Респонденттер тобы: тасымалдау  және  көлік – экспедициялық  қызметтерін   авиациялық, теңіз (өзен), автомобиль, құбыр арқылы    жүргізу және электроэнергияны тасымалдау кәсіпорындары  ұсынады"]
[1,1,"2\n1","Круг респондентов: предприятия, осуществляющие перевозки  и транспортно-экспедиционные услуги авиационным, морским (речным), автомобильным, трубопроводным транспортом и передачу электроэнергии"]
[1,2,"2\n1","Респонденттер тобы: Ұлттық компания «Қазақстан Темір Жолы» акционерлік қоғамы, «Жолаушы тасымалдау» акционерлік қоғамы,  темір жол көлігінің кәсіпорындары ұсынады"]
[1,2,"2\n1","Круг респондентов: Акционерное общество «Национальная компания Қазақстан Темір Жолы», акционерное общество «Пассажирские перевозки»,  предприятия железнодорожного транспорта"]
[1,3,null,"Темір жолдан басқа бейрезидент көлік кәсіпорындарының өкілдері ұсынады"]
[1,3,null,"Представляют представители транспортных предприятий-нерезидентов всех видов транспорта, кроме железнодорожного"]
[1,4,null,"Қосалқы және қосымша көлік қызметімен айналысатын кәсіпорындар ұсынады"]
[1,4,null,"Представляют предприятия, занимающиеся вспомогательной и дополнительной транспортной деятельностью"]
[1,6,"2\n1","Қазақстан Республикасының мемлекеттік басқару органдары және мемлекеттік саясатты іске асыруды жүзеге асыратын басқа да ұйымдар өкілдік етеді"]
[1,6,"2\n1","Представляют органы государственного управления Республики Казахстан и другие организации, осуществляющие реализацию государственной политики"]
[1,7,null,"Респонденттер тізбесіне қосылған ұйымдар ұсынады"]
[1,7,null,"Представляют организации, включенные в перечень респондентов"]
[1,8,"2\n1","«Жалпы сақтандыру» саласы бойынша лицензия негізінде өз қызметін  жүзеге асыратын сақтандыру ұйымдары, бейрезидент сақтандыру (қайта сақтандыру) ұйымдарының филиалдары ұсынады"]
[1,8,"2\n1","Представляют страховые организации, филиалы страховых (перестраховочных) организаций - нерезидентов осуществляющие свою деятельность на основании лицензии по отрасли «общее страхование»"]
[1,8.5,"2\n1"," «Өмірді сақтандыру» саласы бойынша лицензия негізінде өз қызметін  жүзеге асыратын сақтандыру ұйымдары, бейрезидент сақтандыру (қайта сақтандыру) ұйымдарының филиалдары ұсынады"]
[1,8.5,"2\n1","Представляют страховые организации, филиалы страховых(перестраховочных) организаций - нерезидентов осуществляющие свою деятельность на основании лицензии по отрасли «страхование жизни»"]
[1]
[1,11,null,"Ұсыну мерзімі – есептік кезеңнен кейінгі екінші айдың 10-күнінен кешіктірмей"]
[1,11,null,"Срок представления – не позднее 10 числа второго месяца после отчетного периода"]
[1,1,null,"Ұсыну мерзімі – есептік кезеңнен кейінгі бірінші айдың 30-нан кешіктірмей"]
[1,1,null,"Срок представления – не позднее 30 числа первого месяца после отчетного периода"]
[1,2,null,"Ұсыну мерзімі – есептік кезеңнен кейінгі бірінші айдың 30-нан кешіктірмей"]
[1,2,null,"Срок представления – не позднее 30 числа первого месяца после отчетного периода"]
[1,3,null,"Ұсыну мерзімі – есептік кезеңнен кейінгі бірінші айдың 30-нан кешіктірмей"]
[1,3,null,"Срок представления – не позднее 30 числа первого месяца после отчетного периода"]
[1,4,null,"Ұсыну мерзімі – есептік кезеңнен кейінгі бірінші айдың 30-нан кешіктірмей"]
[1,4,null,"Срок представления – не позднее 30 числа первого месяца после отчетного периода"]
[1,6,null,"Ұсыну мерзімі – есепті кезеңнен кейінгі екінші айдың 30-нан кешіктірмей"]
[1,6,null,"Срок представления – не позднее 30 числа второго месяца после отчетного периода"]
[1,7,null,"Ұсыну мерзімі – есептік кезеңнен кейінгі бірінші айдың 30-нан кешіктірмей"]
[1,7,null,"Срок представления – не позднее 30 числа первого месяца после отчетного периода"]
[1,8,null,"Ұсыну мерзімі - есептік кезеңнен кейінгі бірінші айдың 20-нан кешіктірмей"]
[1,8,null,"Срок представления - не позднее 20 числа первого месяца после отчетного периода"]
[1]
[1,null,null,"БСН коды",null,null,{"$f":"LEFT(p1_bin,1)","v":""},{"$f":"LEFT(RIGHT(p1_bin,11),1)","v":""},{"$f":"LEFT(RIGHT(p1_bin,10),1)","v":""},{"$f":"LEFT(RIGHT(p1_bin,9),1)","v":""},{"$f":"LEFT(RIGHT(p1_bin,8),1)","v":""},{"$f":"LEFT(RIGHT(p1_bin,7),1)","v":""},{"$f":"LEFT(RIGHT(p1_bin,6),1)","v":""},{"$f":"LEFT(RIGHT(p1_bin,5),1)","v":""},{"$f":"LEFT(RIGHT(p1_bin,4),1)","v":""},{"$f":"LEFT(RIGHT(p1_bin,3),1)","v":""},{"$f":"LEFT(RIGHT(p1_bin,2),1)","v":""},{"$f":"RIGHT(p1_bin,1)","v":""}]
[1,null,null,"Код БИН"]

{"sheet":"Описание","index":2,"n_rows":1,"n_cols":1,"rows_kept":1,"cut":false,"hidden":true,"merged":[]}
[{"$f":"IF(p_report_current_id=47,1,0)","v":0}]

{"sheet":"Содержание","index":3,"n_rows":12,"n_cols":9,"rows_kept":12,"cut":false,"hidden":false,"merged":[[0,0,0,4],[2,3,2,4],[6,3,6,4],[11,3,11,4]]}
["Мазмұны\nСодержание",null,null,null,null,null,{"$f":"CONCATENATE($A$1)","v":"Мазмұны\nСодержание"}]
[]
[null,1,"1-бөлім.\nРаздел 1.","Бейрезиденттерден алынған (бейрезиденттерге ұсынылған) қызметтер және трансферттер, Америка Құрама Штаттарының мың (бұдан әрі – АҚШ) доллары\nУслуги  и  трансферты, полученные от нерезидентов (предоставленные нерезидентам), тысяч долларов Соединенных Штатов Америки (далее – США)",null,{"$f":"OR(OR(NOT(ISERROR(AREAS(p5_11_country_name))),IF(NOT(ISERROR(AREAS(p5_11_sum))),SUM(p5_11_sum)>0,FALSE)),OR(NOT(ISERROR(AREAS(p6_12_country_name))),IF(NOT(ISERROR(AREAS(p6_12_sum))),SUM(p6_12_sum)>0,FALSE)),OR(NOT(ISERROR(AREAS(p7_13_country_name))),IF(NOT(ISERROR(AREAS(p7_13_sum))),SUM(p7_13_sum)>0,FALSE)))","v":false},null,{"$f":"CONCATENATE($D$3)","v":"Бейрезиденттерден алынған (бейрезиденттерге ұсынылған) қызметтер және трансферттер, Америка Құрама Штаттарының мың (бұдан әрі – АҚШ) доллары\nУслуги  и  трансферты, полученные от нерезидентов (предоставленные нерезидентам), тысяч долларов Соединенных Штатов Америки (далее – США)"},"1\n1"]
[null,"А",null,"А бөлігі.\nЧасть А.","Ресми қызметтер\nОфициальные услуги",{"$f":"OR(NOT(ISERROR(AREAS(p5_11_country_name))),IF(NOT(ISERROR(AREAS(p5_11_sum))),SUM(p5_11_sum)>0,FALSE))","v":false},null,null,"1\n1"]
[null,"Б",null,"Б бөлігі.\nЧасть Б.","Қызметтердің басқа да түрлері\nПрочие виды услуг",{"$f":"OR(NOT(ISERROR(AREAS(p6_12_country_name))),IF(NOT(ISERROR(AREAS(p6_12_sum))),SUM(p6_12_sum)>0,FALSE))","v":false},null,null,"1\n1"]
[null,"В",null,"В бөлігі.\nЧасть В.","Ағымдағы және күрделі трансферттер\nТекущие и капитальные трансферты",{"$f":"OR(NOT(ISERROR(AREAS(p7_13_country_name))),IF(NOT(ISERROR(AREAS(p7_13_sum))),SUM(p7_13_sum)>0,FALSE))","v":false},null,null,"1\n1"]
[null,2,"2-бөлім.\nРаздел 2.","Бейрезиденттерге қойылатын қаржылық талаптар және олардың алдындағы міндеттемелер, мың АҚШ доллары \nФинансовые требования к нерезидентам и обязательства перед ними, тысяч долларов США",null,{"$f":"OR(OR(NOT(ISERROR(AREAS(p8_162_country_name))),IF(NOT(ISERROR(AREAS(p8_162_sum))),SUM(p8_162_sum)>0,FALSE)),OR(NOT(ISERROR(AREAS(p9_163_inv_obj_name))),IF(NOT(ISERROR(AREAS(p9_163_sum))),SUM(p9_163_sum)>0,FALSE)),OR(NOT(ISERROR(AREAS(p10_164_country_name))),IF(NOT(ISERROR(AREAS(p10_164_sum))),SUM(p10_164_sum)>0,FALSE)),OR(NOT(ISERROR(AREAS(p11_165_country_name))),IF(NOT(ISERROR(AREAS(p11_165_sum))),SUM(p11_165_sum)>0,FALSE)))","v":false},null,{"$f":"CONCATENATE($D$7)","v":"Бейрезиденттерге қойылатын қаржылық талаптар және олардың алдындағы міндеттемелер, мың АҚШ доллары \nФинансовые требования к нерезидентам и обязательства перед ними, тысяч долларов США"},"1\n1"]
[null,"А",null,"А бөлігі.\nЧасть А.","Халықаралық ұйымдарға қатысу\nУчастие в международных организациях",{"$f":"OR(NOT(ISERROR(AREAS(p8_162_country_name))),IF(NOT(ISERROR(AREAS(p8_162_sum))),SUM(p8_162_sum)>0,FALSE))","v":false},null,null,"1\n1"]
[null,"Б",null,"Б бөлігі.\nЧасть Б.","Бейрезиденттердің: шетелдік заңды тұлғалардың, инвестициялық қорлардың капиталына қатысу\nУчастие в капитале нерезидентов: иностранных юридических лиц, инвестиционных фондов",{"$f":"OR(NOT(ISERROR(AREAS(p9_163_inv_obj_name))),IF(NOT(ISERROR(AREAS(p9_163_sum))),SUM(p9_163_sum)>0,FALSE))","v":false},null,null,"1\n1"]
[null,"В",null,"В бөлігі.\nЧасть В.","Бейрезиденттерге қойылатын өзге де талаптар\nИные требования к нерезидентам",{"$f":"OR(NOT(ISERROR(AREAS(p10_164_country_name))),IF(NOT(ISERROR(AREAS(p10_164_sum))),SUM(p10_164_sum)>0,FALSE))","v":false},null,null,"1\n1"]
[null,"Г",null,"Г бөлігі.\nЧасть Г.","Бейрезиденттер алдындағы міндеттемелер (Қазақстан Республикасы Үкіметінің ресми сыртқы қарыздарын және еурооблигацияларды\nОбязательства перед нерезидентами (за исключением официальных внешних займов и еврооблигаций Правительства Республики Казахстан)",{"$f":"OR(NOT(ISERROR(AREAS(p11_165_country_name))),IF(NOT(ISERROR(AREAS(p11_165_sum))),SUM(p11_165_sum)>0,FALSE))","v":false},null,null,"1\n1"]
[null,3,"3-бөлім\nРаздел 3.","Бейрезиденттермен жасалған басқа да операциялар\nПрочие операции с нерезидентами",null,{"$f":"SUM(OFFSET(p12_1065_data,ROW(p12_1065_indicator_code)-ROW(p12_1065_data),COLUMN(p12_1065_cols_code)-COLUMN(p12_1065_data),ROWS(p12_1065_indicator_code),COLUMNS(p12_1065_cols_code)))>0","v":false},null,{"$f":"CONCATENATE($D$12)","v":"Бейрезиденттермен жасалған басқа да операциялар\nПрочие операции с нерезидентами"},"1\n1"]

{"sheet":"1","index":4,"n_rows":21,"n_cols":5,"rows_kept":21,"cut":false,"hidden":false,"merged":[[0,2,0,4],[2,2,2,4],[1,2,1,4],[3,2,4,2],[3,3,4,3],[3,4,4,4]]}
["1-бөлім. Бейрезиденттерден алынған (бейрезиденттерге ұсынылған) қызметтер және трансферттер, Америка Құрама Штаттарының мың (бұдан әрі – АҚШ) доллары\nРаздел 1. Услуги  и  трансферты, полученные от нерезидентов (предоставленные нерезидентам), тысяч долларов Соединенных Штатов Америки (далее – США)",null,"1-бөлім. Бейрезиденттерден алынған (бейрезиденттерге ұсынылған) қызметтер және трансферттер, Америка Құрама Штаттарының мың (бұдан әрі – АҚШ) доллары\nРаздел 1. Услуги  и  трансферты, полученные от нерезидентов (предоставленные нерезидентам), тысяч долларов Соединенных Штатов Америки (далее – США)"]
["А бөлігі. Ресми қызметтер\nЧасть А. Официальные услуги",null,"А бөлігі. Ресми қызметтер\nЧасть А. Официальные услуги"]
["2\n1",null,"мың АҚШ долл.\nв тыс. долл. США *"]
[null,0,"Көрсеткіштің атауы\nНаименование показателя","Көрсеткіш коды\nКод показателя","Барлығы\nВсего"]
[null,0]
[null,0,"А","Б",1]
[null,-1,0,0,0]
[null,3,"Бейрезиденттерден алынған қызметтер\nУслуги, полученные от нерезидентов"]
[null,0,"Елшіліктер, консулдықтар және шетелдегі басқа да қазақстандық дипломатиялық және ресми өкілдіктер үшін жылжымайтын мүлік объектілерін салу үшін шетел мемлекеттерінің аумағында жер учаскелерін сатып алуға жұмсалған  шығыстар\nРасходы на приобретение земельных участков на территории иностранных государств для строительства объектов недвижимости для посольств, консульств и других казахстанских дипломатических и официальных представительств за рубежом","10",{"$f":"0","v":0}]
[null,0,"Шетел мемлекеттерінің аумағында елшіліктер, консулдықтар және шетелдегі басқа да қазақстандық дипломатиялық және ресми өкілдіктер үшін жылжымайтын мүлік объектілерін сатып алуға жұмсалған шығыстар\nРасходы на приобретение  объектов недвижимости на территории иностранных государств для посольств, консульств и других казахстанских дипломатических и официальных представительств за рубежом","20",{"$f":"0","v":0}]
[null,0,"Шетелдегі елшіліктерді, консулдықтарды және басқа да қазақстандық дипломатиялық және ресми өкілдіктерін күтіп-ұстауға жұмсалған шығыстар (жалақыны қоспағанда)\nРасходы на содержание  посольств, консульств и других казахстанских дипломатических и официальных представительств за рубежом (за исключением заработной платы)","30",{"$f":"0","v":0}]
[null,0,"Шетелдегі елшіліктерде, консулдықтарда және басқа да қазақстандық дипломатиялық және ресми өкілдіктерінде жұмыс істейтін Қазақстан резиденттері алған жалақы және басқа да төлемдер\nЗаработная плата и другие выплаты, полученные резидентами Казахстана, работающими в посольствах, консульствах и других казахстанских дипломатических и официальных представительствах за рубежом","40",{"$f":"0","v":0}]
[null,0,"Шетелдегі елшіліктерде, консулдықтарда және басқа да қазақстандық дипломатиялық және ресми өкілдіктерде жұмыс істейтін Қазақстанның бейрезиденттеріне жалақы және басқа да төлемдер\nЗаработная плата и другие выплаты нерезидентам Казахстана, работающим в посольствах, консульствах и других казахстанских дипломатических и официальных представительствах за рубежом","50",{"$f":"0","v":0}]
[null,0,"Шетел мемлекеттерінің аумағындағы табиғи ресурстарды жалға алу (пайдалану) үшін төлемдер\nПлатежи за аренду (использование) природных ресурсов на территории иностранных государств","60",{"$f":"0","v":0}]
[null,0,"Қазақстан азаматтарына виза бергені үшін шетмемлекеттердің елшіліктері мен консулдықтарының алымдары\nСборы посольств и консульств иностранных государств за выдачу виз гражданам Казахстана","62",{"$f":"0","v":0}]
[null,3,"Бейрезиденттерге көрсетілген қызметтер\nУслуги, оказанные нерезидентам"]
[null,0,"Қазақстанның елшіліктері мен консулдықтарында Қазақстан резидент еместеріне  виза беру үшін алымдар\nСборы посольств и консульств Казахстана за выдачу виз нерезидентам Казахстана","65",{"$f":"0","v":0}]
[null,0,"Қазақстанның аумағында елшіліктер, консулдықтар және Қазақстандағы басқа да шетелдік дипломатиялық және ресми өкілдіктер үшін жылжымайтын мүлік объектілерін салу үшін жер телімдерін сатудан түскен түсімдер\nПоступления от продажи  земельных участков на территории Казахстана для строительства объектов недвижимости для посольств, консульств и других иностранных дипломатических и официальных представительств в Казахстане","70",{"$f":"0","v":0}]
[null,0,"Қазақстанның аумағында елшіліктер, консулдықтар және Қазақстандағы басқа да шетелдік дипломатиялық және ресми өкілдіктер үшін жылжымайтын мүлік объектілерін сатудан түскен түсімдер\nПоступления от продажи объектов недвижимости на территории Казахстана для посольств, консульств и других иностранных дипломатических и официальных представительств в Казахстане","80",{"$f":"0","v":0}]
[null,0,"Қазақстан аумағында табиғи ресурстарды жалға (пайдалануға) беруден түскен түсімдер\nПоступления от предоставления в аренду (пользование) природных ресурсов на территории Казахстана","90",{"$f":"0","v":0}]
[null,7]

{"sheet":"2","index":5,"n_rows":44,"n_cols":5,"rows_kept":44,"cut":false,"hidden":false,"merged":[[0,2,0,4],[2,2,2,4],[1,2,1,4],[3,2,4,2],[3,3,4,3],[3,4,4,4]]}
["1-бөлім. Бейрезиденттерден алынған (бейрезиденттерге ұсынылған) қызметтер және трансферттер, Америка Құрама Штаттарының мың (бұдан әрі – АҚШ) доллары\nРаздел 1. Услуги  и  трансферты, полученные от нерезидентов (предоставленные нерезидентам), тысяч долларов Соединенных Штатов Америки (далее – США)",null,"1-бөлім. Бейрезиденттерден алынған (бейрезиденттерге ұсынылған) қызметтер және трансферттер, Америка Құрама Штаттарының мың (бұдан әрі – АҚШ) доллары\nРаздел 1. Услуги  и  трансферты, полученные от нерезидентов (предоставленные нерезидентам), тысяч долларов Соединенных Штатов Америки (далее – США)"]
["Б бөлігі. Қызметтердің басқа да түрлері\nЧасть Б. Прочие виды услуг",null,"Б бөлігі. Қызметтердің басқа да түрлері\nЧасть Б. Прочие виды услуг"]
["2\n1",null,"мың АҚШ долл.\nв тыс. долл. США *"]
[null,0,"Көрсеткіштің атауы\nНаименование показателя","Көрсеткіш коды\nКод показателя","Барлығы\nВсего"]
[null,0]
[null,0,"А","Б",1]
[null,-1,0,0,0]
[null,3,"Бейрезиденттерден алынған қызметтер\nУслуги, полученные от нерезидентов"]
[null,0,"Қазақстан азаматтарын шет елде оқыту\nОбучение граждан Казахстана за рубежом","100",{"$f":"0","v":0}]
[null,0,"Қазақстан Республикасының аумағындағы Қазақстан азаматтарын оқыту (қашықтықтан, шетелдік оқытушылардың келуі)\nОбучение граждан Казахстана, находящихся на территории РК (дистанционно, приезд иностранных преподавателей)","101",{"$f":"0","v":0}]
[null,0,"Қазақстан азаматтарына шет елде көрсетілген денсаулық сақтау қызметтері\nУслуги здравоохранения, предоставленные гражданам Казахстана за рубежом","105",{"$f":"0","v":0}]
[null,0,"Қазақстан азаматтарына қашықтықтан көрсетілген денсаулық сақтау қызметтері, шетелдік медициналық қызметкерлердің келуі\nУслуги здравоохранения, предоставленные гражданам Казахстана дистанционно, приезд иностранных медицинских работников","106",{"$f":"0","v":0}]
[null,1,"Құрылыс қызметтері (құрылыспен байланысты жөндеу және техникалық қызмет көрсетуді қосқанда) оның ішінде:\nСтроительные услуги (включая ремонт и техническое  обслуживание в связи со строительством), в том числе:","110",{"$f":"0","v":0}]
[null,0,"        шетелдегі құрылыс\n        строительство за границей","111",{"$f":"0","v":0}]
[null,0,"        Қазақстандағы құрылыс\n        строительство в Казахстане","117",{"$f":"0","v":0}]
[null,0,"Басқару саласындағы  консультациялық қызметтер\nКонсультационные услуги в области управления","120",{"$f":"0","v":0}]
[null,0,"Заң қызметтері\nЮридические услуги","121",{"$f":"0","v":0}]
[null,0,"Қаржы қызметтерін көрсету\nФинансовые услуги","122",{"$f":"0","v":0}]
[null,0,"Телекоммуникациялық қызметтер (берілетін ақпараттың құнын есептемегендегі байланыс қызметтері)\nТелекоммуникационные услуги (услуги связи без учета стоимости передаваемой информации)","125",{"$f":"0","v":0}]
[null,0,"Ақпараттық қызметтер\nИнформационные услуги","127",{"$f":"0","v":0}]
[null,0,"Компьютерлік қызметтер (компьютерлерді жөндеу және қызмет көрсетуді қоса алғанда)\nКомпьютерные услуги (включая ремонт и техническое обслуживание компьютеров)","130",{"$f":"0","v":0}]
[null,0,"Басқа санаттарға жатқызылмаған жөндеу және техникалық қызмет көрсету бойынша қызметтер\nУслуги по ремонту и техническому обслуживанию, не отнесенные к другим категориям","131",{"$f":"0","v":0}]
[null,0,"Бейрезиденттердің көлік құралдарына қызмет көрсету жөніндегі қызметтер (ұшақтарды қоса алғанда)\nУслуги по обслуживанию нерезидентами транспортных средств (включая самолеты)","135",{"$f":"0","v":0}]
[null,0,"Шетелдік спортшылардың Қазақстандағы ойын-сауық іс-шараларындағы табысы, шетелдік спортшыларды қазақстандық командаларға ауыстырғаны үшін табысы\nДоход иностранных спортсменов в зрелищных мероприятиях в Казахстане, доход за перевод иностранных спортсменов в казахстанские команды","136",{"$f":"0","v":0}]
[null,0,"Қазақстандағы ойын-сауық іс-шараларындағы шетелдік әртістер мен басқа да өнер қызметкерлерінің табысы\nДоход иностранных артистов и других работников искусства в зрелищных мероприятиях в Казахстане","137",{"$f":"0","v":0}]
[null,5,"Өзге қызметтер (толық көрсетіңіз)\nПрочие услуги (расшифровать)","140",{"$f":"0","v":0}]
[null,-1,"басқа да іскерлік қызметтер\nпрочие деловые услуги","140/1",{"$f":"0","v":0}]
[null,-1,"басқа да\nпрочие","140/2",{"$f":"0","v":0}]
[null,-1,3,"140/3",{"$f":"0","v":0}]
[null,-1,"аэронавигационные сборы","140/4",{"$f":"0","v":0}]
[null,3,"Бейрезиденттерге көрсетілген қызметтер\nУслуги, оказанные нерезидентам"]
[null,0,"Қазақстан аумағындағы шетел азаматтарына көрсетілген денсаулық сақтау қызметтері\nУслуги здравоохранения, предоставленные иностранным гражданам, находящимся на территории Казахстана","141",{"$f":"0","v":0}]
[null,0,"Шетелдегі шетел азаматтарына көрсетілген денсаулық сақтау қызметтері (қашықтықтан, қазақстандық медицина қызметкерлерінің баруы)\nУслуги здравоохранения, предоставленные иностранным гражданам, находящимся за рубежом (дистанционно, выезд казахстанских медицинских работников)","142",{"$f":"0","v":0}]
[null,0,"Басқару саласындағы  консультациялық қызметтер\nКонсультационные услуги в области управления","143",{"$f":"0","v":0}]
[null,0,"Заң қызметтері\nЮридические услуги","144",{"$f":"0","v":0}]
[null,0,"Ақпараттық қызметтер\nИнформационные услуги","145",{"$f":"0","v":0}]
[null,0,"Қазақстандық спортшылардың Шетелдегі ойын-сауық іс-шараларындағы табысы, қазақстандық спортшыларды шетелдік командаларға ауыстырғаны үшін табысы\nДоход казахстанских спортсменов в зрелищных мероприятиях за границей, доход за перевод казахстанских спортсменов в иностранные команды","146",{"$f":"0","v":0}]
[null,0,"Қазақстандық әртістер мен басқа да өнер қызметкерлерінің Шетелдегі ойын-сауық іс-шараларындағы табысы\nДоход казахстанских артистов и других работников искусства в зрелищных мероприятиях за границей","147",{"$f":"0","v":0}]
[null,5,"Өзге қызметтер (толық көрсетіңіз)\nПрочие услуги (расшифровать)","149",{"$f":"0","v":0}]
[null,-1,"басқа да іскерлік қызметтер\nпрочие деловые услуги","149/1",{"$f":"0","v":0}]
[null,-1,"басқа да\nпрочие","149/2",{"$f":"0","v":0}]
[null,-1,3,"149/3",{"$f":"0","v":0}]
[null,-1,"аэронавигационные сборы","149/4",{"$f":"0","v":0}]
[null,7]

{"sheet":"3","index":6,"n_rows":33,"n_cols":5,"rows_kept":33,"cut":false,"hidden":false,"merged":[[0,2,0,4],[2,2,2,4],[1,2,1,4],[3,2,4,2],[3,3,4,3],[3,4,4,4]]}
["1-бөлім. Бейрезиденттерден алынған (бейрезиденттерге ұсынылған) қызметтер және трансферттер, Америка Құрама Штаттарының мың (бұдан әрі – АҚШ) доллары\nРаздел 1. Услуги  и  трансферты, полученные от нерезидентов (предоставленные нерезидентам), тысяч долларов Соединенных Штатов Америки (далее – США)",null,"1-бөлім. Бейрезиденттерден алынған (бейрезиденттерге ұсынылған) қызметтер және трансферттер, Америка Құрама Штаттарының мың (бұдан әрі – АҚШ) доллары\nРаздел 1. Услуги  и  трансферты, полученные от нерезидентов (предоставленные нерезидентам), тысяч долларов Соединенных Штатов Америки (далее – США)"]
["В бөлігі. Ағымдағы және күрделі трансферттер\nЧасть В. Текущие и капитальные трансферты",null,"В бөлігі. Ағымдағы және күрделі трансферттер\nЧасть В. Текущие и капитальные трансферты"]
["2\n1",null,"мың АҚШ долл.\nв тыс. долл. США *"]
[null,0,"Көрсеткіштің атауы\nНаименование показателя","Көрсеткіш коды\nКод показателя","Барлығы\nВсего"]
[null,0]
[null,0,"А","Б",1]
[null,-1,0,0,0]
[null,3,"      Бейрезиденттерге ұсынылған трансферттер\n      Трансферты, предоставленные нерезидентам "]
[null,0,"Халықаралық ұйымдарға және мемлекетаралық органдарға төленген мүшелік жарналар\nЧленские взносы, выплаченные в международные организации и межгосударственные органы","150",{"$f":"0","v":0}]
[null,0,"Инвестициялық мақсаттарға арналған трансферттер\nТрансферты на инвестиционные цели","160",{"$f":"0","v":0}]
[null,0,"Күрделі активтерге келтірілген зиянға және басқа бұзушылықтарға байланысты өтемақы төлемдері\nКомпенсационные выплаты в связи с нанесением ущерба капитальным активам и другими повреждениями","170",{"$f":"0","v":0}]
[null,0,"Халықаралық ынтымақтастық шеңберіндегі ағымдағы операциялар, оның ішінде:\nТекущие операции в рамках международного сотрудничества, в  том числе:","171",{"$f":"0","v":0}]
[null,0,"     гуманитарлық көмек\n     гуманитарная помощь","172",{"$f":"0","v":0}]
[null,0,"     техникалық көмек\n     техническая  помощь","173",{"$f":"0","v":0}]
[null,0,"     кеден төлемдері\n     таможенные платежи","174",{"$f":"0","v":0}]
[null,0,"     басқа да  операциялар\n     прочие операции","175",{"$f":"0","v":0}]
[null,0,"Бейрезиденттерге сот шешімі бойынша салынатын өсімпұлдар, айыппұлдар түрінде төленетін төлемдер\nПлатежи нерезидентам в виде пени, штрафов, налагаемых судами","179",{"$f":"0","v":0}]
[null,5,"Басқа да трансферттер (толық көрсетіңіз)\nПрочие трансферты (расшифровать)","180",{"$f":"0","v":0}]
[null,-1,"басқа да\nпрочие","180/1",{"$f":"0","v":0}]
[null,-1,"Байқоңыр рентасы\nрента Байконур","180/2",{"$f":"0","v":0}]
[null,3,"      Бейрезиденттерден алынған трансферттер\n      Трансферты, полученные от нерезидентов  "]
[null,0,"Инвестициялық мақсаттарға арналған трансферттер\nТрансферты на инвестиционные цели","190",{"$f":"0","v":0}]
[null,0,"Күрделі активтерге келтірілген зиянға және басқа бұзушылықтарға байланысты өтемақы төлемдері\nКомпенсационные выплаты в связи с нанесением ущерба капитальным активам и другими повреждениями","200",{"$f":"0","v":0}]
[null,0,"Халықаралық ынтымақтастық шеңберіндегі ағымдағы операциялар, оның ішінде:\nТекущие операции в рамках международного сотрудничества, в  том числе:","201",{"$f":"0","v":0}]
[null,0,"     гуманитарлық көмек\n     гуманитарная помощь","202",{"$f":"0","v":0}]
[null,0,"     техникалық көмек\n     техническая  помощь","203",{"$f":"0","v":0}]
[null,0,"     кеден төлемдері\n     таможенные платежи","204",{"$f":"0","v":0}]
[null,0,"     басқа да  операциялар\n     прочие операции","205",{"$f":"0","v":0}]
[null,0,"Резидент еместерге сот шешімі бойынша салынатын өсімпұлдар, айыппұлдар түрінде  төленетін төлемдер\nПоступления от нерезидентов в виде пени, штрафов, налагаемых судами","209",{"$f":"0","v":0}]
[null,5,"Басқа да трансферттер (толық көрсетіңіз)\nПрочие трансферты (расшифровать)","210",{"$f":"0","v":0}]
[null,-1,"басқа да\nпрочие","210/1",{"$f":"0","v":0}]
[null,-1,"Байқоңыр рентасы\nрента Байконур","210/2",{"$f":"0","v":0}]
[null,7]

{"sheet":"4","index":7,"n_rows":16,"n_cols":5,"rows_kept":16,"cut":false,"hidden":false,"merged":[[0,2,0,4],[2,2,2,4],[1,2,1,4],[3,2,4,2],[3,3,4,3],[3,4,4,4]]}
["2-бөлім. Бейрезиденттерге қойылатын қаржылық талаптар және олардың алдындағы міндеттемелер, мың АҚШ доллары \nРаздел 2. Финансовые требования к нерезидентам и обязательства перед ними, тысяч долларов США",null,"2-бөлім. Бейрезиденттерге қойылатын қаржылық талаптар және олардың алдындағы міндеттемелер, мың АҚШ доллары \nРаздел 2. Финансовые требования к нерезидентам и обязательства перед ними, тысяч долларов США"]
["А бөлігі. Халықаралық ұйымдарға қатысу\nЧасть А. Участие в международных организациях",null,"А бөлігі. Халықаралық ұйымдарға қатысу\nЧасть А. Участие в международных организациях"]
["2\n1",null,"мың АҚШ долл.\nв тыс. долл. США *"]
[null,0,"Көрсеткіштің атауы\nНаименование показателя","Көрсеткіш коды\nКод показателя","Барлығы\nВсего"]
[null,0]
[null,0,"А","Б",1]
[null,-1,0,0,0]
[null,0,"Халықаралық ұйымға қатысу немесе салым (жарна) үлесі % (қолданылатын болса)\nДоля участия или вклада (взноса) в международную организацию, % (если применимо)","220",{"$f":"0","v":0}]
[null,0,"Есептік кезеңнің басындағы қатысу (салым, жарна) үлесінің құны\nСтоимость доли участия (вклада, взноса) на начало отчетного периода","230",{"$f":"0","v":0}]
[null,0,"Есептік кезеңде үлесті (салымды, жарнаны) енгізу\nВнесение доли (вклада, взноса) в отчетном периоде","240",{"$f":"0","v":0}]
[null,0,"Қайта бағалау (қолданылатын болса)\nПереоценка (если применимо)","250",{"$f":"0","v":0}]
[null,0,"Есептік кезеңде үлесті (салымды, жарнаны) алып қою\nИзъятие доли (вклада, взноса) в отчетном периоде","245",{"$f":"0","v":0}]
[null,0,"Басқа да өзгерістер\nПрочие изменения","260",{"$f":"0","v":0}]
[null,1,"Есептік кезеңнің соңындағы қатысу (салым, жарна) үлесінің құны\nСтоимость доли участия (вклада, взноса) на конец отчетного периода","270",{"$f":"0","v":0}]
[null,0,"Есептік кезеңде алынған дивиденттер (қолданылатын болса)\nДивиденды, полученные в отчетном периоде (если применимо)","280",{"$f":"0","v":0}]
[null,7]

{"sheet":"5","index":8,"n_rows":21,"n_cols":5,"rows_kept":21,"cut":false,"hidden":false,"merged":[[0,2,0,4],[2,2,2,4],[1,2,1,4],[3,2,7,2],[3,3,7,3],[3,4,7,4]]}
["2-бөлім. Бейрезиденттерге қойылатын қаржылық талаптар және олардың алдындағы міндеттемелер, мың АҚШ доллары \nРаздел 2. Финансовые требования к нерезидентам и обязательства перед ними, тысяч долларов США",null,"2-бөлім. Бейрезиденттерге қойылатын қаржылық талаптар және олардың алдындағы міндеттемелер, мың АҚШ доллары \nРаздел 2. Финансовые требования к нерезидентам и обязательства перед ними, тысяч долларов США"]
["Б бөлігі. Бейрезиденттердің: шетелдік заңды тұлғалардың, инвестициялық қорлардың капиталына қатысу\nЧасть Б. Участие в капитале нерезидентов: иностранных юридических лиц, инвестиционных фондов",null,"Б бөлігі. Бейрезиденттердің: шетелдік заңды тұлғалардың, инвестициялық қорлардың капиталына қатысу\nЧасть Б. Участие в капитале нерезидентов: иностранных юридических лиц, инвестиционных фондов"]
["2\n1",null,"мың АҚШ долл.\nв тыс. долл. США *"]
[null,0,"Көрсеткіштің атауы\nНаименование показателя","Көрсеткіш коды\nКод показателя","Барлығы\nВсего"]
[null,0]
[null,0]
[null,0]
[null,0]
[null,0,"А","Б",1]
[null,-1,0,0,0]
[null,0,"Бейрезиденттің капиталына қатысу немесе салым (жарна) үлесі % (қолданылатын болса)\nДоля участия или вклада (взноса) в капитале нерезидента, % (если применимо)","290",{"$f":"0","v":0}]
[null,0,"Есептік кезеңнің басындағы резидент еместің капиталына қатысу (салым, жарна) үлесінің құны\nСтоимость доли участия (вклада, взноса) в капитале нерезидента на начало отчетного периода","300",{"$f":"0","v":0}]
[null,0,"Есептік кезеңде капиталды (үлесті, салымды, жарнаны) енгізу, жай акцияларды (қатысушылардың дауыстарын) сатып алу\nВнесение капитала (доли, вклада, взноса), покупка простых акций (голосов участников) в отчетном периоде","310",{"$f":"0","v":0}]
[null,0,"Есептік кезеңде капиталды (үлесті, салымды, жарнаны) айырып алу, жай акцияларды (қатысушылардың дауыстарын) сату\nИзъятие капитала (доли, вклада, взноса), продажа простых акций (голосов участников) в отчетном периоде ","320",{"$f":"0","v":0}]
[null,0,"Қайта бағалау (қолданылатын болса)\nПереоценка (если применимо)","330",{"$f":"0","v":0}]
[null,0,"Басқа да өзгерістер\nПрочие изменения","340",{"$f":"0","v":0}]
[null,1,"Есептік кезеңнің соңындағы қатысу (салым, жарна) үлесінің құны\nСтоимость доли участия (вклада, взноса) на конец отчетного периода ","350",{"$f":"0","v":0}]
[null,0,"Резидент еместің Сіздің ұйымыңыздың қатысу үлесіне келетін салықтарды төлегеннен кейінгі есептік кезеңдегі таза пайдасы (шығыны) (қолданылатын болса)\nЧистая прибыль (убыток) нерезидента за отчетный период, после уплаты налогов, приходящаяся на долю участия Вашей организации (если применимо)","360",{"$f":"0","v":0}]
[null,0,"Бейрезиденттің есептік кезеңде Сіздің ұйымыңызға төленуі тиіс жариялаған дивидендтері \nОбъявленные нерезидентом в отчетном периоде дивиденды, подлежащие оплате Вашей организации","370",{"$f":"0","v":0}]
[null,0,"Сіздің ұйымыңыздың есептік кезеңде бейрезиденттен алған дивидендтері\nДивиденды, полученные в отчетном периоде Вашей организацией от нерезидента","380",{"$f":"0","v":0}]
[null,7]

{"sheet":"6","index":9,"n_rows":49,"n_cols":5,"rows_kept":49,"cut":false,"hidden":false,"merged":[[0,2,0,4],[1,2,1,4],[2,2,2,4],[3,2,4,2],[3,3,4,3],[3,4,4,4]]}
["2-бөлім. Бейрезиденттерге қойылатын қаржылық талаптар және олардың алдындағы міндеттемелер, мың АҚШ доллары \nРаздел 2. Финансовые требования к нерезидентам и обязательства перед ними, тысяч долларов США",null,"2-бөлім. Бейрезиденттерге қойылатын қаржылық талаптар және олардың алдындағы міндеттемелер, мың АҚШ доллары \nРаздел 2. Финансовые требования к нерезидентам и обязательства перед ними, тысяч долларов США"]
["В бөлігі. Бейрезиденттерге қойылатын өзге де талаптар\nЧасть В. Иные требования к нерезидентам",null,"В бөлігі. Бейрезиденттерге қойылатын өзге де талаптар\nЧасть В. Иные требования к нерезидентам"]
["2\n1",null,"мың АҚШ долл.\nв тыс. долл. США *"]
[null,0,"Көрсеткіштің атауы\nНаименование показателя","Көрсеткіш коды\nКод показателя","Барлығы\nВсего"]
[null,0]
[null,0,"А","Б",1]
[null,-1,0,0,0]
[null,3,"Бейрезиденттерге қатысты дебиторлық берешек және бейрезиденттерге берілген аванстар \nДебиторская задолженность по отношению к нерезидентам и авансы, выданные нерезидентам"]
[null,0,"Есептік кезеңнің басындағы берешек\nЗадолженность на начало отчетного периода","390",{"$f":"0","v":0}]
[null,0,"Операциялар нәтижесінде ұлғаюы\nУвеличение в результате операций","400",{"$f":"0","v":0}]
[null,0,"Операциялар нәтижесінде азаюы\nУменьшение в результате операций","410",{"$f":"0","v":0}]
[null,0,"Қайта бағалау\nПереоценка","420",{"$f":"0","v":0}]
[null,0,"Басқа да өзгерістер\nПрочие изменения","430",{"$f":"0","v":0}]
[null,1,"Есептік кезеңнің соңындағы берешек\nЗадолженность на конец отчетного периода","440",{"$f":"0","v":0}]
[null,3,"Бейрезиденттерге берілген несиелер мен қарыздар\nСсуды и займы, предоставленные нерезидентам"]
[null,0,"Есептік кезеңнің басындағы берешек\nЗадолженность на начало отчетного периода","450",{"$f":"0","v":0}]
[null,0,"Операциялар нәтижесінде ұлғаюы\nУвеличение в результате операций","460",{"$f":"0","v":0}]
[null,0,"Операциялар нәтижесінде азаюы\nУменьшение в результате операций","470",{"$f":"0","v":0}]
[null,0,"Қайта бағалау\nПереоценка","480",{"$f":"0","v":0}]
[null,0,"Басқа да өзгерістер\nПрочие изменения","490",{"$f":"0","v":0}]
[null,1,"Есептік кезеңнің соңындағы берешек\nЗадолженность на конец отчетного периода","500",{"$f":"0","v":0}]
[null,0,"Есептік кезеңнің басындағы сыйақы көлемі\nОбъем вознаграждения на начало отчетного периода","510",{"$f":"0","v":0}]
[null,0,"Есептік кезеңде есептелген сыйақы\nВознаграждение, начисленное в отчетном периоде","520",{"$f":"0","v":0}]
[null,0,"Есептік кезеңде Сіздің ұйымыңыз алған сыйақы\nВознаграждение, полученное Вашей организацией в отчетном периоде","530",{"$f":"0","v":0}]
[null,0,"Қайта бағалау, басқа да өзгерістер\nПереоценка, прочие изменения","540",{"$f":"0","v":0}]
[null,1,"Есептік кезеңнің соңындағы сыйақы көлемі\nОбъем вознаграждения на конец отчетного периода","550",{"$f":"0","v":0}]
[null,3,"Қолма-қол шетел валютасы, шетел банктеріндегі шоттар (ағымдағы шоттар, талап ету бойынша шоттар, салымдар)\nНаличная иностранная валюта, счета в банках за рубежом (текущие счета, счета до востребования, вклады)"]
[null,0,"Есептік кезеңнің басындағы көлем\nОбъем на начало отчетного периода","560",{"$f":"0","v":0}]
[null,0,"Қолма-қол валютаны сатып алу, шоттарға түсімдер\nПокупка наличной валюты, поступление на счета","570",{"$f":"0","v":0}]
[null,0,"Қолма-қол валютаны сату, шоттардан шығыстар\nПродажа наличной валюты, израсходовано со счетов","580",{"$f":"0","v":0}]
[null,0,"Қайта бағалау, басқа да өзгерістер\nПереоценка, прочие изменения","590",{"$f":"0","v":0}]
[null,1,"Есептік кезеңнің соңындағы көлем\nОбъем на конец отчетного периода","600",{"$f":"0","v":0}]
[null,0,"Есептік кезеңде есептелген сыйақы\nВознаграждение, начисленное в отчетном периоде","610",{"$f":"0","v":0}]
[null,3,"Шетелдегі жылжымайтын мүлік (елшіліктер және шетелдегі осындай мекемелерді қоспағанда, 1-бөлімнің, А бөлігі)\nНедвижимость за рубежом (за исключением недвижимости для посольств и аналогичных учреждений за рубежом, часть А Раздела 1)"]
[null,0,"Есептік кезеңнің басындағы құн\nСтоимость на начало отчетного периода","620",{"$f":"0","v":0}]
[null,0,"Жылжымайтын мүлікті сатып алу\nПриобретение недвижимости","630",{"$f":"0","v":0}]
[null,0,"Жылжымайтын  мүлікті сату\nПродажа недвижимости","640",{"$f":"0","v":0}]
[null,0,"Қайта бағалау\nПереоценка","650",{"$f":"0","v":0}]
[null,0,"Басқа да өзгерістер\nПрочие изменения","660",{"$f":"0","v":0}]
[null,1,"Есептік кезеңнің соңындағы құн\nСтоимость на конец отчетного периода","670",{"$f":"0","v":0}]
[null,0,"Есептік кезеңде Сіздің ұйымыңыз алған кіріс\nДоход, полученный Вашей организацией в отчетном периоде","680",{"$f":"0","v":0}]
[null,3,"Бейрезиденттерге қойылатын өзге де талаптар\nДругие требования к нерезидентам"]
[null,0,"Есептік кезеңнің басындағы көлем \nОбъем на начало отчетного периода","690",{"$f":"0","v":0}]
[null,0,"Операциялар нәтижесінде ұлғаюы\nУвеличение в результате операций","700",{"$f":"0","v":0}]
[null,0,"Операциялар нәтижесінде азаюы\nУменьшение в результате операций","710",{"$f":"0","v":0}]
[null,0,"Қайта бағалау\nПереоценка","720",{"$f":"0","v":0}]
[null,0,"Басқа да өзгерістер\nПрочие изменения","730",{"$f":"0","v":0}]
[null,1,"Есептік кезеңнің соңындағы көлем\nОбъем на конец отчетного периода","740",{"$f":"0","v":0}]
[null,7]

{"sheet":"7","index":10,"n_rows":22,"n_cols":5,"rows_kept":22,"cut":false,"hidden":false,"merged":[[0,2,0,4],[2,2,2,4],[1,2,1,4],[3,2,4,2],[3,3,4,3],[3,4,4,4]]}
["2-бөлім. Бейрезиденттерге қойылатын қаржылық талаптар және олардың алдындағы міндеттемелер, мың АҚШ доллары \nРаздел 2. Финансовые требования к нерезидентам и обязательства перед ними, тысяч долларов США",null,"2-бөлім. Бейрезиденттерге қойылатын қаржылық талаптар және олардың алдындағы міндеттемелер, мың АҚШ доллары \nРаздел 2. Финансовые требования к нерезидентам и обязательства перед ними, тысяч долларов США"]
["Г бөлігі. Бейрезиденттер алдындағы міндеттемелер (Қазақстан Республикасы Үкіметінің ресми сыртқы қарыздарын және еурооблигацияларды\nЧасть Г. Обязательства перед нерезидентами (за исключением официальных внешних займов и еврооблигаций Правительства Республики Казахстан)",null,"Г бөлігі. Бейрезиденттер алдындағы міндеттемелер (Қазақстан Республикасы Үкіметінің ресми сыртқы қарыздарын және еурооблигацияларды\nЧасть Г. Обязательства перед нерезидентами (за исключением официальных внешних займов и еврооблигаций Правительства Республики Казахстан)"]
["2\n1",null,"мың АҚШ долл.\nв тыс. долл. США *"]
[null,0,"Көрсеткіштің атауы\nНаименование показателя","Көрсеткіш коды\nКод показателя","Барлығы\nВсего"]
[null,0]
[null,0,"А","Б",1]
[null,-1,0,0,0]
[null,3,"Бейрезиденттер алдындағы кредиторлық берешек және бейрезиденттерден алынған аванстар\nКредиторская задолженность перед нерезидентами и авансы, полученные от нерезидентов"]
[null,0,"Есептік кезеңнің басындағы  берешек\nЗадолженность на начало отчетного периода","750",{"$f":"0","v":0}]
[null,0,"Операциялар нәтижесінде ұлғаюы\nУвеличение в результате операций","760",{"$f":"0","v":0}]
[null,0,"Операциялар нәтижесінде азаюы\nУменьшение в результате операций","770",{"$f":"0","v":0}]
[null,0,"Қайта бағалау\nПереоценка","780",{"$f":"0","v":0}]
[null,0,"Басқа  өзгерістер\nПрочие изменения","790",{"$f":"0","v":0}]
[null,1,"Есептік кезеңнің соңындағы берешек\nЗадолженность на конец отчетного периода","800",{"$f":"0","v":0}]
[null,3,"Бейрезиденттер алдындағы басқа да міндеттемелер\nДругие обязательства перед нерезидентами"]
[null,0,"Есептік кезеңнің  басындағы көлем\nОбъем на начало отчетного периода","810",{"$f":"0","v":0}]
[null,0,"Операциялар нәтижесінде ұлғаюы\nУвеличение в результате операций","820",{"$f":"0","v":0}]
[null,0,"Операциялар нәтижесінде азаюы\nУменьшение в результате операций","830",{"$f":"0","v":0}]
[null,0,"Қайта  бағалау\nПереоценка","840",{"$f":"0","v":0}]
[null,0,"Басқа да өзгерістер\nПрочие изменения","850",{"$f":"0","v":0}]
[null,1,"Есептік кезеңнің соңындағы көлем\nОбъем на конец отчетного периода","860",{"$f":"0","v":0}]
[null,7]

{"sheet":"8","index":11,"n_rows":16,"n_cols":5,"rows_kept":16,"cut":false,"hidden":false,"merged":[[0,2,0,4],[1,2,1,4]]}
["3-бөлім. Бейрезиденттермен жасалған басқа да операциялар\nРаздел 3. Прочие операции с нерезидентами",null,"3-бөлім. Бейрезиденттермен жасалған басқа да операциялар\nРаздел 3. Прочие операции с нерезидентами"]
["2\n1",null,"мың АҚШ долл.\nв тыс. долл. США *"]
[null,0,"Көрсеткіштің атауы\nНаименование показателя","Көрсеткіш коды\nКод показателя","Барлығы\nВсего"]
[null,0,"А","Б","1"]
[null,-1,0,0,0]
[null,0,"Төлем көзінен ұсталатын шетел азаматтарының табыстарынан алынатын жеке табыс салығы\nИндивидуальный подоходный налог с доходов иностранных граждан, удерживаемый у источника выплаты","905"]
[null,0,"Резидент емес заңды тұлғалардан төленетін төлем көзінен ұсталатын корпоративтік табыс салығы\nКорпоративный подоходный налог с юридических лиц-нерезидентов, удерживаемый у источника выплаты","906"]
[null,0,"Қазақстанда аккредиттелген халықаралық ұйымдар мен халықаралық ұйымдардың Қазақстандағы өкілдіктері, шет мемлекеттердің дипломатиялық өкілдіктері мен консулдық мекемелері Қазақстан азаматтарының жалақысынан ұстаған әлеуметтік медициналық сақтандыруға міндетті жарналар\nОбязательные взносы на социальное медицинское страхование, удержанные из заработной платы граждан Казахстана международными организациями и представительствами международных организаций в Казахстане, дипломатическими представительствами и консульскими учреждениями иностранных государств, аккредитованными в Казахстане","910"]
[null,0,"Қазақстанның өзге жұмыс берушілері тұруға ықтиярхаты жоқ шетел азаматтарының жалақысынан ұстап қалған әлеуметтік медициналық сақтандыруға міндетті жарналар\nОбязательные взносы на социальное медицинское страхование, удержанные прочими работодателями Казахстана из заработной платы иностранных граждан, не имеющих вида на жительство","912"]
[null,0,"Қазақстан Республикасындағы халықаралық ұйымдар өкілдіктерінің, Қазақстан Республикасында аккредиттелген шет мемлекеттердің дипломатиялық өкілдіктері мен консулдық мекемелерінің Қазақстан азаматтарының жалақысынан ұсталған міндетті зейнетақы жарналары\nОбязательные пенсионные взносы представительств международных организаций в Республике Казахстан, дипломатических представительств и консульских учреждений иностранных государств, аккредитованных в Республике Казахстан, удержанные из заработной платы граждан Казахстана","914"]
[null,0,"Қазақстан Республикасында тұруға ықтиярхаты жоқ шетел азаматтарының жалақысынан ұсталған Қазақстанның өзге де жұмыс берушілерінің міндетті зейнетақы жарналары\nОбязательные пенсионные взносы прочих работодателей Казахстана, удержанные из заработной платы иностранных граждан, не имеющих вид на жительство в Республике Казахстан","916"]
[null,0,"Қазақстан Республикасының аумағында Еуразиялық экономикалық одаққа мүше мемлекеттердің еңбекшілеріне (отбасы  мүшелеріне) зейнетақы және Зейнетақы жинақтарын төлеу\nВыплаты пенсий и пенсионных накоплений трудящимся (членам семьи) государств - членов Евразийского экономического союза на территории Республики Казахстан","917"]
[null,0,"Қазақстан Республикасынан тысқары жерлерге тұрақты тұруға кеткен шетел азаматтары мен азаматтығы жоқ адамдарға зейнетақы жинақтарын төлеу\nВыплаты пенсионных накоплений иностранным гражданам и лицам без гражданства, выехавшим на постоянное место жительства за пределы Республики Казахстан","918"]
[null,0,"Қазақстан азаматтарына Қазақстан Республикасынан тысқары жерлерге тұрақты тұруға кеткен жағдайда зейнетақы жинақтарын төлеу\nВыплаты пенсионных накоплений гражданам Казахстана в случае их выезда на постоянное место жительства за пределы Республики Казахстан","919"]
[null,0,"Шетелдіктер мен азаматтығы жоқ адамдарға әлеуметтік көмек\nСоциальная помощь иностранцам и лицам без гражданства","930"]
[null,7]

{"sheet":"9","index":12,"n_rows":10,"n_cols":5,"rows_kept":10,"cut":false,"hidden":true,"merged":[[0,2,0,4],[1,2,2,2],[1,3,2,3],[1,4,2,4]]}
["7-бөлім. Резидент емес қызметкерлерге төленген жалақы, мың АҚШ доллары\nРаздел 7. Заработная плата, выплаченная работникам-нерезидентам, тысяч долларов США",null,"7-бөлім. Резидент емес қызметкерлерге төленген жалақы, мың АҚШ доллары\nРаздел 7. Заработная плата, выплаченная работникам-нерезидентам, тысяч долларов США"]
[null,0,"Көрсеткіш атауы\nНаименование показателя","Жол коды\nКод строки","Барлығы / Всего"]
[null,0]
[null,0,"А","Б","В"]
[null,-1,0,0,0]
[null,0,"Резидент емес қызметкерлерге ақшалай түрде төленген жалақы және басқа да төлемдер\nЗаработная плата и другие выплаты работникам-нерезидентам в денежной форме","530",{"$f":"0","v":0}]
[null,0,"Резидент емес қызметкерлерге заттай түрде төленген жалақы\nЗаработная плата работникам-нерезидентам в натуральной форме ","540",{"$f":"0","v":0}]
[null,0,"Резидент еместердің жалақысынан мемлекет атынан ұсталатын жеке табыс салығы\nИндивидуальный подоходный налог с заработной платы нерезидентов, удержанный от имени государства","550",{"$f":"0","v":0}]
[null,0,"Резидент емес қызметкерлердің табысынан есептелген әлеуметтік салық\nСоциальный налог, исчисленный с доходов работников-нерезидентов","560",{"$f":"0","v":0}]
[null,7]

{"sheet":"10","index":13,"n_rows":13,"n_cols":5,"rows_kept":13,"cut":false,"hidden":true,"merged":[[0,2,0,4],[1,2,2,2],[1,3,2,3],[1,4,2,4]]}
["8-бөлім. Ағымдағы және күрделі трансферттер, коммерциялық емес ұйымдарға мүшелік жарналар, мың АҚШ доллары\nРаздел 8. Текущие и капитальные трансферты, членские взносы в некоммерческие организации, тысяч долларов США",null,"8-бөлім. Ағымдағы және күрделі трансферттер, коммерциялық емес ұйымдарға мүшелік жарналар, мың АҚШ доллары\nРаздел 8. Текущие и капитальные трансферты, членские взносы в некоммерческие организации, тысяч долларов США"]
[null,0,"Көрсеткіш атауы\nНаименование показателя","Жол коды\nКод строки","Барлығы / Всего"]
[null,0]
[null,0,"А","Б","В"]
[null,-1,0,0,0]
[null,0,"Резидент еместерге төленген салықтар\nНалоги, уплаченные нерезидентам","570",{"$f":"0","v":0}]
[null,0,"Резидент еместерден өсімпұл, айыппұл төлемдері және басқа да ағымдағы трансферттер түріндегі түсімдер\nПоступления от нерезидентов в виде пени, штрафных платежей и прочих текущих трансферт","580",{"$f":"0","v":0}]
[null,0,"Резидент еместерге өсімпұл, айыппұл төлемдері және басқа да ағымдағы трансферттер түрінде төленген төлемдер\nПлатежи нерезидентам в виде пени, штрафных платежей и прочих текущих трансферт","590",{"$f":"0","v":0}]
[null,0,"Сіздің ұйымға мүшелік жарналар немесе қатысуға жазылудағы резидент еместерден түскен түсімдер (коммерциялық емес ұйымдармен, оның ішінде сауда палаталарымен, салалық қауымдастықтармен толтырылады)\nПоступления от нерезидентов членских взносов или подписка на участие в Вашей организации (заполняется некоммерческими организациями, в том числе торговыми палатами, отраслевыми ассоциациями)","593",{"$f":"0","v":0}]
[null,0,"Резидент еместердің сауда палаталарына, салалық қауымдастықтарына кіретін коммерциялық емес ұйымдарға мүшелік жарналар немесе қатысуға жазылудағы резидент еместерге төленген төлемдер \nПлатежи нерезидентам членских взносов или подписка на участие  в некоммерческих организациях-нерезидентах, включающих торговые палаты, отраслевые ассоциации","595",{"$f":"0","v":0}]
[null,0,"Резидент еместерден алынған күрделі трансферттер\nКапитальные трансферты, полученные от нерезидентов","600",{"$f":"0","v":0}]
[null,0,"Резидент еместерге ұсынылған күрделі трансферттер\nКапитальные трансферты, предоставленные нерезидентам","610",{"$f":"0","v":0}]
[null,7]

{"sheet":"11","index":14,"n_rows":0,"n_cols":0,"rows_kept":0,"cut":false,"hidden":true,"merged":[]}

{"sheet":"12","index":15,"n_rows":0,"n_cols":0,"rows_kept":0,"cut":false,"hidden":true,"merged":[]}

{"sheet":"13","index":16,"n_rows":0,"n_cols":0,"rows_kept":0,"cut":false,"hidden":true,"merged":[]}

{"sheet":"14","index":17,"n_rows":0,"n_cols":0,"rows_kept":0,"cut":false,"hidden":true,"merged":[]}

{"sheet":"15","index":18,"n_rows":0,"n_cols":0,"rows_kept":0,"cut":false,"hidden":true,"merged":[]}

{"sheet":"16","index":19,"n_rows":0,"n_cols":0,"rows_kept":0,"cut":false,"hidden":true,"merged":[]}

{"sheet":"17","index":20,"n_rows":0,"n_cols":0,"rows_kept":0,"cut":false,"hidden":true,"merged":[]}

{"sheet":"18","index":21,"n_rows":0,"n_cols":0,"rows_kept":0,"cut":false,"hidden":true,"merged":[]}

{"sheet":"19","index":22,"n_rows":0,"n_cols":0,"rows_kept":0,"cut":false,"hidden":true,"merged":[]}

{"sheet":"20","index":23,"n_rows":0,"n_cols":0,"rows_kept":0,"cut":false,"hidden":true,"merged":[]}

{"sheet":"Подпись","index":24,"n_rows":68,"n_cols":15,"rows_kept":68,"cut":false,"hidden":false,"merged":[[62,2,64,14],[65,2,67,14],[56,7,56,11],[56,13,56,14],[57,7,57,11],[57,13,57,14],[58,7,58,11],[58,13,58,14],[52,13,52,14],[45,6,45,10],[38,4,38,6],[39,4,39,6],[40,4,40,6],[38,8,38,11],[39,8,39,11],[40,8,40,11],[53,13,53,14],[54,13,54,14],[28,6,28,10],[23,8,23,14],[0,4,0,13],[5,2,5,4],[10,3,10,4],[11,3,11,4],[12,3,12,4],[10,6,10,10],[11,6,11,10],[12,6,12,10],[6,2,6,4],[7,2,7,4],[1,3,1,14],[5,8,5,14],[6,8,6,14],[7,8,7,14],[10,12,10,14],[35,3,36,6],[35,10,36,14],[26,6,26,10],[27,6,27,10],[32,3,33,14],[26,12,26,14],[17,3,17,13],[21,8,21,14],[22,8,22,14],[26,3,26,4],[27,3,27,4],[28,3,28,4],[53,2,54,6],[57,2,58,6],[49,3,49,7],[50,3,50,7],[46,6,46,10],[48,9,48,11],[49,9,49,11],[50,9,50,11],[48,3,48,7],[53,7,53,11],[54,7,54,11],[52,7,52,11]]}
[4,null,"Ескертпе:"]
[4,null,"Примечание:",{"$f":"CONCATENATE(p1_comment)","v":""}]
[4]
[4,null,"Басшы (Бас бухгалтер)"]
[4,null,"Руководитель (Главный бухгалтер)"]
[4,null,{"$f":"CONCATENATE(p1_position)","v":""},null,null,null,null,null,{"$f":"CONCATENATE(p1_position_fio)","v":""}]
[4,null,"(лауазымы)",null,null,null,"(қолы)",null,"(тегі, аты, әкесінің аты (бар болса))"]
[4,null,"(должность)",null,null,null,"(подпись)",null,"(фамилия, имя, отчество (при наличии))"]
[4]
[4,null,"Орындаушы",null,null,null,null,null,null,null,null,"телефоны"]
[4,null,"Исполнитель",null,null,null,{"$f":"CONCATENATE(p1_executor)","v":""},null,null,null,null,"телефон",{"$f":"CONCATENATE(p1_executor_phone)","v":""}]
[4,null,null,"(қолы)",null,null,"(тегі, аты, әкесінің аты (бар болса))"]
[4,null,null,"(подпись)",null,null,"(фамилия, имя, отчество (при наличии))"]
[4]
[4,null,{"$f":"IF(p1_report_date=\"\",\"20__ жылғы «____» ___________\",CONCATENATE(YEAR(p1_report_date),\" жылғы «\",DAY(p1_report_date),\"» \",VLOOKUP(MONTH(p1_report_date),p_month,COLUMN(p_month_name)-1,FALSE)))","v":"20__ жылғы «____» ___________"}]
[4,null,{"$f":"IF(p1_report_date=\"\",\"«____» ___________ 20___ года\",CONCATENATE(\"«\",DAY(p1_report_date),\"» \",VLOOKUP(MONTH(p1_report_date),p_month,COLUMN(p_month_name)-2,FALSE),\" \",YEAR(p1_report_date),\" года\"))","v":"«____» ___________ 20___ года"}]
[5,33,"Ескертпе"]
[5,33,"Примечание",{"$f":"CONCATENATE(p1_comment)","v":""}]
[5,33]
[5,null,"Бас бухгалтер (ол болмаған кезеңде – оның орнындағы адам)"]
[5,null,"Главный бухгалтер (в период его отсутствия – лицо, его замещающее)"]
[5,null,null,null,null,null,null,null,{"$f":"CONCATENATE(p1_accountant)","v":""}]
[5,null,null,null,null,null,"(қолы)",null,"(тегі, аты, әкесінің аты (бар болса))"]
[5,null,null,null,null,null,"(подпись)",null,"(фамилия, имя, отчество (при наличии))"]
[5]
[5,null,"Орындаушы",null,null,null,null,null,null,null,null,"телефоны"]
[5,null,"Исполнитель",null,null,null,{"$f":"CONCATENATE(p1_executor)","v":""},null,null,null,null,"телефон",{"$f":"CONCATENATE(p1_executor_phone)","v":""}]
[5,null,null,"(қолы)",null,null,"(тегі, аты, әкесінің аты (бар болса))"]
[5,null,null,"(подпись)",null,null,"(фамилия, имя, отчество (при наличии))"]
[5]
[5,null,{"$f":"IF(p1_report_date=\"\",\"20__ жылғы «____» ___________\",CONCATENATE(YEAR(p1_report_date),\" жылғы «\",DAY(p1_report_date),\"» \",VLOOKUP(MONTH(p1_report_date),p_month,COLUMN(p_month_name)-1,FALSE)))","v":"20__ жылғы «____» ___________"}]
[5,null,{"$f":"IF(p1_report_date=\"\",\"«____» ___________ 20___ года\",CONCATENATE(\"«\",DAY(p1_report_date),\"» \",VLOOKUP(MONTH(p1_report_date),p_month,COLUMN(p_month_name)-2,FALSE),\" \",YEAR(p1_report_date),\" года\"))","v":"«____» ___________ 20___ года"}]
[1,6,"Түсіндірме:",{"$f":"CONCATENATE(p1_comment)","v":""}]
[1,6,"Комментарий: "]
[1]
[1,null,"Атауы",{"$f":"CONCATENATE(p1_enterprise)","v":""},null,null,null,null,"Мекенжайы (респонденттің)",null,{"$f":"CONCATENATE(p1_address)","v":""}]
[1,null,"Наименование",null,null,null,null,null,"Адрес (респондента)"]
[1]
[1,null,"Телефоны (респонденттің)",null,{"$f":"CONCATENATE(p1_phone)","v":""},null,null,null,{"$f":"CONCATENATE(p1_mobile)","v":""}]
[1,null,"Телефон (респондента)",null,"стационарлық",null,null,null,"ұялы"]
[1,null,null,null,"стационарный",null,null,null,"мобильный"]
[1]
[1,null,"Бастапқы статистикалық деректерді таратуға келісеміз",null,null,null,null,{"$f":"IF(p1_is_show_data=p_yes_name,p_yes_code,\"\")","v":""},"Бастапқы статистикалық деректерді таратуға келіспейміз",null,null,null,null,null,{"$f":"IF(AND(p1_is_show_data<>\"\",p1_is_show_data<>p_yes_name),p_yes_code,\"\")","v":""}]
[1,null,"Согласны на распространение первичных статистических данных",null,null,null,null,null,"Не согласны на распространение первичных статистических данных"]
[1]
[1,null,"Электрондық пошта мекенжайы (респонденттің)",null,null,null,{"$f":"CONCATENATE(p1_email)","v":""}]
[1,null,"Адрес электронной почты (респондента)"]
[1]
[1,null,"Орындаушы",{"$f":"CONCATENATE(p1_executor)","v":""},null,null,null,null,null,{"$f":"CONCATENATE(p1_executor_phone)","v":""}]
[1,null,"Исполнитель","тегі, аты және әкесінің аты (бар болған жағдайда)",null,null,null,null,null,"қолы, телефоны (орындаушының)"]
[1,null,null,"фамилия, имя и отчество (при его наличии)",null,null,null,null,null,"подпись, телефон (исполнителя)"]
[1]
[1,null,"Бас бухгалтер немесе есепке қол қою функциясы жүктелген адам",null,null,null,null,{"$f":"CONCATENATE(p1_accountant)","v":""}]
[1,null,"Главный бухгалтер или лицо, на которое возложена функция по подписанию отчета  ",null,null,null,null,"тегі, аты және әкесінің аты (бар болған жағдайда)",null,null,null,null,null,"қолы"]
[1,null,null,null,null,null,null,"фамилия, имя и отчество (при его наличии)",null,null,null,null,null,"подпись"]
[1]
[1,null,"Басшы немесе есепке қол қою функциясы жүктелген адам",null,null,null,null,{"$f":"CONCATENATE(p1_manager)","v":""}]
[1,null,"Руководитель или лицо, на которое возложена функция по подписанию отчета",null,null,null,null,"тегі, аты және әкесінің аты (бар болған жағдайда)",null,null,null,null,null,"қолы"]
[1,null,null,null,null,null,null,"фамилия, имя и отчество (при его наличии)",null,null,null,null,null,"подпись"]
[1]
[1,null,"Ескертпе:"]
[1,null,"Примечание:"]
[1,null,"Мемлекеттік статистиканың тиісті органдарына анық емес бастапқы статистикалық деректерді ұсыну және бастапқы статистикалық деректерді белгіленген мерзімде ұсынбау Әкімшілік құқық бұзушылық туралы Қазақстан Республикасы Кодексінің 497-бабында көзделген әкімшілік құқық бұзушылықтар болып табылады."]
[1]
[1]
[1,null,"Представление недостоверных и непредставление первичных статистических данных в соответствующие органы государственной статистики в установленный срок являются административными правонарушениями, предусмотренными статьей 497 Кодекса Республики Казахстан «Об административных правонарушениях»"]
[1]
[1]

{"sheet":"Логический контроль","index":25,"n_rows":4,"n_cols":3,"rows_kept":4,"cut":false,"hidden":false,"merged":[[0,1,0,2]]}
[1,"Логический контроль"]
["Id","Формуласы\nФормула","Нәтижесі\nРезультат"]
[null,"Проверка заполнения полей"]
[null,"Проверка заполнения значений"]

{"sheet":"Түсіндірме","index":26,"n_rows":546,"n_cols":3,"rows_kept":546,"cut":false,"hidden":false,"merged":[]}
[{"$f":"IF(IFERROR(VLOOKUP(p_report_current_id,B:B,1,FALSE),) = 0,0,1)","v":1}]
[1,11,"Бейрезиденттерге қойылатын қаржылық"]
[1,11,"талаптар және олардың алдындағы"]
[1,11,"міндеттемелер туралы есеп нысанына"]
[1,11,"Қосымша"]
[1,11]
[1,11,"«Бейрезиденттерге қойылатын қаржылық талаптар және"]
[1,11,"олардың алдындағы міндеттемелер туралы есеп»"]
[1,11]
[1,11,"Ведомстволық статистикалық байқаудың статистикалық нысанын"]
[1,11,"толтыру бойынша түсіндірме"]
[1,11,"(индексі 1-ТБ, кезеңділігі тоқсандық)"]
[1,11]
[1,11," 1-тарау. Жалпы ережелер"]
[1,11]
[1,11,"1. Осы түсіндірмеде «Бейрезиденттерге қойылатын қаржылық талаптар және олардың алдындағы міндеттемелер туралы есеп» (индексі 1-ТБ, кезеңділігі тоқсандық) ведомстволық статистикалық байқаудың статистикалық нысанын (бұдан әрі – статистикалық нысан) толтыру бойынша бірыңғай талаптар айқындалады. "]
[1,11,"2. Статистикалық нысан «Мемлекеттік статистика туралы» Қазақстан Республикасы Заңының 13-бабы бірінші бөлігінің 2-1) тармақшасына сәйкес әзірленді."]
[1,11,"3. Статистикалық нысанды респонденттер тізіміне енгізілген заңды тұлғалар ұсынады. Келер жылға респонденттердің тізімін Қазақстан Республикасының Ұлттық Банкі қалыптастырады және Қазақстан Республикасы Ұлттық Банкінің ресми интернет-ресурсында орналастырады."]
[1,11,"4. Статистикалық нысан бойынша сұратылатын ақпарат төлем балансын, халықаралық инвестициялық позицияны қалыптастыруға және Қазақстан Республикасының сыртқы борышын бағалауға және оларды талдауға арналған."]
[1,11,"5. Статистикалық нысанға басшы, бас бухгалтер немесе есепке қол қоюға уәкілетті адамдар және орындаушы қол қояды."]
[1,11]
[1,11,"2-тарау. Статистикалық нысанды толтыру"]
[1,11]
[1,11,"6. Статистикалық нысанды толтыру кезінде келесі анықтамалар қолданылады:"]
[1,11,"1) резиденттер:"]
[1,11,"азаматтығына қарамастан Қазақстан Республикасында бір жылдан аса тұратын жеке тұлғалар және Қазақстаннан тыс аумақта бір жылдан кем уақытша тұратын Қазақстан Республикасының азаматтары. Қазақстан Республикасының мемлекеттік қызмет, білім алу және емделу мақсатындағы шет елдегі азаматтары олардың басқа елдердің аумағында болу мерзімдеріне қарамастан резиденттер болып табылады;"]
[1,11,"халықаралық ұйымдарды, шетелдік елшіліктерді, консулдықтарды және басқа да дипломатиялық және ресми өкілдіктерді қоспағанда, Қазақстан Республикасының аумағындағы заңды тұлғалар;"]
[1,11,"заңды тұлғаның құрылуысыз Қазақстан Республикасының заңнамасына сәйкес құрылған ұйымдар;"]
[1,11,"Қазақстан Республикасының аумағынан тыс жерлердегі қазақстандық елшіліктер, консулдықтар және басқа да дипломатиялық және ресми өкілдіктер;"]
[1,11,"осы тармақтың осы тармақшасының үшінші абзацында және 2) тармақшасының үшінші абзацында көрсетілген заңды тұлғалардың Қазақстан Республикасының аумағындағы филиалдары және өкілдіктері;"]
[1,11,"2) бейрезиденттер:"]
[1,11,"азаматтығына қарамастан шет елде бір жылдан астам тұратын жеке тұлғалар және Қазақстан Республикасының аумағында бір жылдан аз тұратын шетелдік азаматтар. Шет мемлекеттердің мемлекеттік қызмет, білім алу және емделу мақсатында жүрген азаматтары олардың республика аумағында болу мерзімдеріне қарамастан бейрезиденттер болып табылады;"]
[1,11,"Қазақстан Республикасының елшіліктерін, консулдықтарын және басқа да дипломатиялық және ресми өкілдіктерін қоспағанда, басқа мемлекеттердің аумағындағы заңды тұлғалар;"]
[1,11,"заңды тұлғаның құрылуысыз шет мемлекеттің заңнамасына сәйкес құрылған ұйымдар (қорлар, трасттар, жай серіктестіктер);"]
[1,11,"Қазақстан Республикасының аумағындағы халықаралық ұйымдар, шетелдік елшіліктер, консулдықтар және басқа да шетелдік дипломатиялық және ресми өкілдіктер;"]
[1,11,"1) тармақшаның үшінші абзацында және осы тармақшаның үшінші абзацында көрсетілген заңды тұлғалардың басқа мемлекеттер аумағындағы филиалдары және өкілдіктері;"]
[1,11,"3) тел ұйым – респондентпен ортақ тікелей инвесторы бар ұйым, бірақ бұл ұйым да, респондент те бір-бірінің капиталына қатысу құралдарының 10%-на немесе одан көбіне ие болмайды;"]
[1,11,"4) тікелей инвестор – дауыс беретін акцияларының (қатысушылар дауысының) кемінде 10%-на немесе олардың тікелей инвестициялау объектісіндегі баламасына (акционерлік емес ұйымдар үшін салымдар мен пайлар) ие жеке немесе заңды тұлға;"]
[1,11,"5) тікелей инвестициялау объектісі – дауыс беретін акцияларының (қатысушылар дауысының) кемінде 10%-ы немесе олардың баламасы (акционерлік ұйымдар үшін салымдар мен пайлар) тікелей инвесторға тиесілі ұйым;"]
[1,11,"6) инвестициялық қорлар – тіркеу елінің заңнамасына сәйкес құрылған акционерлік немесе инвестициялық пай қоры. Инвестициялық қорлар акцияларды немесе пайларды жария шығару жолымен қаражат тартатын ұжымдық инвестициялау құрылымы болып табылады;"]
[1,11,"7) сауда (коммерциялық) кредиттеріне мыналар жатады:"]
[1,11,"кредиттік келісімдерге сәйкес өндірушілердің, жеткізушілердің және мердігерлердің тауарлары мен көрсететін қызметтері;"]
[1,11,"тауар жеткізу, жұмыс орындау және қызмет көрсету келісімшарттары негізінде жеткізушілермен, мердігерлермен (міндеттемелер бойынша) не сатушылармен және тапсырыс берушілермен (талаптар бойынша) есеп айырысу бойынша берешек;"]
[1,11,"тауар жеткізу, жұмыс орындау және қызмет көрсету арқылы алынған (міндеттемелер бойынша) және берілген (талаптар бойынша) аванс (алдын-ала ақы)."]
[1,11,"Бұл санаттан борыштық бағалы қағаздарда көрсетілетін айналыстағы коммерциялық вексельдер (яғни, иесі оларды өтеу мерзімінен бұрын сата алатын вексельдер) алып тасталады;"]
[1,11,"8) басқа санатқа жатпайтын басқа да талаптар (міндеттемелер):"]
[1,11,"сауда (коммерциялық) кредиттерге және аванс пен несиеге кірмейтін қаржы активтерін (бағалы қағаздарды, қатысу үлестерін), жылжымайтын мүлікті, материалдық емес активтерді сатып алу, сату бойынша берешек немесе аванстар;"]
[1,11,"жарияланған, бірақ алдыңғы кезеңдерде төленбеген дивидендтер бойынша берешек немесе аванстар;"]
[1,11,"есептелген, бірақ төленбеген салықтар бойынша, салықты төлеу мерзімін өткізіп алу үшін есептелген, бірақ төленбеген айыппұлдар мен өсімпұлдар бойынша берешек;"]
[1,11,"соттар немесе басқа да мемлекеттік мекемелер салған есептелген, бірақ төленбеген айыппұлдар мен өсімпұлдар бойынша берешек;"]
[1,11,"есептелген, бірақ төленбеген комиссиялық алымдар немесе қаржылық қызметтер үшін төлем болып ұсынылған алымдар бойынша үшінші тұлғаларға берешек;"]
[1,11,"клиенттермен есеп айырысу бойынша берешек – қаржы делдалдары (брокерлер, дилерлер, басқарушы компаниялар және тағы да басқалары) үшін;"]
[1,11,"«Бағалы қағаздардың орталық депозитарийі» АҚ, «Қазақстан қор биржасы» АҚ және «Қазпошта» АҚ клиенттері мен депоненттерінің шоттары бойынша берешек."]
[1,11,"7. Есепте барлық сома бүтін санмен, Америка Құрама Штаттарының (бұдан әрі – АҚШ) мың долларымен көрсетіледі. Теңгемен берілген сома АҚШ долларына ауыстырылады. Басқа да шетел валюталарында берілген сома алдымен теңгеге, содан соң АҚШ долларына ауыстырылады."]
[1,11,"Конвертациялау үшін қаржылық есептілікті қалыптастыру мақсатында қолданылатын валюта айырбастау бағамы пайдаланылады. Бұл ретте операцияларды конвертациялау үшін операциялар жүргізу күніне тиісті бағамдар, кіріс үшін – есепті кезеңдегі орташа есеппен алынған бағамдар, тоқсанның басындағы және соңындағы қалдықтар үшін – тиісті күннің бағамы қолданылады."]
[1,11,"АҚШ долларынан басқа валютамен деноминирленген қаржы операциялары мен кіріс операция жүргізу күніндегі бағам бойынша АҚШ долларына ауыстырылады. Тоқсанның басы мен соңындағы басқа валютамен деноминирленген позициялар тиісті күнгі бағам бойынша АҚШ долларына конвертацияланады."]
[1,11,"8. Кірістің барлық түрі жалпы негізде, яғни салықтар шегерілмей көрсетіледі."]
[1,11,"9. Қаржы құралдары қысқа мерзімді деп сыныпталатын револьверлік жаңартылмалы кредиттерді қоспағанда, бастапқы мерзімі бойынша қысқа мерзімді (қоса алғанда 1 (бір) жылға дейінгі) және ұзақ мерзімді (1 (бір) жылдан аса) деп сыныпталады."]
[1,11,"Қаржы құралы бойынша мерзімі өткен берешек қаржы құралымен бірге көрсетіледі. Қаржы құралы бойынша кіріс бойынша мерзімі өткен берешек қаржы құралы бойынша кіріспен бірге көрсетіледі."]
[1,11,"Қаржы құралы бойынша мерзімі өткен берешек үшін және (немесе) қаржы құралы бойынша кіріс бойынша мерзімі өткен берешек үшін айыппұлдар мен өсімпұлдар қаржы құралы бойынша кіріспен бірге көрсетіледі."]
[1,11,"10. Алғашқы статистикалық деректер әріптес елдер бойынша бөлініп көрсетіледі. Егер әріптес елдердің саны нысандағы бағандар санынан асып кетсе, жетпейтін бағандар қосылады."]
[1,11,"1-бөлімнің 1.2-бөлігінде мәліметтер бейрезидент-әріптестің атауы және оның тіркелген елі бойынша көрсетіледі. Бейрезиденттердің атауы латын әліпбиінің әріптерімен, ал атауы орыс тілінде тіркелген бейрезиденттер бойынша – орыс әліпбиінің әріптерімен жазылады."]
[1,11,"Егер операциялар мен позициялар (қалдықтар) көлемі әрбір жеке ел бойынша бір мың АҚШ долларынан аспаса, бірнеше елді біріктіруге және оларды «Басқа елдер» еліне жатқызуға болады."]
[1,11,"Егер «Қайта бағалау» және «Басқа да өзгерістер» жолдары бойынша соманы әр ел бойынша жеке бөлу мүмкін болмаса, «Басқа елдер» елі бойынша әр жолды жеке-жеке жалпы сомамен толтыруға болады."]
[1,11,"5-бөлімнің 5.1-бөлігінде қолма-қол еуро «Басқа елдер» елі бойынша көрсетіледі, қалған валюталар бойынша қолма-қол ақша тиісті валютаның эмитент елі бойынша көрсетіледі. Мысалы, Ресей рубліндегі қолма-қол ақша – Ресей Федерациясы елі бойынша, АҚШ долларындағы қолма-қол ақша – Америка Құрама Штаттары елі бойынша және т.б."]
[1,11,"Халықаралық қаржы ұйымдары «Халықаралық ұйымдар» елі бойынша көрсетіледі."]
[1,11,"11. Есепте респонденттің шетелдік филиалдарының бейрезиденттерге талаптары мен міндеттемелері көрсетілмейді."]
[1,11,"12. Есепті кезеңнің соңындағы акциялар мен басқа бағалы қағаздар нарықтық құны бойынша көрсетіледі. Акциялар мен басқа бағалы қағаздар бойынша позицияларды (қалдықтарды) бағалау үшін азаюына қарай тәртіппен мына әдістердің бірі қолданылады:"]
[1,11,"тиісті күнгі орташа нарықтық бағасы бойынша (қор нарықтарындағы сату бағасы мен сатып алу бағасы арасындағы);"]
[1,11,"жақын арада жүргізілген операцияның құны бойынша."]
[1,11,"Нарықтық құнды бағалауда қиындықтар туындаған жағдайда мәліметтер баланстық құны бойынша көрсетіледі."]
[1,11,"Акциялармен және басқа бағалы қағаздармен операциялар мәміленің нақты бағасы бойынша көрсетіледі."]
[1,11,"10-бөлімнің 10.1-бөлігінде 2211036-жолы бойынша ақпарат бар болған кезде есепті кезең соңындағы ұйымыңыздың бейрезиденттің үлесіне келетін нарықтық құны көрсетіледі."]
[1,11,"13. Активтер (Міндеттемелер, Капитал) бойынша «Операциялар нәтижесінде ұлғаюы» жолы бойынша мыналар көрсетіледі:"]
[1,11,"бағалы қағаздар, капиталға қатысу үлестері жағдайында (1111002, 1211002, 1311002, 1412002, 1414002, 1122002, 1222002, 1322002, 1422102, 1422202, 2422202, 2211002, 2111002, 2311002, 2411002, 2213002, 2113002, 2313002, 2413002-жолдарының кодтары) – сатып алу (сату), оның ішінде бағалы қағаздардың бастапқы және қайталама нарықтарында, бағалы қағаздарды сыйға, мұрагерлікке алу (беру), басқа да қаржы құралын бағалы қағаздарға және (немесе) қатысу үлесіне айырбастау (бағалы қағаздарды және (немесе) қатысу үлестерін басқа да қаржы құралына айырбастау);"]
[1,11,"қолма-қол шетел валютасы, бейрезидент банктерде ұйымның банк шоттары бар болған жағдайда (1426102, 1426202-жолдарының кодтары) – кассада қолма-қол шетел валютасының ұлғаюы, Сіздің ұйымыңыздың атына ашылған ағымдағы шоттарды, салымдарды, депозиттерді қосқанда банк шоттарына қаражаттың түсуі;"]
[1,11,"сауда (коммерциялық) кредиттер, аванстар мен заемдар жағдайында (1024002, 1124002, 1224002, 1324002, 1424102, 1424202, 1025002, 1125002, 1225002, 1325002, 1425102, 1425202, 2024002, 2124002, 2224002, 2324002, 2424102, 2424202, 2025002, 2125002, 2225002, 2325002, 2425102, 2425202, 2428202-жолдарының кодтары) – материалдық (тауар) және қаржылық құндылықтарды және қызметтерді мерзімін ұзартып (кредитке) беру (алу), қысқа мерзімдіден ұзақ мерзімді берешекке ұзарту, сыйақыны капиталдандыру (сыйақыны борыштың негізгі сомасына жатқызу), басқа да қаржы құралын берешекке айырбастау;"]
[1,11,"туынды қаржы құралдары жағдайында (1431002, 1432002, 2431002, 2432002, 2433002-жолдарының кодтары) – опциондар бойынша сыйақылар төлеу, форвардтық (фьючерстік) келісімшарттар бойынша іске асырылған пайда."]
[1,11,"Активтер (Міндеттемелер, Капитал) бойынша «Операциялар нәтижесінде азаюы» жолы бойынша мыналар көрсетіледі:"]
[1,11,"бағалы қағаздар, капиталға қатысу үлестері жағдайында (1111003, 1211003, 1311003, 1412003, 1414003, 1122003, 1222003, 1322003, 1422103, 1422203, 2422203, 2211003, 2111003, 2311003, 2411003, 2213003, 2113003, 2313003, 2413003-жолдарының кодтары) – қайталама нарықта сатып алу (сату), эмитенттің өтеуі, бағалы қағаздарды сыйға, мұрагерлікке беру (алу), бағалы қағаздарды және (немесе) қатысу үлестерін басқа қаржы құралына айырбастау (басқа қаржы құралын бағалы қағаздарға және (немесе) қатысу үлестеріне айырбастау);"]
[1,11,"қолма-қол шетел валютасы, бейрезидент банктерде Сіздің ұйымыңыздың банк шоттары бар болған жағдайда (1426103, 1426203-жолдарының кодтары) – кассада қолма-қол шетел валютасының азаюы, Сіздің ұйымыңыздың атына ашылған ағымдағы шоттарды, салымдарды, депозиттерді қосқанда банк шоттарында қаражаттың азаюы;"]
[1,11,"сауда (коммерциялық) кредиттер, аванстар мен заемдар жағдайында (1024003, 1124003, 1224003, 1324003, 1424103, 1424203, 1025003, 1125003, 1225003, 1325003, 1425103, 1425203, 2024003, 2124003, 2224003, 2324003, 2424103, 2424203, 2025003, 2125003, 2225003, 2325003, 2425103, 2425203, 2428203-жолдарының кодтары) – борыштың негізгі сомасы бойынша төлемдер, қысқа мерзімдіден ұзақ мерзімді берешекке ұзарту, берешекті басқа қаржы құралына айырбастау;"]
[1,11,"туынды қаржы құралдары жағдайында (1431003, 1432003, 2431003, 2432003, 2433003-жолдарының кодтары) – опциондық немесе форвардтық (фьючерстік) келісімшарттың талаптарын орындау (яғни базалық активті орындау бағасымен нақты жеткізу немесе сол сәттегі нарықтағы базалық активтің бағасы мен орындау бағасы арасындағы айырмашылық негізінде қолма-қол ақшамен есептеу)."]
[1,11,"14. «Қайта бағалау» барлық жолдары бойынша валюталар бағамының, қаржы құралы бағасының өзгеруі нәтижесінде қаржылық активтер мен міндеттемелер құнының (көлемінің) есепті кезеңдегі өзгерістері көрсетіледі."]
[1,11,"Валюталар бағамының ауытқуы немесе нарықтық бағалардың ауытқуы есебінен құнды қайта бағалау нетто-негізде көрсетіледі және ол оң мәнді де, сол мәнді де құрауы мүмкін."]
[1,11,"15. «Басқа өзгерістер» барлық жолдары бойынша қаржылық активтер мен міндеттемелер құнының (көлемінің) операциялар немесе қайта бағалаудан басқа себептерге негізделген есепті кезеңдегі өзгерістері көрсетіледі. "]
[1,11,"Оларға экономикалық туындау және активтердің шығып қалуы нәтижесіндегі өзгерістер, интитуционалдық бірліктердің резиденттік тиістілігінің өзгеруінен және (немесе) интитуционалдық бірліктердің байланыстылығының өзгеруінен туындаған қаржы активтеріндегі өзгеріс жатады. Кредитордың берешекті біржақты тәртіппен «баланстан тыс» есептен шығаруы есебінен, Қазақстан Республикасының резиденттері арасындағы борышты талап етуді иеліктен шығару (аудару) есебінен, Қазақстан Республикасы бейрезиденттерінің бір санаттан басқа санатқа (олардың жарғылық капиталдағы үлесінің ұлғаюы немесе азаюы салдарынан) өтуі есебінен, әріптестің резиденттілігінің өзгеруі есебінен және тағы басқа жекелеген қаржы құралдары бойынша позицияның өзгеруі."]
[1,11,"Қазақстан Республикасы бейрезиденттерінің арасындағы талаптарды басқаға беру (борышты аудару) осы бейрезиденттердің елдері бойынша «Басқа да өзгерістер» жолы бойынша көрсетіледі."]
[1,11,"Сонымен қатар «Басқа да өзгерістерде» есепті толтыру кезінде бұған дейін жіберілген қателердің түзетілуі көрсетіледі (есепті кезеңнің алдындағы кезеңнің соңындағы берешекті түзету)."]
[1,11,"«Басқа да өзгерістер» нетто-негізде көрсетіледі және оң немесе теріс мәні болады."]
[1,11,"Түсініктемелерде позицияның есепті тоқсандағы басқа да өзгерістерінің барлық түрлері ашып жазылады."]
[1,11,"16. Бейрезиденттермен заңды тұлға құрмай бірлесіп қызмет атқару есепте қаржы құралының респонденттің бухгалтерлік есебіндегі сыныпталуына сәйкес көрсетіледі."]
[1,11,"17. Сақтандыру ұйымдары есепте сақтандыру резервтері туралы ақпаратты көрсетпейді."]
[1,11,"18. Есеп қағаз тасымалдағышта не электрондық цифрлық қолтаңбамен растау рәсімдерін сақтай отырып «ҚР ҰБ веб-порталы» автоматтандырылған ақпараттық шағын жүйесі арқылы электрондық тәсілмен ұсынылады. Бір есепті әр түрлі тәсілмен ұсынған кезде күндердің алғашқысы есепті ұсыну күні болып саналады."]
[1,11,"Есеп қағаз тасымалдағышта ұсынылған кезде респондент статистикалық нысанның тек ақпарат толтырылған бөлімдердің бөліктерін тапсырады. Бұл ретте статистикалық нысанның мазмұнында бөлімдердің толтырылған бөліктерінің бар болуы көрсетіледі."]
[1,11,"Статистикалық нысанға түзетулер (түзеулер, толықтырулар) есепті кезең аяқталғаннан кейінгі 6 (алты) ай ішінде енгізіледі."]
[1,11]
[1,11,"3-тарау. Арифметикалық-логикалық бақылау"]
[1,11]
[1,11,"19. Арифметикалық-логикалық бақылау:"]
[1,11,"1) 1-бөлім. «Сіздің ұйымыңыздың шетелдік компанияларға үлестік қатысуы»:"]
[1,11,"1111006-жол = 1111001-жол + 1111002-жол – 1111003-жол + + 1111004-жол + әрбір баған үшін 1111005-жол;"]
[1,11,"1211006-жол = 1211001-жол + 1211002-жол – 1211003 жол + + 1211004-жол + әрбір баған үшін 1211005-жол;"]
[1,11,"1311006-жол = 1311001-жол + 1311002-жол – 1311003-жол + + 1311004-жол + әрбір баған үшін 1311005-жол;"]
[1,11,"1412006-жол = 1412001-жол + 1412002-жол –1412003-жол + + 1412004-жол + әрбір баған үшін 1412005-жол;"]
[1,11,"1414006-жол = 1414001-жол + 1414002-жол –1414003-жол + + 1414004-жол + әрбір баған үшін 1414005-жол;"]
[1,11,"1111001-жол = алдыңғы кезең үшін есептің 1111006-жолы;"]
[1,11,"1211001-жол = алдыңғы кезең үшін есептің 1211006-жолы;"]
[1,11,"1311001-жол = алдыңғы кезең үшін есептің 1311006-жолы;"]
[1,11,"1412001-жол = алдыңғы кезең үшін есептің 1412006-жолы;"]
[1,11,"1414001-жол = алдыңғы кезең үшін есептің 1414006-жолы;"]
[1,11,"2) 2-бөлім. «Сіздің ұйымыңыздың портфеліндегі бейрезиденттердің борыштық бағалы қағаздары, вексельдері мен артықшылықты акциялары»:"]
[1,11,"1122006-жол = 1122001-жол + 1122002-жол –1122003-жол + + 1122004-жол + әрбір баған үшін 1122005-жол;"]
[1,11,"1222006-жол = 1222001-жол + 1222002-жол –1222003-жол + + 1222004-жол + әрбір баған үшін 1222005-жол;"]
[1,11,"1322006-жол = 1322001-жол + 1322002-жол –1322003-жол + + 1322004-жол + әрбір баған үшін 1322005-жол;"]
[1,11,"1422106-жол = 1422101-жол + 1422102-жол –1422103-жол + + 1422104-жол + әрбір баған үшін 1422105-жол;"]
[1,11,"1422206-жол = 1422201-жол + 1422202-жол –1422203-жол + + 1422204-жол + әрбір баған үшін 1422205-жол;"]
[1,11,"1122001-жол = алдыңғы кезең үшін есептің 1122006-жолы;"]
[1,11,"1122011-жол = алдыңғы кезең үшін есептің 1122016-жолы;"]
[1,11,"1222001-жол = алдыңғы кезең үшін есептің 1222006-жолы;"]
[1,11,"1222011-жол = алдыңғы кезең үшін есептің 1222016-жолы;"]
[1,11,"1322001-жол = алдыңғы кезең үшін есептің 1322006-жолы;"]
[1,11,"1322011-жол = алдыңғы кезең үшін есептің 1322016-жолы;"]
[1,11,"1422101-жол = алдыңғы кезең үшін есептің 1422106-жолы;"]
[1,11,"1422111-жол = алдыңғы кезең үшін есептің 1422116-жолы;"]
[1,11,"1422201-жол = алдыңғы кезең үшін есептің 1422206-жолы;"]
[1,11,"1422211-жол = алдыңғы кезең үшін есептің 1422216-жолы;"]
[1,11,"3) 3-бөлім. «Сіздің ұйымыңыздың бейрезидентерге берген сауда коммерциялық) кредиттері мен аванстары:"]
[1,11,"1024006-жол = 1024001-жол + 1024002-жол –1024003-жол + + 1024004-жол + әрбір баған үшін 1024005-жол;"]
[1,11,"1024016-жол = 1024011-жол + 1024012-жол –1024013-жол + + әрбір баған үшін 1024015-жол;"]
[1,11,"1124006-жол = 1124001-жол + 1124002-жол –1124003-жол + + 1124004-жол + әрбір баған үшін 1124005-жол;"]
[1,11,"1124016-жол = 1124011-жол + 1124012-жол –1124013-жол + + әрбір баған үшін 1124015-жол;"]
[1,11,"1224006-жол = 1224001-жол + 1224002-жол –1224003-жол + + 1224004-жол + әрбір баған үшін 1224005-жол;"]
[1,11,"1224016-жол = 1224011-жол + 1224012-жол –1224013-жол + + әрбір баған үшін 1224015-жол;"]
[1,11,"1324006-жол = 1324001-жол + 1324002-жол –1324003-жол + + 1324004-жол + әрбір баған үшін 1324005-жол;"]
[1,11,"1324016-жол = 1324011-жол + 1324012-жол –1324013-жол + + әрбір баған үшін 1324015-жол;"]
[1,11,"1424106-жол = 1424101-жол + 1424102-жол –1424103-жол + + 1424104-жол + әрбір баған үшін 1424105-жол;"]
[1,11,"1424116-жол = 1424111-жол + 1424112-жол –1424113-жол + + әрбір баған үшін 1424115-жол;"]
[1,11,"1424206-жол = 1424201-жол + 1424202-жол –1424203-жол + + 1424204-жол + әрбір баған үшін 1424205-жол;"]
[1,11,"1424216-жол = 1424211-жол + 1424212-жол –1424213-жол + + әрбір баған үшін 1424215-жол;"]
[1,11,"1024001-жол = алдыңғы кезең үшін есептің 1024006-жолы;"]
[1,11,"1024011-жол = алдыңғы кезең үшін есептің 1024016-жолы;"]
[1,11,"1124001-жол = алдыңғы кезең үшін есептің 1124006-жолы;"]
[1,11,"1124011-жол = алдыңғы кезең үшін есептің 1124016-жолы;"]
[1,11,"1224001-жол = алдыңғы кезең үшін есептің 1224006-жолы;"]
[1,11,"1224011-жол = алдыңғы кезең үшін есептің 1224016-жолы;"]
[1,11,"1324001-жол = алдыңғы кезең үшін есептің 1324006-жолы;"]
[1,11,"1324011-жол = алдыңғы кезең үшін есептің 1324016-жолы;"]
[1,11,"1424101-жол = алдыңғы кезең үшін есептің 1424106-жолы;"]
[1,11,"1424111-жол = алдыңғы кезең үшін есептің 1424116-жолы;"]
[1,11,"1424201-жол = алдыңғы кезең үшін есептің 1424206-жолы;"]
[1,11,"1424211-жол = алдыңғы кезең үшін есептің 1424216-жолы;"]
[1,11,"4) 4-бөлім. «Сіздің ұйымыңыздың бейрезиденттерге берген (қаржы лизингін қоса есептегенде) заемдары»:"]
[1,11,"1025006-жол = 1025001-жол + 1025002-жол –1025003-жол + + 1025004-жол + әрбір баған үшін 1025005-жол;"]
[1,11,"1025016-жол = 1025011-жол + 1025012-жол – 1025013-жол + + әрбір баған үшін 1025015-жол;"]
[1,11,"1125006-жол = 1125001-жол + 1125002-жол – 1125003-жол + + 1125004-жол + әрбір баған үшін 1125005-жол;"]
[1,11,"1125016-жол = 1125011-жол + 1125012-жол – 1125013-жол + + әрбір баған үшін 1125015-жол;"]
[1,11,"1225006-жол = 1225001-жол + 1225002-жол – 1225003-жол + + 1225004-жол + әрбір баған үшін 1225005-жол;"]
[1,11,"1225016-жол = 1225011-жол + 1225012-жол – 1225013-жол + + әрбір баған үшін 1225015-жол;"]
[1,11,"1325006-жол = 1325001-жол + 1325002-жол – 1325003-жол + + 1325004-жол + әрбір баған үшін 1325005-жол;"]
[1,11,"1325016-жол = 1325011-жол + 1325012-жол – 1325013-жол + + әрбір баған үшін 1325015-жол;"]
[1,11,"1425106-жол = 1425101-жол + 1425102-жол – 1425103-жол + + 1425104-жол + әрбір баған үшін 1425105-жол;"]
[1,11,"1425116-жол = 1425111-жол + 1425112-жол – 1425113-жол + + әрбір баған үшін 1425115-жол;"]
[1,11,"1425206-жол = 1425201-жол + 1425202-жол – 1425203-жол + + 1425204-жол + әрбір баған үшін 1425205-жол;"]
[1,11,"1425216-жол = 1425211-жол + 1425212-жол – 1425213-жол + + әрбір баған үшін 1425215-жол;"]
[1,11,"1025001-жол = алдыңғы кезең үшін есептің 1025006-жолы;"]
[1,11,"1025011-жол = алдыңғы кезең үшін есептің 1025016-жолы;"]
[1,11,"1125001-жол = алдыңғы кезең үшін есептің 1125006-жолы;"]
[1,11,"1125011-жол = алдыңғы кезең үшін есептің 1125016-жолы;"]
[1,11,"1225001-жол = алдыңғы кезең үшін есептің 1225006-жолы;"]
[1,11,"1225011-жол = алдыңғы кезең үшін есептің 1225016-жолы;"]
[1,11,"1325001-жол = алдыңғы кезең үшін есептің 1325006-жолы;"]
[1,11,"1325011-жол = алдыңғы кезең үшін есептің 1325016-жолы;"]
[1,11,"1425101-жол = алдыңғы кезең үшін есептің 1425106-жолы;"]
[1,11,"1425111-жол = алдыңғы кезең үшін есептің 1425116-жолы;"]
[1,11,"1425201-жол = алдыңғы кезең үшін есептің 1425206-жолы;"]
[1,11,"1425211-жол = алдыңғы кезең үшін есептің 1425216-жолы;"]
[1,11,"5) 5-бөлім. «Сіздің ұйымыңыздың бейрезиденттерге басқа да талаптары»:"]
[1,11,"1426106-жол = 1426101-жол + 1426102-жол – 1426103-жол + + 1426104-жол + әрбір баған үшін 1426105-жол;"]
[1,11,"1426116-жол = 1426111-жол + 1426112-жол – 1426113-жол + + әрбір баған үшін 1426115-жол;"]
[1,11,"1426206-жол = 1426201-жол + 1426202-жол – 1426203-жол + + 1426204-жол + әрбір баған үшін 1426205-жол;"]
[1,11,"1426216-жол = 1426211-жол + 1426212-жол – 1426213-жол + + әрбір баған үшін 1426215-жол;"]
[1,11,"1431006-жол = 1431001-жол + 1431002-жол – 1431003-жол + + 1431004-жол + әрбір баған үшін 1431005;"]
[1,11,"1432006-жол = 1432001-жол + 1432002-жол – 1432003-жол + + 1432004-жол + әрбір баған үшін 1432005-жол;"]
[1,11,"1115006-жол = 1115001-жол + 1115002-жол – 1115003-жол + + 1115004-жол + әрбір баған үшін 1115005-жол;"]
[1,11,"1027006-жол = 1027001-жол + 1027002-жол – 1027003-жол + + 1027004-жол + әрбір баған үшін 1027005-жол;"]
[1,11,"1027016-жол = 1027011-жол + 1027012-жол – 1027013-жол + + әрбір баған үшін 1027015-жол;"]
[1,11,"1127006-жол = 1127001-жол + 1127002-жол – 1127003-жол + + 1127004-жол + әрбір баған үшін 1127005-жол;"]
[1,11,"1127016-жол = 1127011-жол + 1127012-жол – 1127013-жол + + әрбір баған үшін 1127015-жол;"]
[1,11,"1227006-жол = 1227001-жол + 1227002-жол – 1227003-жол + + 1227004-жол + әрбір баған үшін 1227005-жол;"]
[1,11,"1227016-жол = 1227011-жол + 1227012-жол – 1227013-жол + + әрбір баған үшін 1227015-жол;"]
[1,11,"1327006-жол = 1327001-жол + 1327002-жол – 1327003-жол + + 1327004-жол + әрбір баған үшін 1327005;"]
[1,11,"1327016-жол = 1327011-жол + 1327012-жол – 1327013-жол + + әрбір баған үшін 1327015-жол;"]
[1,11,"1427106-жол = 1427101-жол + 1427102-жол – 1427103-жол + + 1427104-жол + әрбір баған үшін 1427105-жол;"]
[1,11,"1427116-жол = 1427111-жол + 1427112-жол – 1427113-жол + + әрбір баған үшін 1427115-жол;"]
[1,11,"1427206-жол = 1427201-жол + 1427202-жол – 1427203-жол + + 1427204-жол + әрбір баған үшін 1427205-жол;"]
[1,11,"1427216-жол = 1427211-жол + 1427212-жол – 1427213-жол + + әрбір баған үшін 1427215-жол;"]
[1,11,"1426101-жол = алдыңғы кезең үшін есептің 1426106-жолы;"]
[1,11,"1426111-жол = алдыңғы кезең үшін есептің 1426116-жолы;"]
[1,11,"1426201-жол = алдыңғы кезең үшін есептің 1426206 -жолы;"]
[1,11,"1426211-жол = алдыңғы кезең үшін есептің 1426216-жолы;"]
[1,11,"1431001-жол = алдыңғы кезең үшін есептің 1431006-жолы;"]
[1,11,"1432001-жол = алдыңғы кезең үшін есептің 1432006-жолы;"]
[1,11,"1115001-жол = алдыңғы кезең үшін есептің 1115006-жолы;"]
[1,11,"1027001-жол = алдыңғы кезең үшін есептің 1027006-жолы;"]
[1,11,"1027011-жол = алдыңғы кезең үшін есептің 1027016-жолы;"]
[1,11,"1127001-жол = алдыңғы кезең үшін есептің 1127006-жолы;"]
[1,11,"1127011-жол = алдыңғы кезең үшін есептің 1127016-жолы;"]
[1,11,"1227001-жол = алдыңғы кезең үшін есептің 1227006-жолы;"]
[1,11,"1227011-жол = алдыңғы кезең үшін есептің 1227016-жолы;"]
[1,11,"1327001-жол = алдыңғы кезең үшін есептің 1327006-жолы;"]
[1,11,"1327011-жол = алдыңғы кезең үшін есептің 1327016-жолы;"]
[1,11,"1427101-жол = алдыңғы кезең үшін есептің 1427106-жолы;"]
[1,11,"1427111-жол = алдыңғы кезең үшін есептің 1427116-жолы;"]
[1,11,"1427201-жол = алдыңғы кезең үшін есептің 1427206-жолы;"]
[1,11,"1427211-жол = алдыңғы кезең үшін есептің 1427216-жолы;"]
[1,11,"6) 6-бөлім. «Бейрезиденттер портфеліндегі Сіздің ұйымыңыздың шығарған борыштық бағалы қағаздары, вексельдері»:"]
[1,11,"2422206-жол = 2422201-жол + 2422202-жол – 2422203-жол + + 2422204-жол + әрбір баған үшін 2422205-жол;"]
[1,11,"2422206-жол = алдыңғы кезең үшін есептің 2422201-жолы;"]
[1,11,"2422216-жол = алдыңғы кезең үшін есептің 2422211-жолы;"]
[1,11,"7) 7-бөлім. «Бейрезиденттерден Сіздің ұйымыңыздың алған сауда (коммерциялық) кредиттері мен аванстары»:"]
[1,11,"2024006-жол = 2024001-жол + 2024002-жол – 2024003-жол + + 2024004-жол + әрбір баған үшін 2024005-жол;"]
[1,11,"2024016-жол = 2024011-жол + 2024012-жол – 2024013-жол + + әрбір баған үшін 2024015-жол;"]
[1,11,"2124006-жол = 2124001-жол + 2124002-жол – 2124003-жол + + 2124004-жол + әрбір баған үшін 2124005-жол;"]
[1,11,"2124016-жол = 2124011-жол + 2124012-жол – 2124013-жол + + әрбір баған үшін 2124015-жол;"]
[1,11,"2224006-жол = 2224001-жол + 2224002-жол – 2224003-жол + + 2224004-жол + әрбір баған үшін 2224005-жол;"]
[1,11,"2224016-жол = 2224011-жол + 2224012-жол – 2224013-жол + + әрбір баған үшін 2224015-жол;"]
[1,11,"2324006-жол = 2324001-жол + 2324002-жол – 2324003-жол + + 2324004-жол + әрбір баған үшін 2324005-жол;"]
[1,11,"2324016-жол = 2324011-жол + 2324012-жол – 2324013-жол + + әрбір баған үшін 2324015-жол;"]
[1,11,"2424106-жол = 2424101-жол + 2424102-жол – 2424103-жол + + 2424104-жол + әрбір баған үшін 2424105-жол;"]
[1,11,"2424116-жол = 2424111-жол + 2424112-жол – 2424113-жол + + әрбір баған үшін 2424115-жол;"]
[1,11,"2424206-жол = 2424201-жол + 2424202-жол – 2424203-жол + + 2424204-жол + әрбір баған үшін 2424205-жол;"]
[1,11,"2424216-жол = 2424211-жол + 2424212-жол – 2424213-жол + + әрбір баған үшін 2424215-жол;"]
[1,11,"2024001-жол = алдыңғы кезең үшін есептің 2024006-жолы;"]
[1,11,"2024011-жол = алдыңғы кезең үшін есептің 2024016-жолы;"]
[1,11,"2124001-жол = алдыңғы кезең үшін есептің 2124006-жолы;"]
[1,11,"2124011-жол = алдыңғы кезең үшін есептің 2124016-жолы;"]
[1,11,"2224001-жол = алдыңғы кезең үшін есептің 2224006-жолы;"]
[1,11,"2224011-жол = алдыңғы кезең үшін есептің 2224016-жолы;"]
[1,11,"2324001-жол = алдыңғы кезең үшін есептің 2324006-жолы;"]
[1,11,"2324011-жол = алдыңғы кезең үшін есептің 2324016-жолы;"]
[1,11,"2424101-жол = алдыңғы кезең үшін есептің 2424106-жолы;"]
[1,11,"2424111-жол = алдыңғы кезең үшін есептің 2424116-жолы;"]
[1,11,"2424201-жол = алдыңғы кезең үшін есептің 2424206-жолы;"]
[1,11,"2424211-жол = алдыңғы кезең үшін есептің 2424216-жолы;"]
[1,11,"8) 8-бөлім. «Бейрезиденттерден Сіздің ұйымыңыздың алған (қаржы лизингін қоса есептегенде) заемдары»:"]
[1,11,"2428206-жол = 2428201-жол + 2428202-жол – 2428203-жол + + 2428204-жол + әрбір баған үшін 2428205-жол;"]
[1,11,"2428216-жол = 2428211-жол + 2428212-жол – 2428213-жол + + әрбір баған үшін 2428215-жол;"]
[1,11,"2025006-жол = 2025001-жол + 2025002-жол – 2025003-жол + + 2025004-жол + әрбір баған үшін 2025005-жол;"]
[1,11,"2025016-жол = 2025011-жол + 2025012-жол – 2025013-жол + + әрбір баған үшін 2025015-жол;"]
[1,11,"2125006-жол = 2125001-жол + 2125002-жол – 2125003-жол + + 2125004-жол + әрбір баған үшін 2125005-жол;"]
[1,11,"2125016-жол = 2125011-жол + 2125012-жол – 2125013-жол + + әрбір баған үшін 2125015-жол;"]
[1,11,"2225006-жол = 2225001-жол + 2225002-жол – 2225003-жол + + 2225004-жол + әрбір баған үшін 2225005-жол;"]
[1,11,"2225016-жол = 2225011-жол + 2225012-жол – 2225013-жол + + әрбір баған үшін 2225015-жол;"]
[1,11,"2325006-жол = 2325001-жол + 2325002-жол –2325003-жол + + 2325004-жол + әрбір баған үшін 2325005-жол;"]
[1,11,"2325016-жол = 2325011-жол + 2325012-жол – 2325013-жол + + әрбір баған үшін 2325015-жол;"]
[1,11,"2425106-жол = 2425101-жол + 2425102-жол – 2425103-жол + + 2425104-жол + әрбір баған үшін 2425105-жол;"]
[1,11,"2425116-жол = 2425111-жол + 2425112-жол – 2425113-жол + + әрбір баған үшін 2425115-жол;"]
[1,11,"2425206-жол = 2425201-жол + 2425202-жол – 2425203-жол + + 2425204-жол + әрбір баған үшін 2425205-жол;"]
[1,11,"2425216-жол = 2425211-жол + 2425212-жол – 2425213-жол + + әрбір баған үшін 2425215-жол;"]
[1,11,"2025001-жол = алдыңғы кезең үшін есептің 2025006-жолы;"]
[1,11,"2025011-жол = алдыңғы кезең үшін есептің 2025016-жолы;"]
[1,11,"2125001-жол = алдыңғы кезең үшін есептің 2125006-жолы;"]
[1,11,"2125011-жол = алдыңғы кезең үшін есептің 2125016-жолы;"]
[1,11,"2225001-жол = алдыңғы кезең үшін есептің 2225006-жолы;"]
[1,11,"2225011-жол = алдыңғы кезең үшін есептің 2225016-жолы;"]
[1,11,"2325001-жол = алдыңғы кезең үшін есептің 2325006-жолы;"]
[1,11,"2325011-жол = алдыңғы кезең үшін есептің 2325016-жолы;"]
[1,11,"2425101-жол = алдыңғы кезең үшін есептің 2425106-жолы;"]
[1,11,"2425111-жол = алдыңғы кезең үшін есептің 2425116-жолы;"]
[1,11,"2425201-жол = алдыңғы кезең үшін есептің 2425206-жолы;"]
[1,11,"2425211-жол = алдыңғы кезең үшін есептің 2425216-жолы;"]
[1,11,"2428201-жол = алдыңғы кезең үшін есептің 2428206-жолы;"]
[1,11,"2428211-жол = алдыңғы кезең үшін есептің 2428216-жолы;"]
[1,11,"9) 9-бөлім. «Бейрезиденттер алдындағы Сіздің ұйымыңыздың басқа да міндеттемелері»:"]
[1,11,"2433006-жол = 2433001-жол + 2433002-жол – 2433003-жол + + 2433004-жол + әрбір баған үшін 2433005-жол;"]
[1,11,"2431006-жол = 2431001-жол + 2431002-жол – 2431003-жол + + 2431004-жол + әрбір баған үшін 2431005-жол;"]
[1,11,"2432006-жол = 2432001-жол + 2432002-жол – 2432003-жол + + 2432004-жол + әрбір баған үшін 2432005-жол;"]
[1,11,"2027006-жол = 2027001-жол + 2027002-жол – 2027003-жол + + 2027004-жол + әрбір баған үшін 2027005-жол;"]
[1,11,"2027016-жол = 2027011-жол + 2027012-жол – 2027013-жол + + әрбір баған үшін 2027015-жол;"]
[1,11,"2127006-жол = 2127001-жол + 2127002-жол – 2127003-жол + + 2127004-жол + әрбір баған үшін 2127005-жол;"]
[1,11,"2127016-жол = 2127011-жол + 2127012-жол – 2127013-жол + + әрбір баған үшін 2127015-жол;"]
[1,11,"2227006-жол = 2227001-жол + 2227002-жол – 2227003-жол + + 2227004-жол + әрбір баған үшін 2227005-жол;"]
[1,11,"2227016-жол = 2227011-жол + 2227012-жол – 2227013-жол + + әрбір баған үшін 2227015-жол;"]
[1,11,"2327006-жол = 2327001-жол + 2327002-жол – 2327003-жол + + 2327004-жол + әрбір баған үшін 2327005-жол;"]
[1,11,"2327016-жол = 2327011-жол + 2327012-жол – 2327013-жол + + әрбір баған үшін 2327015-жол;"]
[1,11,"2427106-жол = 2427101-жол + 2427102-жол – 2427103-жол + + 2427104-жол + әрбір баған үшін 2427105-жол;"]
[1,11,"2427116-жол = 2427111-жол + 2427112-жол – 2427113-жол + + әрбір баған үшін 2427115-жол;"]
[1,11,"2427206-жол = 2427201-жол + 2427202-жол – 2427203-жол + + 2427204-жол + әрбір баған үшін 2427205-жол;"]
[1,11,"2427216-жол = 2427211-жол + 2427212-жол – 2427213-жол + + әрбір баған үшін 2427215-жол;"]
[1,11,"2431001-жол = алдыңғы кезең үшін есептің 2431006-жолы;"]
[1,11,"2432001-жол = алдыңғы кезең үшін есептің 2432006-жолы;"]
[1,11,"2433001-жол = алдыңғы кезең үшін есептің 2433006-жолы;"]
[1,11,"2027001-жол = алдыңғы кезең үшін есептің 2027006-жолы;"]
[1,11,"2027011-жол = алдыңғы кезең үшін есептің 2027016-жолы;"]
[1,11,"2127001-жол = алдыңғы кезең үшін есептің 2127006-жолы;"]
[1,11,"2127011-жол = алдыңғы кезең үшін есептің 2127016-жолы;"]
[1,11,"2227001-жол = алдыңғы кезең үшін есептің 2227006-жолы;"]
[1,11,"2227011-жол = алдыңғы кезең үшін есептің 2227016-жолы;"]
[1,11,"2327001-жол = алдыңғы кезең үшін есептің 2327006-жолы;"]
[1,11,"2327011-жол = алдыңғы кезең үшін есептің 2327016-жолы;"]
[1,11,"2427101-жол = алдыңғы кезең үшін есептің 2427106-жолы;"]
[1,11,"2427111-жол = алдыңғы кезең үшін есептің 2427116-жолы;"]
[1,11,"2427201-жол = алдыңғы кезең үшін есептің 2427206-жолы;"]
[1,11,"2427211-жол = алдыңғы кезең үшін есептің 2427216-жолы;"]
[1,11,"10) 10-бөлім. «Бейрезиденттердің Сіздің ұйымыңыздың капиталына тікелей қатысуы»:"]
[1,11,"2211006-жол = 2211001-жол + 2211002-жол – 2211003-жол + + 2211004-жол + әрбір баған үшін 2211005-жол;"]
[1,11,"2211016-жол = 2211011-жол + 2211012-жол – 2211013-жол + + 2211014-жол + әрбір баған үшін 2211015-жол;"]
[1,11,"2211026-жол = 2211021-жол + әрбір баған үшін 2211025-жол;"]
[1,11,"2111006-жол = 2111001-жол + 2111002-жол – 2111003-жол + + 2111004-жол + әрбір баған үшін 2111005-жол;"]
[1,11,"2311006-жол = 2311001-жол + 2311002-жол – 2311003-жол + + 2311004-жол + әрбір баған үшін 2311005-жол;"]
[1,11,"2411006-жол = 2411001-жол + 2411002-жол – 2411003-жол + + 2411004-жол + әрбір баған үшін 2411005-жол;"]
[1,11,"2213006-жол = 2213001-жол + 2213002-жол – 2213003-жол + + 2213004-жол + әрбір баған үшін 2213005-жол;"]
[1,11,"2113006-жол = 2113001-жол + 2113002-жол – 2113003-жол + + 2113004-жол + әрбір баған үшін 2113005-жол;"]
[1,11,"2313006-жол = 2313001-жол + 2313002-жол – 2313003-жол + + 2313004-жол + әрбір баған үшін 2313005-жол;"]
[1,11,"2413006-жол = 2413001-жол + 2413002-жол – 2413003-жол + + 2413004-жол + әрбір баған үшін 2413005-жол;"]
[1,11,"2211001-жол = алдыңғы кезең үшін есептің 2211006-жолы;"]
[1,11,"2211011-жол = алдыңғы кезең үшін есептің 2211016-жолы;"]
[1,11,"2211021-жол = алдыңғы кезең үшін есептің 2211026-жолы;"]
[1,11,"2111001-жол = алдыңғы кезең үшін есептің 2111006-жолы;"]
[1,11,"2311001-жол = алдыңғы кезең үшін есептің 2311006-жолы;"]
[1,11,"2411001-жол = алдыңғы кезең үшін есептің 2411006-жолы;"]
[1,11,"2213001-жол = алдыңғы кезең үшін есептің 2213006-жолы;"]
[1,11,"2113001-жол = алдыңғы кезең үшін есептің 2113006-жолы;"]
[1,11,"2313001-жол = алдыңғы кезең үшін есептің 2313006-жолы;"]
[1,11,"2413001-жол = алдыңғы кезең үшін есептің 2413006-жолы."]
[1,8,"«Жалпы сақтандыру» саласы бойынша "]
[1,8,"бейрезиденттерді сақтандыру (қайта сақтандыру) "]
[1,8,"және бейрезиденттердің тәуекелдерін "]
[1,8,"қайта сақтандыру туралы есеп нысанына "]
[1,8,"Қосымша "]
[1,8]
[1,8,"«Жалпы сақтандыру» саласы бойынша бейрезиденттерді сақтандыру (қайта сақтандыру) және бейрезиденттердің тәуекелдерін қайта сақтандыру туралы есеп»"]
[1,8,"Ведомстволық статистикалық байқаудың статистикалық нысанын толтыру бойынша түсіндірме "]
[1,8,"(индексі 11-ТБ-ЖС, кезеңділігі тоқсандық)"]
[1,8]
[1,8,"1-тарау. Жалпы ережелер"]
[1,8]
[1,8,"1. Осы түсіндірмеде «Жалпы сақтандыру» саласы бойынша бейрезиденттерді сақтандыру (қайта сақтандыру) және бейрезиденттердің тәуекелдерін қайта сақтандыру туралы есеп» (индексі 11-ТБ-ЖС, кезеңділігі тоқсандық) ведомстволық статистикалық байқаудың статистикалық нысанын толтыру бойынша (бұдан әрі –  статистикалық нысан) бірыңғай талаптар айқындалады.  "]
[1,8,"2. Статистикалық нысан «Мемлекеттік статистика туралы» Қазақстан Республикасы Заңының 13-бабы бірінші бөлігінің 2-1) тармақшасына сәйкес әзірленді. "]
[1,8,"3. Статистикалық нысанды өз қызметін «жалпы сақтандыру» саласы бойынша сақтандыру (қайта сақтандыру) қызметін жүзеге асыру құқығына берілген лицензия негізінде жүзеге асыратын сақтандыру ұйымдары, бейрезидент сақтандыру (қайта сақтандыру) ұйымдарының филиалдары тоқсан сайын ұсынады."]
[1,8,"4. Статистикалық нысанда сұратылатын ақпарат Қазақстан Республикасының сыртқы секторының статистикасын жасауға арналған."]
[1,8,"5. Статистикалық нысанға басшы, бас бухгалтер немесе есепке қол қоюға уәкілетті адамдар және орындаушы қол қояды."]
[1,8]
[1,8,"2-тарау. Статистикалық нысанды толтыру"]
[1,8]
[1,8,"6. Статистикалық нысанды толтыру кезінде мынадай анықтамалар қолданылады:"]
[1,8,"1) резиденттер:"]
[1,8,"азаматтығына қарамастан Қазақстан Республикасында бір жылдан аса тұратын жеке тұлғалар және Қазақстаннан тыс аумақта бір жылдан аз уақытша тұратын Қазақстан Республикасының азаматтары. Қазақстан Республикасының мемлекеттік қызмет, білім алу және емделу мақсатында шет елде жүрген азаматтары басқа елдердің аумағында болу мерзіміне қарамастан резидент болып табылады;"]
[1,8,"халықаралық ұйымдарды, шетелдік елшіліктерді, консулдықтарды және басқа да дипломатиялық және ресми өкілдіктерді қоспағанда, Қазақстан Республикасының аумағында орналасқан заңды тұлғалар; "]
[1,8,"Қазақстан Республикасынан тыс жерлерде орналасқан Қазақстанның елшіліктері, консулдықтары және басқа да дипломатиялық және ресми өкілдіктері;"]
[1,8,"осы тармақшаның үшінші абзацында және осы тармақтың 2) тармақшасының үшінші абзацында көрсетілген заңды тұлғалардың Қазақстан Республикасының аумағында орналасқан филиалдары мен өкілдіктері;"]
[1,8,"2) бейрезиденттер: "]
[1,8,"азаматтығына қарамастан шет елде бір жылдан аса тұратын жеке тұлғалар және Қазақстан Республикасының аумағында бір жылдан аз уақыт тұратын шетел азаматтары. Шет мемлекеттердің мемлекеттік қызмет, білім алу және емделу мақсатында жүрген азаматтары республика аумағында болу мерзіміне қарамастан бейрезидент болып табылады;"]
[1,8,"Қазақстан Республикасының елшіліктерін, консулдықтарын және басқа да дипломатиялық және ресми өкілдіктерін қоспағанда, басқа мемлекеттердің аумағында орналасқан заңды тұлғалар;"]
[1,8,"Қазақстан Республикасының аумағында орналасқан халықаралық ұйымдар, шетелдік елшіліктер, консулдықтар және басқа да шетелдік дипломатиялық және ресми өкілдіктер;"]
[1,8,"1) тармақшаның үшінші абзацында және осы тармақшаның үшінші абзацында көрсетілген заңды тұлғалардың басқа мемлекеттердің аумағында орналасқан филиалдары мен өкілдіктері.  "]
[1,8,"7. Статистикалық нысанда сақтандыру (қайта сақтандыру) қызметі саласындағы төлем балансының операцияларына жататын ақпарат, сондай-ақ елдің халықаралық инвестициялық позициясы және сыртқы борышы үшін сақтандыру (қайта сақтандыру) ұйымдарының резервтері бойынша қалдықтары жинақталады:"]
[1,8,"1) бейрезиденттерді тікелей сақтандыру бойынша – сақтандыру шарты бойынша сақтандыру тәуекелдерін қабылдаумен байланысты туындайтын қызмет және онымен байланысты қатынастар туралы (1-бөлім);"]
[1,8,"2) бейрезиденттерді қайта сақтандыру (кіріс қайта сақтандыруы) бойынша – жасалған қайта сақтандыру шартына сәйкес сақтандыру тәуекелдерінің бөлігін қабылдаумен байланысты туындайтын қызмет және онымен байланысты қатынастар туралы (2-бөлім); "]
[1,8,"3) бейрезиденттердің қайта сақтандыруы (шығыс қайта сақтандыруы) бойынша – жасалған қайта сақтандыру шартына сәйкес сақтандыру тәуекелдерінің бөлігін қайта сақтандыруға берумен байланысты туындайтын қызмет және онымен байланысты қатынастар туралы (3-бөлім). "]
[1,8,"8. Есепті кезеңдегі статистикалық нысанның 1.1, 2.1, 3.1, 4,1-бөлімдерінде аталған барлық операциялар (жол кодтары 11100, 11200, 11210, 11300, 12100, 12200, 12210, 12300, 12400, 12440, 12450, 13100, 13200, 13400, 13440, 13450, 14400) есептеу әдісіне сәйкес көрсетіледі.  "]
[1,8,"Ірі сақтандыру төлемдері (жол кодтары 11210, 12210) бөлек жасалған сақтандыру (қайта сақтандыру) шарты бойынша сақтандыру (қайта сақтандыру) ұйымы активтері сомасының 25 пайызынан асатын, сақтандыру резервтеріндегі қайта сақтандырушының үлесі болып табылатын активтерді шегергендегі төлемдер кіреді."]
[1,8,"Инвестициялаудан түскен кірісте (жол кодтары 11300, 12300) тиісті елдер бойынша бейрезиденттермен кіріс сақтандыру (қайта сақтандыру) шарттары бойынша сақтандыру резервтерінің қаржылық активтеріне инвестициялаудан есепті кезеңде алуға есептелген кіріс көрсетіледі."]
[1,8,"9. 4-бөлімде бейрезидент сақтандыру-брокеріне немесе бейрезидент  сақтандыру-агентіне алынған қызметтері үшін төленген комиссия көрсетіледі. Осындай қызметтерге сақтандыру (қайта сақтандыру) бойынша делдалдық қызмет, консультациялық қызмет, құндық бағалау және шығындарды реттеу қызметтері, құтқару жұмыстарын қамтамасыз ету бойынша әкімшілік қызметтер, сақтандыру төлемдеріне қатысты реттеу және мониторинг жүргізу қызметтері, сақтандыру қызметімен байланысты басқа қосалқы қызметтер жатады."]
[1,8,"10. Барлық сомалар үтірден кейін нақты бір белгіге дейін мың Америка Құрама Штаттарының (бұдан әрі – АҚШ) долларында көрсетіледі."]
[1,8,"Теңгеде көрсетілген сомалар АҚШ долларына аударылады. Өзге шетел валюталарында көрсетілген сомалар алдымен теңгеге, содан кейін АҚШ долларына аударылады."]
[1,8,"Айырбастау үшін қаржылық есептілікті қалыптастыру мақсатында валюта айырбастаудың нарықтық бағамы қолданылады. Бұл ретте операцияларды айырбастау үшін операцияларды жүзеге асыру күніне тиісті бағамдар, кіріс және комиссиялар үшін – есепті кезеңдегі орташа есеппен алынған бағамдар, тоқсанның басындағы және соңындағы қалдықтар үшін – тиісті күннің бағамы қолданылады."]
[1,8,"11. Барлық операциялар серіктес елдер бойынша бөлініп көрсетіледі (сақтанушылар, қайта сақтанушылар, қайта сақтандырушылар, брокерлер, агенттер). Елдердің атауы 1-4-бөлімдерінің 2-10 бағандарында көрсетіледі. Егер респонденттің серіктес елдерінің саны нысанның бөлімдеріндегі бағандардың санынан асатын болса, жетпейтін бағандар қосылады."]
[1,8,"12. Есепті кезеңнің басындағы сақтандыру резервтері бойынша қалдықтар олардың алдыңғы кезеңнің соңындағы қалдықтарына тең және келесі бөліктер бойынша толтырылады:"]
[1,8,"1) тікелей инвестициялау объектілерін – оған қатысты респондент тікелей инвестор болып табылатын объектілерін сақтандыру бойынша;  "]
[1,8,"2) тікелей инвесторды – дауыс беретін акциялардың он және одан көп пайызын иеленетін (тікелей немесе жанама) тұлғаларды сақтандыру бойынша. Тікелей инвесторлар жеке тұлғалар (үй шаруашылықтары), заңды тұлғалар, халықаралық ұйымдар, сондай-ақ заңды тұлға құрмай-ақ басқа да субъектілер болып табылады; "]
[1,8,"3) тел компанияларды – тікелей инвестордың респондентімен ортақ жағдайлары бар ұйымдарды сақтандыру бойынша, бірақ бұл ұйым да, респондент те бір-бірінің капиталына қатысу құралдарының 10 немесе одан да көп пайызына ие болмайды. "]
[1,8,"13. Статистикалық нысан электрондық цифрлық қолтаңбаны растау рәсімі сақтала отырып, «ҚР ҰБ Веб-порталы» автоматтандырылған ақпараттық шағын жүйесі арқылы электрондық тәсілмен ұсынылады."]
[1,8,"Статистикалық нысанға түзетулер (өзгертулер, толықтырулар) есепті кезең аяқталғаннан кейін 6 (алты) ай ішінде енгізіледі. "]
[1,8]
[1,8,"3-тарау. Арифметикалық-логикалық бақылау"]
[1,8]
[1,8,"14. Арифметикалық-логикалық бақылау: "]
[1,8,"әрбір баған үшін 11520-жол = алдыңғы кезеңдегі статистикалық нысанның 11530 жолы; "]
[1,8,"әрбір баған үшін 11521-жол = алдыңғы кезеңдегі статистикалық нысанның 11531 жолы;"]
[1,8,"әрбір баған үшін 11522-жол = алдыңғы кезеңдегі статистикалық нысанның 11532 жолы;"]
[1,8,"әрбір баған үшін 11523-жол = алдыңғы кезеңдегі статистикалық нысанның 11533 жолы;"]
[1,8,"әрбір баған үшін 11524-жол = алдыңғы кезеңдегі статистикалық нысанның 11534 жолы;"]
[1,8,"әрбір баған үшін 11620-жол = алдыңғы кезеңдегі статистикалық нысанның 11630 жолы;"]
[1,8,"әрбір баған үшін 11621-жол = алдыңғы кезеңдегі статистикалық нысанның 11631 жолы;"]
[1,8,"әрбір баған үшін 11622-жол = алдыңғы кезеңдегі статистикалық нысанның 11632 жолы;"]
[1,8,"әрбір баған үшін 11623-жол = алдыңғы кезеңдегі статистикалық нысанның 11633 жолы;"]
[1,8,"әрбір баған үшін 11624-жол = алдыңғы кезеңдегі статистикалық нысанның 11634 жолы;"]
[1,8,"әрбір баған үшін 12520-жол = алдыңғы кезеңдегі статистикалық нысанның 12530 жолы;"]
[1,8,"әрбір баған үшін 12521-жол = алдыңғы кезеңдегі статистикалық нысанның 12531 жолы;"]
[1,8,"әрбір баған үшін 12522-жол = алдыңғы кезеңдегі статистикалық нысанның 12532 жолы;"]
[1,8,"әрбір баған үшін 12523-жол = алдыңғы кезеңдегі статистикалық нысанның 12533 жолы;"]
[1,8,"әрбір баған үшін 12524-жол = алдыңғы кезеңдегі статистикалық нысанның 12534 жолы;"]
[1,8,"әрбір баған үшін 12620-жол = алдыңғы кезеңдегі статистикалық нысанның 12630 жолы;"]
[1,8,"әрбір баған үшін 12621-жол = алдыңғы кезеңдегі статистикалық нысанның 12631 жолы;"]
[1,8,"әрбір баған үшін 12622-жол = алдыңғы кезеңдегі статистикалық нысанның 12632 жолы;"]
[1,8,"әрбір баған үшін 12623-жол = алдыңғы кезеңдегі статистикалық нысанның 12633 жолы;"]
[1,8,"әрбір баған үшін 12624-жол = алдыңғы кезеңдегі статистикалық нысанның 12634 жолы; "]
[1,8,"әрбір баған үшін 12400-жол = 12440 жол + 12450 жол;"]
[1,8,"әрбір баған үшін 13400-жол = 13440 жол + 13450 жол;"]
[1,8,"әрбір баған үшін 11520-жол = 11521 жол + 11522 жол + 11523 жол + + 11524 жол;"]
[1,8,"әрбір баған үшін 11530-жол = 11531 жол + 11532 жол + 11533 жол + + 11534 жол; "]
[1,8,"әрбір баған үшін 11620-жол = 11621 жол + 11622 жол + 11623 жол + + 11624 жол;"]
[1,8,"әрбір баған үшін 11630-жол = 11631 жол + 11632 жол + 11633 жол + + 11634 жол;"]
[1,8,"әрбір баған үшін 12520-жол = 12521 жол + 12522 жол + 12523 жол + + 12524 жол;"]
[1,8,"әрбір баған үшін 12530-жол = 12531 жол + 12532 жол + 12533 жол + + 12534 жол;"]
[1,8,"әрбір баған үшін 12620-жол = 12621 жол + 12622 жол + 12623 жол + + 12624 жол;"]
[1,8,"әрбір баған үшін 12630-жол = 12631 жол + 12632 жол + 12633 жол + + 12634 жол."]
[1,8.5,"«Өмірді сақтандыру» саласы бойынша "]
[1,8.5,"бейрезиденттерді сақтандыру (қайта сақтандыру) және "]
[1,8.5,"бейрезиденттердің тәуекелдерін қайта сақтандыру "]
[1,8.5,"туралы есеп нысанына"]
[1,8.5,"Қосымша "]
[1,8.5]
[1,8.5,"«Өмірді сақтандыру» саласы бойынша бейрезиденттерді сақтандыру (қайта сақтандыру) және бейрезиденттердің тәуекелдерін қайта сақтандыру туралы есеп»"]
[1,8.5,"Ведомстволық статистикалық байқаудың статистикалық нысанын толтыру бойынша түсіндірме"]
[1,8.5," (индекс 11-ТБ-ӨС, кезеңділігі тоқсандық)"]
[1,8.5]
[1,8.5]
[1,8.5," 1-тарау. Жалпы ережелер"]
[1,8.5]
[1,8.5,"1. Осы түсіндірмеде «Өмірді сақтандыру» саласы бойынша бейрезиденттерді сақтандыру (қайта сақтандыру) және бейрезиденттердің тәуекелдерін қайта сақтандыру туралы есеп» (индексі 11-ПБ-ӨС, кезеңділігі тоқсандық) ведомстволық статистикалық байқаудың статистикалық нысанын (бұдан әрі – статистикалық нысан) толтыру бойынша бірыңғай талаптар айқындалады."]
[1,8.5,"2. Статистикалық нысан «Мемлекеттік статистика туралы» Қазақстан Республикасы Заңының 13-бабы бірінші бөлігінің 2-1) тармақшасына сәйкес әзірленді."]
[1,8.5,"3. Статистикалық нысанды сақтандыру ұйымдары, өз қызметін «өмірді сақтандыру» саласында жүзеге асыруға лицензия негізінде жүзеге асыратын бейрезидент сақтандыру (қайта сақтандыру) ұйымдарының филиалдары тоқсан сайын ұсынады."]
[1,8.5,"4. Статистикалық нысанда сұратылатын ақпарат Қазақстан Республикасының сыртқы секторының статистикасын жасауға арналған."]
[1,8.5,"5. Статистикалық нысанға басшы, бас бухгалтер немесе есепке қол қоюға уәкілетті адамдар және орындаушы қол қояды."]
[1,8.5]
[1,8.5,"2-тарау. Статистикалық нысанды толтыру"]
[1,8.5]
[1,8.5,"6. Статистикалық нысанды толтыру кезінде келесі анықтамалар қолданылады:"]
[1,8.5,"1) резиденттер:"]
[1,8.5,"азаматтығына қарамастан Қазақстан Республикасында бір жылдан аса тұратын жеке тұлғалар және Қазақстаннан тыс аумақта бір жылдан кем уақытша тұратын Қазақстан Республикасының азаматтары. Қазақстан Республикасының мемлекеттік қызмет, білім алу және емделу мақсатындағы шет елдегі азаматтары олардың басқа елдердің аумағында болу мерзімдеріне қарамастан резиденттер болып табылады;"]
[1,8.5,"халықаралық ұйымдарды, шетелдік елшіліктерді, консулдықтарды және басқа да дипломатиялық және ресми өкілдіктерді қоспағанда, Қазақстан Республикасының аумағындағы заңды тұлғалар;"]
[1,8.5,"Қазақстан Республикасының аумағынан тыс жерлердегі қазақстандық елшіліктер, консулдықтар және басқа да дипломатиялық және ресми өкілдіктер;"]
[1,8.5,"осы тармақтың осы тармақшасының үшінші абзацында және 2) тармақшасының үшінші абзацында көрсетілген заңды тұлғалардың Қазақстан Республикасының аумағындағы филиалдары және өкілдіктері;"]
[1,8.5,"2) бейрезиденттер:"]
[1,8.5,"азаматтығына қарамастан шет елде бір жылдан астам тұратын жеке тұлғалар және Қазақстан Республикасының аумағында бір жылдан аз тұратын шетелдік азаматтар. Шет мемлекеттердің мемлекеттік қызмет, білім алу және емделу мақсатында жүрген азаматтары олардың республика аумағында болу мерзімдеріне қарамастан бейрезиденттер болып табылады;"]
[1,8.5,"Қазақстан Республикасының елшіліктерін, консулдықтарын және басқа да дипломатиялық және ресми өкілдіктерін қоспағанда, басқа мемлекеттердің аумағындағы заңды тұлғалар;"]
[1,8.5,"Қазақстан Республикасының аумағындағы халықаралық ұйымдар, шетелдік елшіліктер, консулдықтар және басқа да шетелдік дипломатиялық және ресми өкілдіктер;"]
[1,8.5,"1) тармақшаның үшінші абзацында және осы тармақшаның үшінші абзацында көрсетілген заңды тұлғалардың басқа мемлекеттер аумағындағы филиалдары және өкілдіктері."]
[1,8.5,"7. Статистикалық нысанда сақтандыру (қайта сақтандыру) қызметі саласындағы төлем балансының операцияларына жататын ақпарат, сондай-ақ елдің халықаралық инвестициялық позициясы және сыртқы борышы үшін сақтандыру (қайта сақтандыру) ұйымдарының резервтері бойынша қалдықтары жинақталады:"]
[1,8.5,"1) бейрезиденттерді тікелей сақтандыру бойынша – сақтандыру шарты бойынша сақтандыру тәуекелдерін қабылдаумен байланысты туындайтын қызмет және онымен байланысты қатынастар туралы (1-бөлім);"]
[1,8.5,"2) бейрезиденттерді қайта сақтандыру (кіріс қайта сақтандыруы) бойынша – жасалған қайта сақтандыру шартына сәйкес сақтандыру тәуекелдерінің бөлігін қабылдаумен байланысты туындайтын қызмет және онымен байланысты қатынастар туралы (2-бөлім); "]
[1,8.5,"3) бейрезиденттердің қайта сақтандыруы (шығыс қайта сақтандыруы) бойынша – жасалған қайта сақтандыру шартына сәйкес сақтандыру тәуекелдерінің бөлігін қайта сақтандыруға берумен байланысты туындайтын қызмет және онымен байланысты қатынастар туралы (3-бөлім)."]
[1,8.5,"8. Есепті кезеңдегі статистикалық нысанның 1.1, 2.1, 3.1, 4,1-бөлімдерінде аталған барлық операциялар (жол кодтары 21100, 21200, 21210, 21305, 21306, 22100, 22200, 22210, 22400, 22440, 22450, 23100, 23200, 23400, 23440, 23450, 24400) есептеу әдісіне сәйкес көрсетіледі."]
[1,8.5,"Ірі сақтандыру төлемдері (жол кодтары 21210, 22210) бөлек жасалған сақтандыру (қайта сақтандыру) шарты бойынша сақтандыру (қайта сақтандыру) ұйымы активтері сомасының 25 пайызынан асатын, сақтандыру резервтеріндегі қайта сақтандырушының үлесі болып табылатын активтерді шегергендегі төлемдер кіреді."]
[1,8.5,"9. 4-бөлімде бейрезидент сақтандыру-брокеріне немесе бейрезидент  сақтандыру-агентіне алынған қызметтері үшін төленген комиссия көрсетіледі. Осындай қызметтерге сақтандыру (қайта сақтандыру) бойынша делдалдық қызмет, консультациялық қызмет, құндық бағалау және шығындарды реттеу қызметтері, құтқару жұмыстарын қамтамасыз ету бойынша әкімшілік қызметтер, сақтандыру төлемдеріне қатысты реттеу және мониторинг жүргізу қызметтері, сақтандыру қызметімен байланысты басқа қосалқы қызметтер жатады."]
[1,8.5,"10. Барлық сомалар үтірден кейін нақты бір белгіге дейін мың Америка Құрама Штаттарының (бұдан әрі – АҚШ) долларында көрсетіледі."]
[1,8.5,"Теңгеде көрсетілген сомалар АҚШ долларына аударылады. Өзге шетел валюталарында көрсетілген сомалар алдымен теңгеге, содан кейін АҚШ долларына аударылады."]
[1,8.5,"Айырбастау үшін қаржылық есептілікті қалыптастыру мақсатында валюта айырбастаудың нарықтық бағамы қолданылады. Бұл ретте операцияларды айырбастау үшін операцияларды жүзеге асыру күніне тиісті бағамдар, кіріс және комиссиялар үшін – есепті кезеңдегі орташа есеппен алынған бағамдар, тоқсанның басындағы және соңындағы қалдықтар үшін – тиісті күннің бағамы қолданылады."]
[1,8.5,"11. Барлық операциялар серіктес елдер бойынша бөлініп көрсетіледі (сақтанушылар, қайта сақтанушылар, қайта сақтандырушылар, брокерлер, агенттер). Елдердің атауы статистикалық нысанның 1, 2, 3 және 4-бөлімдерінің 2-10 бағандарында көрсетіледі. Егер респонденттің серіктес елдерінің саны статистикалық нысанның бөлімдеріндегі бағандардың санынан асатын болса, жетпейтін бағандар қосылады."]
[1,8.5,"12. Есепті кезеңнің басындағы сақтандыру резервтері бойынша қалдықтар олардың алдыңғы кезеңнің соңындағы қалдықтарына тең."]
[1,8.5,"13. Статистикалық нысан қағаз тасымалдағышта не электрондық цифрлық қолтаңбаны растау рәсімі сақтала отырып, «ҚР ҰБ Веб-порталы» автоматтандырылған ақпараттық шағын жүйесі арқылы электрондық тәсілмен ұсынылады."]
[1,8.5,"Статистикалық нысанға түзетулер (өзгертулер, толықтырулар) есепті кезең аяқталғаннан кейін 6 (алты) ай ішінде енгізіледі."]
[1,8.5]
[1,8.5,"3-тарау. Арифметикалық-логикалық бақылау"]
[1,8.5]
[1,8.5,"14. Арифметикалық-логикалық бақылау:"]
[1,8.5,"21520-жол = әрбір баған үшін алдыңғы кезеңдегі статистикалық нысанның 21530-жолы;"]
[1,8.5,"21620-жол = әрбір баған үшін алдыңғы кезеңдегі статистикалық нысанның 21630-жолы;"]
[1,8.5,"21720-жол = әрбір баған үшін алдыңғы кезеңдегі статистикалық нысанның 21730-жолы;"]
[1,8.5,"22520-жол = әрбір баған үшін алдыңғы кезеңдегі статистикалық нысанның 22530-жолы;"]
[1,8.5,"22620-жол = әрбір баған үшін алдыңғы кезеңдегі статистикалық нысанның 22630-жолы;"]
[1,8.5,"22720-жол = әрбір баған үшін алдыңғы кезеңдегі статистикалық нысанның 22730-жолы;"]
[1,8.5,"22400-жол = 22440-жол + әрбір баған үшін 22450-жол;"]
[1,8.5,"23400-жол = 23440-жол + әрбір баған үшін 23450-жол."]
[1,6,"«Мемлекеттік басқару секторының халықаралық операциялары, сыртқы активтері және міндеттемелері туралы есеп» (индексі 7-ТБ, кезеңділігі тоқсандық) ведомстволық статистикалық байқаудың статистикалық нысанын толтыру нұсқаулығы"]
[1,6]
[1,6]
[1,6,"1-тарау. Жалпы ережелер"]
[1,6]
[1,6,"1. Осы «Мемлекеттік басқару секторының халықаралық операциялары, сыртқы активтері және міндеттемелері туралы есеп» (индексі 7-ТБ, кезеңділігі тоқсандық) ведомстволық статистикалық байқаудың статистикалық нысанын (бұдан әрі – статистикалық нысан) толтыру нұсқаулығы «Мемлекеттік статистика туралы» Қазақстан Республикасы Заңының 13-бабының 2-1) тармақшасына сәйкес әзірленді және статистикалық нысанды толтыруды нақтылайды."]
[1,6,"2. Статистикалық нысанды Қазақстан Республикасының мемлекеттік басқару органдары және мемлекеттік саясатты іске асыратын басқа ұйымдар да тоқсан сайын ұсынады."]
[1,6,"3. Осы статистикалық нысанда сұратылатын ақпарат Қазақстан Республикасының төлем балансын жасауға арналған. "]
[1,6,"4. Статистикалық нысанға басшы, бас бухгалтер немесе есепке қол қою функциясы жүктелген адамдар және орындаушы қол қояды. "]
[1,6]
[1,6]
[1,6,"2-тарау. Статистикалық нысанды толтыру"]
[1,6]
[1,6,"5. Статистикалық нысанды толтыру кезінде мынадай анықтамалар қолданылады:"]
[1,6,"1) резиденттер:"]
[1,6,"азаматтығына қарамастан, Қазақстан Республикасында бір жылдан астам тұратын жеке тұлғалар және Қазақстан Республикасының аумағынан тыс жерде бір жылдан аз уақытша жүрген Қазақстан Республикасының азаматтары. Мемлекеттік қызмет, білім алу және емделу мақсатында шетелде жүрген Қазақстан Республикасының азаматтары басқа елдердің аумағында болу мерзіміне қарамастан, резидент болып табылады;"]
[1,6,"халықаралық ұйымдарды, шетелдік елшіліктерді, консулдықтарды және басқа дипломатиялық және ресми өкілдіктерді қоспағанда, Қазақстан Республикасының аумағында орналасқан заңды тұлғалар; "]
[1,6,"Қазақстан Республикасының заңнамасына сәйкес заңды тұлға құрмай құрылған ұйымдар;"]
[1,6,"Қазақстан Республикасынан тыс жерлерде орналасқан Қазақстанның елшіліктері, консулдықтары және басқа дипломатиялық және ресми өкілдіктері;"]
[1,6,"осы тармақшаның үшінші абзацында және осы тармақтың 2)  тармақшасының үшінші абзацында көрсетілген заңды тұлғалардың Қазақстан Республикасының аумағында орналасқан филиалдары мен өкілдіктері;"]
[1,6,"2) бейрезиденттер:"]
[1,6,"азаматтығына қарамастан, шет елде бір жылдан астам тұратын жеке тұлғалар және Қазақстан Республикасының аумағында бір жылдан аз жүрген шетел азаматтары. Мемлекеттік қызмет, білім алу және емделу мақсатында жүрген шет мемлекеттердің азаматтары республика аумағында болу мерзіміне қарамастан, бейрезидент болып табылады. Қазақстанда вахта әдісімен жұмысқа тартылған шет мемлекеттердің азаматтары республика аумағында болу мерзіміне қарамастан бейрезидент болып табылады."]
[1,6,"Қазақстан Республикасының елшіліктерін, консулдықтарын және басқа дипломатиялық және ресми өкілдіктерін қоспағанда, басқа мемлекеттердің аумағында орналасқан заңды тұлғалар;"]
[1,6,"Қазақстан Республикасының аумағында орналасқан халықаралық ұйымдар, шетелдік елшіліктер, консулдықтар және басқа шетелдік дипломатиялық және ресми өкілдіктер;"]
[1,6,"1) тармақшаның үшінші абзацында және осы тармақшаның үшінші абзацында көрсетілген заңды тұлғалардың басқа мемлекеттердің аумағында орналасқан филиалдары мен өкілдіктері."]
[1,6,"3) қайта бағалау – есепті кезеңде валюта бағамдарының, қаржы құралы бағасының өзгеруі нәтижесінде қаржы құралы құнының (көлемінің) өзгеруі;"]
[1,6,"4) басқа да өзгерістер – есепті кезеңде қаржы құралы құнының (көлемінің)  бір жақты тәртіппен (кредитордың берешекті есептен шығаруы, әріптестің резиденттігін өзгертуі және тағы басқа) өзгеруі, сондай-ақ есепті толтырған кезде бұрын жіберілген қателерді түзету."]
[1,6,"Қайта бағалау және басқа да өзгерістер есепті кезеңде оң және теріс мәндерді құрауы мүмкін. Халықаралық ұйымдар (2-бөлімнің А бөлігі), бейрезидент кәсіпорындар (2-бөлімнің Б бөлігі), әріптес елдер (2-бөлімнің В және Г бөлігітері) бойынша қайта бағалауды және басқа да өзгерістерді жіктеу мүмкін болмаған кезде қайта бағалауды және басқа да өзгерістерді жиынтық түрінде ғана 1-бағанда көрсетуге рұқсат етіледі."]
[1,6,"6. Барлық сома мың Америка Құрама Штаттары (бұдан әрі – АҚШ) долларында бүтін санмен көрсетіледі. Теңгедегі және өзге шетел валютасындағы сома АҚШ долларына ауыстырылады. Конвертациялау үшін Қазақстан Республикасының заңнамасына сәйкес қаржылық есептілікті қалыптастыру мақсатында қолданылатын валюта айырбастаудың нарықтық бағамдары қолданылады. Операцияларды конвертациялау үшін операция жасалған күнгі тиісті бағамдар пайдаланылады. Есепті кезеңнің соңындағы қорларды (қалдықтарды) конвертациялау үшін есепті кезеңнің соңындағы тиісті бағамдар қолданылады."]
[1,6,"Валюта кодтары ҚР ҰБ 07 ISO 4217-2019 «Валюталар мен қорларды белгілеуге арналған кодтар» Қазақстан Республикасының ұлттық жіктеуішіне сәйкес көрсетіледі."]
[1,6,"7. Алғашқы статистикалық деректер барлық әріптес елдер (1-бөлім, 2-бөлімнің В және Г бөлігітері), халықаралық ұйымдар (2-бөлімнің А бөлігі), бейрезидент кәсіпорындар (2-бөлімнің Б бөлігі) бойынша бөліне отырып көрсетіледі. Бұл ретте, 2-бөлімнің Б бөлігіндегі В жолында бейрезиденттің атауы, ал Г жолында – ол тіркелген ел көрсетіледі. Егер әріптес елдердің, халықаралық ұйымдардың немесе бейрезидент кәсіпорындардың саны нысанда бар бағандар санынан асатын болса, жетпейтін бағандар қосылады."]
[1,6,"1, 2-бөлімдерде ел «Елдердің атауларын және олардың әкімшілік-аумақтық бөлімшелері бірліктерін белгілеуге арналған кодтар. 1-бөлім. Елдер кодтары» ҚР ҰЖ 06 ISO 3166-1-2016 Қазақстан Республикасының ұлттық жіктеуішіне сәйкес елдің екі әріптік коды көрсетіледі."]
[1,6,"1-бөлімде халықаралық ұйымдармен операциялар «Халықаралық ұйымдар» бағанында көрсетіледі."]
[1,6,"8. 1-бөлімде қызметтер құны нақты ақы төлеу уақыты бойынша емес, оны есептеу кезінде (нақты қызмет көрсетілген күніне) көрсетіледі."]
[1,6,"Табиғи ресурстарды жалға алу (60, 90-жолдар) жер, орман, қорықтар, су тоғандары, Байқоңыр, әскери полигондар сияқты табиғи ресурстарды уақытша пайдалануға беруді, сондай-ақ пайдалы қазбаларды өндіру және балық аулау құқығын қамтиды."]
[1,6,"Құрылыс қызметтері (110-жол) құрылыс учаскесін дайындау, объектілердің құрылысы, жинамалы құрылғылар мен жабдықтар монтажын қамтитын құрылыс келісімшарттарының ажырамас бөлігі болып табылатын барлық тауарлар мен көрсетілетін қызметтерді қамтиды. Бұрғылау және су ұңғымаларын салу және операторы бар құрылыс немесе бөлшектеу жабдығын жалға алу, құрылыс жобасын басқару, құрылыстық жөндеу сияқты басқа құрылыс қызметтері қосылады."]
[1,6,"Басқару саласындағы көрсетілетін консультациялық қызметтер (120, 143-жолдар) жалпы басқару консультацияларын, қаржы менеджментін, кадр менеджментін, өндірістік менеджментті және басқа басқару консультацияларын; бизнес саясаты мен стратегия мәселелеріндегі консультацияларды, басшылық етуді және жедел көмекті; жұртшылықпен байланыс бойынша қызметтерді қамтиды. Құрылыс жобасына басшылық ету (құрылыс қызметтері) қосылмайды;"]
[1,6,"Заң қызметіне (121, 144-жолдар) құқықтық кеңестер мен консультациялар; заң, сот және заңнамалық процестерде қызметтер ұсыну; фирмаларға жедел көмек көрсету; заң құжаттамасын дайындау; төрелік сот қызметі кіреді."]
[1,6,"Қаржылық қызметтерге (122-жол) қаржы мәмілелері бойынша делдалдардың комиссиялық сыйақысы (сақтандыру компанияларының және зейнетақы қорларының қызметтерін қоспағанда) оның ішінде: кредиттер бойынша комиссия, бағалы қағаздар нарығының кәсіби қатысушыларының комиссиясы кіреді. Сондай-ақ, басқа қосалқы көрсетілетін қаржылық қызметтер (қаржылық консультациялар, қаржы активтерін басқару, кредиттік рейтинг қызметтері) кіреді. Депозиттер, кредиттер, несиелер және қарыздар бойынша сыйақылар қаржылық қызметтерге кірмейді."]
[1,6,"Телекоммуникациялық қызметтерге (125-жол) телефон, телетайп, телеграф, радиомен хабарлау, спутник байланыс, электрондық пошта, факс арқылы дыбысты, бейнені немесе басқа ақпарат беруді қамтиды, сондай-ақ, іскерлік желілік қызметтерді, телеконференцияларды, ілеспе қызметтерді, интернет және оған қолжетімділік кіреді."]
[1,6,"Телекоммуникациялық қызметтерге берілетін ақпараттың құны, телефон желісін орнату қызметтері (құрылыс қызметтері), компьютерлік қызметтер және дерекқордағы ақпаратқа қол жеткізу және оны пайдалану кірмейді."]
[1,6,"Ақпараттық қызметтерге (127, 145-жолдар) бұқаралық ақпарат құралдарына жаңалықтар, фотосуреттер және мақалалар ұсыну; дерекқорларды құру, сақтау және тарату; пошта арқылы және өзге тәсілдермен жеткізілетін мерзімдік басылымдарға тікелей жеке жазылу; кітапханалар мен архивтердің қызметтері кіреді."]
[1,6,"Компьютерлік қызметтерге (130-жол): тапсырыс берілген және тапсырыс берілмеген (жаппай шығарылатын), электрондық байланыс арналары (электрондық пошта) арқылы жеткізілетін бағдарламалық қамтамасыз етуді және осыған байланысты лицензияларды сату (сатып алу); техникалық құралдарды және бағдарламалық қамтамасыз етуді орнату; компьтерлік техника және бағдарламалық қамтамасыз ету саласындағы консалтинг; компьютерлерді және қосалқы құрылғыларды жөндеу және техникалық қызмет көрсету, деректерді өңдеу және оларды серверге орналастыру кіреді. Материалдық тасымалдағыштарда (дискілерде және басқа алынып салынатын тасымалдағыштарда немесе компьютерлік жабдықтың бір бөлігі) жеткізілетін тапсырыс берілген және тапсырыс берілмеген бағдарламалық қамтамасыз ету тауарларға жатқызылады."]
[1,6,"Басқа санаттарға жатқызылмаған жөндеу және техникалық қызмет көрсету бойынша қызметтер (131-жол) теңіз және әуе кемелері мен басқа көлік құралдарын, сондай-ақ басқа тауарларды күрделі және ағымдағы жөндеуді және оларға техникалық қызмет көрсетуді қамтиды."]
[1,6,"Көлік құралдарына қызмет көрсету жөніндегі қызметтер (135-жол) сүйретуді, лоцмандық алып өтуді, тұрақты, көлік құралдарын жинау мен тазартуды, навигациялық қолдауды, авиадиспетчерлік және басқа да порттық және ұқсас алымдарды, тиеу-түсіру жұмыстарын, сондай-ақ көлік құралына жеткізілетін тауарларды (отын, азық-түлік, борттық қорлар, балласт және бекіту материалдары) қамтиды."]
[1,6,"Инвестициялық мақсаттарға арналған трансферттерге (160, 190-жолдар) негізгі қорларды сатып алуға гранттар (ақшалай және заттай нысанда) кіреді және көбінесе нақты инвестициялық жобалармен (мысалы, ірі құрылыс жобаларымен) байланысты болады."]
[1,6,"Күрделі активтерге зиян келтіруге және басқа бүлінулерге байланысты өтемақы төлемдеріне (170, 200-жолдар) мұнайдың ағып кетуі, қатты жарылыстар арқылы және тағы басқалай келтірілген залалды өтеу есебіндегі төлемдер кіреді."]
[1,6,"Күрделі активтерге залал келтіруге және басқа зақымдануларға байланысты өтемақы төлемдеріне (170, 200-жолдар) мұнайдың ағып кетуімен, қатты жарылыстармен және тағы басқа келтірілген зиянды өтеу есебіндегі төлемдер кіреді."]
[1,6,"9. 2-бөлімнің Б бөлігінің 340-жол коды бойынша ұйымның қатысу үлесіне келетін бейрезиденттің таза пайдасы (зияны) мынадай жолмен есептеледі: шетелдік заңды тұлғаның есепті кезеңдегі таза пайдасы (зияны) салық төленгеннен кейін ұйымның 2-бөлімнің Б бөлігінің 270-жол коды бойынша көрсетілген осы заңды тұлғаның капиталына қатысу үлесіне көбейтіледі."]
[1,6,"Егер осындай тәсіл заңды тұлға нысанында ұйымдастырылмаған шетелдік инвестициялық қорға қолданылатын болса, онда респондент ұйымының шетелдік инвестициялық қорға қатысу үлесіне келетін осы шетелдік инвестициялық қордың таза пайдасының (зиянының) ұқсас есебі жүзеге асырылады. "]
[1,6,"10. 2-бөлімнің 560-600-жолдары бойынша қолма-қол еуроны көрсету үшін «Әріптес елдердің атауы» бағандарында «Басқа елдер» көрсетіледі."]
[1,6,"11. 2-бөлімнің Г бөлігінен Қазақстан Республикасы Үкіметінің ресми сыртқы қарыздары және еурооблигациялары «Мемлекеттік, мемлекет кепілдік берген сыртқы қарыздар және Қазақстан Республикасының кепілдемесімен тартылған қарыздар туралы есеп» (индексі 14-ТБ) ведомстволық статистикалық байқаудың статистикалық нысанының болуына байланысты алып тасталды. "]
[1,6,"12. 3-бөлімде операциялар нақты ақы төлеу уақыты бойынша көрсетіледі."]
[1,6,"13. Статистикалық нысан қағаз тасымалдағышта не электрондық цифрлық қолтаңбаны растау рәсімі сақтала отырып, «ҚР ҰБ Веб-порталы» автоматтандырылған ақпараттық шағын жүйесі арқылы электрондық тәсілмен ұсынылады. Статистикалық нысан әр түрлі тәсілмен ұсынылған кезде ерте ұсынылған күн ұсыну күні болып саналады."]
[1,6,"Статистикалық нысанды қағаз тасымалдағыштарда ұсынған кезде статистикалық нысанның ақпарат толтырылған бөлімдерін (бөлігітерін) ғана ұсынуға жол беріледі. Бұл ретте статистикалық нысанның мазмұнында толтырылған бөлімдердің (бөлігітердің) болуы көрсетіледі."]
[1,6,"Статистикалық нысанға түзетулер (өзгертулер, толықтырулар) есепті кезең аяқталғаннан кейін 6 (алты) ай ішінде енгізіледі."]
[1,6]
[1,6]
[1,6,"3-тарау. Арифметикалық-логикалық бақылау"]
[1,6]
[1,6,"14. Арифметикалық-логикалық бақылау:"]
[1,6,"1) 1-бөлім. Бейрезиденттерден алынған (бейрезиденттерге ұсынылған) қызметтер және трансферттер:"]
[1,6,"әр жол үшін 1-баған = 2 + …+ n бағандарының қосындысы;"]
[1,6,"Б бөлігі. Әрбір баған үшін 110-жол = 111 + 117;"]
[1,6,"2) 2-бөлім. Бейрезиденттерге қойылатын қаржылық талаптар және олардың алдындағы міндеттемелер:"]
[1,6,"әр жол үшін 1-баған = 2 +…..+ n бағандарының қосындысы; "]
[1,6,"Есепті кезеңнің 230, 300, 390, 450, 510, 560, 620, 690, 750, 810-жолдары = алдыңғы кезеңнің 270, 350, 440, 500, 550, 600, 670, 740, 800, 860-жолдары;"]
[1,6,"А бөлігі. Әрбір баған үшін 270-жол = 230 + 240 – 245 + 250 + 260; "]
[1,6,"Б бөлігі. Әрбір баған үшін 350-жол = 300 + 310 – 320 + 330 + 340;"]
[1,6,"В бөлігі. Әрбір баған үшін 440-жол = 390 + 400 – 410 + 420 + 430;"]
[1,6,"В бөлігі. Әрбір баған үшін 500-жол = 450 + 460 – 470 + 480 + 490;"]
[1,6,"В бөлігі. Әрбір баған үшін 550-жол = 510 + 520 – 530 + 540;"]
[1,6,"В бөлігі. Әрбір баған үшін 600-жол = 560 + 570 – 580 + 590;"]
[1,6,"В бөлігі. Әрбір баған үшін 670-жол = 620 + 630 – 640 + 650 + 660;"]
[1,6,"В бөлігі. Әрбір баған үшін 740-жол = 690 + 700 – 710 + 720 + 730;"]
[1,6,"Г бөлігі. Әрбір баған үшін 800-жол = 750 + 760 – 770 + 780 + 790;"]
[1,6,"Г бөлігі. Әрбір баған үшін 860-жол = 810 + 820 – 830 + 840 + 850;"]
[1,6,"3) 3-бөлім. Басқа да операциялар: "]
[1,6,"әрбір жол үшін 1-баған = 2 + ...+ n бағандарының қосындысы."]

{"sheet":"Пояснения","index":27,"n_rows":651,"n_cols":3,"rows_kept":651,"cut":false,"hidden":false,"merged":[]}
[{"$f":"IF(IFERROR(VLOOKUP(p_report_current_id,B:B,1,FALSE),) = 0,0,1)","v":1},99]
[1,11,"Приложение\nк форме отчета о финансовых требованиях \nк нерезидентам и обязательствах\n перед ними"]
[1,11]
[1,11,"Пояснение по заполнению статистической формы ведомственного статистического наблюдения"]
[1,11]
[1,11,"«Отчет о финансовых требованиях к нерезидентам и обязательствах перед ними»\n (индекс 1-ПБ, периодичность квартальная)"]
[1,11]
[1,11,"Глава 1. Общие положения"]
[1,11]
[1,11,"1. Настоящее пояснение определяет единые требования по заполнению статистической формы ведомственного статистического наблюдения «Отчет о финансовых требованиях к нерезидентам и обязательствах перед ними» (индекс 1-ПБ, периодичность квартальная) (далее – статистическая форма). "]
[1,11,"2. Статистическая форма разработана в соответствии с подпунктом 2-1) части первой статьи 13 Закона Республики Казахстан «О государственной статистике»."]
[1,11,"3. Статистическую форму представляют юридические лица, включенные в перечень респондентов. Перечень респондентов на предстоящий год формируется Национальным Банком Республики Казахстан и размещается на официальном интернет-ресурсе Национального Банка Республики Казахстан."]
[1,11,"4. Информация, запрашиваемая по статистической форме, предназначена для формирования платежного баланса, международной инвестиционной позиции и оценки внешнего долга Республики Казахстан и их анализа."]
[1,11,"5. Статистическую форму подписывает руководитель, главный бухгалтер или лица, уполномоченные на подписание отчета, и исполнитель."]
[1,11]
[1,11,"Глава 2. Заполнение статистической формы"]
[1,11]
[1,11,"6. При заполнении статистической формы применяются следующие определения:"]
[1,11,"1) резиденты:"]
[1,11,"физические лица, проживающие в Республике Казахстан более одного года, независимо от гражданства, и граждане Республики Казахстан, временно находящиеся вне его территории менее одного года. Граждане Республики Казахстан, находящиеся за рубежом в целях государственной службы, образования и лечения, являются резидентами независимо от сроков их пребывания на территории других стран;"]
[1,11,"юридические лица, находящиеся на территории Республики Казахстан, за исключением международных организаций, иностранных посольств, консульств и других дипломатических и официальных представительств;"]
[1,11,"организации, созданные без образования юридического лица в соответствии с законодательством Республики Казахстан;"]
[1,11,"казахстанские посольства, консульства и другие дипломатические и официальные представительства, находящиеся за пределами Республики Казахстан;"]
[1,11,"находящиеся на территории Республики Казахстан филиалы и представительства юридических лиц, указанных в абзаце третьем настоящего подпункта и абзаце третьем подпункта 2) настоящего пункта;"]
[1,11,"2) нерезиденты:"]
[1,11,"физические лица, проживающие за границей более одного года, независимо от гражданства, и иностранные граждане, находящиеся на территории Республики Казахстан менее одного года. Граждане иностранных государств, находящиеся в целях государственной службы, образования и лечения, являются нерезидентами независимо от сроков их пребывания на территории республики;"]
[1,11,"юридические лица, находящиеся на территории других государств, за исключением посольств, консульств и других дипломатических и официальных представительств Республики Казахстан;"]
[1,11,"организации, созданные без образования юридического лица в соответствии с законодательством иностранного государства (фонды, трасты, простые товарищества);"]
[1,11,"находящиеся на территории Республики Казахстан международные организации, иностранные посольства, консульства и другие иностранные дипломатические и официальные представительства;"]
[1,11,"находящиеся на территории других государств филиалы и представительства юридических лиц, указанных в абзаце третьем подпункта 1) настоящего пункта и абзаце третьем настоящего подпункта настоящего пункта;"]
[1,11,"3) сестринская организация – организация, которая имеет общего с респондентом прямого инвестора, но ни данная организация, ни респондент не обладают 10% или более инструментов участия в капитале друг друга;"]
[1,11,"4) прямой инвестор – физическое или юридическое лицо, владеющее (или предполагающее владение) не менее 10% голосующих акций (голосов участников) или их эквивалента (вклады и паи для неакционерных организаций) в объекте прямого инвестирования;"]
[1,11,"5) объект прямого инвестирования – организация, в которой не менее 10% голосующих акций (голосов участников) или их эквивалента (вклады и паи для неакционерных организаций), принадлежит прямому инвестору;"]
[1,11,"6) инвестиционные фонды – акционерный или паевой инвестиционный фонд, созданный в соответствии с законодательством страны регистрации. Инвестиционные фонды являются структурой коллективного инвестирования, привлекающие средства посредством публичного выпуска акций или паев;"]
[1,11,"7) торговые (коммерческие) кредиты включают:"]
[1,11,"товары и услуги, предоставленные производителями, поставщиками и подрядчиками в соответствии с кредитными соглашениями;"]
[1,11,"задолженность по расчетам с поставщиками, подрядчиками (по обязательствам) либо с покупателями и заказчиками (по требованиям) на основе контрактов на поставку товаров, выполнение работ и оказание услуг;"]
[1,11,"авансы (предоплата), полученные (по обязательствам) и предоставленные (по требованиям) под поставку товаров, выполнение работ и оказание услуг."]
[1,11,"Из данной категории исключаются обращающиеся коммерческие векселя (то есть векселя, которые могут быть реализованы владельцем до наступления срока их погашения), которые отражаются в долговых ценных бумагах;"]
[1,11,"8) прочие требования (обязательства), не включенные в другие категории, включают:"]
[1,11,"задолженность или авансы по покупке, продаже финансовых активов (ценных бумаг, долей участия), недвижимости, нематериальных активов, которые не включаются в торговые (коммерческие) кредиты и авансы и ссуды;"]
[1,11,"задолженность или авансы по объявленным, но не оплаченным в предыдущих периодах дивидендам;"]
[1,11,"задолженность по начисленным, но не оплаченным налогам, начисленным, но не оплаченным штрафам и пеням за просрочку уплаты налогов;"]
[1,11,"задолженность по начисленным, но не оплаченным штрафам и пеням, налагаемым судами или иными государственными учреждениями;"]
[1,11,"задолженность третьим лицам по начисленным, но не оплаченным комиссионным сборам или сборам, представляющим собой плату за финансовые услуги;"]
[1,11,"задолженность по расчетам с клиентами – для финансовых посредников (брокеров, дилеров, управляющих компаний и другие);"]
[1,11,"задолженность по счетам клиентов и депонентов АО «Центральный депозитарий ценных бумаг», АО «Казахстанская фондовая биржа» и АО «Казпочта»."]
[1,11,"7. Все суммы в отчете отражаются в тысячах долларов Соединенных Штатов Америки (далее – США), в целых числах. Суммы, выраженные в тенге, переводятся в доллары США. Суммы, выраженные в иных иностранных валютах, переводятся сначала в тенге, а затем в доллары США."]
[1,11,"Для конвертации используются курсы обмена валют, применяемые в целях формирования финансовой отчетности. При этом для конвертации операций используются соответствующие курсы на дату совершения операций, для доходов – средневзвешенные курсы за отчетный период, для остатков на начало и конец квартала – курсы на соответствующую дату."]
[1,11,"Финансовые операции и доход, деноминированные в иных валютах, чем доллары США, переводятся в доллары США по курсу на дату совершения операции. Позиции на начало и конец квартала, деноминированные в иных валютах, конвертируются в доллары США по курсу на соответствующую дату."]
[1,11,"8. Все виды доходов отражаются на валовой основе, то есть без вычета налогов."]
[1,11,"9. Классификация финансовых инструментов на краткосрочные (до 1 (одного) года включительно) и долгосрочные (более 1 (одного) года) производится по первоначальному сроку, за исключением револьверных возобновляемых кредитов, которые классифицируются как краткосрочные."]
[1,11,"Просроченная задолженность по финансовому инструменту отражается вместе с финансовым инструментом. Просроченная задолженность по доходу по финансовому инструменту отражается вместе с доходом по финансовому инструменту."]
[1,11,"Штрафы и пени за просроченную задолженность по финансовому инструменту и (или) за просроченную задолженность по доходу по финансовому инструменту отражаются вместе с доходом по финансовому инструменту."]
[1,11,"10. Первичные статистические данные отражаются в разбивке по странам-партнерам. Если количество стран-партнеров превышает имеющееся в форме количество граф, добавляются недостающие графы."]
[1,11,"В части 1.2 раздела 1 сведения отражаются в разбивке по наименованию партнера-нерезидента и указанию страны его регистрации. Наименования нерезидентов пишется буквами латинского алфавита, а по нерезидентам, чье наименование зарегистрировано на русском языке, – буквами русского алфавита."]
[1,11,"Если объемы операций и позиций (остатков) по каждой отдельной стране не превышают одной тысячи долларов США, допускается объединять несколько стран и относить их к стране «Другие страны»."]
[1,11,"Если разбивка сумм по строкам «Переоценка» и «Прочие изменения» в отдельности по каждой стране невозможна, допускается заполнение общей суммой по стране «Другие страны» отдельно по каждой из строк."]
[1,11,"В части 5.1 раздела 5 наличные евро отражаются по стране «Другие страны», наличные по остальным валютам отражаются по стране-эмитенту соответствующей валюты. Например, наличные в российских рублях – по стране Российская Федерация, в долларах США – по Соединенным Штатам Америки и так далее."]
[1,11,"Международные финансовые организации отражаются по стране «Международные организации»."]
[1,11,"11. В отчете не отражаются требования и обязательства зарубежных филиалов респондента к нерезидентам."]
[1,11,"12. Акции и другие ценные бумаги на конец отчетного периода отражаются по рыночной стоимости. Для оценки позиций (остатков) по акциям и другим ценным бумагам используется один из следующих методов в порядке предпочтения по убыванию:"]
[1,11,"по средней рыночной цене (между ценой продажи и ценой покупки на фондовых рынках) на соответствующую дату;"]
[1,11,"по стоимости недавно проведенной операции."]
[1,11,"В случае возникновения затруднений в оценке рыночной стоимости сведения отражаются по балансовой стоимости."]
[1,11,"Операции с акциями и другими ценными бумагами отражаются по фактической цене сделки."]
[1,11,"В части 10.1 раздела 10 по строке 2211036 при наличии информации указывается рыночная стоимость организации, приходящаяся на долю нерезидентов на конец отчетного периода."]
[1,11,"13. По строке «Увеличение в результате операций» по Активам (Обязательствам, Капиталу) отражаются:"]
[1,11,"в случае ценных бумаг, долей участия в капитале (коды строк 1111002, 1211002, 1311002, 1412002, 1414002, 1122002, 1222002, 1322002, 1422102, 1422202, 2422202, 2211002, 2111002, 2311002, 2411002, 2213002, 2113002, 2313002, 2413002) – покупка (продажа), в том числе на первичном и вторичном рынках ценных бумаг, получение (передачу) ценных бумаг в дар, по наследству, обмен иного финансового инструмента на ценные бумаги и (или) доли участия (обмен ценных бумаг и (или) долей участия на иной финансовый инструмент);"]
[1,11,"в случае наличной иностранной валюты, банковских счетов организации в банках-нерезидентах (коды строк 1426102, 1426202) – увеличение наличной иностранной валюты в кассе, поступление средств на банковские счета, включая текущие счета, вклады, депозиты, открытые на имя Вашей организации;"]
[1,11,"в случае торговых (коммерческих) кредитов, авансов и займов (коды строк 1024002, 1124002, 1224002, 1324002, 1424102, 1424202, 1025002, 1125002, 1225002, 1325002, 1425102, 1425202, 2024002, 2124002, 2224002, 2324002, 2424102, 2424202, 2025002, 2125002, 2225002, 2325002, 2425102, 2425202, 2428202) – предоставление (получение) материальных (товарных) и финансовых ценностей и услуг в рассрочку (в кредит), пролонгация из краткосрочной в долгосрочную задолженность, капитализация вознаграждения (отнесение вознаграждения к основной сумме долга), обмен иного финансового инструмента на задолженность;"]
[1,11,"в случае производных финансовых инструментов (коды строк 1431002, 1432002, 2431002, 2432002, 2433002) – выплата премий по опционам, реализованная прибыль по форвардным (фьючерсным) контрактам."]
[1,11,"По строке «Уменьшение в результате операций» по Активам (Обязательствам, Капиталу) отражаются:"]
[1,11,"в случае ценных бумаг, долей участия в капитале (коды строк 1111003, 1211003, 1311003, 1412003, 1414003, 1122003, 1222003, 1322003, 1422103, 1422203, 2422203, 2211003, 2111003, 2311003, 2411003, 2213003, 2113003, 2313003, 2413003) – продажа (покупка) на вторичном рынке, погашение эмитентом, передачу (получение) ценных бумаг в дар, по наследству, обмен ценных бумаг и (или) долей участия на иной финансовый инструмент (обмен иного финансового инструмента на ценные бумаги и (или) доли участия);"]
[1,11,"в случае наличной иностранной валюты, банковских счетов Вашей организации в банках-нерезидентах (коды строк 1426103, 1426203) – уменьшение наличной иностранной валюты в кассе, уменьшение средств на банковских счетах, включая текущие счета, вклады, депозиты, открытых на имя Вашей организации;"]
[1,11,"в случае торговых (коммерческих) кредитов, авансов и займов (коды строк 1024003, 1124003, 1224003, 1324003, 1424103, 1424203, 1025003, 1125003, 1225003, 1325003, 1425103, 1425203, 2024003, 2124003, 2224003, 2324003, 2424103, 2424203, 2025003, 2125003, 2225003, 2325003, 2425103, 2425203, 2428203) – выплаты по основной сумме долга, пролонгация из краткосрочной в долгосрочную задолженность, обмен задолженности на иной финансовый инструмент;"]
[1,11,"в случае производных финансовых инструментов (коды строк 1431003, 1432003, 2431003, 2432003, 2433003) – исполнение условий опционного или форвардного (фьючерсного) контракта (то есть фактическая поставка базового актива по цене исполнения или расчет наличными на основании разности между ценой базового актива, существующей в данный момент на рынке, и ценой исполнения)."]
[1,11,"14. По всем строкам «Переоценка» отражаются изменения за отчетный период стоимости (объема) финансовых активов и обязательств в результате изменения курсов валют, цены финансового инструмента."]
[1,11,"Переоценка стоимости за счет колебаний курсов валют или колебаний рыночных цен отражается на нетто-основе и может составить как положительное, так и отрицательное значение."]
[1,11,"15. По всем строкам «Прочие изменения» отражаются изменения за отчетный период стоимости (объема) финансовых активов и обязательств, обусловленных иными, чем операции или переоценка, причинами."]
[1,11,"К ним относятся изменения в результате экономического возникновения и выбытия активов, изменение в финансовых активах, вызванных изменением резидентной принадлежности институциональных единиц и (или) изменением связности институциональных единиц. Изменение позиции по отдельным финансовым инструментам за счет списания «за баланс» задолженности кредитором в одностороннем порядке, за счет переуступки требований (перевода) долга между резидентами Республики Казахстан, за счет перехода нерезидентов Республики Казахстан из одной категории в другую (вследствие увеличения или уменьшения их доли в уставном капитале), за счет изменения резидентности партнера и прочее."]
[1,11,"Переуступка требований (перевод долга) между нерезидентами Республики Казахстан отражается по строке «Прочие изменения» по странам этих нерезидентов."]
[1,11,"Также в «Прочих изменениях» отражается исправление ранее допущенных ошибок при заполнении отчета (исправление задолженности на конец периода, предшествующего отчетному)."]
[1,11,"«Прочие изменения» отражаются на нетто-основе и имеют положительное или отрицательное значение."]
[1,11,"В комментариях расшифровываются все виды прочих изменений позиции за отчетный квартал."]
[1,11,"16. Совместная деятельность с нерезидентами без образования юридического лица отражается в отчете в соответствии с классификацией финансового инструмента в бухгалтерском учете респондента."]
[1,11,"17. Страховые организации не отражают в отчете информацию о страховых резервах."]
[1,11,"18. Отчет представляется на бумажном носителе либо электронным способом посредством автоматизированной информационной подсистемы «Веб-портал НБ РК» с соблюдением процедур подтверждения электронной цифровой подписью. При представлении одного отчета разными способами датой представления отчета считается ранняя из дат. "]
[1,11,"При представлении отчета на бумажных носителях респондент представляет только те части разделов статистической формы, по которым заполнена информация. При этом в содержании статистической формы указывается наличие заполненных частей разделов."]
[1,11,"Корректировки (исправления, дополнения) в статистическую форму вносятся в течение 6 (шести) месяцев после завершения отчетного периода."]
[1,11]
[1,11,"Глава 3. Арифметико-логический контроль"]
[1,11]
[1,11,"19. Арифметико-логический контроль:"]
[1,11,"1) Раздел 1. «Долевое участие Вашей организации в иностранных компаниях»:"]
[1,11,"строка 1111006 = строка 1111001 + строка 1111002 – строка 1111003 + + строка 1111004 + строка 1111005 для каждой графы;"]
[1,11,"строка 1211006 = строка 1211001 + строка 1211002 – строка 1211003 + + строка 1211004 + строка 1211005 для каждой графы;"]
[1,11,"строка 1311006 = строка 1311001 + строка 1311002 – строка 1311003 + + строка 1311004 + строка 1311005 для каждой графы;"]
[1,11,"строка 1412006 = строка 1412001 + строка 1412002 – строка 1412003 + + строка 1412004 + строка 1412005 для каждой графы;"]
[1,11,"строка 1414006 = строка 1414001 + строка 1414002 – строка 1414003 + + строка 1414004 + строка 1414005 для каждой графы;"]
[1,11,"строка 1111001 = строка 1111006 отчета за предыдущий период;"]
[1,11,"строка 1211001 = строка 1211006 отчета за предыдущий период;"]
[1,11,"строка 1311001 = строка 1311006 отчета за предыдущий период;"]
[1,11,"строка 1412001 = строка 1412006 отчета за предыдущий период;"]
[1,11,"строка 1414001 = строка 1414006 отчета за предыдущий период;"]
[1,11,"2) Раздел 2. «Долговые ценные бумаги, векселя и привилегированные акции нерезидентов в портфеле Вашей организации»:"]
[1,11,"строка 1122006 = строка 1122001 + строка 1122002 – строка 1122003 + + строка 1122004 + строка 1122005 для каждой графы;"]
[1,11,"строка 1222006 = строка 1222001 + строка 1222002 – строка 1222003 + + строка 1222004 + строка 1222005 для каждой графы;"]
[1,11,"строка 1322006 = строка 1322001 + строка 1322002 – строка 1322003 + + строка 1322004 + строка 1322005 для каждой графы;"]
[1,11,"строка 1422106 = строка 1422101 + строка 1422102 – строка 1422103 + + строка 1422104 + строка 1422105 для каждой графы;"]
[1,11,"строка 1422206 = строка 1422201 + строка 1422202 – строка 1422203 + + строка 1422204 + строка 1422205 для каждой графы;"]
[1,11,"строка 1122001 = строка 1122006 отчета за предыдущий период;"]
[1,11,"строка 1122011 = строка 1122016 отчета за предыдущий период;"]
[1,11,"строка 1222001 = строка 1222006 отчета за предыдущий период;"]
[1,11,"строка 1222011 = строка 1222016 отчета за предыдущий период;"]
[1,11,"строка 1322001 = строка 1322006 отчета за предыдущий период;"]
[1,11,"строка 1322011 = строка 1322016 отчета за предыдущий период;"]
[1,11,"строка 1422101 = строка 1422106 отчета за предыдущий период;"]
[1,11,"строка 1422111 = строка 1422116 отчета за предыдущий период;"]
[1,11,"строка 1422201 = строка 1422206 отчета за предыдущий период;"]
[1,11,"строка 1422211 = строка 1422216 отчета за предыдущий период;"]
[1,11,"3) Раздел 3. «Торговые (коммерческие) кредиты и авансы, выданные Вашей организацией нерезидентам»:"]
[1,11,"строка 1024006 = строка 1024001 + строка 1024002 – строка 1024003 + + строка 1024004 + строка 1024005 для каждой графы;"]
[1,11,"строка 1024016 = строка 1024011 + строка 1024012 – строка 1024013 + + строка 1024015 для каждой графы;"]
[1,11,"строка 1124006 = строка 1124001 + строка 1124002 – строка 1124003 + + строка 1124004 + строка 1124005 для каждой графы;"]
[1,11,"строка 1124016 = строка 1124011 + строка 1124012 – строка 1124013 + + строка 1124015 для каждой графы;"]
[1,11,"строка 1224006 = строка 1224001 + строка 1224002 – строка 1224003 + + строка 1224004 + строка 1224005 для каждой графы;"]
[1,11,"строка 1224016 = строка 1224011 + строка 1224012 – строка 1224013 + + строка 1224015 для каждой графы;"]
[1,11,"строка 1324006 = строка 1324001 + строка 1324002 – строка 1324003 + + строка 1324004 + строка 1324005 для каждой графы;"]
[1,11,"строка 1324016 = строка 1324011 + строка 1324012 – строка 1324013 + + строка 1324015 для каждой графы;"]
[1,11,"строка 1424106 = строка 1424101 + строка 1424102 – строка 1424103 + + строка 1424104 + строка 1424105 для каждой графы;"]
[1,11,"строка 1424116 = строка 1424111 + строка 1424112 – строка 1424113 + + строка 1424115 для каждой графы;"]
[1,11,"строка 1424206 = строка 1424201 + строка 1424202 – строка 1424203 + + строка 1424204 + строка 1424205 для каждой графы;"]
[1,11,"строка 1424216 = строка 1424211 + строка 1424212 – строка 1424213 + + строка 1424215 для каждой графы;"]
[1,11,"строка 1024001 = строка 1024006 отчета за предыдущий период;"]
[1,11,"строка 1024011 = строка 1024016 отчета за предыдущий период;"]
[1,11,"строка 1124001 = строка 1124006 отчета за предыдущий период;"]
[1,11,"строка 1124011 = строка 1124016 отчета за предыдущий период;"]
[1,11,"строка 1224001 = строка 1224006 отчета за предыдущий период;"]
[1,11,"строка 1224011 = строка 1224016 отчета за предыдущий период;"]
[1,11,"строка 1324001 = строка 1324006 отчета за предыдущий период;"]
[1,11,"строка 1324011 = строка 1324016 отчета за предыдущий период;"]
[1,11,"строка 1424101 = строка 1424106 отчета за предыдущий период;"]
[1,11,"строка 1424111 = строка 1424116 отчета за предыдущий период;"]
[1,11,"строка 1424201 = строка 1424206 отчета за предыдущий период;"]
[1,11,"строка 1424211 = строка 1424216 отчета за предыдущий период;"]
[1,11,"4) Раздел 4. «Займы (включая финансовый лизинг), выданные Вашей организацией нерезидентам»:"]
[1,11,"строка 1025006 = строка 1025001 + строка 1025002 – строка 1025003 + + строка 1025004 + строка 1025005 для каждой графы;"]
[1,11,"строка 1025016 = строка 1025011 + строка 1025012 – строка 1025013 + + строка 1025015 для каждой графы;"]
[1,11,"строка 1125006 = строка 1125001 + строка 1125002 – строка 1125003 + + строка 1125004 + строка 1125005 для каждой графы;"]
[1,11,"строка 1125016 = строка 1125011 + строка 1125012 – строка 1125013 + + строка 1125015 для каждой графы;"]
[1,11,"строка 1225006 = строка 1225001 + строка 1225002 – строка 1225003 + + строка 1225004 + строка 1225005 для каждой графы;"]
[1,11,"строка 1225016 = строка 1225011 + строка 1225012 – строка 1225013 + + строка 1225015 для каждой графы;"]
[1,11,"строка 1325006 = строка 1325001 + строка 1325002 – строка 1325003 + + строка 1325004 + строка 1325005 для каждой графы;"]
[1,11,"строка 1325016 = строка 1325011 + строка 1325012 – строка 1325013 + + строка 1325015 для каждой графы;"]
[1,11,"строка 1425106 = строка 1425101 + строка 1425102 – строка 1425103 + + строка 1425104 + строка 1425105 для каждой графы;"]
[1,11,"строка 1425116 = строка 1425111 + строка 1425112 – строка 1425113 + + строка 1425115 для каждой графы;"]
[1,11,"строка 1425206 = строка 1425201 + строка 1425202 – строка 1425203 + + строка 1425204 + строка 1425205 для каждой графы;"]
[1,11,"строка 1425216 = строка 1425211 + строка 1425212 – строка 1425213 + + строка 1425215 для каждой графы;"]
[1,11,"строка 1025001 = строка 1025006 отчета за предыдущий период;"]
[1,11,"строка 1025011 = строка 1025016 отчета за предыдущий период;"]
[1,11,"строка 1125001 = строка 1125006 отчета за предыдущий период;"]
[1,11,"строка 1125011 = строка 1125016 отчета за предыдущий период;"]
[1,11,"строка 1225001 = строка 1225006 отчета за предыдущий период;"]
[1,11,"строка 1225011 = строка 1225016 отчета за предыдущий период;"]
[1,11,"строка 1325001 = строка 1325006 отчета за предыдущий период;"]
[1,11,"строка 1325011 = строка 1325016 отчета за предыдущий период;"]
[1,11,"строка 1425101 = строка 1425106 отчета за предыдущий период;"]
[1,11,"строка 1425111 = строка 1425116 отчета за предыдущий период;"]
[1,11,"строка 1425201 = строка 1425206 отчета за предыдущий период;"]
[1,11,"строка 1425211 = строка 1425216 отчета за предыдущий период;"]
[1,11,"5) Раздел 5. «Прочие требования Вашей организации к нерезидентам»:"]
[1,11,"строка 1426106 = строка 1426101 + строка 1426102 – строка 1426103 + + строка 1426104 + строка 1426105 для каждой графы;"]
[1,11,"строка 1426116 = строка 1426111 + строка 1426112 – строка 1426113 + + строка 1426115 для каждой графы;"]
[1,11,"строка 1426206 = строка 1426201 + строка 1426202 – строка 1426203 + + строка 1426204 + строка 1426205 для каждой графы;"]
[1,11,"строка 1426216 = строка 1426211 + строка 1426212 – строка 1426213 + + строка 1426215 для каждой графы;"]
[1,11,"строка 1431006 = строка 1431001 + строка 1431002 – строка 1431003 + + строка 1431004 + строка 1431005 для каждой графы;"]
[1,11,"строка 1432006 = строка 1432001 + строка 1432002 – строка 1432003 + + строка 1432004 + строка 1432005 для каждой графы;"]
[1,11,"строка 1115006 = строка 1115001 + строка 1115002 – строка 1115003 + + строка 1115004 + строка 1115005 для каждой графы;"]
[1,11,"строка 1027006 = строка 1027001 + строка 1027002 – строка 1027003 + + строка 1027004 + строка 1027005 для каждой графы;"]
[1,11,"строка 1027016 = строка 1027011 + строка 1027012 – строка 1027013 + + строка 1027015 для каждой графы;"]
[1,11,"строка 1127006 = строка 1127001 + строка 1127002 – строка 1127003 + + строка 1127004 + строка 1127005 для каждой графы;"]
[1,11,"строка 1127016 = строка 1127011 + строка 1127012 – строка 1127013 + + строка 1127015 для каждой графы;"]
[1,11,"строка 1227006 = строка 1227001 + строка 1227002 – строка 1227003 + + строка 1227004 + строка 1227005 для каждой графы;"]
[1,11,"строка 1227016 = строка 1227011 + строка 1227012 – строка 1227013 + + строка 1227015 для каждой графы;"]
[1,11,"строка 1327006 = строка 1327001 + строка 1327002 – строка 1327003 + + строка 1327004 + строка 1327005 для каждой графы;"]
[1,11,"строка 1327016 = строка 1327011 + строка 1327012 – строка 1327013 + + строка 1327015 для каждой графы;"]
[1,11,"строка 1427106 = строка 1427101 + строка 1427102 – строка 1427103 + + строка 1427104 + строка 1427105 для каждой графы;"]
[1,11,"строка 1427116 = строка 1427111 + строка 1427112 – строка 1427113 + + строка 1427115 для каждой графы;"]
[1,11,"строка 1427206 = строка 1427201 + строка 1427202 – строка 1427203 + + строка 1427204 + строка 1427205 для каждой графы;"]
[1,11,"строка 1427216 = строка 1427211 + строка 1427212 – строка 1427213 + + строка 1427215 для каждой графы;"]
[1,11,"строка 1426101 = строка 1426106 отчета за предыдущий период;"]
[1,11,"строка 1426111 = строка 1426116 отчета за предыдущий период;"]
[1,11,"строка 1426201 = строка 1426206 отчета за предыдущий период;"]
[1,11,"строка 1426211 = строка 1426216 отчета за предыдущий период;"]
[1,11,"строка 1431001 = строка 1431006 отчета за предыдущий период;"]
[1,11,"строка 1432001 = строка 1432006 отчета за предыдущий период;"]
[1,11,"строка 1115001 = строка 1115006 отчета за предыдущий период;"]
[1,11,"строка 1027001 = строка 1027006 отчета за предыдущий период;"]
[1,11,"строка 1027011 = строка 1027016 отчета за предыдущий период;"]
[1,11,"строка 1127001 = строка 1127006 отчета за предыдущий период;"]
[1,11,"строка 1127011 = строка 1127016 отчета за предыдущий период;"]
[1,11,"строка 1227001 = строка 1227006 отчета за предыдущий период;"]
[1,11,"строка 1227011 = строка 1227016 отчета за предыдущий период;"]
[1,11,"строка 1327001 = строка 1327006 отчета за предыдущий период;"]
[1,11,"строка 1327011 = строка 1327016 отчета за предыдущий период;"]
[1,11,"строка 1427101 = строка 1427106 отчета за предыдущий период;"]
[1,11,"строка 1427111 = строка 1427116 отчета за предыдущий период;"]
[1,11,"строка 1427201 = строка 1427206 отчета за предыдущий период;"]
[1,11,"строка 1427211 = строка 1427216 отчета за предыдущий период;"]
[1,11,"6) Раздел 6. «Долговые ценные бумаги, векселя, выпущенные Вашей организацией, находящиеся в портфеле у нерезидентов»:"]
[1,11,"строка 2422206 = строка 2422201 + строка 2422202 – строка 2422203 + + строка 2422204 + строка 2422205 для каждой графы;"]
[1,11,"строка 2422206 = строка 2422201 отчета за предыдущий период;"]
[1,11,"строка 2422216 = строка 2422211 отчета за предыдущий период;"]
[1,11,"7) Раздел 7. «Торговые (коммерческие) кредиты и авансы, полученные Вашей организацией от нерезидентов»:"]
[1,11,"строка 2024006 = строка 2024001 + строка 2024002 – строка 2024003 + + строка 2024004 + строка 2024005 для каждой графы;"]
[1,11,"строка 2024016 = строка 2024011 + строка 2024012 – строка 2024013 + + строка 2024015 для каждой графы;"]
[1,11,"строка 2124006 = строка 2124001 + строка 2124002 – строка 2124003 + + строка 2124004 + строка 2124005 для каждой графы;"]
[1,11,"строка 2124016 = строка 2124011 + строка 2124012 – строка 2124013 + + строка 2124015 для каждой графы;"]
[1,11,"строка 2224006 = строка 2224001 + строка 2224002 – строка 2224003 + + строка 2224004 + строка 2224005 для каждой графы;"]
[1,11,"строка 2224016 = строка 2224011 + строка 2224012 – строка 2224013 + + строка 2224015 для каждой графы;"]
[1,11,"строка 2324006 = строка 2324001 + строка 2324002 – строка 2324003 + + строка 2324004 + строка 2324005 для каждой графы;"]
[1,11,"строка 2324016 = строка 2324011 + строка 2324012 – строка 2324013 + + строка 2324015 для каждой графы;"]
[1,11,"строка 2424106 = строка 2424101 + строка 2424102 – строка 2424103 + + строка 2424104 + строка 2424105 для каждой графы;"]
[1,11,"строка 2424116 = строка 2424111 + строка 2424112 – строка 2424113 + + строка 2424115 для каждой графы;"]
[1,11,"строка 2424206 = строка 2424201 + строка 2424202 – строка 2424203 + + строка 2424204 + строка 2424205 для каждой графы;"]
[1,11,"строка 2424216 = строка 2424211 + строка 2424212 – строка 2424213 + + строка 2424215 для каждой графы;"]
[1,11,"строка 2024001 = строка 2024006 отчета за предыдущий период;"]
[1,11,"строка 2024011 = строка 2024016 отчета за предыдущий период;"]
[1,11,"строка 2124001 = строка 2124006 отчета за предыдущий период;"]
[1,11,"строка 2124011 = строка 2124016 отчета за предыдущий период;"]
[1,11,"строка 2224001 = строка 2224006 отчета за предыдущий период;"]
[1,11,"строка 2224011 = строка 2224016 отчета за предыдущий период;"]
[1,11,"строка 2324001 = строка 2324006 отчета за предыдущий период;"]
[1,11,"строка 2324011 = строка 2324016 отчета за предыдущий период;"]
[1,11,"строка 2424101 = строка 2424106 отчета за предыдущий период;"]
[1,11,"строка 2424111 = строка 2424116 отчета за предыдущий период;"]
[1,11,"строка 2424201 = строка 2424206 отчета за предыдущий период;"]
[1,11,"строка 2424211 = строка 2424216 отчета за предыдущий период;"]
[1,11,"8) Раздел 8. «Займы (включая финансовый лизинг), полученные Вашей организацией от нерезидентов»:"]
[1,11,"строка 2428206 = строка 2428201 + строка 2428202 – строка 2428203 + + строка 2428204 + строка 2428205 для каждой графы;"]
[1,11,"строка 2428216 = строка 2428211 + строка 2428212 – строка 2428213 + + строка 2428215 для каждой графы;"]
[1,11,"строка 2025006 = строка 2025001 + строка 2025002 – строка 2025003 + + строка 2025004 + строка 2025005 для каждой графы;"]
[1,11,"строка 2025016 = строка 2025011 + строка 2025012 – строка 2025013 + + строка 2025015 для каждой графы;"]
[1,11,"строка 2125006 = строка 2125001 + строка 2125002 – строка 2125003 + + строка 2125004 + строка 2125005 для каждой графы;"]
[1,11,"строка 2125016 = строка 2125011 + строка 2125012 – строка 2125013 + + строка 2125015 для каждой графы;"]
[1,11,"строка 2225006 = строка 2225001 + строка 2225002 – строка 2225003 + + строка 2225004 + строка 2225005 для каждой графы;"]
[1,11,"строка 2225016 = строка 2225011 + строка 2225012 – строка 2225013 + + строка 2225015 для каждой графы;"]
[1,11,"строка 2325006 = строка 2325001 + строка 2325002 – строка 2325003 + + строка 2325004 + строка 2325005 для каждой графы;"]
[1,11,"строка 2325016 = строка 2325011 + строка 2325012 – строка 2325013 + + строка 2325015 для каждой графы;"]
[1,11,"строка 2425106 = строка 2425101 + строка 2425102 – строка 2425103 + + строка 2425104 + строка 2425105 для каждой графы;"]
[1,11,"строка 2425116 = строка 2425111 + строка 2425112 – строка 2425113 + + строка 2425115 для каждой графы;"]
[1,11,"строка 2425206 = строка 2425201 + строка 2425202 – строка 2425203 + + строка 2425204 + строка 2425205 для каждой графы;"]
[1,11,"строка 2425216 = строка 2425211 + строка 2425212 – строка 2425213 + + строка 2425215 для каждой графы;"]
[1,11,"строка 2025001 = строка 2025006 отчета за предыдущий период;"]
[1,11,"строка 2025011 = строка 2025016 отчета за предыдущий период;"]
[1,11,"строка 2125001 = строка 2125006 отчета за предыдущий период;"]
[1,11,"строка 2125011 = строка 2125016 отчета за предыдущий период;"]
[1,11,"строка 2225001 = строка 2225006 отчета за предыдущий период;"]
[1,11,"строка 2225011 = строка 2225016 отчета за предыдущий период;"]
[1,11,"строка 2325001 = строка 2325006 отчета за предыдущий период;"]
[1,11,"строка 2325011 = строка 2325016 отчета за предыдущий период;"]
[1,11,"строка 2425101 = строка 2425106 отчета за предыдущий период;"]
[1,11,"строка 2425111 = строка 2425116 отчета за предыдущий период;"]
[1,11,"строка 2425201 = строка 2425206 отчета за предыдущий период;"]
[1,11,"строка 2425211 = строка 2425216 отчета за предыдущий период;"]
[1,11,"строка 2428201 = строка 2428206 отчета за предыдущий период;"]
[1,11,"строка 2428211 = строка 2428216 отчета за предыдущий период;"]
[1,11,"9) Раздел 9. «Прочие обязательства Вашей организации перед нерезидентами»:"]
[1,11,"строка 2433006 = строка 2433001 + строка 2433002 – строка 2433003 + + строка 2433004 + строка 2433005 для каждой графы;"]
[1,11,"строка 2431006 = строка 2431001 + строка 2431002 – строка 2431003 + + строка 2431004 + строка 2431005 для каждой графы;"]
[1,11,"строка 2432006 = строка 2432001 + строка 2432002 – строка 2432003 + + строка 2432004 + строка 2432005 для каждой графы;"]
[1,11,"строка 2027006 = строка 2027001 + строка 2027002 – строка 2027003 + + строка 2027004 + строка 2027005 для каждой графы;"]
[1,11,"строка 2027016 = строка 2027011 + строка 2027012 – строка 2027013 + + строка 2027015 для каждой графы;"]
[1,11,"строка 2127006 = строка 2127001 + строка 2127002 – строка 2127003 + + строка 2127004 + строка 2127005 для каждой графы;"]
[1,11,"строка 2127016 = строка 2127011 + строка 2127012 – строка 2127013 + + строка 2127015 для каждой графы;"]
[1,11,"строка 2227006 = строка 2227001 + строка 2227002 – строка 2227003 + + строка 2227004 + строка 2227005 для каждой графы;"]
[1,11,"строка 2227016 = строка 2227011 + строка 2227012 – строка 2227013 + + строка 2227015 для каждой графы;"]
[1,11,"строка 2327006 = строка 2327001 + строка 2327002 – строка 2327003 + + строка 2327004 + строка 2327005 для каждой графы;"]
[1,11,"строка 2327016 = строка 2327011 + строка 2327012 – строка 2327013 + + строка 2327015 для каждой графы;"]
[1,11,"строка 2427106 = строка 2427101 + строка 2427102 – строка 2427103 + + строка 2427104 + строка 2427105 для каждой графы;"]
[1,11,"строка 2427116 = строка 2427111 + строка 2427112 – строка 2427113 + + строка 2427115 для каждой графы;"]
[1,11,"строка 2427206 = строка 2427201 + строка 2427202 – строка 2427203 + + строка 2427204 + строка 2427205 для каждой графы;"]
[1,11,"строка 2427216 = строка 2427211 + строка 2427212 – строка 2427213 + + строка 2427215 для каждой графы;"]
[1,11,"строка 2431001 = строка 2431006 отчета за предыдущий период;"]
[1,11,"строка 2432001 = строка 2432006 отчета за предыдущий период;"]
[1,11,"строка 2433001 = строка 2433006 отчета за предыдущий период;"]
[1,11,"строка 2027001 = строка 2027006 отчета за предыдущий период;"]
[1,11,"строка 2027011 = строка 2027016 отчета за предыдущий период;"]
[1,11,"строка 2127001 = строка 2127006 отчета за предыдущий период;"]
[1,11,"строка 2127011 = строка 2127016 отчета за предыдущий период;"]
[1,11,"строка 2227001 = строка 2227006 отчета за предыдущий период;"]
[1,11,"строка 2227011 = строка 2227016 отчета за предыдущий период;"]
[1,11,"строка 2327001 = строка 2327006 отчета за предыдущий период;"]
[1,11,"строка 2327011 = строка 2327016 отчета за предыдущий период;"]
[1,11,"строка 2427101 = строка 2427106 отчета за предыдущий период;"]
[1,11,"строка 2427111 = строка 2427116 отчета за предыдущий период;"]
[1,11,"строка 2427201 = строка 2427206 отчета за предыдущий период;"]
[1,11,"строка 2427211 = строка 2427216 отчета за предыдущий период;"]
[1,11,"10) Раздел 10. «Участие нерезидентов в капитале Вашей организации»:"]
[1,11,"строка 2211006 = строка 2211001 + строка 2211002 – строка 2211003 + + строка 2211004 + строка 2211005 для каждой графы;"]
[1,11,"строка 2211016 = строка 2211011 + строка 2211012 – строка 2211013 + + строка 2211014 + строка 2211015 для каждой графы;"]
[1,11,"строка 2211026 = строка 2211021 + строка 2211025 для каждой графы;"]
[1,11,"строка 2111006 = строка 2111001 + строка 2111002 – строка 2111003 + + строка 2111004 + строка 2111005 для каждой графы;"]
[1,11,"строка 2311006 = строка 2311001 + строка 2311002 – строка 2311003 + + строка 2311004 + строка 2311005 для каждой графы;"]
[1,11,"строка 2411006 = строка 2411001 + строка 2411002 – строка 2411003 + + строка 2411004 + строка 2411005 для каждой графы;"]
[1,11,"строка 2213006 = строка 2213001 + строка 2213002 – строка 2213003 + + строка 2213004 + строка 2213005 для каждой графы;"]
[1,11,"строка 2113006 = строка 2113001 + строка 2113002 – строка 2113003 + + строка 2113004 + строка 2113005 для каждой графы;"]
[1,11,"строка 2313006 = строка 2313001 + строка 2313002 – строка 2313003 + + строка 2313004 + строка 2313005 для каждой графы;"]
[1,11,"строка 2413006 = строка 2413001 + строка 2413002 – строка 2413003 + + строка 2413004 + строка 2413005 для каждой графы;"]
[1,11,"строка 2211001 = строка 2211006 отчета за предыдущий период;"]
[1,11,"строка 2211011 = строка 2211016 отчета за предыдущий период;"]
[1,11,"строка 2211021 = строка 2211026 отчета за предыдущий период;"]
[1,11,"строка 2111001 = строка 2111006 отчета за предыдущий период;"]
[1,11,"строка 2311001 = строка 2311006 отчета за предыдущий период;"]
[1,11,"строка 2411001 = строка 2411006 отчета за предыдущий период;"]
[1,11,"строка 2213001 = строка 2213006 отчета за предыдущий период;"]
[1,11,"строка 2113001 = строка 2113006 отчета за предыдущий период;"]
[1,11,"строка 2313001 = строка 2313006 отчета за предыдущий период;"]
[1,11,"строка 2413001 = строка 2413006 отчета за предыдущий период."]
[1,6,"Инструкция по заполнению статистической формы ведомственного статистического наблюдения «Отчет о международных операциях, внешних активах и обязательствах сектора государственного управления» (индекс 7-ПБ, периодичность квартальная)"]
[1,6," "]
[1,6," "]
[1,6,"Глава 1. Общие положения"]
[1,6," "]
[1,6,"1. Настоящая Инструкция по заполнению статистической формы ведомственного статистического наблюдения «Отчет о международных операциях, внешних активах и обязательствах сектора государственного управления» (индекс 7-ПБ, периодичность квартальная) (далее – статистическая форма) разработана в соответствии с подпунктом 2-1) статьи 13 Закона Республики Казахстан «О государственной статистике» и детализирует заполнение статистической формы."]
[1,6,"2. Статистическая форма представляется ежеквартально органами государственного управления Республики Казахстан и другими организациями, осуществляющими реализацию государственной политики."]
[1,6,"3. Информация, запрашиваемая в данной статистической форме, предназначена для составления платежного баланса Республики Казахстан."]
[1,6,"4. Статистическую форму подписывает руководитель, главный бухгалтер или лица, на которых возложена функция по подписанию отчета, и исполнитель."]
[1,6,"  "]
[1,6]
[1,6," Глава 2. Заполнение статистической формы"]
[1,6," "]
[1,6,"5. При заполнении статистической формы применяются следующие определения:"]
[1,6,"1) резиденты:"]
[1,6,"физические лица, проживающие в Республике Казахстан более одного года, независимо от гражданства, и граждане Республики Казахстан, временно находящиеся вне его территории менее одного года. Граждане Республики "]
[1,6,"Казахстан, находящиеся за рубежом в целях государственной службы, "]
[1,6,"образования и лечения, являются резидентами независимо от сроков их "]
[1,6,"пребывания на территории других стран;"]
[1,6,"юридические лица, находящиеся на территории Республики Казахстан, за исключением международных организаций, иностранных посольств, консульств и других дипломатических и официальных представительств;"]
[1,6,"организации, созданные без образования юридического лица в "]
[1,6,"соответствии с законодательством Республики Казахстан;"]
[1,6,"казахстанские посольства, консульства и другие дипломатические и "]
[1,6,"официальные представительства, находящиеся за пределами Республики "]
[1,6,"Казахстан;"]
[1,6,"находящиеся на территории Республики Казахстан филиалы и "]
[1,6,"представительства юридических лиц, указанных в абзаце третьем настоящего подпункта и абзаце третьем подпункта 2) настоящего пункта;"]
[1,6,"2) нерезиденты:"]
[1,6,"физические лица, проживающие за границей более одного года, "]
[1,6,"независимо от гражданства, и иностранные граждане, находящиеся на "]
[1,6,"территории Республики Казахстан менее одного года. Граждане иностранных "]
[1,6,"государств, находящиеся в целях государственной службы, образования и "]
[1,6,"лечения, являются нерезидентами независимо от сроков их пребывания на "]
[1,6,"территории республики. Граждане иностранных государств, привлеченные на работу в Казахстане вахтовым методом, являются нерезидентами независимо от сроков их пребывания на территории республики;"]
[1,6,"юридические лица, находящиеся на территории других государств, за "]
[1,6,"исключением посольств, консульств и других дипломатических и официальных представительств Республики Казахстан;"]
[1,6,"находящиеся на территории Республики Казахстан международные "]
[1,6,"организации, иностранные посольства, консульства и другие иностранные "]
[1,6,"дипломатические и официальные представительства;"]
[1,6,"находящиеся на территории других государств филиалы и "]
[1,6,"представительства юридических лиц, указанных в абзаце третьем подпункта 1) настоящего пункта и абзаце третьем настоящего подпункта;"]
[1,6,"3) переоценка - изменение за отчетный период стоимости (объема) "]
[1,6,"финансового инструмента в результате изменения курсов валют, цены "]
[1,6,"финансового инструмента;"]
[1,6,"4) прочие изменения – изменения за отчетный период стоимости (объема) финансового инструмента в одностороннем порядке (списание задолженности кредитором, изменение резидентства партнера и так далее), а также исправление ранее допущенных ошибок при заполнении отчета."]
[1,6,"Переоценка и прочие изменения могут составить в отчетном периоде как положительное, так и отрицательное значения. При невозможности "]
[1,6,"классифицировать переоценку и прочие изменения по международным "]
[1,6,"организациям (Раздел 2 часть А), предприятиям-нерезидентам (Раздел 2 часть Б), странам-партнерам (Раздел 2 части В и Г), допускается отражение переоценки и прочих изменений только в сводном виде в графе 1."]
[1,6,"6. Все суммы отражаются в тысячах долларов Соединенных Штатов Америки (далее – США), в целых числах. Суммы в тенге и в иных иностранных валютах переводятся в доллары США. Для конвертации используются рыночные курсы обмена валют, применяемые в целях формирования финансовой отчетности в соответствии с законодательством Республики Казахстан. Для конвертации операций используются соответствующие курсы на дату совершения операций. Для конвертации запасов (остатков) на конец отчетного периода используются соответствующие курсы на конец отчетного периода."]
[1,6,"Коды валют указываются в соответствии с национальным классификатором Республики Казахстан НК РК 07 ISO 4217-2019 «Коды для представления валют и фондов»."]
[1,6,"7. Первичные статистические данные отражаются в разбивке по всем "]
[1,6,"странам-партнерам (раздел 1, части В и Г раздела 2), международным "]
[1,6,"организациям (часть А раздела 2), предприятиям-нерезидентам (часть Б раздела 2). Причем в части Б раздела 2 по строке В отражается наименование "]
[1,6,"нерезидента, а по строке Г – страна, в которой он зарегистрирован. Если количество стран-партнеров, международных организаций или "]
[1,6,"предприятий-нерезидентов превышает имеющееся в форме количество граф, "]
[1,6,"добавляются недостающие графы."]
[1,6,"По стране в разделах 1,2 указывается двухбуквенный код страны согласно "]
[1,6,"национальному классификатору Республики Казахстан НК РК 06 ISО "]
[1,6,"3166-1-2016 «Коды для представления названий стран и единиц их "]
[1,6,"административно-территориальных подразделений. Часть 1. Коды стран»."]
[1,6,"В разделе 1 операции с международными организациями отражаются в графе «Международные организации»."]
[1,6,"8. В разделе 1 стоимость услуг отражается на момент ее начисления (на дату фактического предоставления), а не по времени фактической оплаты."]
[1,6,"Аренда природных ресурсов (строки 60, 90) включает предоставление во временное пользование природных ресурсов, таких как земля, леса, заповедники, водоемы, Байконур, военные полигоны, а также право на добычу полезных ископаемых и ловлю рыбы."]
[1,6,"Строительные услуги (строка 110) охватывают все товары и услуги, "]
[1,6,"которые являются неотделимой частью строительных контрактов, включающих подготовку строительного участка, строительство объектов, монтаж сборных конструкций и оборудования. Включают бурение и постройку водных скважин, и другие строительные услуги, такие как аренда строительного или "]
[1,6,"демонтажного оборудования с оператором, управление строительным проектом, строительный ремонт."]
[1,6,"Консультационные услуги в области управления (строки 120, 143) "]
[1,6,"охватывают общие управленческие консультации, финансовый менеджмент, кадровый менеджмент, производственный менеджмент и другие управленческие консультации; консультации, руководство и оперативная помощь в вопросах бизнес политики и стратегии; услуги по связям с общественностью. Исключается руководство строительным проектом (строительные услуги)."]
[1,6,"Юридические услуги (строки 121, 144) включают юридические советы и консультации; предоставление услуг в юридических, судебных и "]
[1,6,"законодательных процессах; оказание оперативной помощи фирмам; подготовка юридической документации; услуги арбитража."]
[1,6,"Финансовые услуги (строка 122) включают комиссионное вознаграждение посредников по финансовым сделкам (за исключением услуг страховых "]
[1,6,"компаний и пенсионных фондов), в том числе: комиссию по кредитам, комиссию профучастников рынка ценных бумаг. Включают также другие вспомогательные финансовые услуги (финансовые консультации, управление финансовыми "]
[1,6,"активами, услуги кредитного рейтинга). Вознаграждение по депозитам, "]
[1,6,"кредитам, ссудам и займам в финансовые услуги не включаются."]
[1,6,"Телекоммуникационные услуги (строка 125) охватывают передачу звука, изображения или другой информации с помощью телефона, телетайпа, "]
[1,6,"телеграфа, радиовещания, спутниковой связи, электронной почты, факса, а также включают деловые сетевые услуги, телеконференции, сопутствующие услуги, интернет и доступ к нему. Телекоммуникационные услуги не включают "]
[1,6,"стоимость передаваемой информации, услуги по установке телефонной сети (строительные услуги), компьютерные услуги, а также доступ и использование информации базы данных."]
[1,6,"Информационные услуги (строки 127, 145) включают предоставление новостей, фотографий и статей средствам массовой информации; создание, "]
[1,6,"хранение и распространение баз данных; прямую индивидуальную подписку на периодические издания с доставкой по почте и иными способами; услуги "]
[1,6,"библиотек и архивов."]
[1,6,"Компьютерные услуги (строка 130) включают: продажу (приобретение) "]
[1,6,"заказного и незаказного (массового производства) программного обеспечения, доставляемого электронными каналами связи (электронной почтой) и связанных с этим лицензий; установку технических средств и программного обеспечения; консалтинг в области компьютерной техники и программного обеспечения; "]
[1,6,"ремонт и техническое обслуживание компьютеров и периферийных устройств, обработку данных и их размещение на сервере. Заказное и незаказное "]
[1,6,"программное обеспечение, доставляемое на материальных носителях (дисках и других съемных носителях или как часть компьютерного оборудования) "]
[1,6,"включается в товары."]
[1,6,"Услуги по ремонту и техническому обслуживанию, не отнесенные к "]
[1,6,"другим категориям (строка 131) включают капитальный и текущий ремонт и "]
[1,6,"техническое обслуживание морских и воздушных судов и других транспортных средств, а также других товаров."]
[1,6,"Услуги по обслуживанию транспортных средств (строка 135) включают буксировку, лоцманскую проводку, стоянку, уборку и очистку транспортных средств, навигационную поддержку, авиадиспетчерские и прочие портовые и аналогичные сборы, погрузочно-разгрузочные работы, а также товары, "]
[1,6,"доставляемые на транспортное средство (топливо, продовольствие, бортовые "]
[1,6,"запасы, балласт и крепежные материалы)."]
[1,6,"Трансферты на инвестиционные цели (строки 160, 190) включают гранты (в денежной и натуральной форме) на приобретение основных фондов и "]
[1,6,"преимущественно связаны с конкретными инвестиционными проектами "]
[1,6,"(например, крупными строительными проектами)."]
[1,6,"Компенсационные выплаты в связи с нанесением ущерба капитальным "]
[1,6,"активам и другими повреждениями (строки 170, 200) включают платежи в счет компенсации ущерба, нанесенного разливами нефти, сильными взрывами и так далее."]
[1,6,"9. Чистая прибыль (убыток) нерезидента, приходящаяся на долю участия организации по коду строки 340 части Б раздела 2, рассчитывается следующим образом: чистая прибыль (убыток) иностранного юридического лица за "]
[1,6,"отчетный период после уплаты налогов умножается на долю участия "]
[1,6,"организации в капитале этого юридического лица, отраженную по коду строки 270 части Б раздела 2."]
[1,6,"Если такой подход применяется к иностранному инвестиционному фонду, организованному не в форме юридического лица, то осуществляется "]
[1,6,"аналогичный расчет чистой прибыли (убытка) иностранного инвестиционного фонда, приходящейся на долю участия организации респондента в этом "]
[1,6,"инвестиционном фонде."]
[1,6,"10. Для отражения наличных евро по строкам 560-600 части В раздела 2 в графах «Наименование стран-партнеров» указываются «Другие страны»."]
[1,6,"11. Исключение из части Г раздела 2 официальных внешних займов и "]
[1,6,"еврооблигаций Правительства Республики Казахстан произведено в связи с наличием статистической формы ведомственного статистического наблюдения «Отчет о внешних государственных, гарантированных государством займах и займах, привлеченных под поручительство Республики Казахстан» (индекс "]
[1,6,"14-ПБ, периодичность квартальная)."]
[1,6,"12. В разделе 3 операции отражаются по времени фактической оплаты."]
[1,6,"13. Статистическая форма представляется на бумажном носителе либо электронным способом посредством автоматизированной информационной "]
[1,6,"подсистемы «Веб-портал НБ РК» с соблюдением процедур подтверждения "]
[1,6,"электронной цифровой подписью. При представлении статистической формы разными способами датой представления считается ранняя из дат."]
[1,6,"При представлении статистической формы на бумажных носителях "]
[1,6,"допускается представление только тех разделов (частей) статистической формы, по которым заполнена информация. При этом в содержании статистической формы указывается наличие заполненных разделов (частей)."]
[1,6,"Корректировки (исправления, дополнения) в статистическую форму "]
[1,6,"вносятся в течение 6 (шести) месяцев после завершения отчетного периода."]
[1,6," "]
[1,6," "]
[1,6,"Глава 3. Арифметико-логический контроль"]
[1,6," "]
[1,6,"14. Арифметико-логический контроль:"]
[1,6,"1) Раздел 1. Услуги и трансферты, полученные от нерезидентов "]
[1,6,"(предоставленные нерезидентам):"]
[1,6,"графа 1 = сумме граф 2 + …+ n для каждой строки;"]
[1,6,"часть Б. строка 110 = 111 + 117 для каждой графы;"]
[1,6,"2) Раздел 2. Финансовые требования к нерезидентам и обязательства перед ними:"]
[1,6,"графа 1 = сумме граф 2 +…..+ n для каждой строки;"]
[1,6,"строки 230, 300, 390, 450, 510, 560, 620, 690, 750, 810 отчетного периода = строкам 270, 350, 440, 500, 550, 600, 670, 740, 800, 860 предыдущего периода;"]
[1,6,"часть А. строка 270 = 230 + 240 – 245 + 250 + 260 для каждой графы;"]
[1,6,"часть Б. строка 350 = 300 + 310 – 320 + 330 + 340 для каждой графы;"]
[1,6,"часть В. строка 440 = 390 + 400 – 410 + 420 + 430 для каждой графы;"]
[1,6,"часть В. строка 500= 450 + 460 – 470 + 480 + 490 для каждой графы;"]
[1,6,"часть В. строка 550 = 510 + 520 – 530 + 540 для каждой графы;"]
[1,6,"часть В. строка 600 = 560 + 570 – 580 + 590 для каждой графы;"]
[1,6,"часть В. строка 670 = 620 + 630 – 640 + 650 + 660 для каждой графы;"]
[1,6,"часть В. строка 740 = 690 + 700 – 710 + 720 + 730 для каждой графы;"]
[1,6,"часть Г. строка 800 = 750 + 760 – 770 + 780 + 790 для каждой графы;"]
[1,6,"часть Г. строка 860 = 810 + 820 – 830 + 840 + 850 для каждой графы;"]
[1,6,"3) Раздел 3. Прочие операции:"]
[1,6,"графа 1 = сумме граф 2 + …+ n для каждой строки."]
[1,7,"заработная плата работников-нерезидентов (строки 530, 540) включает оплату труда в денежной и натуральной форме иностранных работников, нанятых на работу на срок менее года, и иностранных работников, привлеченных на работу вахтовым методом. Заработная плата в натуральной форме состоит из выплат в форме товаров и услуг, таких как питание, жилье, транспортные средства, бесплатный проезд, перевозка на работу и с работы, услуги спортивных центров и домов отдыха, опционы на акции;"]
[1,7,"прочие текущие трансферты (строки 580, 590) включают выплаты компенсаций за нанесенные травмы или ущерб имуществу, которые не являются выплатами страховых возмещений, а также дарения и пожертвования, не связанные с финансированием накопления основного капитала;"]
[1,7,"капитальные трансферты (строки 600, 610) включают компенсационные выплаты за нанесение масштабного ущерба капитальным активам (например, в связи с разливом нефти, сильными взрывами, побочными эффектами от фармацевтической продукции и так далее), а также крупные подарки и пожертвования на цели финансирования накопления основного капитала, например, дарения университетам на покрытие расходов по строительству новых учебных помещений."]
[1,7,"11. Услуги здравоохранения, оказанные нерезидентам (строки 221, 222) заполняется акционерным обществом «Фонд социального медицинского страхования» в целом по Казахстану."]
[1,7,"Если услуги здравоохранения получены от нерезидентов через Корпоративный Фонд University Medical Center, то строки 216, 217 заполняются Корпоративным Фондом University Medical Center, в противном случае - строки 216, 217 заполняется респондентом самостоятельно."]
[1,7,"12. В комментариях к отчету приводятся:"]
[1,7,"1) краткое описание прочих видов услуг, требующих расшифровки (строки 109, 219, 271, 275, 330, 373, 376);"]
[1,7,"2) информация, которую респондент считает необходимым отразить."]
[1,7,"13. Статистическая форма представляется на бумажном носителе либо электронным способом посредством автоматизированной информационной подсистемы «Веб-портал НБ РК» с соблюдением процедур подтверждения электронной цифровой подписью. При представлении статистической формы разными способами датой представления считается ранняя из дат."]
[1,7,"При представлении статистической формы на бумажных носителях допускается представление только тех разделов (частей) статистической формы, по которым заполнена информация. При этом в содержании статистической формы указывается наличие заполненных разделов (частей)."]
[1,7,"Корректировки (исправления, дополнения) в статистическую форму вносятся в течение 6 (шести) месяцев после завершения отчетного периода."]
[1,7]
[1,7,"Глава 3. Арифметико-логический контроль"]
[1,7]
[1,7,"14. Арифметико-логический контроль:"]
[1,7,"1) Раздел 1, часть А. «Услуги, оказанные нерезидентам»:"]
[1,7,"строка 10 = сумме строк 11 + 12 + 13 + 14 + 15 + 16 + 17 для каждой графы;"]
[1,7,"строка 21 = сумме строк 22 + 23 + 24 + 25 + 26 + 27 + 28 для каждой графы;"]
[1,7,"строка 30 = сумме строк 31 + 32 + 33 для каждой графы;"]
[1,7,"строка 40 = сумме строк 41+ 42 для каждой графы;"]
[1,7,"строка 60 = сумме строк 61 + 62 + 63 + 64 для каждой графы;"]
[1,7,"строка 70 = сумме строк 71 + 72 + 73 + 74 + 75 для каждой графы;"]
[1,7,"строка 80 = сумме строк 81 + 82 + 83 + 84 + 85 + 86 + 87 + 88 + 89 + 90 + 91 + 92 для каждой графы;"]
[1,7,"строка 100 = сумме строк 101 +102 +103 +104 +105 + 108 для каждой графы;"]
[1,7,"2) Раздел 1, часть Б. «Услуги, полученные от нерезидентов»:"]
[1,7,"строка 110 = сумме строк 111 + 112 для каждой графы;"]
[1,7,"строка 121 = сумме строк 122 + 123 + 124 + 125 + 126 + 127 для каждой графы;"]
[1,7,"строка 140 = сумме строк 141 + 142 + 143 для каждой графы;"]
[1,7,"строка 150 = сумме строк 151 + 152 для каждой графы;"]
[1,7,"строка 170 = сумме строк 171 + 172 + 173 + 174 для каждой графы;"]
[1,7,"строка 180 = сумме строк 181 + 182 + 183 + 184 + 185 для каждой графы;"]
[1,7,"строка 190 = сумме строк 191 + 192 + 193 + 194 + 195 + 196 + 197 + 198 + 199 + 200 + 201 + 202 для каждой графы;"]
[1,7,"строка 210 = сумме строк 211 + 212 + 213 + 214 + 215 + 216 + 217 + 218 для каждой графы;"]
[1,7,"3) Раздел 1, часть В. «Услуги здравоохранения, предоставленные нерезидентам (заполняется акционерным обществом «Фонд социального медицинского страхования» в целом по Казахстану):"]
[1,7,"строка 221 = сумме строк 221/11 +221/15 + 221/19 + 221/23 + 221/27 + 221/31 + 221/35 + 221/39 + 221/43 + 221/47 + 221/55 + 221/59 + 221/61 + 221/63 + 221/71 + 221/71 + 221/75 + 221/79 для каждой графы;"]
[1,7,"строка 222 = сумме строк 222/11 +222/15 + 222/19 + 222/23 + 222/27 + 222/31 + 222/35 + 222/39 + 222/43 + 222/47 + 222/55 + 222/59 + 222/61 + 222/63 + 222/71 + 222/71 + 222/75 + 222/79 для каждой графы;"]
[1,7,"4) Раздел 2. «Услуги пассажирского транспорта и вспомогательные транспортные услуги»:"]
[1,7,"строка 231 = сумме строк 232 + 233 + 234 + 235 для каждой графы;"]
[1,7,"строка 236 = сумме строк 237 + 238 + 239 для каждой графы;"]
[1,7,"строка 241 = сумме строк 242 + 243 + 244 + 245 для каждой графы;"]
[1,7,"строка 251 = сумме строк 252 + 253 + 254 + 257 + 258 для каждой графы;"]
[1,7,"строка 254 = сумме строк 255 + 256 для каждой графы;"]
[1,7,"строка 261 = сумме строк 262 + 263 + 264 для каждой графы;"]
[1,7,"строка 265 = сумме строк 266 + 267 + 268 для каждой графы;"]
[1,7,"5) Раздел 3. «Товары и услуги, оказанные находящимся в Казахстане международным организациям, иностранным посольствам, консульствам и другим иностранным дипломатическим и официальным представительствам»:"]
[1,7,"строка 320 = сумме строк 321 + 322 для каждой графы;"]
[1,7,"6) Раздел 4. «Услуги грузового транспорта (без учета страхования грузов)»:"]
[1,7,"строка 350 = сумме строк 351 + 352 для каждой графы;"]
[1,7,"строка 370 = сумме строк 371 + 372 для каждой графы;"]
[1,7,"7) Для всех частей (разделов):"]
[1,7,"графа 1 = сумме граф 2 + 3 +…+ n для всех строк."]
[1,8,"Приложение "]
[1,8,"к форме отчета о страховании (перестраховании)"]
[1,8," нерезидентов и перестраховании рисков"]
[1,8," у нерезидентов по отрасли"]
[1,8," «общее страхование»"]
[1,8,"  "]
[1,8,"Пояснение по заполнению статистической формы ведомственного статистического наблюдения"]
[1,8]
[1,8,"«Отчет о страховании (перестраховании) нерезидентов и перестраховании рисков у нерезидентов по отрасли «общее страхование»"]
[1,8," (индекс 11-ПБ-ОС, периодичность квартальная)"]
[1,8]
[1,8,"Глава 1. Общие положения "]
[1,8]
[1,8,"1. Настоящее пояснение определяет единый требования по заполнению статистической формы ведомственного статистического наблюдения «Отчет о страховании (перестраховании) нерезидентов и перестраховании рисков у нерезидентов по отрасли «общее страхование» (индекс 11-ПБ-OC, периодичность квартальная) (далее – статистическая форма)."]
[1,8,"2. Статистическая форма разработана в соответствии с подпунктом 2-1) части первой статьи 13 Закона Республики Казахстан «О государственной статистике»."]
[1,8,"3. Статистическая форма представляется ежеквартально страховыми организациями, филиалами страховых (перестраховочных) организаций – нерезидентов осуществляющими свою деятельность на основании лицензии на право осуществления страховой (перестраховочной) деятельности по отрасли «общее страхование». "]
[1,8,"4. Информация, запрашиваемая в статистической форме, предназначена для составления статистики внешнего сектора Республики Казахстан."]
[1,8,"5. Статистическую форму подписывает руководитель, главный бухгалтер или лица, уполномоченные на подписание отчета, и исполнитель. "]
[1,8]
[1,8,"Глава 2. Заполнение статистической формы"]
[1,8]
[1,8,"6. При заполнении статистической формы применяются следующие определения:"]
[1,8,"1) резиденты:"]
[1,8,"физические лица, проживающие в Республике Казахстан более одного года, независимо от гражданства, и граждане Республики Казахстан, временно находящиеся вне его территории менее одного года. Граждане Республики Казахстан, находящиеся за рубежом в целях государственной службы, образования и лечения, являются резидентами независимо от сроков их пребывания на территории других стран;"]
[1,8,"юридические лица, находящиеся на территории Республики Казахстан, за исключением международных организаций, иностранных посольств, консульств и других дипломатических и официальных представительств;"]
[1,8,"казахстанские посольства, консульства и другие дипломатические и официальные представительства, находящиеся за пределами Республики Казахстан;"]
[1,8,"находящиеся на территории Республики Казахстан филиалы и представительства юридических лиц, указанных в абзаце третьем настоящего подпункта и абзаце третьем подпункта 2) настоящего пункта;"]
[1,8,"2) нерезиденты:"]
[1,8,"физические лица, проживающие за границей более одного года, независимо от гражданства, и иностранные граждане, находящиеся на территории Республики Казахстан менее одного года. Граждане иностранных государств, находящиеся в целях государственной службы, образования и лечения, являются нерезидентами независимо от сроков их пребывания на территории республики;"]
[1,8,"юридические лица, находящиеся на территории других государств, за исключением посольств, консульств и других дипломатических и официальных представительств Республики Казахстан;"]
[1,8,"находящиеся на территории Республики Казахстан международные организации, иностранные посольства, консульства и другие иностранные дипломатические и официальные представительства;"]
[1,8,"находящиеся на территории других государств филиалы и представительства юридических лиц, указанных в абзаце третьем подпункта 1) настоящего пункта и абзаце третьем настоящего подпункта."]
[1,8,"7.  В статистической форме отражается информация, относящаяся к операциям платежного баланса в области страховой (перестраховочной) деятельности, а также остатки по резервам страховых (перестраховочных) организаций для международной инвестиционной позиции и внешнего долга страны:"]
[1,8,"1) по прямому страхованию нерезидентов – о деятельности и связанных с ней отношениях, возникающих в связи с принятием страховых рисков по договору страхования (раздел 1);"]
[1,8,"2) по перестрахованию нерезидентов (входящее перестрахование) – о деятельности и связанных с ней отношениях, возникающих в связи с принятием части страховых рисков в соответствии с заключенным договором перестрахования (раздел 2);"]
[1,8,"3) по перестрахованию нерезидентами (исходящее перестрахование) – о деятельности и связанных с ней отношениях, возникающих в связи с передачей части страховых рисков в перестрахование в соответствии с заключенным договором перестрахования (раздел 3)."]
[1,8,"8. Все операции за отчетный период, перечисленные в частях 1.1, 2.1, 3.1, 4,1 статистической формы (коды строк 11100, 11200, 11210, 11300, 12100, 12200, 12210, 12300, 12400, 12440, 12450, 13100, 13200, 13400, 13440, 13450, 14400), отражаются в соответствии с методом начисления."]
[1,8,"Крупные страховые выплаты (коды строк 11210, 12210) включают выплаты по отдельному заключенному договору страхования (перестрахования) превышающие 25 процентов от суммы активов страховой (перестраховочной) организации, за вычетом активов, являющихся долей перестраховщика в страховых резервах."]
[1,8,"В доходах от инвестирования (коды строк 11300, 12300) отражаются доходы, начисленные к получению в отчетном периоде от инвестирования в финансовые активы страховых резервов по договорам входящего страхования (перестрахования) с нерезидентами по соответствующим странам."]
[1,8,"9. В разделе 4 указывается комиссия, выплаченная страховому брокеру-нерезиденту или страховому агенту-нерезиденту за полученные услуги. К таким услугам относятся посредническая деятельность по страхованию (перестрахованию), консультационная деятельность, услуги по стоимостной оценке и урегулированию убытков, административные услуги по обеспечению спасательных работ, услуги по регулированию и мониторингу в отношении страховых выплат, прочие вспомогательные услуги, связанные со страховой деятельностью."]
[1,8,"10. Все суммы отражаются в тысячах долларов Соединенных Штатов Америки (далее – США) с точностью до одного знака после запятой."]
[1,8,"Суммы, выраженные в тенге, переводятся в доллары США. Суммы, выраженные в иных иностранных валютах, переводятся сначала в тенге, а затем в доллары США."]
[1,8,"Для конвертации используются рыночные курсы обмена валют, применяемые в целях формирования финансовой отчетности. При этом для конвертации операций используются соответствующие курсы на дату совершения операций, для доходов и комиссионных - средневзвешенные курсы за отчетный период, для остатков на начало и конец квартала - курсы на соответствующую дату."]
[1,8,"11. Все операции отражаются в разбивке по странам партнеров (страхователей, перестрахователей, перестраховщиков, брокеров, агентов). Наименования стран указываются в графах с 2 по 10 разделов 1- 4. Если количество стран партнеров респондента превышает имеющееся в разделах формы количество граф, добавляются недостающие графы."]
[1,8,"12. Остатки по страховым резервам на начало отчетного периода равны их остаткам на конец предыдущего периода и заполняются в следующей разбивке:"]
[1,8,"1) по страхованию объектов прямого инвестирования – объектов, в отношении которых респондент является прямым инвестором;"]
[1,8,"2) по страхованию прямых инвесторов – лиц, владеющих (напрямую или косвенно) десятью и более процентами голосующих акций. Прямыми инвесторами являются физические лица (домашние хозяйства), юридические лица, международные организации, а также иные субъекты без образования юридического лица;"]
[1,8,"3) по страхованию сестринских компаний – организаций, которые имеют общего с респондентом прямого инвестора, но ни данная организация, ни респондент не обладают 10 процентами или более инструментов участия в капитале друг друга."]
[1,8,"13. Статистическая форма представляется электронным способом посредством автоматизированной информационной подсистемы «Веб-портал НБ РК» с соблюдением процедур подтверждения электронной цифровой подписью."]
[1,8,"Корректировки (исправления, дополнения) в статистическую форму вносятся в течение 6 (шести) месяцев после завершения отчетного периода."]
[1,8]
[1,8,"Глава 3. Арифметико-логический контроль"]
[1,8]
[1,8,"14. Арифметико-логический контроль:"]
[1,8,"строка 11520 = строка 11530 статистической формы за предыдущий период для каждой графы;"]
[1,8,"строка 11521 = строка 11531 статистической формы за предыдущий период для каждой графы;"]
[1,8,"строка 11522 = строка 11532 статистической формы за предыдущий период для каждой графы;"]
[1,8,"строка 11523 = строка 11533 статистической формы за предыдущий период для каждой графы;"]
[1,8,"строка 11524 = строка 11534 статистической формы за предыдущий период для каждой графы;"]
[1,8,"строка 11620 = строка 11630 статистической формы за предыдущий период для каждой графы;"]
[1,8,"строка 11621 = строка 11631 статистической формы за предыдущий период для каждой графы;"]
[1,8,"строка 11622 = строка 11632 статистической формы за предыдущий период для каждой графы;"]
[1,8,"строка 11623 = строка 11633 статистической формы за предыдущий период для каждой графы;"]
[1,8,"строка 11624 = строка 11634 статистической формы за предыдущий период для каждой графы;"]
[1,8,"строка 12520 = строка 12530 статистической формы за предыдущий период для каждой графы;"]
[1,8,"строка 12521 = строка 12531 статистической формы за предыдущий период для каждой графы;"]
[1,8,"строка 12522 = строка 12532 статистической формы за предыдущий период для каждой графы;"]
[1,8,"строка 12523 = строка 12533 статистической формы за предыдущий период для каждой графы;"]
[1,8,"строка 12524 = строка 12534 статистической формы за предыдущий период для каждой графы;"]
[1,8,"строка 12620 = строка 12630 статистической формы за предыдущий период для каждой графы;"]
[1,8,"строка 12621 = строка 12631 статистической формы за предыдущий период для каждой графы;"]
[1,8,"строка 12622 = строка 12632 статистической формы за предыдущий период для каждой графы;"]
[1,8,"строка 12623 = строка 12633 статистической формы за предыдущий период для каждой графы;"]
[1,8,"строка 12624 = строка 12634 статистической формы за предыдущий период для каждой графы;"]
[1,8,"строка 12400 = строка 12440 + строка 12450 для каждой графы;"]
[1,8,"строка 13400 = строка 13440 + строка 13450 для каждой графы;"]
[1,8,"строка 11520 = строка 11521 + строка 11522 + строка 11523 + + строка 11524 для каждой графы;"]
[1,8,"строка 11530 = строка 11531 + строка 11532 + строка 11533 + + строка 11534 для каждой графы;"]
[1,8,"строка 11620 = строка 11621 + строка 11622 + строка 11623 + + строка 11624 для каждой графы;"]
[1,8,"строка 11630 = строка 11631 + строка 11632 + строка 11633 + + строка 11634 для каждой графы;"]
[1,8,"строка 12520 = строка 12521 + строка 12522 + строка 12523 + + строка 12524 для каждой графы;"]
[1,8,"строка 12530 = строка 12531 + строка 12532 + строка 12533 + + строка 12534 для каждой графы;"]
[1,8,"строка 12620 = строка 12621 + строка 12622 + строка 12623 + + строка 12624 для каждой графы;"]
[1,8,"строка 12630 = строка 12631 + строка 12632 + строка 12633 + + строка 12634 для каждой графы. "]
[1,8.5,"Приложение "]
[1,8.5,"к форме отчета о страховании (перестраховании)"]
[1,8.5,"нерезидентов и перестраховании рисков"]
[1,8.5," у нерезидентов по отрасли"]
[1,8.5," «страхование жизни"]
[1,8.5,"  "]
[1,8.5,"Пояснение по заполнению статистической формы ведомственного статистического наблюдения"]
[1,8.5]
[1,8.5,"«Отчет о страховании (перестраховании) нерезидентов и перестраховании рисков у нерезидентов по отрасли «страхование жизни»"]
[1,8.5," (индекс 11-ПБ-СЖ, периодичность квартальная)"]
[1,8.5]
[1,8.5,"Глава 1. Общие положения"]
[1,8.5," "]
[1,8.5,"1. Настоящее пояснение определяет единые требования по заполнению статистической формы ведомственного статистического наблюдения «Отчет о страховании (перестраховании) нерезидентов и перестраховании рисков у нерезидентов по отрасли «страхование жизни» (индекс 11-ПБ-CЖ, периодичность квартальная) (далее – статистическая форма)."]
[1,8.5,"2. Статистическая форма разработана в соответствии с подпунктом 2-1) части первой статьи 13 Закона Республики Казахстан «О государственной статистике»."]
[1,8.5,"3. Статистическая форма представляется ежеквартально страховыми организациями, филиалами страховых (перестраховочных) организаций – нерезидентов осуществляющие свою деятельность на основании лицензии на осуществление деятельности по отрасли «страхование жизни»."]
[1,8.5,"4. Информация, запрашиваемая в статистической форме, предназначена для составления статистики внешнего сектора Республики Казахстан."]
[1,8.5,"5. Статистическую форму подписывает руководитель, главный бухгалтер или лица, уполномоченные на подписание отчета, и исполнитель."]
[1,8.5]
[1,8.5,"Глава 2. Заполнение статистической формы"]
[1,8.5]
[1,8.5,"6. При заполнении статистической формы применяются следующие определения:"]
[1,8.5,"1) резиденты:"]
[1,8.5,"физические лица, проживающие в Республике Казахстан более одного года, независимо от гражданства, и граждане Республики Казахстан, временно находящиеся вне его территории менее одного года. Граждане Республики Казахстан, находящиеся за рубежом в целях государственной службы, образования и лечения, являются резидентами независимо от сроков их пребывания на территории других стран;"]
[1,8.5,"юридические лица, находящиеся на территории Республики Казахстан, за исключением международных организаций, иностранных посольств, консульств и других дипломатических и официальных представительств;"]
[1,8.5,"казахстанские посольства, консульства и другие дипломатические и официальные представительства, находящиеся за пределами Республики Казахстан;"]
[1,8.5,"находящиеся на территории Республики Казахстан филиалы и представительства юридических лиц, указанных в абзаце третьем настоящего подпункта и абзаце третьем подпункта 2) настоящего пункта;"]
[1,8.5,"2) нерезиденты:"]
[1,8.5,"физические лица, проживающие за границей более одного года, независимо от гражданства, и иностранные граждане, находящиеся на территории Республики Казахстан менее одного года. Граждане иностранных государств, находящиеся в целях государственной службы, образования и лечения, являются нерезидентами независимо от сроков их пребывания на территории республики;"]
[1,8.5,"юридические лица, находящиеся на территории других государств, за исключением посольств, консульств и других дипломатических и официальных представительств Республики Казахстан;"]
[1,8.5,"находящиеся на территории Республики Казахстан международные организации, иностранные посольства, консульства и другие иностранные дипломатические и официальные представительства;"]
[1,8.5,"находящиеся на территории других государств филиалы и представительства юридических лиц, указанных в абзаце третьем подпункта 1) настоящего пункта и абзаце третьем настоящего подпункта."]
[1,8.5,"7. В статистической форме отражается информация, относящаяся к операциям платежного баланса в области страховой (перестраховочной) деятельности, а также остатки по резервам страховых (перестраховочных) организаций для международной инвестиционной позиции и внешнего долга страны:"]
[1,8.5,"1) по прямому страхованию нерезидентов – о деятельности и связанных с ней отношениях, возникающих в связи с принятием страховых рисков по договору страхования (раздел 1);"]
[1,8.5,"2) по перестрахованию нерезидентов (входящее перестрахование) – о деятельности и связанных с ней отношениях, возникающих в связи с принятием части страховых рисков в соответствии с заключенным договором перестрахования (раздел 2);"]
[1,8.5,"3) по перестрахованию нерезидентами (исходящее перестрахование) – о деятельности и связанных с ней отношениях, возникающих в связи с передачей части страховых рисков в перестрахование в соответствии с заключенным договором перестрахования (раздел 3)."]
[1,8.5,"8. Все операции за отчетный период, перечисленные в частях 1.1, 2.1, 3.1, 4.1 статистической формы (коды строк 21100, 21200, 21210, 21305, 21306, 22100, 22200, 22210, 22400, 22440, 22450, 23100, 23200, 23400, 23440, 23450, 24400), отражаются в соответствии с методом начисления."]
[1,8.5,"Крупные страховые выплаты (коды строк 21210, 22210) включают выплаты по отдельному заключенному договору страхования (перестрахования) превышающие 25 процентов от суммы активов страховой (перестраховочной) организации, за вычетом активов, являющихся долей перестраховщика в страховых резервах."]
[1,8.5,"9. В разделе 4 указывается комиссия, выплаченная страховому брокеру-нерезиденту или страховому агенту-нерезиденту за полученные услуги. К таким услугам относятся посредническая деятельность по страхованию (перестрахованию), консультационная деятельность, услуги по стоимостной оценке и урегулированию убытков, административные услуги по обеспечению спасательных работ, услуги по регулированию и мониторингу в отношении страховых выплат, прочие вспомогательные услуги, связанные со страховой деятельностью."]
[1,8.5,"10. Все суммы отражаются в тысячах долларов Соединенных Штатов Америки (далее – США) с точностью до одного знака после запятой."]
[1,8.5,"Суммы, выраженные в тенге, переводятся в доллары США. Суммы, выраженные в иных иностранных валютах, переводятся сначала в тенге, а затем в доллары США."]
[1,8.5,"Для конвертации используются рыночные курсы обмена валют, применяемые в целях формирования финансовой отчетности. При этом для конвертации операций используются соответствующие курсы на дату совершения операций, для доходов и комиссионных – средневзвешенные курсы за отчетный период, для остатков на начало и конец квартала – курсы на соответствующую дату."]
[1,8.5,"11. Все операции отражаются в разбивке по странам партнеров (страхователей, перестрахователей, перестраховщиков, брокеров, агентов). Наименования стран указываются в графах с 2 по 10 разделов 1, 2, 3 и4 статистической формы. Если количество стран партнеров респондента превышает имеющееся в разделах статистической формы количество граф, добавляются недостающие графы."]
[1,8.5,"12. Остатки по страховым резервам на начало отчетного периода равны их остаткам на конец предыдущего периода."]
[1,8.5,"13. Статистическая форма представляется электронным способом посредством автоматизированной информационной подсистемы «Веб-портал НБ РК» с соблюдением процедур подтверждения электронной цифровой подписью."]
[1,8.5,"Корректировки (исправления, дополнения) в статистическую форму вносятся в течение 6 (шести) месяцев после завершения отчетного периода."]
[1,8.5]
[1,8.5,"Глава 3. Арифметико-логический контроль"]
[1,8.5]
[1,8.5,"14. Арифметико-логический контроль:"]
[1,8.5,"строка 21520 = строка 21530 статистической формы за предыдущий период для каждой графы;"]
[1,8.5,"строка 21620 = строка 21630 статистической формы за предыдущий период для каждой графы;"]
[1,8.5,"строка 21720 = строка 21730 статистической формы за предыдущий период для каждой графы;"]
[1,8.5,"строка 22520 = строка 22530 статистической формы за предыдущий период для каждой графы;"]
[1,8.5,"строка 22620 = строка 22630 статистической формы за предыдущий период для каждой графы;"]
[1,8.5,"строка 22720 = строка 22730 статистической формы за предыдущий период для каждой графы;"]
[1,8.5,"строка 22400 = строка 22440 + строка 22450 для каждой графы;"]
[1,8.5,"строка 23400 = строка 23440 + строка 23450 для каждой графы."]

{"sheet":"Валюты","index":28,"n_rows":3,"n_cols":9,"rows_kept":3,"cut":false,"hidden":true,"merged":[[0,4,0,8]]}
[{"$f":"VLOOKUP(\"p_currency_name\",p_guide_show,2,FALSE)","v":0},null,null,"2\n1","Валюталар\nВалюты"]
["select c.id_currency, h.name, h.name_kz, h.code_3n from s_currency c join s_currency_his h on c.id_currency = h.id_currency where h.is_last = 1 and (h.date_end is null or h.date_end >= to_date('20190101', 'yyyymmdd')) and h.code_3n not in ('947', '948') order by h.name;","Перенос текста","Код слева","Код справа","№","Наименование на русском языке","Қазақ тіліндегі атауы","Атауы\nНаименование","Үш цифрлы код\nТрех цифровой код"]
[162,1,null,null,1,"ДОЛЛАР США","АҚШ ДОЛЛАРЫ",{"$f":"CONCATENATE(IF(C3<>\"\",CONCATENATE(C3,\" \"),\"\"),IF(p_language_current_id=1,F3,IF(p_language_current_id=2,G3,IF(F3=G3,F3,CONCATENATE(G3,IF(B3=0,\" / \",CHAR(10)),F3)))),IF(D3<>\"\",CONCATENATE(\" \",D3),\"\"))","v":"АҚШ ДОЛЛАРЫ\nДОЛЛАР США"},"840"]

{"sheet":"Страны","index":29,"n_rows":308,"n_cols":11,"rows_kept":308,"cut":false,"hidden":false,"merged":[[0,4,0,10]]}
[{"$f":"VLOOKUP(\"p_country_name\",p_guide_show,2,FALSE)","v":1},null,null,"2\n1","Елдер\nСтраны"]
[null,"Перенос текста","Код слева","Код справа","№","Наименование на русском языке","Қазақ тіліндегі атауы","Атауы\nНаименование","ДЕЖЖ коды\nКод ОКСМ","ТМД белгісі\nПризнак СНГ","Белгісі\nПризнак"]
[243,0,null,null,1,"др.страны не СНГ","ТМД емес басқа елдер",{"$f":"CONCATENATE(IF(C3<>\"\",CONCATENATE(C3,\" \"),\"\"),IF(p_language_current_id=1,F3,IF(p_language_current_id=2,G3,IF(F3=G3,F3,CONCATENATE(G3,IF(B3=0,\" / \",CHAR(10)),F3)))),IF(D3<>\"\",CONCATENATE(\" \",D3),\"\"))","v":"ТМД емес басқа елдер / др.страны не СНГ"}," ",0,1]
[10,0,null,null,2,"АВСТРАЛИЯ","АВСТРАЛИЯ","АВСТРАЛИЯ","036",0,1]
[11,0,null,null,3,"АВСТРИЯ","АВСТРИЯ","АВСТРИЯ","040",0,1]
[8,0,null,null,4,"АЗЕРБАЙДЖАН","ӘЗЕРБАЙЖАН","ӘЗЕРБАЙЖАН / АЗЕРБАЙДЖАН","031",1,1]
[2,0,null,null,5,"АЛБАНИЯ","АЛБАНИЯ","АЛБАНИЯ","008",0,1]
[3,0,null,null,6,"АЛЖИР","АЛЖИР","АЛЖИР","012",0,1]
[184,0,null,null,7,"АНГИЛЬЯ (БРИТ.)","АНГИЛЬЯ","АНГИЛЬЯ / АНГИЛЬЯ (БРИТ.)","660",0,1]
[6,0,null,null,8,"АНГОЛА","АНГОЛА","АНГОЛА","024",0,1]
[5,0,null,null,9,"АНДОРРА","АНДОРРА","АНДОРРА","020",0,1]
[332,0,null,null,10,"Антарктида","Антарктида","Антарктида","010",0,1]
[7,0,null,null,11,"АНТИГУА И БАРБУДА","АНТИГУА ЖӘНЕ БАРБУДА","АНТИГУА ЖӘНЕ БАРБУДА / АНТИГУА И БАРБУДА","028",0,1]
[9,0,null,null,12,"АРГЕНТИНА","АРГЕНТИНА","АРГЕНТИНА","032",0,1]
[15,0,null,null,13,"АРМЕНИЯ","АРМЕНИЯ","АРМЕНИЯ","051",1,1]
[150,0,null,null,14,"АРУБА ОСТРОВ (НИДЕРЛАНДЫ)","АРУБА","АРУБА / АРУБА ОСТРОВ (НИДЕРЛАНДЫ)","533",0,1]
[109,0,null,null,15,"АТТОЛ ДЖОНСТОН (США)","АТТОЛ ДЖОНСТОН (США)","АТТОЛ ДЖОНСТОН (США)","396",0,1]
[1,0,null,null,16,"АФГАНИСТАН","АУҒАНСТАН","АУҒАНСТАН / АФГАНИСТАН","004",0,1]
[12,0,null,null,17,"Багамы","Багам","Багам / Багамы","044",0,1]
[14,0,null,null,18,"БАНГЛАДЕШ","БАНГЛАДЕШ","БАНГЛАДЕШ","050",0,1]
[16,0,null,null,19,"БАРБАДОС","БАРБАДОС","БАРБАДОС","052",0,1]
[13,0,null,null,20,"БАХРЕЙН","БАХРЕЙН","БАХРЕЙН","048",0,1]
[33,0,null,null,21,"БЕЛАРУСЬ","БЕЛАРУСЬ","БЕЛАРУСЬ","112",1,1]
[25,0,null,null,22,"БЕЛИЗ","БЕЛИЗ","БЕЛИЗ","084",0,1]
[17,0,null,null,23,"БЕЛЬГИЯ","БЕЛЬГИЯ","БЕЛЬГИЯ","056",0,1]
[57,0,null,null,24,"БЕНИН","БЕНИН","БЕНИН","204",0,1]
[18,0,null,null,25,"Бермуды","Бермуд","Бермуд / Бермуды","060",0,1]
[30,0,null,null,26,"БОЛГАРИЯ","БОЛГАРИЯ","БОЛГАРИЯ","100",0,1]
[20,0,null,null,27,"БОЛИВИЯ","БОЛИВИЯ","БОЛИВИЯ","068",0,1]
[300,0,null,null,28,"Бонэйр, Синт-Эстатиус и Саба","Бонэйр, Синт-Эстатиус и Саба","Бонэйр, Синт-Эстатиус и Саба","535",0,1]
[21,0,null,null,29,"БОСНИЯ И ГЕРЦЕГОВИНА","БОСНИЯ ЖӘНЕ ГЕРЦЕГОВИНА","БОСНИЯ ЖӘНЕ ГЕРЦЕГОВИНА / БОСНИЯ И ГЕРЦЕГОВИНА","070",0,1]
[22,0,null,null,30,"БОТСВАНА","БОТСВАНА","БОТСВАНА","072",0,1]
[24,0,null,null,31,"БРАЗИЛИЯ","БРАЗИЛИЯ","БРАЗИЛИЯ","076",0,1]
[26,0,null,null,32,"БРИТАНСКАЯ ТЕРРИТОРИЯ В ИНДИЙСКОМ ОКЕАНЕ","БРИТАНСКАЯ ТЕРРИТОРИЯ В ИНДИЙСКОМ ОКЕАНЕ","БРИТАНСКАЯ ТЕРРИТОРИЯ В ИНДИЙСКОМ ОКЕАНЕ","086",0,1]
[29,0,null,null,33,"Бруней-Даруссалам","Бруней-Даруссалам","Бруней-Даруссалам","096",0,1]
[232,0,null,null,34,"БУРКИНА-ФАСО","БУРКИНА-ФАСО","БУРКИНА-ФАСО","854",0,1]
[32,0,null,null,35,"БУРУНДИ","БУРУНДИ","БУРУНДИ","108",0,1]
[19,0,null,null,36,"БУТАН","БУТАН","БУТАН","064",0,1]
[152,0,null,null,37,"ВАНУАТУ","ВАНУАТУ","ВАНУАТУ","548",0,1]
[97,0,null,null,38,"ВЕНГРИЯ","ВЕНГРИЯ","ВЕНГРИЯ","348",0,1]
[235,0,null,null,39,"ВЕНЕСУЭЛА","ВЕНЕСУЭЛА","ВЕНЕСУЭЛА","862",0,1]
[28,0,null,null,40,"Виргинские острова  (Брит.)","Виргин аралдары (Брит.)","Виргин аралдары (Брит.) / Виргинские острова  (Брит.)","092",0,1]
[231,0,null,null,41,"Виргинские острова, США","Виргин аралдары,  АҚШ","Виргин аралдары,  АҚШ / Виргинские острова, США","850",0,1]
[338,0,null,null,42,"Внешние малые острова США","А?Ш сырт?ы ша?ын аралдары","А?Ш сырт?ы ша?ын аралдары / Внешние малые острова США","581",0,1]
[4,0,null,null,43,"ВОСТОЧНОЕ САМОА (США)","АМЕРИКАН САМОАСЫ","АМЕРИКАН САМОАСЫ / ВОСТОЧНОЕ САМОА (США)","016",0,1]
[196,0,null,null,44,"ВЬЕТНАМ","ВЬЕТНАМ","ВЬЕТНАМ","704",0,1]
[76,0,null,null,45,"ГАБОН","ГАБОН","ГАБОН","266",0,1]
[91,0,null,null,46,"ГАЙАНА","ГАЙАНА","ГАЙАНА","328",0,1]
[92,0,null,null,47,"ГАИТИ","ГАИТИ","ГАИТИ","332",0,1]
[78,0,null,null,48,"ГАМБИЯ","ГАМБИЯ","ГАМБИЯ","270",0,1]
[81,0,null,null,49,"Гана - Республика Гана","Гана - Гана Республикасы","Гана - Гана Республикасы / Гана - Республика Гана","288",0,1]
[87,0,null,null,50,"ГВАДЕЛУПА","ГВАДЕЛУПА","ГВАДЕЛУПА","312",0,1]
[89,0,null,null,51,"ГВАТЕМАЛА","ГВАТЕМАЛА","ГВАТЕМАЛА","320",0,1]
[72,0,null,null,52,"ГВИАНА","ФРАНЦУЗ ГВИАНАСЫ","ФРАНЦУЗ ГВИАНАСЫ / ГВИАНА","254",0,1]
[90,0,null,null,53,"ГВИНЕЯ","ГВИНЕЯ","ГВИНЕЯ","324",0,1]
[174,0,null,null,54,"ГВИНЕЯ-БИСАУ","ГВИНЕЯ-БИСАУ","ГВИНЕЯ-БИСАУ","624",0,1]
[80,0,null,null,55,"ГЕРМАНИЯ","ГЕРМАНИЯ","ГЕРМАНИЯ","276",0,1]
[82,0,null,null,56,"ГИБРАЛТАР (БРИТ.)","ГИБРАЛТАР","ГИБРАЛТАР / ГИБРАЛТАР (БРИТ.)","292",0,1]
[95,0,null,null,57,"ГОНДУРАС","ГОНДУРАС","ГОНДУРАС","340",0,1]
[96,0,null,null,58,"ГОНКОНГ (СЯНГАН)","ГОНКОНГ","ГОНКОНГ / ГОНКОНГ (СЯНГАН)","344",0,1]
[86,0,null,null,59,"ГРЕНАДА","ГРЕНАДА","ГРЕНАДА","308",0,1]
[85,0,null,null,60,"ГРЕНЛАНДИЯ (ДАНИЯ)","ГРЕНЛАНДИЯ","ГРЕНЛАНДИЯ / ГРЕНЛАНДИЯ (ДАНИЯ)","304",0,1]
[84,0,null,null,61,"ГРЕЦИЯ","ГРЕЦИЯ","ГРЕЦИЯ","300",0,1]
[77,0,null,null,62,"ГРУЗИЯ","ГРУЗИЯ","ГРУЗИЯ","268",0,1]
[88,0,null,null,63,"ГУАМ (США)","ГУАМ","ГУАМ / ГУАМ (США)","316",0,1]
[58,0,null,null,64,"ДАНИЯ","ДАНИЯ","ДАНИЯ","208",0,1]
[75,0,null,null,65,"ДЖИБУТИ","ДЖИБУТИ",{"$f":"CONCATENATE(IF(C67<>\"\",CONCATENATE(C67,\" \"),\"\"),IF(p_language_current_id=1,F67,IF(p_language_current_id=2,G67,IF(F67=G67,F67,CONCATENATE(G67,IF(B67=0,\" / \",CHAR(10)),F67)))),IF(D67<>\"\",CONCATENATE(\" \",D67),\"\"))","v":"ДЖИБУТИ"},"262",0,1]
[59,0,null,null,66,"ДОМИНИКА","ДОМИНИКА","ДОМИНИКА","212",0,1]
[60,0,null,null,67,"ДОМИНИКАНСКАЯ РЕСПУБЛИКА","ДОМИНИКАН РЕСПУБЛИКАСЫ","ДОМИНИКАН РЕСПУБЛИКАСЫ / ДОМИНИКАНСКАЯ РЕСПУБЛИКА","214",0,1]
[245,0,null,null,68,"др. страны СНГ","ТМД-ның басқа елдері","ТМД-ның басқа елдері / др. страны СНГ"," ",1,1]
[225,0,null,null,69,"Египет  - Арабская Республика Египет","Египет  -  Египет Араб Республикасы","Египет  -  Египет Араб Республикасы / Египет  - Арабская Республика Египет","818",0,1]
[241,0,null,null,70,"ЗАМБИЯ","ЗАМБИЯ","ЗАМБИЯ","894",0,1]
[202,0,null,null,71,"ЗАПАДНАЯ САХАРА","ЗАПАДНАЯ САХАРА","ЗАПАДНАЯ САХАРА","732",0,1]
[238,0,null,null,72,"ЗАПАДНОЕ САМОА","САМОА","САМОА / ЗАПАДНОЕ САМОА","882",0,1]
[200,0,null,null,73,"ЗИМБАБВЕ","ЗИМБАБВЕ","ЗИМБАБВЕ","716",0,1]
[239,0,null,null,74,"ЙЕМЕН","ЙЕМЕН","ЙЕМЕН","887",0,1]
[104,0,null,null,75,"ИЗРАИЛЬ","ИЗРАИЛЬ","ИЗРАИЛЬ","376",0,1]
[99,0,null,null,76,"ИНДИЯ","ИНДИЯ","ИНДИЯ","356",0,1]
[100,0,null,null,77,"ИНДОНЕЗИЯ","ИНДОНЕЗИЯ","ИНДОНЕЗИЯ","360",0,1]
[111,0,null,null,78,"ИОРДАНИЯ","ИОРДАНИЯ","ИОРДАНИЯ","400",0,1]
[102,0,null,null,79,"ИРАК","ИРАК","ИРАК","368",0,1]
[101,0,null,null,80,"ИРАН","ИРАН, ИСЛАМ РЕСПУБЛИКАСЫ","ИРАН, ИСЛАМ РЕСПУБЛИКАСЫ / ИРАН","364",0,1]
[103,0,null,null,81,"ИРЛАНДИЯ","ИРЛАНДИЯ","ИРЛАНДИЯ","372",0,1]
[98,0,null,null,82,"ИСЛАНДИЯ","ИСЛАНДИЯ","ИСЛАНДИЯ","352",0,1]
[201,0,null,null,83,"ИСПАНИЯ","ИСПАНИЯ","ИСПАНИЯ","724",0,1]
[105,0,null,null,84,"ИТАЛИЯ","ИТАЛИЯ","ИТАЛИЯ","380",0,1]
[37,0,null,null,85,"КАБО-ВЕРДЕ","КАБО-ВЕРДЕ","КАБО-ВЕРДЕ","132",0,1]
[110,0,null,null,86,"КАЗАХСТАН","КАЗАХСТАН","КАЗАХСТАН","398",1,1]
[34,0,null,null,87,"КАМБОДЖА","КАМБОДЖА","КАМБОДЖА","116",0,1]
[35,0,null,null,88,"КАМЕРУН","КАМЕРУН","КАМЕРУН","120",0,1]
[36,0,null,null,89,"КАНАДА","КАНАДА","КАНАДА","124",0,1]
[177,0,null,null,90,"КАТАР","КАТАР","КАТАР","634",0,1]
[112,0,null,null,91,"КЕНИЯ","КЕНИЯ","КЕНИЯ","404",0,1]
[55,0,null,null,92,"КИПР","КИПР","КИПР","196",0,1]
[83,0,null,null,93,"КИРИБАТИ","КИРИБАТИ","КИРИБАТИ","296",0,1]
[43,0,null,null,94,"КИТАЙ","ҚЫТАЙ","ҚЫТАЙ / КИТАЙ","156",0,1]
[46,0,null,null,95,"Кокосовые (килинг) острова","Кокосовые (килинг) острова","Кокосовые (килинг) острова","166",0,1]
[333,0,null,null,96,"Кокосовые острова или острова Килинг","Кокос аралдары немесе Килинг аралдары","Кокос аралдары немесе Килинг аралдары / Кокосовые острова или острова Килинг","166",0,1]
[47,0,null,null,97,"КОЛУМБИЯ","КОЛУМБИЯ","КОЛУМБИЯ","170",0,1]
[48,0,null,null,98,"Коморы","Комор","Комор / Коморы","174",0,1]
[49,0,null,null,99,"КОНГО","КОНГО","КОНГО","178",0,1]
[50,0,null,null,100,"КОНГО,ДЕМОКРАТИЧЕСКАЯ РЕСПУБЛИКА (бывш. ЗАИР)","Конго, Демократиялық республика","Конго, Демократиялық республика / КОНГО,ДЕМОКРАТИЧЕСКАЯ РЕСПУБЛИКА (бывш. ЗАИР)","180",0,1]
[113,0,null,null,101,"Корея, Народно-Демократическая  республика","Корея, Халықтық-Демократиялық республика","Корея, Халықтық-Демократиялық республика / Корея, Народно-Демократическая  республика","408",0,1]
[324,0,null,null,102,"Косово","Косово","Косово","373",0,1]
[52,0,null,null,103,"КОСТА-РИКА","КОСТА-РИКА","КОСТА-РИКА","188",0,1]
[106,0,null,null,104,"КОТ-Д ИВУАР","КОТ-Д ИВУАР","КОТ-Д ИВУАР","384",0,1]
[54,0,null,null,105,"КУБА","КУБА","КУБА","192",0,1]
[115,0,null,null,106,"КУВЕЙТ","КУВЕЙТ","КУВЕЙТ","414",0,1]
[116,0,null,null,107,"КЫРГЫЗСТАН","КЫРГЫЗСТАН","КЫРГЫЗСТАН","417",1,1]
[301,0,null,null,108,"Кюрасао","Кюрасао","Кюрасао","531",0,1]
[117,0,null,null,109,"Лаосская Народно-Демократическая Республика","Лаос Халыќтыќ-Демократиялыќ Республикасы","Лаос Халыќтыќ-Демократиялыќ Республикасы / Лаосская Народно-Демократическая Республика","418",0,1]
[120,0,null,null,110,"ЛАТВИЯ","ЛАТВИЯ","ЛАТВИЯ","428",0,1]
[119,0,null,null,111,"ЛЕСОТО","ЛЕСОТО","ЛЕСОТО","426",0,1]
[121,0,null,null,112,"ЛИБЕРИЯ","ЛИБЕРИЯ","ЛИБЕРИЯ","430",0,1]
[118,0,null,null,113,"ЛИВАН","ЛИВАН","ЛИВАН","422",0,1]
[122,0,null,null,114,"Ливия","Ливия","Ливия","434",0,1]
[124,0,null,null,115,"ЛИТВА","ЛИТВА","ЛИТВА","440",0,1]
[123,0,null,null,116,"ЛИХТЕНШТЕЙН","ЛИХТЕНШТЕЙН","ЛИХТЕНШТЕЙН","438",0,1]
[125,0,null,null,117,"ЛЮКСЕМБУРГ","ЛЮКСЕМБУРГ","ЛЮКСЕМБУРГ","442",0,1]
[310,0,null,null,118,"м/о Азиатский банк инфраструктурных инвестиций","м/о Азиатский банк инфраструктурных инвестиций","м/о Азиатский банк инфраструктурных инвестиций","MO1",0,1]
[311,0,null,null,119,"м/о Антикризисный фонд ЕврАзЭС","м/о Антикризисный фонд ЕврАзЭС","м/о Антикризисный фонд ЕврАзЭС","MO2",0,1]
[306,0,null,null,120,"м/о Евразийский Банк Развития","м/о Евразийский Банк Развития","м/о Евразийский Банк Развития"," ",0,1]
[315,0,null,null,121,"м/о Международная Ассоцияация Развития","м/о Международная Ассоцияация Развития","м/о Международная Ассоцияация Развития","MO3",0,1]
[135,0,null,null,122,"МАВРИКИЙ","МАВРИКИЙ","МАВРИКИЙ","480",0,1]
[134,0,null,null,123,"МАВРИТАНИЯ","МАВРИТАНИЯ","МАВРИТАНИЯ","478",0,1]
[127,0,null,null,124,"МАДАГАСКАР","МАДАГАСКАР","МАДАГАСКАР","450",0,1]
[293,0,null,null,125,"МАЙОТТА","МАЙОТТА","МАЙОТТА","175",0,1]
[126,0,null,null,126,"Макао - Специальный административный регион в Китае","Макао - Қытайдағы арнайы әкімшілік аймақ","Макао - Қытайдағы арнайы әкімшілік аймақ / Макао - Специальный административный регион в Китае","446",0,1]
[224,0,null,null,127,"МАКЕДОНИЯ","МАКЕДОНИЯ, БҰРЫНҒЫ ЮГОСЛАВИЯ РЕСПУБЛИКАСЫ","МАКЕДОНИЯ, БҰРЫНҒЫ ЮГОСЛАВИЯ РЕСПУБЛИКАСЫ / МАКЕДОНИЯ","807",0,1]
[128,0,null,null,128,"МАЛАВИ","МАЛАВИ","МАЛАВИ","454",0,1]
[129,0,null,null,129,"МАЛАЙЗИЯ","МАЛАЙЗИЯ",{"$f":"CONCATENATE(IF(C131<>\"\",CONCATENATE(C131,\" \"),\"\"),IF(p_language_current_id=1,F131,IF(p_language_current_id=2,G131,IF(F131=G131,F131,CONCATENATE(G131,IF(B131=0,\" / \",CHAR(10)),F131)))),IF(D131<>\"\",CONCATENATE(\" \",D131),\"\"))","v":"МАЛАЙЗИЯ"},"458",0,1]
[131,0,null,null,130,"МАЛИ","МАЛИ","МАЛИ","466",0,1]
[161,0,null,null,131,"Малые тихоокеанские отдаленные о-ва Соединенных Штатов","Малые тихоокеанские отдаленные о-ва Соединенных Штатов","Малые тихоокеанские отдаленные о-ва Соединенных Штатов","581",0,1]
[130,0,null,null,132,"МАЛЬДИВЫ","МАЛЬДИВЫ","МАЛЬДИВЫ","462",0,1]
[132,0,null,null,133,"МАЛЬТА","МАЛЬТА","МАЛЬТА","470",0,1]
[142,0,null,null,134,"МАРОККО","МАРОККО","МАРОККО","504",0,1]
[133,0,null,null,135,"МАРТИНИКА","МАРТИНИКА","МАРТИНИКА","474",0,1]
[163,0,null,null,136,"Маршалловы острова","Маршал аралдары","Маршал аралдары / Маршалловы острова","584",0,1]
[242,0,null,null,137,"МЕЖДУНАРОДНЫЕ ОРГАНИЗАЦИИ","ХАЛЫҚАРАЛЫҚ ҰЙЫМДАР","ХАЛЫҚАРАЛЫҚ ҰЙЫМДАР / МЕЖДУНАРОДНЫЕ ОРГАНИЗАЦИИ","999",0,1]
[136,0,null,null,138,"МЕКСИКА","МЕКСИКА","МЕКСИКА","484",0,1]
[162,0,null,null,139,"Микронезия, Федеративные штаты","Микронезия, Федерациялық штаттар","Микронезия, Федерациялық штаттар / Микронезия, Федеративные штаты","583",0,1]
[143,0,null,null,140,"МОЗАМБИК","МОЗАМБИК","МОЗАМБИК","508",0,1]
[138,0,null,null,141,"МОНАКО","МОНАКО","МОНАКО","492",0,1]
[139,0,null,null,142,"МОНГОЛИЯ","МОНГОЛИЯ","МОНГОЛИЯ","496",0,1]
[141,0,null,null,143,"МОНТСЕРРАТ (БРИТ.)","МОНТСЕРРАТ","МОНТСЕРРАТ / МОНТСЕРРАТ (БРИТ.)","500",0,1]
[31,0,null,null,144,"МЬЯНМА","МЬЯНМА","МЬЯНМА","104",0,1]
[145,0,null,null,145,"НАМИБИЯ","НАМИБИЯ","НАМИБИЯ","516",0,1]
[146,0,null,null,146,"НАУРУ","НАУРУ","НАУРУ","520",0,1]
[147,0,null,null,147,"НЕПАЛ","НЕПАЛ","НЕПАЛ","524",0,1]
[155,0,null,null,148,"НИГЕР","НИГЕР","НИГЕР","562",0,1]
[156,0,null,null,149,"НИГЕРИЯ","НИГЕРИЯ","НИГЕРИЯ","566",0,1]
[148,0,null,null,150,"НИДЕРЛАНДЫ","НИДЕРЛАНД","НИДЕРЛАНД / НИДЕРЛАНДЫ","528",0,1]
[154,0,null,null,151,"НИКАРАГУА","НИКАРАГУА","НИКАРАГУА","558",0,1]
[157,0,null,null,152,"НИУЭ (Н.ЗЕЛАНДИЯ)","НИУЭ","НИУЭ / НИУЭ (Н.ЗЕЛАНДИЯ)","570",0,1]
[153,0,null,null,153,"НОВАЯ ЗЕЛАНДИЯ","ЖАҢА ЗЕЛАНДИЯ","ЖАҢА ЗЕЛАНДИЯ / НОВАЯ ЗЕЛАНДИЯ","554",0,1]
[151,0,null,null,154,"НОВАЯ КАЛЕДОНИЯ (ФРАНЦИЯ)","ЖАҢА КАЛЕДОНИЯ","ЖАҢА КАЛЕДОНИЯ / НОВАЯ КАЛЕДОНИЯ (ФРАНЦИЯ)","540",0,1]
[159,0,null,null,155,"НОРВЕГИЯ","НОРВЕГИЯ","НОРВЕГИЯ","578",0,1]
[227,0,null,null,156,"НОРМАНДСКИЕ ОСТРОВА","НОРМАНДСКИЕ ОСТРОВА","НОРМАНДСКИЕ ОСТРОВА","830",0,1]
[216,0,null,null,157,"ОБЪЕДИНЕННЫЕ АРАБСКИЕ ЭМИРАТЫ","БІРІККЕН АРАБ ӘМІРЛІКТЕРІ","БІРІККЕН АРАБ ӘМІРЛІКТЕРІ / ОБЪЕДИНЕННЫЕ АРАБСКИЕ ЭМИРАТЫ","784",0,1]
[289,0,null,null,158,"О-в Гернси","Гернси аралы","Гернси аралы / О-в Гернси","831",0,1]
[244,0,null,null,159,"О-в Джерси","Джерси аралы","Джерси аралы / О-в Джерси","832",0,1]
[144,0,null,null,160,"ОМАН","ОМАН","ОМАН","512",0,1]
[23,0,null,null,161,"Остров Буве","Буве аралы","Буве аралы / Остров Буве","074",0,1]
[228,0,null,null,162,"Остров Мэн","Мэн аралы","Мэн аралы / Остров Мэн","833",0,1]
[158,0,null,null,163,"Остров Норфолк","Норфолк аралы","Норфолк аралы / Остров Норфолк","574",0,1]
[45,0,null,null,164,"Остров Рождества","Остров Рождества","Остров Рождества","162",0,1]
[93,0,null,null,165,"Остров Херд и острова Макдональд","Остров Херд и острова Макдональд","Остров Херд и острова Макдональд","334",0,1]
[38,0,null,null,166,"Острова Кайман","Кайман аралдары","Кайман аралдары / Острова Кайман","136",0,1]
[51,0,null,null,167,"Острова Кука","Кук аралдары","Кук аралдары / Острова Кука","184",0,1]
[137,0,null,null,168,"ОСТРОВА МИДУЭЙ","ОСТРОВА МИДУЭЙ","ОСТРОВА МИДУЭЙ","",0,1]
[283,0,null,null,169,"Острова Святой Елены, Вознесения и Тристан-да-Кунья","?улие Елена, Вознесения ж?не Тристан да Кунья аралдары","?улие Елена, Вознесения ж?не Тристан да Кунья аралдары / Острова Святой Елены, Вознесения и Тристан-да-Кунья","654",0,1]
[220,0,null,null,170,"Острова Теркс и Кайкос","Теркс пен Кайкос аралдары","Теркс пен Кайкос аралдары / Острова Теркс и Кайкос","796",0,1]
[165,0,null,null,171,"ПАКИСТАН","ПӘКСТАН","ПӘКСТАН / ПАКИСТАН","586",0,1]
[164,0,null,null,172,"ПАЛАУ (США)","ПАЛАУ","ПАЛАУ / ПАЛАУ (США)","585",0,1]
[294,0,null,null,173,"ПАЛЕСТИНСКАЯ ТЕРРИТОРИЯ, ОККУПИРОВАННАЯ","ПАЛЕСТИНА АУМАҒЫ, БАСЫП АЛЫНҒАН","ПАЛЕСТИНА АУМАҒЫ, БАСЫП АЛЫНҒАН / ПАЛЕСТИНСКАЯ ТЕРРИТОРИЯ, ОККУПИРОВАННАЯ","275",0,1]
[166,0,null,null,174,"ПАНАМА","ПАНАМА","ПАНАМА","591",0,1]
[167,0,null,null,175,"ПАПУА-НОВАЯ ГВИНЕЯ","ПАПУА-ЖАҢА ГВИНЕЯ","ПАПУА-ЖАҢА ГВИНЕЯ / ПАПУА-НОВАЯ ГВИНЕЯ","598",0,1]
[168,0,null,null,176,"ПАРАГВАЙ","ПАРАГВАЙ","ПАРАГВАЙ","600",0,1]
[169,0,null,null,177,"ПЕРУ","ПЕРУ","ПЕРУ","604",0,1]
[171,0,null,null,178,"ПИТКЭРН (БРИТ.)","ПИТКЭРН","ПИТКЭРН / ПИТКЭРН (БРИТ.)","612",0,1]
[172,0,null,null,179,"ПОЛЬША","ПОЛЬША","ПОЛЬША","616",0,1]
[173,0,null,null,180,"ПОРТУГАЛИЯ","ПОРТУГАЛИЯ","ПОРТУГАЛИЯ","620",0,1]
[299,0,null,null,181,"Прочие","Басқалар","Басқалар / Прочие"," ",0,1]
[176,0,null,null,182,"ПУЭРТО-РИКО","ПУЭРТО-РИКО","ПУЭРТО-РИКО","630",0,1]
[326,0,null,null,183,"Республика Абхазия","Республика Абхазия","Республика Абхазия","895",0,1]
[114,0,null,null,184,"РЕСПУБЛИКА КОРЕЯ (ЮЖНАЯ)","КОРЕЯ, РЕСПУБЛИКА","КОРЕЯ, РЕСПУБЛИКА / РЕСПУБЛИКА КОРЕЯ (ЮЖНАЯ)","410",0,1]
[140,0,null,null,185,"РЕСПУБЛИКА МОЛДОВА","МОЛДОВА РЕСПУБЛИКАСЫ","МОЛДОВА РЕСПУБЛИКАСЫ / РЕСПУБЛИКА МОЛДОВА","498",1,1]
[178,0,null,null,186,"РЕЮНЬОН","РЕЮНЬОН","РЕЮНЬОН","638",0,1]
[180,0,null,null,187,"РОССИЙСКАЯ ФЕДЕРАЦИЯ","РЕСЕЙ ФЕДЕРАЦИЯСЫ","РЕСЕЙ ФЕДЕРАЦИЯСЫ / РОССИЙСКАЯ ФЕДЕРАЦИЯ","643",1,1]
[181,0,null,null,188,"РУАНДА","РУАНДА","РУАНДА","646",0,1]
[179,0,null,null,189,"РУМЫНИЯ","РУМЫНИЯ","РУМЫНИЯ","642",0,1]
[62,0,null,null,190,"САЛЬВАДОР","ЭЛЬ-САЛЬВАДОР","ЭЛЬ-САЛЬВАДОР / САЛЬВАДОР","222",0,1]
[188,0,null,null,191,"САН-МАРИНО","САН-МАРИНО","САН-МАРИНО","674",0,1]
[189,0,null,null,192,"САН-ТОМЕ И ПРИНСИПИ","САН-ТОМЕ ЖӘНЕ ПРИНСИПИ","САН-ТОМЕ ЖӘНЕ ПРИНСИПИ / САН-ТОМЕ И ПРИНСИПИ","678",0,1]
[190,0,null,null,193,"САУДОВСКАЯ АРАВИЯ","САУД АРАВИЯСЫ",{"$f":"CONCATENATE(IF(C195<>\"\",CONCATENATE(C195,\" \"),\"\"),IF(p_language_current_id=1,F195,IF(p_language_current_id=2,G195,IF(F195=G195,F195,CONCATENATE(G195,IF(B195=0,\" / \",CHAR(10)),F195)))),IF(D195<>\"\",CONCATENATE(\" \",D195),\"\"))","v":"САУД АРАВИЯСЫ / САУДОВСКАЯ АРАВИЯ"},"682",0,1]
[94,0,null,null,194,"Святой Престол (город-государство Ватикан)","?асиетті та? (Ватикан ?ала-мемлекеті)","?асиетті та? (Ватикан ?ала-мемлекеті) / Святой Престол (город-государство Ватикан)","336",0,1]
[160,0,null,null,195,"СЕВЕРНЫЕ МАРИАНСКИЕ ОСТРОВА (США)","СОЛТҮСТІК МАРИАНА АРАЛДАРЫ","СОЛТҮСТІК МАРИАНА АРАЛДАРЫ / СЕВЕРНЫЕ МАРИАНСКИЕ ОСТРОВА (США)","580",0,1]
[192,0,null,null,196,"Сейшелы","Сейшель","Сейшель / Сейшелы","690",0,1]
[284,0,null,null,197,"СЕКТОР ГАЗА (бывш. ПАЛЕСТИНСКИЕ ТЕРРИТОРИИ)","СЕКТОР ГАЗА (бывш. ПАЛЕСТИНСКИЕ ТЕРРИТОРИИ)","СЕКТОР ГАЗА (бывш. ПАЛЕСТИНСКИЕ ТЕРРИТОРИИ)","274",0,1]
[330,0,null,null,198,"Сен-Бартелеми","Сен-Бартелеми","Сен-Бартелеми","652",0,1]
[191,0,null,null,199,"СЕНЕГАЛ","СЕНЕГАЛ","СЕНЕГАЛ","686",0,1]
[329,0,null,null,200,"Сен-Мартен (французская часть)","Сен-Мартен (франция бөлегі)","Сен-Мартен (франция бөлегі) / Сен-Мартен (французская часть)","663",0,1]
[187,0,null,null,201,"СЕНТ-ВИНСЕНТ И ГРЕНАДИНЫ","СЕНТ-ВИНСЕНТ ЖӘНЕ ГРЕНАДИНДЕР","СЕНТ-ВИНСЕНТ ЖӘНЕ ГРЕНАДИНДЕР / СЕНТ-ВИНСЕНТ И ГРЕНАДИНЫ","670",0,1]
[183,0,null,null,202,"СЕНТ-КИТС И НЕВИС","СЕНТ-КИТС ЖӘНЕ НЕВИС","СЕНТ-КИТС ЖӘНЕ НЕВИС / СЕНТ-КИТС И НЕВИС","659",0,1]
[185,0,null,null,203,"СЕНТ-ЛЮСИЯ","СЕНТ-ЛЮСИЯ","СЕНТ-ЛЮСИЯ","662",0,1]
[186,0,null,null,204,"Сент-Пьер и  Микелон","Сент-Пьер және  Микелон","Сент-Пьер және  Микелон / Сент-Пьер и  Микелон","666",0,1]
[296,0,null,null,205,"Сербия","Сербия","Сербия","688",0,1]
[240,0,null,null,206,"Сербия и Черногория","Сербия и Черногория","Сербия и Черногория","891",0,1]
[194,0,null,null,207,"Сингапур","Сингапур","Сингапур","702",0,1]
[302,0,null,null,208,"Синт-Мартен (голландская часть)","Синт-Мартен (голландия б?лігі)","Синт-Мартен (голландия б?лігі) / Синт-Мартен (голландская часть)","534",0,1]
[209,0,null,null,209,"СИРИЯ","СИРИЯ АРАБ РЕСПУБЛИКАСЫ","СИРИЯ АРАБ РЕСПУБЛИКАСЫ / СИРИЯ","760",0,1]
[195,0,null,null,210,"СЛОВАКИЯ","СЛОВАКИЯ","СЛОВАКИЯ","703",0,1]
[197,0,null,null,211,"СЛОВЕНИЯ","СЛОВЕНИЯ","СЛОВЕНИЯ","705",0,1]
[226,0,null,null,212,"Соединенное Королевство","Құрама Королдігі","Құрама Королдігі / Соединенное Королевство","826",0,1]
[230,0,null,null,213,"Соединенные Штаты","Құрама Штаттар","Құрама Штаттар / Соединенные Штаты","840",0,1]
[27,0,null,null,214,"СОЛОМОНОВЫ ОСТРОВА","СОЛОМОН АРАЛДАРЫ","СОЛОМОН АРАЛДАРЫ / СОЛОМОНОВЫ ОСТРОВА","090",0,1]
[198,0,null,null,215,"СОМАЛИ","СОМАЛИ","СОМАЛИ","706",0,1]
[203,0,null,null,216,"Судан","Судан","Судан","729",0,1]
[204,0,null,null,217,"СУРИНАМ","СУРИНАМ","СУРИНАМ","740",0,1]
[193,0,null,null,218,"СЬЕРРА-ЛЕОНЕ","СЬЕРРА-ЛЕОНЕ","СЬЕРРА-ЛЕОНЕ","694",0,1]
[210,0,null,null,219,"ТАДЖИКИСТАН","ТӘЖІКСТАН","ТӘЖІКСТАН / ТАДЖИКИСТАН","762",1,1]
[44,0,null,null,220,"Тайвань, провинция Китая","Тайвань","Тайвань / Тайвань, провинция Китая","158",0,1]
[211,0,null,null,221,"ТАИЛАНД","ТАИЛАНД","ТАИЛАНД","764",0,1]
[229,0,null,null,222,"Танзания, объединенная республика","Танзания, құрама республикасы","Танзания, құрама республикасы / Танзания, объединенная республика","834",0,1]
[331,0,null,null,223,"Тимор-Лешти","Тимор-Лешти","Тимор-Лешти","626",0,1]
[212,0,null,null,224,"ТОГО","ТОГО","ТОГО","768",0,1]
[213,0,null,null,225,"ТОКЕЛАУ (ЮНИОН) (НОВАЯ ЗЕЛАНДИЯ)","ТОКЕЛАУ","ТОКЕЛАУ / ТОКЕЛАУ (ЮНИОН) (НОВАЯ ЗЕЛАНДИЯ)","772",0,1]
[214,0,null,null,226,"ТОНГА","ТОНГА","ТОНГА","776",0,1]
[215,0,null,null,227,"ТРИНИДАД И ТОБАГО","ТРИНИДАД ЖӘНЕ ТОБАГО","ТРИНИДАД ЖӘНЕ ТОБАГО / ТРИНИДАД И ТОБАГО","780",0,1]
[221,0,null,null,228,"ТУВАЛУ","ТУВАЛУ","ТУВАЛУ","798",0,1]
[217,0,null,null,229,"ТУНИС","ТУНИС","ТУНИС","788",0,1]
[219,0,null,null,230,"ТУРКМЕНИСТАН","ТҮРКМЕНСТАН","ТҮРКМЕНСТАН / ТУРКМЕНИСТАН","795",1,1]
[218,0,null,null,231,"ТУРЦИЯ","ТҮРКИЯ","ТҮРКИЯ / ТУРЦИЯ","792",0,1]
[222,0,null,null,232,"УГАНДА","УГАНДА","УГАНДА","800",0,1]
[234,0,null,null,233,"УЗБЕКИСТАН","ӨЗБЕКСТАН","ӨЗБЕКСТАН / УЗБЕКИСТАН","860",1,1]
[223,0,null,null,234,"УКРАИНА","УКРАИНА","УКРАИНА","804",1,1]
[237,0,null,null,235,"Уоллис и Футуна","Уоллис пен Футуна","Уоллис пен Футуна / Уоллис и Футуна","876",0,1]
[233,0,null,null,236,"УРУГВАЙ","УРУГВАЙ","УРУГВАЙ","858",0,1]
[236,0,null,null,237,"УЭЙК","УЭЙК","УЭЙК","872",0,1]
[67,0,null,null,238,"ФАРЕРСКИЕ ОСТРОВА (ДАНИЯ)","ФАРЕР АРАЛДАРЫ","ФАРЕР АРАЛДАРЫ / ФАРЕРСКИЕ ОСТРОВА (ДАНИЯ)","234",0,1]
[69,0,null,null,239,"ФИДЖИ","ФИДЖИ","ФИДЖИ","242",0,1]
[170,0,null,null,240,"ФИЛИППИНЫ","ФИЛИППИН","ФИЛИППИН / ФИЛИППИНЫ","608",0,1]
[70,0,null,null,241,"ФИНЛЯНДИЯ","ФИНЛЯНДИЯ","ФИНЛЯНДИЯ","246",0,1]
[68,0,null,null,242,"ФОЛКЛЕНДСКИЕ (Мальвинские) ОСТРОВА (Брит.)","Фолкленд (Мальвин) аралдары","Фолкленд (Мальвин) аралдары / ФОЛКЛЕНДСКИЕ (Мальвинские) ОСТРОВА (Брит.)","238",0,1]
[71,0,null,null,243,"ФРАНЦИЯ","ФРАНЦИЯ","ФРАНЦИЯ","250",0,1]
[73,0,null,null,244,"ФРАНЦУЗСКАЯ ПОЛИНЕЗИЯ","ФРАНЦУЗ ПОЛИНЕЗИЯСЫ","ФРАНЦУЗ ПОЛИНЕЗИЯСЫ / ФРАНЦУЗСКАЯ ПОЛИНЕЗИЯ","258",0,1]
[339,0,null,null,245,"Французские южные территории","Францз оңтүстік аумақтары","Францз оңтүстік аумақтары / Французские южные территории","260",0,1]
[74,0,null,null,246,"ФРАНЦУЗСКИЕ ЮЖНЫЕ ТЕРРИТОРИИ","ФРАНЦУЗСКИЕ ЮЖНЫЕ ТЕРРИТОРИИ","ФРАНЦУЗСКИЕ ЮЖНЫЕ ТЕРРИТОРИИ","260",0,1]
[53,0,null,null,247,"ХОРВАТИЯ","ХОРВАТИЯ","ХОРВАТИЯ","191",0,1]
[39,0,null,null,248,"Центрально-африканская республика","Орталық Африка республикасы","Орталық Африка республикасы / Центрально-африканская республика","140",0,1]
[41,0,null,null,249,"ЧАД","ЧАД","ЧАД","148",0,1]
[297,0,null,null,250,"Черногория","Черногория","Черногория","499",0,1]
[56,0,null,null,251,"ЧЕХИЯ","ЧЕХ РЕСПУБЛИКАСЫ","ЧЕХ РЕСПУБЛИКАСЫ / ЧЕХИЯ","203",0,1]
[42,0,null,null,252,"ЧИЛИ","ЧИЛИ","ЧИЛИ","152",0,1]
[208,0,null,null,253,"ШВЕЙЦАРИЯ","ШВЕЙЦАРИЯ","ШВЕЙЦАРИЯ","756",0,1]
[207,0,null,null,254,"ШВЕЦИЯ","ШВЕЦИЯ","ШВЕЦИЯ","752",0,1]
[205,0,null,null,255,"Шпицберген и Ян Майен","Шпицберген мен Ян Майен","Шпицберген мен Ян Майен / Шпицберген и Ян Майен","744",0,1]
[40,0,null,null,256,"ШРИ-ЛАНКА","ШРИ-ЛАНКА","ШРИ-ЛАНКА","144",0,1]
[61,0,null,null,257,"ЭКВАДОР","ЭКВАДОР",{"$f":"CONCATENATE(IF(C259<>\"\",CONCATENATE(C259,\" \"),\"\"),IF(p_language_current_id=1,F259,IF(p_language_current_id=2,G259,IF(F259=G259,F259,CONCATENATE(G259,IF(B259=0,\" / \",CHAR(10)),F259)))),IF(D259<>\"\",CONCATENATE(\" \",D259),\"\"))","v":"ЭКВАДОР"},"218",0,1]
[63,0,null,null,258,"Экваториальная Гвинея","Экваториалдық Гвинея","Экваториалдық Гвинея / Экваториальная Гвинея","226",0,1]
[292,0,null,null,259,"ЭЛАНДСКИЕ ОСТРОВА","АЛАНД АРАЛДАРЫ","АЛАНД АРАЛДАРЫ / ЭЛАНДСКИЕ ОСТРОВА","248",0,1]
[65,0,null,null,260,"ЭРИТРЕЯ","ЭРИТРЕЯ","ЭРИТРЕЯ","232",0,1]
[66,0,null,null,261,"ЭСТОНИЯ","ЭСТОНИЯ","ЭСТОНИЯ","233",0,1]
[64,0,null,null,262,"ЭФИОПИЯ","ЭФИОПИЯ","ЭФИОПИЯ","231",0,1]
[199,0,null,null,263,"Южная Африка","Оңтүстік Африка","Оңтүстік Африка / Южная Африка","710",0,1]
[335,0,null,null,264,"Южная Джорджия и Южные Сандвичевы острова","Оңтүстік Джорджия және Оңтүстік Сандвич Аралдары","Оңтүстік Джорджия және Оңтүстік Сандвич Аралдары / Южная Джорджия и Южные Сандвичевы острова","239",0,1]
[295,0,null,null,265,"ЮЖНАЯ ДЖОРДЖИЯ И ЮЖНЫЕ САНДВИЧЕВЫ ОСТРОВА","ЮЖНАЯ ДЖОРДЖИЯ И ЮЖНЫЕ САНДВИЧЕВЫ ОСТРОВА","ЮЖНАЯ ДЖОРДЖИЯ И ЮЖНЫЕ САНДВИЧЕВЫ ОСТРОВА","239",0,1]
[327,0,null,null,266,"Южный Судан","Оңтүстік Судан","Оңтүстік Судан / Южный Судан","728",0,1]
[107,0,null,null,267,"ЯМАЙКА","ЯМАЙКА","ЯМАЙКА","388",0,1]
[108,0,null,null,268,"ЯПОНИЯ","ЖАПОНИЯ","ЖАПОНИЯ / ЯПОНИЯ","392",0,1]
[261,0,null,null,269,"м/о ESOMAR","м/о ESOMAR","м/о ESOMAR","",0,0]
[254,0,null,null,270,"м/о MCI","м/о MCI","м/о MCI","",0,0]
[258,0,null,null,271,"м/о UNDCP","м/о UNDCP","м/о UNDCP","",0,0]
[259,0,null,null,272,"м/о UNFRA","м/о UNFRA","м/о UNFRA","",0,0]
[249,0,null,null,273,"м/о АБР","м/о АБР","м/о АБР","",0,0]
[282,0,null,null,274,"м/о ВМО","м/о ВМО","м/о ВМО","",0,0]
[287,0,null,null,275,"м/о ВПС","м/о ВПС","м/о ВПС","",0,0]
[277,0,null,null,276,"м/о Всемирная организация здравоохранения ВОЗ","м/о Всемирная организация здравоохранения ВОЗ","м/о Всемирная организация здравоохранения ВОЗ","",0,0]
[273,0,null,null,277,"м/о Всемирный Банк","м/о Всемирный Банк","м/о Всемирный Банк","",0,0]
[266,0,null,null,278,"м/о ВТО","м/о ВТО","м/о ВТО","",0,0]
[250,0,null,null,279,"м/о ЕБРР","м/о ЕБРР","м/о ЕБРР","",0,0]
[251,0,null,null,280,"м/о ЕС","м/о ЕС","м/о ЕС","",0,0]
[316,0,null,null,281,"м/о ЕЭК (Евразийская экономическая комиссия)","м/о ЕЭК (Еуразиялық экономикалық комиссия)","м/о ЕЭК (Еуразиялық экономикалық комиссия) / м/о ЕЭК (Евразийская экономическая комиссия)","",0,0]
[317,0,null,null,282,"м/о ИК СНГ ( Исполнительный комитет Содружества Независимых Государств)","м/о ТМД АК (Тәуелсіз мемлекеттер достығының  атқару комитеті)","м/о ТМД АК (Тәуелсіз мемлекеттер достығының  атқару комитеті) / м/о ИК СНГ ( Исполнительный комитет Содружества Независимых Государств)","",0,0]
[265,0,null,null,283,"м/о ИКАО","м/о ИКАО","м/о ИКАО","",0,0]
[268,0,null,null,284,"м/о Интерпол","м/о Интерпол","м/о Интерпол","",0,0]
[247,0,null,null,285,"м/о Исламский банк развития","м/о Исламский банк развития","м/о Исламский банк развития","",0,0]
[286,0,null,null,286,"м/о ИСО","м/о ИСО","м/о ИСО","",0,0]
[318,0,null,null,287,"м/о Комитет по делам воинов-интернационалистов","м/о Жауынгер – интернационалдардың істері жөніндегі комитет","м/о Жауынгер – интернационалдардың істері жөніндегі комитет / м/о Комитет по делам воинов-интернационалистов","",0,0]
[271,0,null,null,288,"м/о Корпус Мира США","м/о Корпус Мира США","м/о Корпус Мира США","",0,0]
[263,0,null,null,289,"м/о МАГАТЭ","м/о МАГАТЭ","м/о МАГАТЭ","",0,0]
[285,0,null,null,290,"м/о МАГИ","м/о МАГИ","м/о МАГИ","",0,0]
[319,0,null,null,291,"м/о МАК (Межгосударственный авиационный комитет)","м/о МАК (Мемлекетаралық авиациялық комитет)","м/о МАК (Мемлекетаралық авиациялық комитет) / м/о МАК (Межгосударственный авиационный комитет)","",0,0]
[252,0,null,null,292,"м/о МБРР","м/о МБРР","м/о МБРР","",0,0]
[290,0,null,null,293,"м/о Международный Олимпийский Комитет (МОК)","м/о Международный Олимпийский Комитет (МОК)","м/о Международный Олимпийский Комитет (МОК)","",0,0]
[279,0,null,null,294,"м/о Межпарламентский союз","м/о Межпарламентский союз","м/о Межпарламентский союз","",0,0]
[257,0,null,null,295,"м/о МОТ","м/о МОТ","м/о МОТ","",0,0]
[320,0,null,null,296,"м/о МПА СНГ (Межпарламентская Ассамблея СНГ)","м/о ТМД ПАА (ТМД Парламентаралық Ассамблеясы)","м/о ТМД ПАА (ТМД Парламентаралық Ассамблеясы) / м/о МПА СНГ (Межпарламентская Ассамблея СНГ)","",0,0]
[321,0,null,null,297,"м/о МФТС (Международная федерация танцевального спорта)","м/о БСХФ (Би спортының халықаралық федерациясы)","м/о БСХФ (Би спортының халықаралық федерациясы) / м/о МФТС (Международная федерация танцевального спорта)","",0,0]
[267,0,null,null,298,"м/о ОБСЕ","м/о ОБСЕ","м/о ОБСЕ","",0,0]
[270,0,null,null,299,"м/о Общество Красного Креста","м/о Общество Красного Креста","м/о Общество Красного Креста","",0,0]
[253,0,null,null,300,"м/о ООН","м/о ООН","м/о ООН","",0,0]
[264,0,null,null,301,"м/о ОЭС","м/о ОЭС","м/о ОЭС","",0,0]
[280,0,null,null,302,"м/о Парламентский союз стран-членов ОИК","м/о Парламентский союз стран-членов ОИК","м/о Парламентский союз стран-членов ОИК","",0,0]
[281,0,null,null,303,"м/о ПРООН","м/о ПРООН","м/о ПРООН","",0,0]
[275,0,null,null,304,"м/о Фонд Сорос","м/о Фонд Сорос","м/о Фонд Сорос","",0,0]
[255,0,null,null,305,"м/о ЮНЕСКО","м/о ЮНЕСКО","м/о ЮНЕСКО","",0,0]
[256,0,null,null,306,"м/о ЮНИСЕФ","м/о ЮНИСЕФ","м/о ЮНИСЕФ","",0,0]

{"sheet":"Классификация услуг","index":30,"n_rows":2,"n_cols":6,"rows_kept":2,"cut":false,"hidden":true,"merged":[[0,2,0,5]]}
[{"$f":"VLOOKUP(\"p_servicetype_name\",p_guide_show,2,FALSE)","v":0},"2\n1","Қызметтің сыныптамасы\nКлассификация услуг"]
[null,null,"№","Виды услуг","Қызметтің түрі","Қызмет түрінің коды\nКод вида услуг"]

{"sheet":"Вид исполнения обязательства","index":31,"n_rows":3,"n_cols":8,"rows_kept":3,"cut":false,"hidden":true,"merged":[[0,4,0,7]]}
[{"$f":"VLOOKUP(\"p_receiptsrepaytype_name\",p_guide_show,2,FALSE)","v":0},null,null,"2\n1","Міндеттемелерді орындау түрі\nВид исполнения обязательства"]
[null,"Перенос текста","Код слева","Код справа","№","Наименование на русском языке","Қазақ тіліндегі атауы","Атауы\nНаименование"]
[104,1,null,null,{"$f":"IFERROR(VALUE(E2),0)+1","v":1},"возникновение требования","талаптардың туындауы",{"$f":"CONCATENATE(IF(C3<>\"\",CONCATENATE(C3,\" \"),\"\"),IF(p_language_current_id=1,F3,IF(p_language_current_id=2,G3,IF(F3=G3,F3,CONCATENATE(G3,IF(B3=0,\" / \",CHAR(10)),F3)))),IF(D3<>\"\",CONCATENATE(\" \",D3),\"\"))","v":"талаптардың туындауы\nвозникновение требования"}]

{"sheet":"Инструкция","index":32,"n_rows":59,"n_cols":6,"rows_kept":59,"cut":false,"hidden":false,"merged":[[58,0,58,15],[46,0,46,15],[43,0,43,15],[45,0,45,15],[41,0,41,15],[48,0,48,15],[50,0,50,15],[53,0,53,15],[55,0,55,15],[36,0,36,15],[40,0,40,15],[0,0,0,14],[2,0,2,15],[4,0,4,15],[6,0,6,15],[8,0,8,15],[14,0,14,15]]}
["Инструкция по работе с шаблоном"]
[]
["Внимание! Для корректной работы шаблона не следует отключать макросы."]
[]
["I. Предварительные настройки"]
[]
["Если при открытии шаблона выдалось предупреждение системы безопасности: «Отключить макросы», «Не отключать макросы» следует выбрать опцию \"Не отключать макросы\""]
[]
["Если при открытии файла, содержащего макросы, появляется желтая панель сообщений со значком щита Предупреждение системы безопасности, следует нажать на кнопку \"Включить содержимое\" (рис.1)"]
[]
[]
[]
[null,null,null,null,null,"Рис.1"]
[]
["1. Для начала работы с шаблоном найдите вкладку \"Надстройки\" в пункте меню (рис.2). Проверьте открываются ли ниспадающие списки на листе \"Основные данные\" (рис.3)"]
[]
[]
[]
[]
[]
[]
[]
[]
[]
[]
[null,null,null,null,null,"Рис.2"]
[]
[]
[]
[]
[]
[]
[]
[]
[null,null,null,null,null,"Рис.3"]
[]
["В случае отсутствия вкладки \"Надстройки\" (или есть вкладка, но отсутствует пункт меню Вклады в ней) и/или ниспадающих списков, следует включить макросы.\nПункт меню Файл -> Параметры -> категория Центр управления безопасностью -> кнопочка Параметры центра управления безопасностью -> категория Параметры макросов -> выбрать опцию Включить все макросы -> нажать кнопку Ок. Сохранить, закрыть и открыть шаблон заново. Вкладка «Надстройки» должна появиться"]
[]
[]
[]
["II. Заполнение отчета (шаблона)"]
["1. Начните заполнение с листа \"Основные данные\":\n     -укажите желаемый язык (Русский, Қазақ тілі) до начала заполнения отчета. Если данные отчета были заполнены, при смене языка они обнуляться\n     -заполните требуемые поля"]
["2. После заполнения данных на листе \"Основные данные\" перейдите к заполнению листа \"Отчет\""]
["3. Заполните графы \"Всего\", \"в том числе в виде денег\""]
["4. Информация заполняется в тысячах единиц валюты валютного договора"]
["III. Отправка отчета в Национальный Банк"]
["Сохраните отчет на компьютере и отправьте его по Порталу в Национальный Банк Республики Казахстан (https://nbportal.nationalbank.kz/)"]
[]
["Часто задаваемые вопросы"]
["Вопрос: \"У нас в шаблоне запрашивается пароль, чтобы снять защиту. Как ее снять? Что делать?\""]
["Ответ: Никаких паролей вводить не нужно. Скорее всего заполнение шаблона некорректно. Нельзя добавлять вручную графы, считать формулы рядом с графами, т.к. шаблон защищен, если предусмотрен автоматический выбор из ниспадающего списка нельзя вручную вводить значения в это поле."]
[]
["Вопрос: \"Я заполнял(-а) шаблон, но все исчезло, не сохранилось, шаблон найти не могу\""]
["Ответ: Прежде чем начать заполнение отчета, сохраните его у себя на компьютере (Файл-Сохранить как (присвойте файлу имя)."]
[]
["Вопрос: \"Требуется ли необходимость дублирования отчета на бумажном носителе, если отчет представлен посредством Портала?\""]
["Ответ: Нет, не требуется"]
[]
["Для распечатки настоящей инструкции выполните следующие действия (нажмите пункт меню Файл-Печать) или нажмите кнопку                  "]

{"sheet":"Настройки","index":33,"n_rows":465,"n_cols":55,"rows_kept":465,"cut":false,"hidden":true,"merged":[[261,0,261,23],[274,0,274,11],[226,0,226,6],[422,0,422,11],[463,0,463,5],[435,0,435,2],[438,0,438,2],[446,0,446,2],[460,0,460,2],[11,0,11,6],[257,0,257,6],[0,0,0,2],[6,0,6,6],[16,0,16,6],[241,0,241,7]]}
["Справочник языков"]
["ID","Код","Наименование","Разделы с ключами","ID Текущего языка",null,1,2,3,4]
[1,null,"Русский язык",1,{"$f":"IF(VLOOKUP(A3,p_language,3)=p1_language,A3,IF(VLOOKUP(A4,p_language,3)=p1_language,A4,A5))","v":0},null,2018,2019,2020,2021,2022,2023,2024,2025,2026,2027,2028,2029,2030,2031,2032,2033,2034,2035,2036,2037,2038,2039,2040,2041,2042,2043,2044,2045,2046,2047,2048,2049]
[2,null,"Қазақ тілі","Для формулы проверки РС","ID Текущего отчета",null,"√"]
[0,null,null,{"$f":"VLOOKUP(p_report_current_id,p_report,COLUMN(p_report_rc_mask))","v":0},6,null,{"$f":"IF(p_report_current_id=11,TRUE,E9)","v":"Иә / Да (1)"},"invobj",{"$f":"IF(ISNA(VLOOKUP(H5,p_caption,p_caption_name,FALSE)),\"Еще не заведена\",VLOOKUP(H5,p_caption,COLUMN(p_caption_name),FALSE))","v":"Объект инвестирования"}]
[]
["Справочник логический"]
["ID","Код слева","Наименование на русском языке","Наименование на казахском языке","Наименование","Перенос текста или вставка символов \" / \"","Код справа"]
[1,null,"Да","Иә",{"$f":"CONCATENATE(IF(B9<>\"\",CONCATENATE(B9,\" \"),\"\"),IF(p_language_current_id=1,C9,IF(p_language_current_id=2,D9,IF(C9=D9,C9,CONCATENATE(D9,IF(F9=0,\" / \",CHAR(10)),C9)))),IF(G9<>\"\",CONCATENATE(\" \",G9),\"\"))","v":"Иә / Да (1)"},0,"(1)"]
[0,null,"Нет","Жоқ",{"$f":"CONCATENATE(IF(B10<>\"\",CONCATENATE(B10,\" \"),\"\"),IF(p_language_current_id=1,C10,IF(p_language_current_id=2,D10,IF(C10=D10,C10,CONCATENATE(D10,IF(F10=0,\" / \",CHAR(10)),C10)))),IF(G10<>\"\",CONCATENATE(\" \",G10),\"\"))","v":"Жоқ / Нет (0)"},0,"(0)"]
[]
["Типы резидентов"]
["ID","Код слева","Наименование на русском языке","Наименование на казахском языке","Наименование","Перенос текста или вставка символов \" / \"","Код справа"]
[0,null,"Физическое лицо","Жеке Тұлға",{"$f":"CONCATENATE(IF(B14<>\"\",CONCATENATE(B14,\" \"),\"\"),IF(p_language_current_id=1,C14,IF(p_language_current_id=2,D14,IF(C14=D14,C14,CONCATENATE(D14,IF(F14=0,\" / \",CHAR(10)),C14)))),IF(G14<>\"\",CONCATENATE(\" \",G14),\"\"))","v":"Жеке Тұлға / Физическое лицо"},0]
[1,null,"Предприятие","Кәсіпорын",{"$f":"CONCATENATE(IF(B15<>\"\",CONCATENATE(B15,\" \"),\"\"),IF(p_language_current_id=1,C15,IF(p_language_current_id=2,D15,IF(C15=D15,C15,CONCATENATE(D15,IF(F15=0,\" / \",CHAR(10)),C15)))),IF(G15<>\"\",CONCATENATE(\" \",G15),\"\"))","v":"Кәсіпорын / Предприятие"},0]
[]
["Справочник переводов"]
["ID","Код слева","Наименование на русском языке","Наименование на казахском языке","Наименование","Перенос текста","Код справа","Лист","Наименование в объектах","Отчет","Стиль"]
["C1",null,{"$f":"VLOOKUP(p_report_current_id,p_report,COLUMN(p_report_name_2)-2,FALSE)","v":"Отчет о международных операциях, внешних активах и обязательствах сектора государственного управления"},{"$f":"VLOOKUP(p_report_current_id,p_report,COLUMN(p_report_name_2)-1,FALSE)","v":"Мемлекеттік басқару секторының  халықаралық операциялары, сыртқы активтері және міндеттемелері туралы есеп"},{"$f":"CONCATENATE(IF(B19<>\"\",CONCATENATE(B19,\" \"),\"\"),IF(p_language_current_id=1,C19,IF(p_language_current_id=2,D19,IF(C19=D19,C19,CONCATENATE(D19,IF(F19=0,\" / \",CHAR(10)),C19)))),IF(G19<>\"\",CONCATENATE(\" \",G19),\"\"))","v":"Мемлекеттік басқару секторының  халықаралық операциялары, сыртқы активтері және міндеттемелері туралы есеп\nОтчет о международных операциях, внешних активах и обязательствах сектора государственного управления"},1,null,1,{"$f":"IF(p_language_current_id=2,CONCATENATE(D19),CONCATENATE(C19))","v":"Отчет о международных операциях, внешних активах и обязательствах сектора государственного управления"}]
["B1",null,{"$f":"VLOOKUP(p_report_current_id,p_report,COLUMN(p_report_name_2)-1,FALSE)","v":"Мемлекеттік басқару секторының  халықаралық операциялары, сыртқы активтері және міндеттемелері туралы есеп"},{"$f":"VLOOKUP(p_report_current_id,p_report,COLUMN(p_report_name_2)-1,FALSE)","v":"Мемлекеттік басқару секторының  халықаралық операциялары, сыртқы активтері және міндеттемелері туралы есеп"},{"$f":"CONCATENATE(IF(B20<>\"\",CONCATENATE(B20,\" \"),\"\"),IF(p_language_current_id=1,C20,IF(p_language_current_id=2,D20,IF(C20=D20,C20,CONCATENATE(D20,IF(F20=0,\" / \",CHAR(10)),C20)))),IF(G20<>\"\",CONCATENATE(\" \",G20),\"\"))","v":"Мемлекеттік басқару секторының  халықаралық операциялары, сыртқы активтері және міндеттемелері туралы есеп"},1,null,1,{"$f":"IF(p_language_current_id=2,CONCATENATE(D20),CONCATENATE(C20))","v":"Мемлекеттік басқару секторының  халықаралық операциялары, сыртқы активтері және міндеттемелері туралы есеп"}]
["B2",null,{"$f":"VLOOKUP(p_report_current_id,p_report,COLUMN(p_report_name_2)-2,FALSE)","v":"Отчет о международных операциях, внешних активах и обязательствах сектора государственного управления"},{"$f":"VLOOKUP(p_report_current_id,p_report,COLUMN(p_report_name_2)-2,FALSE)","v":"Отчет о международных операциях, внешних активах и обязательствах сектора государственного управления"},"Отчет о международных операциях, внешних активах и обязательствах сектора государственного управления",1,null,1,"Отчет о международных операциях, внешних активах и обязательствах сектора государственного управления"]
["C4",null,"Основные данные","Негізгі мәліметтер","Негізгі мәліметтер\nОсновные данные",1,null,1,"Основные данные"]
["C7",null,"Код отчета","Есептің коды","Есептің коды / Код отчета",0,null,1,"Код отчета"]
["C8",null,"Язык заполнения","Тілі","Тілі / Язык заполнения *",0,"*",1,"Язык заполнения"]
["C9",null,"Тип резидента","Резидент типі",{"$f":"CONCATENATE(IF(B25<>\"\",CONCATENATE(B25,\" \"),\"\"),IF(p_language_current_id=1,C25,IF(p_language_current_id=2,D25,IF(C25=D25,C25,CONCATENATE(D25,IF(F25=0,\" / \",CHAR(10)),C25)))),IF(G25<>\"\",CONCATENATE(\" \",G25),\"\"))","v":"Резидент типі / Тип резидента"},0,null,1,{"$f":"IF(p_language_current_id=2,CONCATENATE(D25),CONCATENATE(C25))","v":"Тип резидента"}]
["C10",null,{"$f":"IF(VLOOKUP(p_report_current_id,p_report,COLUMN(p_report_type),FALSE)=4,IF(VLOOKUP(p_report_current_id,p_report,COLUMN(p_report_type)+1,FALSE)=2,VLOOKUP(\"enterprise_name\",p_caption,3,FALSE),VLOOKUP(\"resident_name\",p_caption,3,FALSE)),VLOOKUP(\"enterprise\",p_caption,3,FALSE))","v":"Предприятие"},{"$f":"IF(VLOOKUP(p_report_current_id,p_report,COLUMN(p_report_type),FALSE)=4,IF(VLOOKUP(p_report_current_id,p_report,COLUMN(p_report_type)+1,FALSE)=2,VLOOKUP(\"enterprise_name\",p_caption,4,FALSE),VLOOKUP(\"resident_name\",p_caption,4,FALSE)),VLOOKUP(\"enterprise\",p_caption,4,FALSE))","v":"Кәсіпорын"},"Кәсіпорын / Предприятие",0,null,1,"Предприятие"]
["C11",null,{"$f":"IF(VLOOKUP(p_report_current_id,p_report,COLUMN(p_report_type),FALSE)=4,IF(VLOOKUP(p_report_current_id,p_report,COLUMN(p_report_type)+1,FALSE)=2,VLOOKUP(\"bin\",p_caption,3,FALSE),VLOOKUP(\"agent_bin\",p_caption,3,FALSE)),VLOOKUP(\"bin\",p_caption,3,FALSE))","v":"БИН"},{"$f":"IF(VLOOKUP(p_report_current_id,p_report,COLUMN(p_report_type),FALSE)=4,IF(VLOOKUP(p_report_current_id,p_report,COLUMN(p_report_type)+1,FALSE)=2,VLOOKUP(\"bin\",p_caption,4,FALSE),VLOOKUP(\"agent_bin\",p_caption,4,FALSE)),VLOOKUP(\"bin\",p_caption,4,FALSE))","v":"БСН"},"БСН / БИН",0,null,1,"БИН"]
["C12",null,"Наименование иностранного банка","Шетелдік банктің атауы",{"$f":"CONCATENATE(IF(B28<>\"\",CONCATENATE(B28,\" \"),\"\"),IF(p_language_current_id=1,C28,IF(p_language_current_id=2,D28,IF(C28=D28,C28,CONCATENATE(D28,IF(F28=0,\" / \",CHAR(10)),C28)))),IF(G28<>\"\",CONCATENATE(\" \",G28),\"\"))","v":"Шетелдік банктің атауы / Наименование иностранного банка"},0,null,1,{"$f":"IF(p_language_current_id=2,CONCATENATE(D28),CONCATENATE(C28))","v":"Наименование иностранного банка"}]
["C13",null,"Страна иностранного банка","Шетел банкінің елі",{"$f":"CONCATENATE(IF(B29<>\"\",CONCATENATE(B29,\" \"),\"\"),IF(p_language_current_id=1,C29,IF(p_language_current_id=2,D29,IF(C29=D29,C29,CONCATENATE(D29,IF(F29=0,\" / \",CHAR(10)),C29)))),IF(G29<>\"\",CONCATENATE(\" \",G29),\"\"))","v":"Шетел банкінің елі / Страна иностранного банка"},0,null,1,{"$f":"IF(p_language_current_id=2,CONCATENATE(D29),CONCATENATE(C29))","v":"Страна иностранного банка"}]
["C14",null,"Учетный номер","Есептік нөмірі","Есептік нөмірі / Учетный номер",0,null,1,"Учетный номер"]
["C15",null,"Период","Кезең","Кезең / Период",0,null,1,"Период"]
["D15",null,"Квартал","Тоқсан","Тоқсан\nКвартал",1,null,1,"Квартал"]
["F15",null,"Год","Жыл","Жыл / Год",0,null,1,"Год"]
["C16",null,"Дата предоставления отчета","Есепті беру күні","Есепті беру күні / Дата предоставления отчета",0,null,1,"Дата предоставления отчета"]
["C17",null,{"$f":"IF(VLOOKUP(p_report_current_id,p_report,COLUMN(p_report_type),FALSE)=4,IF(VLOOKUP(p_report_current_id,p_report,COLUMN(p_report_type)+1,FALSE)=2,VLOOKUP(\"pr_32_currency\",p_caption,3,FALSE),VLOOKUP(\"pr_currency\",p_caption,3,FALSE)),VLOOKUP(\"pb_currency\",p_caption,3,FALSE))","v":"Валюта"},{"$f":"IF(VLOOKUP(p_report_current_id,p_report,COLUMN(p_report_type),FALSE)=4,IF(VLOOKUP(p_report_current_id,p_report,COLUMN(p_report_type)+1,FALSE)=2,VLOOKUP(\"pr_32_currency\",p_caption,4,FALSE),VLOOKUP(\"pr_currency\",p_caption,4,FALSE)),VLOOKUP(\"pb_currency\",p_caption,4,FALSE))","v":"Валюта"},"Валюта",0,null,1,"Валюта"]
["C18",null,{"$f":"IF(VLOOKUP(p_report_current_id,p_report,COLUMN(p_report_type))=4,VLOOKUP(\"position\",p_caption,3,FALSE),VLOOKUP(\"manager\",p_caption,3,FALSE))","v":"Руководитель или лицо, на которое возложена функция по подписанию отчета"},{"$f":"IF(VLOOKUP(p_report_current_id,p_report,COLUMN(p_report_type),FALSE)=4,VLOOKUP(\"position\",p_caption,4,FALSE),VLOOKUP(\"manager\",p_caption,4,FALSE))","v":"Басшы немесе есепке қол қою функциясы жүктелген адам"},"Басшы немесе есепке қол қою функциясы жүктелген адам\nРуководитель или лицо, на которое возложена функция по подписанию отчета",1,null,1,"Руководитель или лицо, на которое возложена функция по подписанию отчета"]
["C19",null,{"$f":"IF(VLOOKUP(p_report_current_id,p_report,COLUMN(p_report_type),FALSE)=4,VLOOKUP(\"position_fio\",p_caption,3,FALSE),VLOOKUP(\"accountant\",p_caption,3,FALSE))","v":"Главный бухгалтер или лицо, на которое возложена функция по подписанию отчета"},{"$f":"IF(VLOOKUP(p_report_current_id,p_report,COLUMN(p_report_type),FALSE)=4,VLOOKUP(\"position_fio\",p_caption,4,FALSE),VLOOKUP(\"accountant\",p_caption,4,FALSE))","v":"Бас бухгалтер немесе есепке қол қою функциясы жүктелген адам"},"Бас бухгалтер немесе есепке қол қою функциясы жүктелген адам\nГлавный бухгалтер или лицо, на которое возложена функция по подписанию отчета",1,null,1,"Главный бухгалтер или лицо, на которое возложена функция по подписанию отчета"]
["C20",null,"Ф.И.О. Исполнителя","Т.А.Ә. Орындаушының","Т.А.Ә. Орындаушының / Ф.И.О. Исполнителя",0,null,1,"Ф.И.О. Исполнителя"]
["C21",null,"Телефон исполнителя","Орындаушының телефоны","Орындаушының телефоны / Телефон исполнителя",0,null,1,"Телефон исполнителя"]
["C22",null,"Стационарный телефон (респондента)","Стационарлық телефоны (респонденттің)",{"$f":"CONCATENATE(IF(B40<>\"\",CONCATENATE(B40,\" \"),\"\"),IF(p_language_current_id=1,C40,IF(p_language_current_id=2,D40,IF(C40=D40,C40,CONCATENATE(D40,IF(F40=0,\" / \",CHAR(10)),C40)))),IF(G40<>\"\",CONCATENATE(\" \",G40),\"\"))","v":"Стационарлық телефоны (респонденттің)\nСтационарный телефон (респондента)"},1,null,1,{"$f":"IF(p_language_current_id=2,CONCATENATE(D40),CONCATENATE(C40))","v":"Стационарный телефон (респондента)"}]
["C23",null,"Мобильный телефон (респондента)","Ұялы телефоны (респонденттің)",{"$f":"CONCATENATE(IF(B41<>\"\",CONCATENATE(B41,\" \"),\"\"),IF(p_language_current_id=1,C41,IF(p_language_current_id=2,D41,IF(C41=D41,C41,CONCATENATE(D41,IF(F41=0,\" / \",CHAR(10)),C41)))),IF(G41<>\"\",CONCATENATE(\" \",G41),\"\"))","v":"Ұялы телефоны (респонденттің)\nМобильный телефон (респондента)"},1,null,1,{"$f":"IF(p_language_current_id=2,CONCATENATE(D41),CONCATENATE(C41))","v":"Мобильный телефон (респондента)"}]
["C24",null,"Адрес (респондента)","Мекенжайы (респонденттің)",{"$f":"CONCATENATE(IF(B42<>\"\",CONCATENATE(B42,\" \"),\"\"),IF(p_language_current_id=1,C42,IF(p_language_current_id=2,D42,IF(C42=D42,C42,CONCATENATE(D42,IF(F42=0,\" / \",CHAR(10)),C42)))),IF(G42<>\"\",CONCATENATE(\" \",G42),\"\"))","v":"Мекенжайы (респонденттің) / Адрес (респондента)"},0,null,1,{"$f":"IF(p_language_current_id=2,CONCATENATE(D42),CONCATENATE(C42))","v":"Адрес (респондента)"}]
["C25",null,"Адрес электронной почты (респондента)","Электрондық пошта мекенжайы (респонденттің)",{"$f":"CONCATENATE(IF(B43<>\"\",CONCATENATE(B43,\" \"),\"\"),IF(p_language_current_id=1,C43,IF(p_language_current_id=2,D43,IF(C43=D43,C43,CONCATENATE(D43,IF(F43=0,\" / \",CHAR(10)),C43)))),IF(G43<>\"\",CONCATENATE(\" \",G43),\"\"))","v":"Электрондық пошта мекенжайы (респонденттің)\nАдрес электронной почты (респондента)"},1,null,1,{"$f":"IF(p_language_current_id=2,CONCATENATE(D43),CONCATENATE(C43))","v":"Адрес электронной почты (респондента)"},"e-mail респондента"]
["C26",null,"Согласны на распространение первичных статистических данных","Алғашқы статистикалық деректерді таратуға келісеміз","Алғашқы статистикалық деректерді таратуға келісеміз\nСогласны на распространение первичных статистических данных **",1,"**",1,"Согласны на распространение первичных статистических данных"]
["C27",null,"Комментарий","Түсініктемелер","Түсініктемелер\nКомментарий",1,null,1,"Комментарий"]
["C28",null,"Дата отчета","Есептің күні",{"$f":"CONCATENATE(IF(B46<>\"\",CONCATENATE(B46,\" \"),\"\"),IF(p_language_current_id=1,C46,IF(p_language_current_id=2,D46,IF(C46=D46,C46,CONCATENATE(D46,IF(F46=0,\" / \",CHAR(10)),C46)))),IF(G46<>\"\",CONCATENATE(\" \",G46),\"\"))","v":"Есептің күні / Дата отчета"},0,null,1,{"$f":"IF(p_language_current_id=2,CONCATENATE(D46),CONCATENATE(C46))","v":"Дата отчета"}]
["C29",null,"Заполняется Национальным Банком Республики Казахстан","Қазақстан Республикасы Ұлттық Банкі толтырады","Қазақстан Республикасы Ұлттық Банкі толтырады\nЗаполняется Национальным Банком Республики Казахстан",1,null,1,"Заполняется Национальным Банком Республики Казахстан"]
["C30",null,"Дата предоставления отчета","Есепті беру күні",{"$f":"CONCATENATE(IF(B48<>\"\",CONCATENATE(B48,\" \"),\"\"),IF(p_language_current_id=1,C48,IF(p_language_current_id=2,D48,IF(C48=D48,C48,CONCATENATE(D48,IF(F48=0,\" / \",CHAR(10)),C48)))),IF(G48<>\"\",CONCATENATE(\" \",G48),\"\"))","v":"Есепті беру күні / Дата предоставления отчета"},0,null,1,{"$f":"IF(p_language_current_id=2,CONCATENATE(D48),CONCATENATE(C48))","v":"Дата предоставления отчета"}]
["C31",null,"Разделы","Бөлімдер",{"$f":"CONCATENATE(IF(B49<>\"\",CONCATENATE(B49,\" \"),\"\"),IF(p_language_current_id=1,C49,IF(p_language_current_id=2,D49,IF(C49=D49,C49,CONCATENATE(D49,IF(F49=0,\" / \",CHAR(10)),C49)))),IF(G49<>\"\",CONCATENATE(\" \",G49),\"\"))","v":"Бөлімдер\nРазделы"},1,null,1,{"$f":"IF(p_language_current_id=2,CONCATENATE(D49),CONCATENATE(C49))","v":"Разделы"}]
["C34","*","При смене языка данные отчета обнулятся. Выберите язык до начала заполнения отчета","Тілді өзгерткен кезде есептің мәліметтері нөлге аударылады. Есепті толтыра бастамай тілді таңдаңыз.",{"$f":"CONCATENATE(IF(B50<>\"\",CONCATENATE(B50,\" \"),\"\"),IF(p_language_current_id=1,C50,IF(p_language_current_id=2,D50,IF(C50=D50,C50,CONCATENATE(D50,IF(F50=0,\" / \",CHAR(10)),C50)))),IF(G50<>\"\",CONCATENATE(\" \",G50),\"\"))","v":"* Тілді өзгерткен кезде есептің мәліметтері нөлге аударылады. Есепті толтыра бастамай тілді таңдаңыз.\nПри смене языка данные отчета обнулятся. Выберите язык до начала заполнения отчета"},1,null,1,{"$f":"IF(p_language_current_id=2,CONCATENATE(D50),CONCATENATE(C50))","v":"При смене языка данные отчета обнулятся. Выберите язык до начала заполнения отчета"}]
["C36",{"$f":"IF(OR(VLOOKUP(p_report_current_id,p_report,COLUMN(p_report_type),FALSE)=4,VLOOKUP(p_report_current_id,p_report,COLUMN(p_report_type),FALSE)=5),\"\",\"**\")","v":"**"},{"$f":"IF(OR(VLOOKUP(p_report_current_id,p_report,COLUMN(p_report_type),FALSE)=4,VLOOKUP(p_report_current_id,p_report,COLUMN(p_report_type),FALSE)=5),\"\",\"Данный пункт заполняется согласно пункту 5 статьи 8 Закона Республики Казахстан от 19 марта 2010 года «О государственной статистике»\")","v":"Данный пункт заполняется согласно пункту 5 статьи 8 Закона Республики Казахстан от 19 марта 2010 года «О государственной статистике»"},{"$f":"IF(OR(VLOOKUP(p_report_current_id,p_report,COLUMN(p_report_type),FALSE)=4,VLOOKUP(p_report_current_id,p_report,COLUMN(p_report_type),FALSE)=5),\"\",\"Аталған тармақ «Мемлекеттік статистика туралы» Қазақстан Республикасының 2010 жылғы 19 наурыздағы Заңының 8-бабының 5-тармағына сәйкес толтырылады\")","v":"Аталған тармақ «Мемлекеттік статистика туралы» Қазақстан Республикасының 2010 жылғы 19 наурыздағы Заңының 8-бабының 5-тармағына сәйкес толтырылады"},{"$f":"CONCATENATE(IF(B51<>\"\",CONCATENATE(B51,\" \"),\"\"),IF(p_language_current_id=1,C51,IF(p_language_current_id=2,D51,IF(C51=D51,C51,CONCATENATE(D51,IF(F51=0,\" / \",CHAR(10)),C51)))),IF(G51<>\"\",CONCATENATE(\" \",G51),\"\"))","v":"** Аталған тармақ «Мемлекеттік статистика туралы» Қазақстан Республикасының 2010 жылғы 19 наурыздағы Заңының 8-бабының 5-тармағына сәйкес толтырылады\nДанный пункт заполняется согласно пункту 5 статьи 8 Закона Республики Казахстан от 19 марта 2010 года «О государственной статистике»"},1,null,1,{"$f":"IF(p_language_current_id=2,CONCATENATE(D51),CONCATENATE(C51))","v":"Данный пункт заполняется согласно пункту 5 статьи 8 Закона Республики Казахстан от 19 марта 2010 года «О государственной статистике»"}]
["C38",null,"Представление недостоверных и непредставление первичных статистических данных в соответствующие органы государственной статистики в установленный срок являются административными правонарушениями, предусмотренными статьей 497 Кодекса Республики Казахстан «Об административных правонарушениях»","Мемлекеттік статистиканың тиісті органдарына анық емес бастапқы статистикалық деректерді ұсыну және бастапқы статистикалық деректерді белгіленген мерзімде ұсынбау «Әкімшілік құқық бұзушылық туралы» Қазақстан Республикасы Кодексінің 497-бабында көзделген әкімшілік құқық бұзушылықтар болып табылады",{"$f":"CONCATENATE(IF(B52<>\"\",CONCATENATE(B52,\" \"),\"\"),IF(p_language_current_id=1,C52,IF(p_language_current_id=2,D52,IF(C52=D52,C52,CONCATENATE(D52,IF(F52=0,\" / \",CHAR(10)),C52)))),IF(G52<>\"\",CONCATENATE(\" \",G52),\"\"))","v":"Мемлекеттік статистиканың тиісті органдарына анық емес бастапқы статистикалық деректерді ұсыну және бастапқы статистикалық деректерді белгіленген мерзімде ұсынбау «Әкімшілік құқық бұзушылық туралы» Қазақстан Республикасы Кодексінің 497-бабында көзделген әкімшілік құқық бұзушылықтар болып табылады\nПредставление недостоверных и непредставление первичных статистических данных в соответствующие органы государственной статистики в установленный срок являются административными правонарушениями, предусмотренными статьей 497 Кодекса Республики Казахстан «Об административных правонарушениях»"},1,null,1,{"$f":"IF(p_language_current_id=2,CONCATENATE(D52),CONCATENATE(C52))","v":"Представление недостоверных и непредставление первичных статистических данных в соответствующие органы государственной статистики в установленный срок являются административными правонарушениями, предусмотренными статьей 497 Кодекса Республики Казахстан «Об административных правонарушениях»"}]
["p3_title",null,"Содержание","Мазмұны",{"$f":"CONCATENATE(IF(B53<>\"\",CONCATENATE(B53,\" \"),\"\"),IF(p_language_current_id=1,C53,IF(p_language_current_id=2,D53,IF(C53=D53,C53,CONCATENATE(D53,IF(F53=0,\" / \",CHAR(10)),C53)))),IF(G53<>\"\",CONCATENATE(\" \",G53),\"\"))","v":"Мазмұны\nСодержание"},1,null,null,{"$f":"IF(p_language_current_id=2,CONCATENATE(D53),CONCATENATE(C53))","v":"Содержание"}]
["p3_col_check",null,"Укажите (галочкой) заполненные части","Толтырылған бөліктерді көрсетіңіз (қанат белгісімен)","Толтырылған бөліктерді көрсетіңіз (қанат белгісімен)\nУкажите (галочкой) заполненные части",1,null,null,"Укажите (галочкой) заполненные части"]
["p4_g1",null,"Форма","Нысан","Нысан\nФорма",1,null,null,"Форма"]
["p4_d3",null,"Резидент","Резидент","Резидент",1,null,null,"Резидент"]
["p4_e4",null,{"$f":"IF(VLOOKUP(p_report_current_id,p_report,COLUMN(p_report_type),FALSE)=4,IF(VLOOKUP(p_report_current_id,p_report,COLUMN(p_report_type)+1,FALSE)=2,VLOOKUP(\"p4_e42\",p_caption,3,FALSE),VLOOKUP(\"p4_e41\",p_caption,3,FALSE)),\"\")","v":""},{"$f":"IF(VLOOKUP(p_report_current_id,p_report,COLUMN(p_report_type),FALSE)=4,IF(VLOOKUP(p_report_current_id,p_report,COLUMN(p_report_type)+1,FALSE)=2,VLOOKUP(\"p4_e42\",p_caption,4,FALSE),VLOOKUP(\"p4_e41\",p_caption,4,FALSE)),\"\")","v":""},"",1,null,null,""]
["p4_d5",null,{"$f":"IF(VLOOKUP(p_report_current_id,p_report,COLUMN(p_report_type),FALSE)=4,IF(VLOOKUP(p_report_current_id,p_report,COLUMN(p_report_type)+1,FALSE)=2,VLOOKUP(\"p4_d52\",p_caption,3,FALSE),VLOOKUP(\"p4_d51\",p_caption,3,FALSE)),\"\")","v":""},{"$f":"IF(VLOOKUP(p_report_current_id,p_report,COLUMN(p_report_type),FALSE)=4,IF(VLOOKUP(p_report_current_id,p_report,COLUMN(p_report_type)+1,FALSE)=2,VLOOKUP(\"p4_d52\",p_caption,4,FALSE),VLOOKUP(\"p4_d51\",p_caption,4,FALSE)),\"\")","v":""},"",1,null,null,""]
["p4_d6",null,"Учетный номер Национального Банка Республики Казахстан","Қазақстан Республикасы Ұлттық Банкінің есептік нөмірі","Қазақстан Республикасы Ұлттық Банкінің есептік нөмірі\nУчетный номер Национального Банка Республики Казахстан",1,null,null,"Учетный номер Национального Банка Республики Казахстан"]
["p4_d8",null,{"$f":"IF(VLOOKUP(p_report_current_id,p_report,COLUMN(p_report_type),FALSE)=4,IF(VLOOKUP(p_report_current_id,p_report,COLUMN(p_report_type)+1,FALSE)=2,VLOOKUP(\"pr_32_currency\",p_caption,3,FALSE),VLOOKUP(\"pr_currency\",p_caption,3,FALSE)),VLOOKUP(\"pb_currency\",p_caption,3,FALSE))","v":"Валюта"},{"$f":"IF(VLOOKUP(p_report_current_id,p_report,COLUMN(p_report_type),FALSE)=4,IF(VLOOKUP(p_report_current_id,p_report,COLUMN(p_report_type)+1,FALSE)=2,VLOOKUP(\"pr_32_currency\",p_caption,4,FALSE),VLOOKUP(\"pr_currency\",p_caption,4,FALSE)),VLOOKUP(\"pb_currency\",p_caption,4,FALSE))","v":"Валюта"},"Валюта",1,null,null,"Валюта"]
["p4_d7",null,"Наименование иностранного банка, страна","Шетелдік банктің атауы, елі","Шетелдік банктің атауы, елі\nНаименование иностранного банка, страна",1,null,null,"Наименование иностранного банка, страна"]
["p4_e41",null,"(фамилия, имя, отчество (при наличии) физического лица, наименование юридического лица)","(жеке тұлғаның тегі, аты, әкесінің аты (бар болса), заңды тұлғаның атауы)","(жеке тұлғаның тегі, аты, әкесінің аты (бар болса), заңды тұлғаның атауы)\n(фамилия, имя, отчество (при наличии) физического лица, наименование юридического лица)",1,null,null,"(фамилия, имя, отчество (при наличии) физического лица, наименование юридического лица)"]
["p4_e42",null,"(наименование юридического лица)","(заңды тұлғаның атауы)","(заңды тұлғаның атауы)\n(наименование юридического лица)",1,null,null,"(наименование юридического лица)"]
["p4_d51",null,"Индивидуальный идентификационный номер, бизнес-идентификационный номер","Жеке сәйкестендіру нөмірі, бизнес сәйкестендіру нөмірі","Жеке сәйкестендіру нөмірі, бизнес сәйкестендіру нөмірі\nИндивидуальный идентификационный номер, бизнес-идентификационный номер",1,null,null,"Индивидуальный идентификационный номер, бизнес-идентификационный номер"]
["p4_d52",null,"Бизнес-идентификационный номер","Бизнес сәйкестендіру нөмірі","Бизнес сәйкестендіру нөмірі\nБизнес-идентификационный номер",1,null,null,"Бизнес-идентификационный номер"]
["indicator_name_1",null,"Виды услуг","Қызмет түрлері","Қызмет түрлері / Виды услуг",0,null,null,"Виды услуг"]
["indicator_name_2",null," "," "," ",1,null,null," "]
["cols_num",null,"№","№","№",1,null,null,"№"]
["pb_str_1",null,"Код показателя из формы 1-ПБ, указанный в части 5.1","5.1-бөлігінде көрсетілген 1-ТБ нысанынан көрсеткіштің коды","5.1-бөлігінде көрсетілген 1-ТБ нысанынан көрсеткіштің коды\nКод показателя из формы 1-ПБ, указанный в части 5.1",1,null,null,"Код показателя из формы 1-ПБ, указанный в части 5.1"]
["pb_value_1",null,"Задолженность, указанная в части 5.1","5.1-бөлігінде көрсетілген берешек","5.1-бөлігінде көрсетілген берешек\nЗадолженность, указанная в части 5.1",1,null,null,"Задолженность, указанная в части 5.1"]
["pb_str_2",null,"Код показателя из формы 1-ПБ, указанный в части 6.1","6.1-бөлігінде көрсетілген 1-ТБ нысанынан көрсеткіштің коды","6.1-бөлігінде көрсетілген 1-ТБ нысанынан көрсеткіштің коды\nКод показателя из формы 1-ПБ, указанный в части 6.1",1,null,null,"Код показателя из формы 1-ПБ, указанный в части 6.1"]
["pb_value_2",null,"Задолженность, указанная в части 6.1","6.1-бөлігінде көрсетілген берешек","6.1-бөлігінде көрсетілген берешек\nЗадолженность, указанная в части 6.1",1,null,null,"Задолженность, указанная в части 6.1"]
["indicator_name",null,"Наименование показателя","Көрсеткіштің атауы","Көрсеткіштің атауы\nНаименование показателя",1,null,null,"Наименование показателя"]
["indicator_code",null,{"$f":"IF(p_report_current_id=8,C76,C75)","v":"Код показателя"},{"$f":"IF(p_report_current_id=8,D76,D75)","v":"Көрсеткіш коды"},"Көрсеткіш коды\nКод показателя",1,null,null,"Код показателя"]
["indicator_code_1",null,"Код показателя","Көрсеткіш коды",{"$f":"CONCATENATE(IF(B75<>\"\",CONCATENATE(B75,\" \"),\"\"),IF(p_language_current_id=1,C75,IF(p_language_current_id=2,D75,IF(C75=D75,C75,CONCATENATE(D75,IF(F75=0,\" / \",CHAR(10)),C75)))),IF(G75<>\"\",CONCATENATE(\" \",G75),\"\"))","v":"Көрсеткіш коды\nКод показателя"},1,null,null,{"$f":"IF(p_language_current_id=2,CONCATENATE(D75),CONCATENATE(C75))","v":"Код показателя"}]
["indicator_code_2",null,"Код строки","Жол коды","Жол коды\nКод строки",1,null,null,"Код строки"]
["indicator_num",null,"№","№","№",1,null,null,"№"]
["indicator_style",null,"Код стиля","Код стиля","Код стиля",1,null,null,"Код стиля"]
["indicator_short",null,"Короткий код строки","Короткий код строки",{"$f":"CONCATENATE(IF(B79<>\"\",CONCATENATE(B79,\" \"),\"\"),IF(p_language_current_id=1,C79,IF(p_language_current_id=2,D79,IF(C79=D79,C79,CONCATENATE(D79,IF(F79=0,\" / \",CHAR(10)),C79)))),IF(G79<>\"\",CONCATENATE(\" \",G79),\"\"))","v":"Короткий код строки"},1,null,null,{"$f":"IF(p_language_current_id=2,CONCATENATE(D79),CONCATENATE(C79))","v":"Короткий код строки"}]
["indicator_col_code",null,192,192,"192",1,null,null,"192"]
["indicator_col_name",null,"Наименование графы","Баған атауы","Баған атауы\nНаименование графы",1,null,null,"Наименование графы"]
["c_1","*","Ф.И.О. – Фамилия, имя, отчество (при наличии)","Т.А.Ә. – Тегі, аты, әкесінің аты (бар болған жағдайында)","* Т.А.Ә. – Тегі, аты, әкесінің аты (бар болған жағдайында)\nФ.И.О. – Фамилия, имя, отчество (при наличии)",1,null,null,"Ф.И.О. – Фамилия, имя, отчество (при наличии)"]
["c_2","**","БИН(бизнес идентификационный номер)/ ИИН (индивидуальный идентификационный номер)/ ИНР (идентификационный номер регистрации) – идентификационные номера, присваиваемые в соответствии с законодательством Казахстана/иностранного государства","БСН (бизнес-сәйкестендіру номері)/ ЖСН (жеке сәйкестендіру номері)/ ТСН (тіркеу сәйкестендіру номері) – Қазақстанның/шет елдің заңнамасына сәйкес берілген сәйкестендіру номерлері","** БСН (бизнес-сәйкестендіру номері)/ ЖСН (жеке сәйкестендіру номері)/ ТСН (тіркеу сәйкестендіру номері) – Қазақстанның/шет елдің заңнамасына сәйкес берілген сәйкестендіру номерлері\nБИН(бизнес идентификационный номер)/ ИИН (индивидуальный идентификационный номер)/ ИНР (идентификационный номер регистрации) – идентификационные номера, присваиваемые в соответствии с законодательством Казахстана/иностранного государства",1,null,null,"БИН(бизнес идентификационный номер)/ ИИН (индивидуальный идентификационный номер)/ ИНР (идентификационный номер регистрации) – идентификационные номера, присваиваемые в соответствии с законодательством Казахстана/иностранного государства"]
["c_3","*","Долл. США – в тысячах долларов Соединенных штатов Америки","АҚШ долл. – мың Америка құрама штаттарының долларында","* АҚШ долл. – мың Америка құрама штаттарының долларында\nДолл. США – в тысячах долларов Соединенных штатов Америки",1,null,null,"Долл. США – в тысячах долларов Соединенных штатов Америки"]
["c_0",null,1,2,"2\n1",1,null,null,"1"]
["c_0x2",null,"1\n1","2\n2","2\n2\n1\n1",1,null,null,"1\n1"]
["currency_0",null,"тенге","теңге","теңге / тенге",0,null,null,"тенге"]
["currency_1",null,"в тыс. долл. США","мың АҚШ долл.",{"$f":"CONCATENATE(IF(B88<>\"\",CONCATENATE(B88,\" \"),\"\"),IF(p_language_current_id=1,C88,IF(p_language_current_id=2,D88,IF(C88=D88,C88,CONCATENATE(D88,IF(F88=0,\" / \",CHAR(10)),C88)))),IF(G88<>\"\",CONCATENATE(\" \",G88),\"\"))","v":"мың АҚШ долл.\nв тыс. долл. США *"},1,"*",null,{"$f":"IF(p_language_current_id=2,CONCATENATE(D88),CONCATENATE(C88))","v":"в тыс. долл. США"}]
["currency_2",null,"в тысячах долларов Соединенных штатов Америки","мың Америка құрама штаттарының долларында","мың Америка құрама штаттарының долларында\nв тысячах долларов Соединенных штатов Америки",1,null,null,"в тысячах долларов Соединенных штатов Америки"]
["currency_3",null,"тысяч единиц валюты счета","шот валютасының мың бірлігі","шот валютасының мың бірлігі\nтысяч единиц валюты счета",1,null,null,"тысяч единиц валюты счета"]
["currency_7",null,"тысяч единиц валюты валютного договора","валюталық шарт валютасының мың бірлігі","валюталық шарт валютасының мың бірлігі\nтысяч единиц валюты валютного договора",1,null,null,"тысяч единиц валюты валютного договора"]
["currency_4",null,"тысяч долларов Соединенных Штатов Америки (далее – США)","мың Америка Құрама Штаттарының (бұдан әрі – АҚШ) доллары","мың Америка Құрама Штаттарының (бұдан әрі – АҚШ) доллары\nтысяч долларов Соединенных Штатов Америки (далее – США)",1,null,null,"тысяч долларов Соединенных Штатов Америки (далее – США)"]
["currency_5",null,"тысяч долларов США","мың АҚШ доллары","мың АҚШ доллары\nтысяч долларов США",1,null,null,"тысяч долларов США"]
["currency_6",null,"тысяч долларов Соединенных Штатов Америки","мың Америка Құрама Штаттарының доллары","мың Америка Құрама Штаттарының доллары\nтысяч долларов Соединенных Штатов Америки",1,null,null,"тысяч долларов Соединенных Штатов Америки"]
["currency_8",null,"в тысячах долларов Соединенных Штатов Америки (далее – США)","Америка Құрама Штаттарының (бұдан әрі – АҚШ) мың долларымен","Америка Құрама Штаттарының (бұдан әрі – АҚШ) мың долларымен\nв тысячах долларов Соединенных Штатов Америки (далее – США)",1,null,null,"в тысячах долларов Соединенных Штатов Америки (далее – США)"]
["currency_9",null,"в тысячах долларов США","мың АҚШ долларымен","мың АҚШ долларымен\nв тысячах долларов США",1,null,null,"в тысячах долларов США"]
["currency_10",null,"в тысячах единиц валюты счета","шот валютасының мың бірлігімен",{"$f":"CONCATENATE(IF(B97<>\"\",CONCATENATE(B97,\" \"),\"\"),IF(p_language_current_id=1,C97,IF(p_language_current_id=2,D97,IF(C97=D97,C97,CONCATENATE(D97,IF(F97=0,\" / \",CHAR(10)),C97)))),IF(G97<>\"\",CONCATENATE(\" \",G97),\"\"))","v":"шот валютасының мың бірлігімен\nв тысячах единиц валюты счета"},1,null,null,{"$f":"IF(p_language_current_id=2,CONCATENATE(D97),CONCATENATE(C97))","v":"в тысячах единиц валюты счета"}]
["cols_code",null,"Код графы","Бағана коды","Бағана коды\nКод графы",1,null,null,"Код графы"]
["cols_short",null,"Короткий код графы","Короткий код графы","Короткий код графы",1,null,null,"Короткий код графы"]
["cols_name",null,"Наименование графы","Баған атауы","Баған атауы\nНаименование графы",1,null,null,"Наименование графы"]
["cols_style",null,"Код стиля","Код стиля","Код стиля",1,null,null,"Код стиля"]
["col_name_1",null,"в том числе","оның ішінде","оның ішінде\nв том числе :",1,":",null,"в том числе"]
["col_name_2",null,"Всего","Барлығы","Барлығы\nВсего",1,null,null,"Всего"]
["col_name_3",null,"По видам валют","Валюта түрлері бойынша","Валюта түрлері бойынша / По видам валют",0,null,null,"По видам валют"]
["bank_name",null,"Наименование иностранного банка","Шетелдік банктің атауы",{"$f":"CONCATENATE(IF(B105<>\"\",CONCATENATE(B105,\" \"),\"\"),IF(p_language_current_id=1,C105,IF(p_language_current_id=2,D105,IF(C105=D105,C105,CONCATENATE(D105,IF(F105=0,\" / \",CHAR(10)),C105)))),IF(G105<>\"\",CONCATENATE(\" \",G105),\"\"))","v":"Шетелдік банктің атауы\nНаименование иностранного банка"},1,null,null,{"$f":"IF(p_language_current_id=2,CONCATENATE(D105),CONCATENATE(C105))","v":"Наименование иностранного банка"}]
["country_name",null,{"$f":"C108","v":"Наименование страны"},{"$f":"D108","v":"Елдің атауы"},{"$f":"CONCATENATE(IF(B106<>\"\",CONCATENATE(B106,\" \"),\"\"),IF(p_language_current_id=1,C106,IF(p_language_current_id=2,D106,IF(C106=D106,C106,CONCATENATE(D106,IF(F106=0,\" / \",CHAR(10)),C106)))),IF(G106<>\"\",CONCATENATE(\" \",G106),\"\"))","v":"Елдің атауы\nНаименование страны"},1,null,null,{"$f":"IF(p_language_current_id=2,CONCATENATE(D106),CONCATENATE(C106))","v":"Наименование страны"}]
["country_name_1",null,"Страна регистрации","Тіркелген елі",{"$f":"CONCATENATE(IF(B107<>\"\",CONCATENATE(B107,\" \"),\"\"),IF(p_language_current_id=1,C107,IF(p_language_current_id=2,D107,IF(C107=D107,C107,CONCATENATE(D107,IF(F107=0,\" / \",CHAR(10)),C107)))),IF(G107<>\"\",CONCATENATE(\" \",G107),\"\"))","v":"Тіркелген елі\nСтрана регистрации"},1,null,null,{"$f":"IF(p_language_current_id=2,CONCATENATE(D107),CONCATENATE(C107))","v":"Страна регистрации"}]
["country_name_2",null,"Наименование страны","Елдің атауы",{"$f":"CONCATENATE(IF(B108<>\"\",CONCATENATE(B108,\" \"),\"\"),IF(p_language_current_id=1,C108,IF(p_language_current_id=2,D108,IF(C108=D108,C108,CONCATENATE(D108,IF(F108=0,\" / \",CHAR(10)),C108)))),IF(G108<>\"\",CONCATENATE(\" \",G108),\"\"))","v":"Елдің атауы\nНаименование страны"},1,null,null,{"$f":"IF(p_language_current_id=2,CONCATENATE(D108),CONCATENATE(C108))","v":"Наименование страны"}]
["err_caption",null,"Ошибка ввода данных","Мәліметтерді енгізу қатесі","Мәліметтерді енгізу қатесі / Ошибка ввода данных",0,null,null,"Ошибка ввода данных"]
["warning_caption",null,"Предупреждение","Ескертпе","Ескертпе / Предупреждение",0,null,null,"Предупреждение"]
["pb_01_code",null,"Код показателя из формы 1-ПБ","1-ТБ нысанынан көрсеткіштің коды","1-ТБ нысанынан көрсеткіштің коды / Код показателя из формы 1-ПБ",0,null,null,"Код показателя из формы 1-ПБ"]
["pb_01_value",null,"Задолженность на _ (в тыс. долл. США)","_ жағдайы бойынша берешек (мың АҚШ долл.)","_ жағдайы бойынша берешек (мың АҚШ долл.) / Задолженность на _ (в тыс. долл. США) * **",0,"* **",null,"Задолженность на _ (в тыс. долл. США)"]
["enterprise",null,"Предприятие","Кәсіпорын","Кәсіпорын / Предприятие",0,null,null,"Предприятие"]
["enterprise_name",null,"Наименование юридического лица","Заңды тұлғаның атауы","Заңды тұлғаның атауы / Наименование юридического лица",0,null,null,"Наименование юридического лица"]
["resident_name",null,"Фамилия, имя, отчество (при наличии) физического лица, наименование юридического лица","Жеке тұлғаның тегі, аты, әкесінің аты (бар болса), заңды тұлғаның атауы","Жеке тұлғаның тегі, аты, әкесінің аты (бар болса), заңды тұлғаның атауы / Фамилия, имя, отчество (при наличии) физического лица, наименование юридического лица",0,null,null,"Фамилия, имя, отчество (при наличии) физического лица, наименование юридического лица"]
["agent_name",null,"Наименование предприятия/ФИО физического лица","Кәсіпорынның атауы/жеке тұлғаның Т.А.Ә.","Кәсіпорынның атауы/жеке тұлғаның Т.А.Ә. / Наименование предприятия/ФИО физического лица",0,null,null,"Наименование предприятия/ФИО физического лица"]
["enterprise_name_1",null,"наименование филиала (представительства) иностранной нефинансовой организации, осуществляющего деятельность в Республике Казахстан более одного года (далее – филиал (представительство)","Қазақстан Республикасында қызметін бір жылдан астам жүзеге асыратын шетелдік қаржылық емес ұйым филиалының (өкілдігінің) (бұдан әрі – филиал (өкілдік) атауы","Қазақстан Республикасында қызметін бір жылдан астам жүзеге асыратын шетелдік қаржылық емес ұйым филиалының (өкілдігінің) (бұдан әрі – филиал (өкілдік) атауы / наименование филиала (представительства) иностранной нефинансовой организации, осуществляющего деятельность в Республике Казахстан более одного года (далее – филиал (представительство)",0,null,null,"наименование филиала (представительства) иностранной нефинансовой организации, осуществляющего деятельность в Республике Казахстан более одного года (далее – филиал (представительство)"]
["bin",null,"БИН","БСН","БСН / БИН",0,null,null,"БИН"]
["agent_bin",null,"ИИН/БИН","ЖСН/БСН","ЖСН/БСН / ИИН/БИН",0,null,null,"ИИН/БИН"]
["bin_1",null,"Бизнес-идентификационный номер (далее – БИН)","Бизнес-сәйкестендіру нөмірі (бұдан әрі – БСН)","Бизнес-сәйкестендіру нөмірі (бұдан әрі – БСН)\nБизнес-идентификационный номер (далее – БИН)",1,null,null,"Бизнес-идентификационный номер (далее – БИН)"]
["is_enterprise",null,"Юридическое лицо","Юридическое лицо","Юридическое лицо",0,null,null,"Юридическое лицо"]
["select",null,"Выберите из списка","Выберите из списка","Выберите из списка",0,null,null,"Выберите из списка"]
["manager",null,"Руководитель или лицо, на которое возложена функция по подписанию отчета","Басшы немесе есепке қол қою функциясы жүктелген адам","Басшы немесе есепке қол қою функциясы жүктелген адам / Руководитель или лицо, на которое возложена функция по подписанию отчета",0,null,null,"Руководитель или лицо, на которое возложена функция по подписанию отчета"]
["position",null,"Должность","Лауазымы","Лауазымы / Должность",0,null,null,"Должность"]
["accountant",null,"Главный бухгалтер или лицо, на которое возложена функция по подписанию отчета","Бас бухгалтер немесе есепке қол қою функциясы жүктелген адам",{"$f":"CONCATENATE(IF(B125<>\"\",CONCATENATE(B125,\" \"),\"\"),IF(p_language_current_id=1,C125,IF(p_language_current_id=2,D125,IF(C125=D125,C125,CONCATENATE(D125,IF(F125=0,\" / \",CHAR(10)),C125)))),IF(G125<>\"\",CONCATENATE(\" \",G125),\"\"))","v":"Бас бухгалтер немесе есепке қол қою функциясы жүктелген адам / Главный бухгалтер или лицо, на которое возложена функция по подписанию отчета"},0,null,null,{"$f":"IF(p_language_current_id=2,CONCATENATE(D125),CONCATENATE(C125))","v":"Главный бухгалтер или лицо, на которое возложена функция по подписанию отчета"}]
["position_fio",null,"Ф.И.О. руководителя (главного бухгалтера)","Басшының (бас бухгалтердің) Т.А.Ә.","Басшының (бас бухгалтердің) Т.А.Ә. / Ф.И.О. руководителя (главного бухгалтера)",0,null,null,"Ф.И.О. руководителя (главного бухгалтера)"]
["pr_32_currency",null,"Валюта счета","Шот валютасы","Шот валютасы / Валюта счета",0,null,null,"Валюта счета"]
["pr_currency",null,"Валюта договора","Шарттың валютасы","Шарттың валютасы / Валюта договора",0,null,null,"Валюта договора"]
["pb_currency",null,"Валюта","Валюта","Валюта",0,null,null,"Валюта"]
["ok",null,"Ок","Ок","Ок",0,null,null,"Ок"]
["cancel",null,"Отмена","Болдырмау","Болдырмау / Отмена",0,null,null,"Отмена"]
["add",null,"Добавить","Қосу","Қосу / Добавить",0,null,null,"Добавить"]
["del",null,"Удалить","Алып тастау","Алып тастау / Удалить",0,null,null,"Удалить"]
["edit",null,"Изменить","Өзгерту","Өзгерту / Изменить",0,null,null,"Изменить"]
["clear",null,"Очистить","Тазалау","Тазалау / Очистить",0,null,null,"Очистить"]
["sort",null,"Сортировать","Сұрыптау","Сұрыптау / Сортировать",0,null,null,"Сортировать"]
["find",null,"Найти","Табу","Табу / Найти",0,null,null,"Найти"]
["search",null,"Поиск","Іздеу","Іздеу / Поиск",0,null,null,"Поиск"]
["err_field",null,"Значение поля \"{0}\" имеет недопустимое значение.","\"{0}\" жолының мәні жарамайды.","\"{0}\" жолының мәні жарамайды. / Значение поля \"{0}\" имеет недопустимое значение.",0,null,null,"Значение поля \"{0}\" имеет недопустимое значение."]
["err_double",null,"Значение поля \"{0}\" дублируется.","начение поля \"{0}\" дублируется.","начение поля \"{0}\" дублируется. / Значение поля \"{0}\" дублируется.",0,null,null,"Значение поля \"{0}\" дублируется."]
["err_list",null,"Значение поля {0} не найдено в списке.","{0} жолының мәні тізімде табылмады.","{0} жолының мәні тізімде табылмады. / Значение поля {0} не найдено в списке.",0,null,null,"Значение поля {0} не найдено в списке."]
["err_quarter",null,"Значение поля \"Квартал\" может иметь только следующие значения: \"1\", \"2\", \"3\", \"4\".","\"Тоқсан\" жолы тек келесі мәндерді қабылдай алады: \"1\", \"2\", \"3\", \"4\".","\"Тоқсан\" жолы тек келесі мәндерді қабылдай алады: \"1\", \"2\", \"3\", \"4\". / Значение поля \"Квартал\" может иметь только следующие значения: \"1\", \"2\", \"3\", \"4\".",0,null,null,"Значение поля \"Квартал\" может иметь только следующие значения: \"1\", \"2\", \"3\", \"4\"."]
["err_year",null,"Значение поля \"Год\" должно лежать в диапазоне от {0} до {1}","\"Жылы\" жолының мәні {0} бастап {1} дейінгі диапазонда болу керек.","\"Жылы\" жолының мәні {0} бастап {1} дейінгі диапазонда болу керек. / Значение поля \"Год\" должно лежать в диапазоне от {0} до {1}",0,null,null,"Значение поля \"Год\" должно лежать в диапазоне от {0} до {1}"]
["err_date",null,"Значение поля {0} должно лежать в диапазоне от {1} до {2}.","{0} жолының мәні {1} бастап {3} дейінгі диапазонда болу керек.","{0} жолының мәні {1} бастап {3} дейінгі диапазонда болу керек. / Значение поля {0} должно лежать в диапазоне от {1} до {2}.",0,null,null,"Значение поля {0} должно лежать в диапазоне от {1} до {2}."]
["err_message",null,"Значение поля имеет недопустимое значение.","Жолдың мәні жарамайды.","Жолдың мәні жарамайды. / Значение поля имеет недопустимое значение.",0,null,null,"Значение поля имеет недопустимое значение."]
["err_extra",null,"Один или более листов с дополнительными данными не скрыт. Хотите ли Вы скрыть их?","Қосымша мәліметтері бар бір және одан астам парақ жасырылмаған. Оларды жасырғыңыз келеді ме?","Қосымша мәліметтері бар бір және одан астам парақ жасырылмаған. Оларды жасырғыңыз келеді ме? / Один или более листов с дополнительными данными не скрыт. Хотите ли Вы скрыть их?",0,null,null,"Один или более листов с дополнительными данными не скрыт. Хотите ли Вы скрыть их?"]
["err_protect",null,"Книга или один или более листов с  не защищен. Хотите ли Вы защитить их?","Бір және одан астам парақ қорғалмаған. Оларды қорғағыңыз келеді ме?","Бір және одан астам парақ қорғалмаған. Оларды қорғағыңыз келеді ме? / Книга или один или более листов с  не защищен. Хотите ли Вы защитить их?",0,null,null,"Книга или один или более листов с  не защищен. Хотите ли Вы защитить их?"]
["err_part",null,"Значение поля \"Раздел\" имеет недопустимое значение.","\"Бөлім\" жолының мәні жарамайды.","\"Бөлім\" жолының мәні жарамайды. / Значение поля \"Раздел\" имеет недопустимое значение.",0,null,null,"Значение поля \"Раздел\" имеет недопустимое значение."]
["err_n2",null,"Внимание! Возможно, Вы допускаете одну из следующих ошибок:\n1) Максимальное количество знаков после разделителя дробной части - 2;\n2) Тип данных вводимой Вами информации должен иметь числовой тип.","Внимание! Возможно, Вы допускаете одну из следующих ошибок:\n1) Максимальное количество знаков после разделителя дробной части - 2;\n2) Тип данных вводимой Вами информации должен иметь числовой тип.","Внимание! Возможно, Вы допускаете одну из следующих ошибок:\n1) Максимальное количество знаков после разделителя дробной части - 2;\n2) Тип данных вводимой Вами информации должен иметь числовой тип.",0,null,null,"Внимание! Возможно, Вы допускаете одну из следующих ошибок:\n1) Максимальное количество знаков после разделителя дробной части - 2;\n2) Тип данных вводимой Вами информации должен иметь числовой тип."]
["err_n",null,"Тип данных вводимой Вами информации должен иметь числовой тип.","Сіз енгізетін ақпараттың мәліметтерінің типі сандық болуға тиіс.","Сіз енгізетін ақпараттың мәліметтерінің типі сандық болуға тиіс. / Тип данных вводимой Вами информации должен иметь числовой тип.",0,null,null,"Тип данных вводимой Вами информации должен иметь числовой тип."]
["err_p2",null,"Внимание! Возможно, Вы допускаете одну из следующих ошибок:\n1) Максимальное количество знаков после разделителя дробной части - 2;\n2) Значение по данному показателю не может быть отрицательным;\n3) Тип данных вводимой Вами информации должен иметь числовой тип.","Внимание! Возможно, Вы допускаете одну из следующих ошибок:\n1) Максимальное количество знаков после разделителя дробной части - 2;\n2) Значение по данному показателю не может быть отрицательным;\n3) Тип данных вводимой Вами информации должен иметь числовой тип.","Внимание! Возможно, Вы допускаете одну из следующих ошибок:\n1) Максимальное количество знаков после разделителя дробной части - 2;\n2) Значение по данному показателю не может быть отрицательным;\n3) Тип данных вводимой Вами информации должен иметь числовой тип.",0,null,null,"Внимание! Возможно, Вы допускаете одну из следующих ошибок:\n1) Максимальное количество знаков после разделителя дробной части - 2;\n2) Значение по данному показателю не может быть отрицательным;\n3) Тип данных вводимой Вами информации должен иметь числовой тип."]
["err_p",null,"Внимание! Возможно, Вы допускаете одну из следующих ошибок:\n1) Значение по данному показателю не может быть отрицательным;\n2) Тип данных вводимой Вами информации должен иметь числовой тип.","Внимание! Возможно, Вы допускаете одну из следующих ошибок:\n1) Значение по данному показателю не может быть отрицательным;\n2) Тип данных вводимой Вами информации должен иметь числовой тип.","Внимание! Возможно, Вы допускаете одну из следующих ошибок:\n1) Значение по данному показателю не может быть отрицательным;\n2) Тип данных вводимой Вами информации должен иметь числовой тип.",0,null,null,"Внимание! Возможно, Вы допускаете одну из следующих ошибок:\n1) Значение по данному показателю не может быть отрицательным;\n2) Тип данных вводимой Вами информации должен иметь числовой тип."]
["err_find",null,"Не заданы параметры поиска","Тип данных вводимой Вами информации должен иметь числовой тип. Значение должнобыть больше 0.","Тип данных вводимой Вами информации должен иметь числовой тип. Значение должнобыть больше 0. / Не заданы параметры поиска",0,null,null,"Не заданы параметры поиска"]
["err_detail",null,"Не выбрано ни одной расшифровки","Не выбрано ни одной расшифровки","Не выбрано ни одной расшифровки",0,null,null,"Не выбрано ни одной расшифровки"]
["part",null,"Раздел","Бөлім","Бөлім / Раздел",0,null,null,"Раздел"]
["str",null,"Показатель","Показатель","Показатель",0,null,null,"Показатель"]
["count",null,"Количество строк","Количество строк","Количество строк",0,null,null,"Количество строк"]
["total",null,"Всего","Барлығы","Барлығы\nВсего",1,null,null,"Всего"]
["password",null,"Пароль","Паролі",{"$f":"CONCATENATE(IF(B159<>\"\",CONCATENATE(B159,\" \"),\"\"),IF(p_language_current_id=1,C159,IF(p_language_current_id=2,D159,IF(C159=D159,C159,CONCATENATE(D159,IF(F159=0,\" / \",CHAR(10)),C159)))),IF(G159<>\"\",CONCATENATE(\" \",G159),\"\"))","v":"Паролі / Пароль"},0,null,null,{"$f":"CONCATENATE(A159,\"|\",C159,\"|\",D159)","v":"password|Пароль|Паролі"}]
["err_password",null,"Неверный пароль","Паролі дұрыс емес","Паролі дұрыс емес\nНеверный пароль",1,null,null,"err_password|Неверный пароль|Паролі дұрыс емес"]
["Data entry in account",null,"Ввод данных в отчет","Ввод данных в отчет","Ввод данных в отчет",0,null,null,"Data entry in account|Ввод данных в отчет|Ввод данных в отчет"]
["Data edit on sheet",null,"Изменение данных на листах","Изменение данных на листах","Изменение данных на листах",0,null,null,"Data edit on sheet|Изменение данных на листах|Изменение данных на листах"]
["Data edit on sheet with deposit",null,"Вклады","Салымдар","Салымдар / Вклады",0,null,null,"Data edit on sheet with deposit|Вклады|Салымдар"]
["Add deposit",null,"Добавить вклад","Добавить вклад","Добавить вклад",0,null,null,"Add deposit|Добавить вклад|Добавить вклад"]
["Delete deposit",null,"Удалить вклад","Удалить вклад","Удалить вклад",0,null,null,"Delete deposit|Удалить вклад|Удалить вклад"]
["Data edit on sheet with agent",null,"Инвесторы","Инвесторлар","Инвесторлар / Инвесторы",0,null,null,"Data edit on sheet with agent|Инвесторы|Инвесторлар"]
["Add agent",null,"Добавить инвестора","Добавить инвестора","Добавить инвестора",0,null,null,"Add agent|Добавить инвестора|Добавить инвестора"]
["Delete agent",null,"Удалить инвестора","Удалить инвестора","Удалить инвестора",0,null,null,"Delete agent|Удалить инвестора|Удалить инвестора"]
["Edit agent",null,"Изменить инвестора","Изменить инвестора","Изменить инвестора",0,null,null,"Edit agent|Изменить инвестора|Изменить инвестора"]
["Sort agent",null,"Сортировать инвесторов","Сортировать инвесторов","Сортировать инвесторов",0,null,null,"Sort agent|Сортировать инвесторов|Сортировать инвесторов"]
["Data edit on sheet with str",null,"Строки","Строки","Строки",0,null,null,"Data edit on sheet with str|Строки|Строки"]
["Add str",null,"Добавить строку","Добавить строку","Добавить строку",0,null,null,"Add str|Добавить строку|Добавить строку"]
["Delete str",null,"Удалить строку","Удалить строку","Удалить строку",0,null,null,"Delete str|Удалить строку|Удалить строку"]
["Data edit on sheet with str pr",null,"Отправители","Жөнелтуші","Жөнелтуші / Отправители",0,null,null,"Data edit on sheet with str pr|Отправители|Жөнелтуші"]
["Add str pr",null,"Добавить отправителя","Добавить отправителя","Добавить отправителя",0,null,null,"Add str pr|Добавить отправителя|Добавить отправителя"]
["Delete str pr",null,"Удалить отправителя","Удалить отправителя","Удалить отправителя",0,null,null,"Delete str pr|Удалить отправителя|Удалить отправителя"]
["Str opb",null,"Строки для разделов 2 листа","Строки для разделов 2 листа","Строки для разделов 2 листа",0,null,null,"Str opb|Строки для разделов 2 листа|Строки для разделов 2 листа"]
["Add opb",null,"Добавить строку","Жолды қосу","Жолды қосу / Добавить строку",0,null,null,{"$f":"IF(p_language_current_id=2,CONCATENATE(D178),CONCATENATE(C178))","v":"Добавить строку"}]
["Delete opb",null,"Удалить строку","Жолды алып тастау","Жолды алып тастау / Удалить строку",0,null,null,"Удалить строку"]
["Str pr",null,"Отправители","Жөнелтуші","Жөнелтуші / Отправители",0,null,null,"Отправители"]
["Add pr",null,"Добавить отправителя","Добавить отправителя","Добавить отправителя",0,null,null,"Добавить отправителя"]
["Delete pr",null,"Удалить отправителя","Удалить отправителя","Удалить отправителя",0,null,null,"Удалить отправителя"]
["Data edit on sheet with pb 01",null,"Показатели 1-ПБ для разделов 5 и 6 листа","Показатели 1-ПБ для разделов 5 и 6 листа","Показатели 1-ПБ для разделов 5 и 6 листа",0,null,null,"Показатели 1-ПБ для разделов 5 и 6 листа"]
["Add Pb 01",null,"Добавить показатель 1-ПБ","Добавить показатель 1-ПБ","Добавить показатель 1-ПБ",0,null,null,"Добавить показатель 1-ПБ"]
["Delete Pb 01",null,"Удалить показатель 1-ПБ","Удалить показатель 1-ПБ","Удалить показатель 1-ПБ",0,null,null,"Удалить показатель 1-ПБ"]
["Data edit on sheet with bank",null,"Банки","Банки","Банки",0,null,null,"Банки"]
["Add bank",null,"Добавить банк","Добавить банк","Добавить банк",0,null,null,"Добавить банк"]
["Delete bank",null,"Удалить банк","Удалить банк","Удалить банк",0,null,null,"Удалить банк"]
["Edit bank",null,"Изменить банк","Изменить банк","Изменить банк",0,null,null,"Изменить банк"]
["Sort bank",null,"Сортировать банки","Сортировать банки","Сортировать банки",0,null,null,"Сортировать банки"]
["Old bank",null,"Банк для изменения","Банк для изменения",{"$f":"CONCATENATE(IF(B191<>\"\",CONCATENATE(B191,\" \"),\"\"),IF(p_language_current_id=1,C191,IF(p_language_current_id=2,D191,IF(C191=D191,C191,CONCATENATE(D191,IF(F191=0,\" / \",CHAR(10)),C191)))),IF(G191<>\"\",CONCATENATE(\" \",G191),\"\"))","v":"Банк для изменения"},0,null,null,{"$f":"IF(p_language_current_id=2,CONCATENATE(D191),CONCATENATE(C191))","v":"Банк для изменения"}]
["Data edit on sheet with country",null,"Страны","Страны",{"$f":"CONCATENATE(IF(B192<>\"\",CONCATENATE(B192,\" \"),\"\"),IF(p_language_current_id=1,C192,IF(p_language_current_id=2,D192,IF(C192=D192,C192,CONCATENATE(D192,IF(F192=0,\" / \",CHAR(10)),C192)))),IF(G192<>\"\",CONCATENATE(\" \",G192),\"\"))","v":"Страны"},0,null,null,"Страны"]
["Add country",null,"Добавить страну","Добавить страну","Добавить страну",0,null,null,"Добавить страну"]
["Delete country",null,"Удалить страну","Удалить страну","Удалить страну",0,null,null,"Удалить страну"]
["Edit country",null,"Изменить страну","Изменить страну","Изменить страну",0,null,null,"Изменить страну"]
["Sort country",null,"Сортировать страны","Сортировать страны","Сортировать страны",0,null,null,"Сортировать страны"]
["Old country",null,"Страна для изменения","Страна для изменения","Страна для изменения",0,null,null,"Страна для изменения"]
["New country",null,"Новая страна","Новая страна","Новая страна",0,null,null,"Новая страна"]
["Data edit on sheet with invobj",null,"Страны и объекты инвестирования","Страны и объекты инвестирования",{"$f":"CONCATENATE(IF(B199<>\"\",CONCATENATE(B199,\" \"),\"\"),IF(p_language_current_id=1,C199,IF(p_language_current_id=2,D199,IF(C199=D199,C199,CONCATENATE(D199,IF(F199=0,\" / \",CHAR(10)),C199)))),IF(G199<>\"\",CONCATENATE(\" \",G199),\"\"))","v":"Страны и объекты инвестирования"},0,null,null,{"$f":"IF(p_language_current_id=2,CONCATENATE(D199),CONCATENATE(C199))","v":"Страны и объекты инвестирования"}]
["Add invobj",null,"Добавить страну и объект инвестирования","Добавить страну и объект инвестирования","Добавить страну и объект инвестирования",0,null,null,"Добавить страну и объект инвестирования"]
["Delete invobj",null,"Удалить страну и объект инвестирования","Удалить страну и объект инвестирования","Удалить страну и объект инвестирования",0,null,null,"Удалить страну и объект инвестирования"]
["Edit invobj",null,"Изменить страну и объект инвестирования","Изменить страну и объект инвестирования","Изменить страну и объект инвестирования",0,null,null,"Изменить страну и объект инвестирования"]
["Sort invobj",null,"Сортировать объекты инвестирования и страны","Сортировать объекты инвестирования и страны","Сортировать объекты инвестирования и страны",0,null,null,"Сортировать объекты инвестирования и страны"]
["invobj",null,"Объект инвестирования","Объект инвестирования","Объект инвестирования",0,null,null,"Объект инвестирования"]
["old invobj",null,"Объект инвестирования для изменения","Объект инвестирования для изменения",{"$f":"CONCATENATE(IF(B205<>\"\",CONCATENATE(B205,\" \"),\"\"),IF(p_language_current_id=1,C205,IF(p_language_current_id=2,D205,IF(C205=D205,C205,CONCATENATE(D205,IF(F205=0,\" / \",CHAR(10)),C205)))),IF(G205<>\"\",CONCATENATE(\" \",G205),\"\"))","v":"Объект инвестирования для изменения"},0,null,null,{"$f":"IF(p_language_current_id=2,CONCATENATE(D205),CONCATENATE(C205))","v":"Объект инвестирования для изменения"}]
["Detail",null,"Расшифровки","Расшифровки","Расшифровки",0,null,null,"Расшифровки"]
["Add detail list",null,"Список расшифровок для добавления","Список расшифровок для добавления","Список расшифровок для добавления",0,null,null,"Список расшифровок для добавления"]
["Add detail",null,"Добавить расшифровки","Добавить расшифровки","Добавить расшифровки",0,null,null,"Добавить расшифровки"]
["Delete detail",null,"Удалить расшифровки","Удалить расшифровки","Удалить расшифровки",0,null,null,"Удалить расшифровки"]
["Delete detail list",null,"Список расшифровок для удаления","Список расшифровок для удаления","Список расшифровок для удаления",0,null,null,"Список расшифровок для удаления"]
["By code",null,"По коду","По коду","По коду",0,null,null,"По коду"]
["By name",null,"По наименованию","По наименованию","По наименованию",0,null,null,"По наименованию"]
["Use case",null,"С учетом регистра","С учетом регистра","С учетом регистра",0,null,null,"С учетом регистра"]
["Find detail",null,"Поиск расшифровок","Поиск расшифровок","Поиск расшифровок",0,null,null,"Поиск расшифровок"]
["logic_check",null,"Логический контроль","Логический контроль",{"$f":"CONCATENATE(IF(B215<>\"\",CONCATENATE(B215,\" \"),\"\"),IF(p_language_current_id=1,C215,IF(p_language_current_id=2,D215,IF(C215=D215,C215,CONCATENATE(D215,IF(F215=0,\" / \",CHAR(10)),C215)))),IF(G215<>\"\",CONCATENATE(\" \",G215),\"\"))","v":"Логический контроль"},1,null,null,{"$f":"CONCATENATE(A215,\"|\",C215,\"|\",D215)","v":"logic_check|Логический контроль|Логический контроль"}]
["logic_check_formula",null,"Формула","Формуласы",{"$f":"CONCATENATE(IF(B216<>\"\",CONCATENATE(B216,\" \"),\"\"),IF(p_language_current_id=1,C216,IF(p_language_current_id=2,D216,IF(C216=D216,C216,CONCATENATE(D216,IF(F216=0,\" / \",CHAR(10)),C216)))),IF(G216<>\"\",CONCATENATE(\" \",G216),\"\"))","v":"Формуласы\nФормула"},1,null,null,"logic_check_formula|Формула|Формуласы"]
["logic_check_result",null,"Результат","Нәтижесі",{"$f":"CONCATENATE(IF(B217<>\"\",CONCATENATE(B217,\" \"),\"\"),IF(p_language_current_id=1,C217,IF(p_language_current_id=2,D217,IF(C217=D217,C217,CONCATENATE(D217,IF(F217=0,\" / \",CHAR(10)),C217)))),IF(G217<>\"\",CONCATENATE(\" \",G217),\"\"))","v":"Нәтижесі\nРезультат"},1,null,null,"logic_check_result|Результат|Нәтижесі"]
["logic_check_fields",null,"Проверка заполнения полей","Проверка заполнения полей",{"$f":"CONCATENATE(IF(B218<>\"\",CONCATENATE(B218,\" \"),\"\"),IF(p_language_current_id=1,C218,IF(p_language_current_id=2,D218,IF(C218=D218,C218,CONCATENATE(D218,IF(F218=0,\" / \",CHAR(10)),C218)))),IF(G218<>\"\",CONCATENATE(\" \",G218),\"\"))","v":"Проверка заполнения полей"},1,null,null,"logic_check_fields|Проверка заполнения полей|Проверка заполнения полей"]
["logic_check_values",null,"Проверка заполнения значений","Проверка заполнения значений",{"$f":"CONCATENATE(IF(B219<>\"\",CONCATENATE(B219,\" \"),\"\"),IF(p_language_current_id=1,C219,IF(p_language_current_id=2,D219,IF(C219=D219,C219,CONCATENATE(D219,IF(F219=0,\" / \",CHAR(10)),C219)))),IF(G219<>\"\",CONCATENATE(\" \",G219),\"\"))","v":"Проверка заполнения значений"},1,null,null,"logic_check_values|Проверка заполнения значений|Проверка заполнения значений"]
["Additional sheets",null,"Дополнительные листы","Дополнительные листы","Дополнительные листы",0,null,null,{"$f":"CONCATENATE(A220,\"|\",C220,\"|\",D220)","v":"Additional sheets|Дополнительные листы|Дополнительные листы"}]
["Additional sheets hint",null,"Действия доступные для дополнительных листов","Действия доступные для дополнительных листов","Действия доступные для дополнительных листов",1,null,null,{"$f":"CONCATENATE(A221,\"|\",C221,\"|\",D221)","v":"Additional sheets hint|Действия доступные для дополнительных листов|Действия доступные для дополнительных листов"}]
["Additional sheets show",null,"Показать листы с дополнительными данными","Показать листы с дополнительными данными","Показать листы с дополнительными данными",0,null,null,{"$f":"CONCATENATE(A222,\"|\",C222,\"|\",D222)","v":"Additional sheets show|Показать листы с дополнительными данными|Показать листы с дополнительными данными"}]
["Additional sheets hide",null,"Скрыть листы с дополнительными данными","Скрыть листы с дополнительными данными","Скрыть листы с дополнительными данными",0,null,null,{"$f":"CONCATENATE(A223,\"|\",C223,\"|\",D223)","v":"Additional sheets hide|Скрыть листы с дополнительными данными|Скрыть листы с дополнительными данными"}]
["Additional sheets show/hide hint",null,"Скрытие/показ всех листов с дополнительными данными","Скрытие/показ всех листов с дополнительными данными","Скрытие/показ всех листов с дополнительными данными",1,null,null,{"$f":"CONCATENATE(A224,\"|\",C224,\"|\",D224)","v":"Additional sheets show/hide hint|Скрытие/показ всех листов с дополнительными данными|Скрытие/показ всех листов с дополнительными данными"}]
[null,null,null,null,{"$f":"CONCATENATE(IF(B225<>\"\",CONCATENATE(B225,\" \"),\"\"),IF(p_language_current_id=1,C225,IF(p_language_current_id=2,D225,IF(C225=D225,C225,CONCATENATE(D225,IF(F225=0,\" / \",CHAR(10)),C225)))),IF(G225<>\"\",CONCATENATE(\" \",G225),\"\"))","v":""},1,null,null,{"$f":"IF(p_language_current_id=2,CONCATENATE(D225),CONCATENATE(C225))","v":""}]
[]
["Справочник месяцов"]
["ID","Код слева","Наименование на русском языке","Наименование на казахском языке","Наименование","Перенос текста","Код справа"]
[1,null,"Январь","Қаңтар",{"$f":"CONCATENATE(IF(B229<>\"\",CONCATENATE(B229,\" \"),\"\"),IF(p_language_current_id=1,C229,IF(p_language_current_id=2,D229,IF(C229=D229,C229,CONCATENATE(D229,IF(F229=0,\" / \",CHAR(10)),C229)))),IF(G229<>\"\",CONCATENATE(\" \",G229),\"\"))","v":"Қаңтар\nЯнварь"},1]
[2,null,"Февраль","Ақпан","Ақпан\nФевраль",1]
[3,null,"Март","Наурыз","Наурыз\nМарт",1]
[4,null,"Апрель","Сәуір","Сәуір\nАпрель",1]
[5,null,"Май","Май","Май",1]
[6,null,"Июнь","Маусым","Маусым\nИюнь",1]
[7,null,"Июль","Шілде","Шілде\nИюль",1]
[8,null,"Август","Тамыз","Тамыз\nАвгуст",1]
[9,null,"Сентябрь","Қыркүйек","Қыркүйек\nСентябрь",1]
[10,null,"Октябрь","Қазан","Қазан\nОктябрь",1]
[11,null,"Ноябрь","Қараша","Қараша\nНоябрь",1]
[12,null,"Декабрь","Желтоқсан","Желтоқсан\nДекабрь",1]
[]
["Справочник типов разделов"]
["ID","Код слева","Наименование на русском языке","Наименование на казахском языке","Наименование","Перенос текста","Код справа","Код","Подтип"]
[1,null,"С разбивкой по графам","Бағандар бойынша бөле отырып",{"$f":"CONCATENATE(IF(B244<>\"\",CONCATENATE(B244,\" \"),\"\"),IF(p_language_current_id=1,C244,IF(p_language_current_id=2,D244,IF(C244=D244,C244,CONCATENATE(D244,IF(F244=0,\" / \",CHAR(10)),C244)))),IF(G244<>\"\",CONCATENATE(\" \",G244),\"\"))","v":"Бағандар бойынша бөле отырып\nС разбивкой по графам"},1,null,"NotCountry"]
[2,null,"С разбивкой по странам","Елдер бойынша бөле отырып","Елдер бойынша бөле отырып\nС разбивкой по странам",1,null,"ByCountry","1 - Всего; 2 - Всего и СНГ; 3 - Графа;"]
[3,null,"С разбивкой по странам и объектам инвестирования","Инвестициялау объектісі және елдер бойынша бөле отырып","Инвестициялау объектісі және елдер бойынша бөле отырып\nС разбивкой по странам и объектам инвестирования",1,null,"InvObj"]
[4,null,"С разбивкой по предприятиям","Кәсіпорындар бойынша бөле отырып","Кәсіпорындар бойынша бөле отырып\nС разбивкой по предприятиям",1,null,"Enterprise"]
[5,null,"Без показателей","Без показателей","Без показателей",1,null,"Empty"]
[6,null,"С разбивкой по вкладам","С разбивкой по вкладам","С разбивкой по вкладам",1,null,"Deposit"]
[7,null,"Специальный","Специальный","Специальный",1]
[8,null,"С разбивкой по инвесторам","С разбивкой по инвесторам","С разбивкой по инвесторам",1,null,"Investor"]
[9,null,"С разбивкой по периодам","С разбивкой по периодам","С разбивкой по периодам",1]
[10,null,"С разбивкой по агентам","С разбивкой по агентам","С разбивкой по агентам",1,null,"Agent","1 - резидент; 2 - нерезидент."]
[11,null,"С разбивкой по столбцам","С разбивкой по столбцам","С разбивкой по столбцам",1,null,"ByStrAsCol"]
[12,null,"С разбивкой по показателям","С разбивкой по показателям",{"$f":"CONCATENATE(IF(B255<>\"\",CONCATENATE(B255,\" \"),\"\"),IF(p_language_current_id=1,C255,IF(p_language_current_id=2,D255,IF(C255=D255,C255,CONCATENATE(D255,IF(F255=0,\" / \",CHAR(10)),C255)))),IF(G255<>\"\",CONCATENATE(\" \",G255),\"\"))","v":"С разбивкой по показателям"},1,null,"ByPbStr"]
[13,null,"С разбивкой по странам, банкам и графам","С разбивкой по странам, банкам и графам",{"$f":"CONCATENATE(IF(B256<>\"\",CONCATENATE(B256,\" \"),\"\"),IF(p_language_current_id=1,C256,IF(p_language_current_id=2,D256,IF(C256=D256,C256,CONCATENATE(D256,IF(F256=0,\" / \",CHAR(10)),C256)))),IF(G256<>\"\",CONCATENATE(\" \",G256),\"\"))","v":"С разбивкой по странам, банкам и графам"},1,null,"ByBank"]
[]
["Справочник отчетов"]
["ID","Код слева","Наименование на русском языке","Наименование на казахском языке","Наименование","Перенос текста или вставка символов \" / \"","Код справа","Код","Индекс","RC mask","Тип раздела","Подтип раздела","Первая видимая ячейка >2","№ приложения","содержиние","Код слева","Наименование на русском языке","Наименование на казахском языке","Наименование","Перенос текста","Код справа","Код слева","Наименование на русском языке","Наименование на казахском языке","Наименование","Перенос текста","Код справа","Тип периода","Тип резидента","Валюта"]
[6,null,"Отчет о международных операциях, внешних активах и обязательствах сектора государственного управления","Мемлекеттік басқару секторының  халықаралық операциялары, сыртқы активтері және міндеттемелері туралы есеп",{"$f":"CONCATENATE(IF(B260<>\"\",CONCATENATE(B260,\" \"),\"\"),IF(p_language_current_id=1,C260,IF(p_language_current_id=2,D260,IF(C260=D260,C260,CONCATENATE(D260,IF(F260=0,\" / \",CHAR(10)),C260)))),IF(G260<>\"\",CONCATENATE(\" \",G260),\"\"))","v":"Мемлекеттік басқару секторының  халықаралық операциялары, сыртқы активтері және міндеттемелері туралы есеп\nОтчет о международных операциях, внешних активах и обязательствах сектора государственного управления"},1,null,"pb07_2025",{"$f":"S260","v":"7-ТБ\n7-ПБ"},null,1,1,3,15,1,null,"7-ПБ","7-ТБ",{"$f":"CONCATENATE(IF(P260<>\"\",CONCATENATE(P260,\" \"),\"\"),IF(p_language_current_id=1,Q260,IF(p_language_current_id=2,R260,IF(Q260=R260,Q260,CONCATENATE(R260,IF(T260=0,\" / \",CHAR(10)),Q260)))),IF(U260<>\"\",CONCATENATE(\" \",U260),\"\"))","v":"7-ТБ\n7-ПБ"},1,null,null,"Отчет о международных операциях, внешних активах и обязательствах сектора государственного управления","Мемлекеттік басқару секторының  халықаралық операциялары, сыртқы активтері және міндеттемелері туралы есеп",{"$f":"CONCATENATE(IF(V260<>\"\",CONCATENATE(V260,\" \"),\"\"),IF(p_language_current_id=1,W260,IF(p_language_current_id=2,X260,IF(W260=X260,W260,CONCATENATE(X260,IF(Z260=0,\" / \",CHAR(10)),W260)))),IF(AA260<>\"\",CONCATENATE(\" \",AA260),\"\"))","v":"Мемлекеттік басқару секторының  халықаралық операциялары, сыртқы активтері және міндеттемелері туралы есеп\nОтчет о международных операциях, внешних активах и обязательствах сектора государственного управления"},1,null,2,"Предприятие",{"$f":"VLOOKUP(162,p_currency,COLUMN(p_currency_name),FALSE)","v":"АҚШ ДОЛЛАРЫ\nДОЛЛАР США"}]
[]
["Справочник разделов"]
["ID","Код слева","Наименование на русском языке","Наименование на казахском языке","Наименование","Перенос текста","Код справа","Код","Раздел","Тип раздела","Подтип раздела","Галочка содержания","Уровень содержания","Лист","Код слева","Наименование на русском языке","Наименование на казахском языке","Наименование","Перенос текста","Код справа","Код слева","Наименование на русском языке","Наименование на казахском языке","Наименование","Перенос текста","Код справа","Примечание","Валюта раздела (ID из справочника переводов)","1 графа раздела","2 графа раздела","3 графа раздела","4 графа раздела","5 графа раздела","6 графа раздела","Показывать заголовки","1 название столбца","2 название столбца","3 название столбца","4 название столбца","Отчет","Ширина Num","Ширина Code","Ширина Name","Ширина Col 1","Ширина Col 2","Ширина Col 3","Ширина Col 4","Ширина Col 5","Ширина Col 6","Ширина Col 7","Ширина Col 8","Ширина Col 9","Ширина Col 10","Ширина Col 11","Ширина Col 12"]
[1056,null,"Раздел 1. Услуги  и  трансферты, полученные от нерезидентов (предоставленные нерезидентам), тысяч долларов Соединенных Штатов Америки (далее – США)","1-бөлім. Бейрезиденттерден алынған (бейрезиденттерге ұсынылған) қызметтер және трансферттер, Америка Құрама Штаттарының мың (бұдан әрі – АҚШ) доллары",{"$f":"CONCATENATE(IF(B264<>\"\",CONCATENATE(B264,\" \"),\"\"),IF(p_language_current_id=1,C264,IF(p_language_current_id=2,D264,IF(C264=D264,C264,CONCATENATE(D264,IF(F264=0,\" / \",CHAR(10)),C264)))),IF(G264<>\"\",CONCATENATE(\" \",G264),\"\"))","v":"1-бөлім. Бейрезиденттерден алынған (бейрезиденттерге ұсынылған) қызметтер және трансферттер, Америка Құрама Штаттарының мың (бұдан әрі – АҚШ) доллары\nРаздел 1. Услуги  и  трансферты, полученные от нерезидентов (предоставленные нерезидентам), тысяч долларов Соединенных Штатов Америки (далее – США)"},1,null,"1",0,5,1,1,1,5,null,"Раздел 1.","1-бөлім.",{"$f":"CONCATENATE(IF(O264<>\"\",CONCATENATE(O264,\" \"),\"\"),IF(p_language_current_id=1,P264,IF(p_language_current_id=2,Q264,IF(P264=Q264,P264,CONCATENATE(Q264,IF(S264=0,\" / \",CHAR(10)),P264)))),IF(T264<>\"\",CONCATENATE(\" \",T264),\"\"))","v":"1-бөлім.\nРаздел 1."},1,null,null,"Услуги  и  трансферты, полученные от нерезидентов (предоставленные нерезидентам), тысяч долларов Соединенных Штатов Америки (далее – США)","Бейрезиденттерден алынған (бейрезиденттерге ұсынылған) қызметтер және трансферттер, Америка Құрама Штаттарының мың (бұдан әрі – АҚШ) доллары",{"$f":"CONCATENATE(IF(U264<>\"\",CONCATENATE(U264,\" \"),\"\"),IF(p_language_current_id=1,V264,IF(p_language_current_id=2,W264,IF(V264=W264,V264,CONCATENATE(W264,IF(Y264=0,\" / \",CHAR(10)),V264)))),IF(Z264<>\"\",CONCATENATE(\" \",Z264),\"\"))","v":"Бейрезиденттерден алынған (бейрезиденттерге ұсынылған) қызметтер және трансферттер, Америка Құрама Штаттарының мың (бұдан әрі – АҚШ) доллары\nУслуги  и  трансферты, полученные от нерезидентов (предоставленные нерезидентам), тысяч долларов Соединенных Штатов Америки (далее – США)"},1,null,null,"currency_1","indicator_style","indicator_name","indicator_code",null,null,null,null,"cols_name","cols_code","","",6,8.5,8.5,72.5,12.5]
[11,null,"Часть А. Официальные услуги","А бөлігі. Ресми қызметтер","А бөлігі. Ресми қызметтер\nЧасть А. Официальные услуги",1,null,"А",1056,2,1,1,2,5,null,"Часть А.","А бөлігі.","А бөлігі.\nЧасть А.",1,null,null,"Официальные услуги","Ресми қызметтер","Ресми қызметтер\nОфициальные услуги",1,null,null,"currency_1","indicator_style","indicator_name","indicator_code",null,null,null,null,"cols_name","cols_code","","",6,8.5,8.5,72.5,12.5]
[12,null,"Часть Б. Прочие виды услуг","Б бөлігі. Қызметтердің басқа да түрлері","Б бөлігі. Қызметтердің басқа да түрлері\nЧасть Б. Прочие виды услуг",1,null,"Б",1056,2,1,1,2,6,null,"Часть Б.","Б бөлігі.","Б бөлігі.\nЧасть Б.",1,null,null,"Прочие виды услуг","Қызметтердің басқа да түрлері","Қызметтердің басқа да түрлері\nПрочие виды услуг",1,null,null,"currency_1","indicator_style","indicator_name","indicator_code",null,null,null,null,"cols_name","cols_code","","",6,8.5,8.5,72.5,12.5]
[13,null,"Часть В. Текущие и капитальные трансферты","В бөлігі. Ағымдағы және күрделі трансферттер","В бөлігі. Ағымдағы және күрделі трансферттер\nЧасть В. Текущие и капитальные трансферты",1,null,"В",1056,2,1,1,2,7,null,"Часть В.","В бөлігі.","В бөлігі.\nЧасть В.",1,null,null,"Текущие и капитальные трансферты","Ағымдағы және күрделі трансферттер","Ағымдағы және күрделі трансферттер\nТекущие и капитальные трансферты",1,null,null,"currency_1","indicator_style","indicator_name","indicator_code",null,null,null,null,"cols_name","cols_code","","",6,8.5,8.5,72.5,12.5]
[1057,null,"Раздел 2. Финансовые требования к нерезидентам и обязательства перед ними, тысяч долларов США","2-бөлім. Бейрезиденттерге қойылатын қаржылық талаптар және олардың алдындағы міндеттемелер, мың АҚШ доллары ","2-бөлім. Бейрезиденттерге қойылатын қаржылық талаптар және олардың алдындағы міндеттемелер, мың АҚШ доллары \nРаздел 2. Финансовые требования к нерезидентам и обязательства перед ними, тысяч долларов США",1,null,"2",0,5,1,1,1,8,null,"Раздел 2.","2-бөлім.","2-бөлім.\nРаздел 2.",1,null,null,"Финансовые требования к нерезидентам и обязательства перед ними, тысяч долларов США","Бейрезиденттерге қойылатын қаржылық талаптар және олардың алдындағы міндеттемелер, мың АҚШ доллары ","Бейрезиденттерге қойылатын қаржылық талаптар және олардың алдындағы міндеттемелер, мың АҚШ доллары \nФинансовые требования к нерезидентам и обязательства перед ними, тысяч долларов США",1,null,null,"currency_1","indicator_style","indicator_name","indicator_code",null,null,null,null,"cols_name","cols_code","","",6,8.5,8.5,72.5,12.5]
[162,null,"Часть А. Участие в международных организациях","А бөлігі. Халықаралық ұйымдарға қатысу","А бөлігі. Халықаралық ұйымдарға қатысу\nЧасть А. Участие в международных организациях",1,null,"А",1057,2,1,1,2,8,null,"Часть А.","А бөлігі.","А бөлігі.\nЧасть А.",1,null,null,"Участие в международных организациях","Халықаралық ұйымдарға қатысу","Халықаралық ұйымдарға қатысу\nУчастие в международных организациях",1,null,null,"currency_1","indicator_style","indicator_name","indicator_code",null,null,null,null,"cols_name","cols_code","","",6,8.5,8.5,72.5,12.5]
[163,null,"Часть Б. Участие в капитале нерезидентов: иностранных юридических лиц, инвестиционных фондов","Б бөлігі. Бейрезиденттердің: шетелдік заңды тұлғалардың, инвестициялық қорлардың капиталына қатысу","Б бөлігі. Бейрезиденттердің: шетелдік заңды тұлғалардың, инвестициялық қорлардың капиталына қатысу\nЧасть Б. Участие в капитале нерезидентов: иностранных юридических лиц, инвестиционных фондов",1,null,"Б",1057,3,1,1,2,9,null,"Часть Б.","Б бөлігі.","Б бөлігі.\nЧасть Б.",1,null,null,"Участие в капитале нерезидентов: иностранных юридических лиц, инвестиционных фондов","Бейрезиденттердің: шетелдік заңды тұлғалардың, инвестициялық қорлардың капиталына қатысу","Бейрезиденттердің: шетелдік заңды тұлғалардың, инвестициялық қорлардың капиталына қатысу\nУчастие в капитале нерезидентов: иностранных юридических лиц, инвестиционных фондов",1,null,null,"currency_1","indicator_style","indicator_name","indicator_code",null,null,null,null,"cols_name","cols_code","","",6,8.5,8.5,72.5,12.5]
[164,null,"Часть В. Иные требования к нерезидентам","В бөлігі. Бейрезиденттерге қойылатын өзге де талаптар","В бөлігі. Бейрезиденттерге қойылатын өзге де талаптар\nЧасть В. Иные требования к нерезидентам",1,null,"В",1057,2,1,1,2,10,null,"Часть В.","В бөлігі.","В бөлігі.\nЧасть В.",1,null,null,"Иные требования к нерезидентам","Бейрезиденттерге қойылатын өзге де талаптар","Бейрезиденттерге қойылатын өзге де талаптар\nИные требования к нерезидентам",1,null,null,"currency_1","indicator_style","indicator_name","indicator_code",null,null,null,null,"cols_name","cols_code","","",6,8.5,8.5,72.5,12.5]
[165,null,"Часть Г. Обязательства перед нерезидентами (за исключением официальных внешних займов и еврооблигаций Правительства Республики Казахстан)","Г бөлігі. Бейрезиденттер алдындағы міндеттемелер (Қазақстан Республикасы Үкіметінің ресми сыртқы қарыздарын және еурооблигацияларды","Г бөлігі. Бейрезиденттер алдындағы міндеттемелер (Қазақстан Республикасы Үкіметінің ресми сыртқы қарыздарын және еурооблигацияларды\nЧасть Г. Обязательства перед нерезидентами (за исключением официальных внешних займов и еврооблигаций Правительства Республики Казахстан)",1,null,"Г",1057,2,1,1,2,11,null,"Часть Г.","Г бөлігі.","Г бөлігі.\nЧасть Г.",1,null,null,"Обязательства перед нерезидентами (за исключением официальных внешних займов и еврооблигаций Правительства Республики Казахстан)","Бейрезиденттер алдындағы міндеттемелер (Қазақстан Республикасы Үкіметінің ресми сыртқы қарыздарын және еурооблигацияларды","Бейрезиденттер алдындағы міндеттемелер (Қазақстан Республикасы Үкіметінің ресми сыртқы қарыздарын және еурооблигацияларды\nОбязательства перед нерезидентами (за исключением официальных внешних займов и еврооблигаций Правительства Республики Казахстан)",1,null,null,"currency_1","indicator_style","indicator_name","indicator_code",null,null,null,null,"cols_name","cols_code","","",6,8.5,8.5,72.5,12.5]
[1065,null,"Раздел 3. Прочие операции с нерезидентами","3-бөлім. Бейрезиденттермен жасалған басқа да операциялар","3-бөлім. Бейрезиденттермен жасалған басқа да операциялар\nРаздел 3. Прочие операции с нерезидентами",1,null,"3",0,1,1,1,1,12,null,"Раздел 3.","3-бөлім","3-бөлім\nРаздел 3.",1,null,null,"Прочие операции с нерезидентами","Бейрезиденттермен жасалған басқа да операциялар","Бейрезиденттермен жасалған басқа да операциялар\nПрочие операции с нерезидентами",1,null,null,"currency_1","indicator_style","indicator_name","indicator_code",null,null,null,null,"cols_name","cols_code","","",6,8.5,8.5,72.5,12.5]
[]
["Справочник строк"]
["ID","Код слева","Наименование на русском языке","Наименование на казахском языке","Наименование","Перенос текста","Код справа","Код","Раздел","Ширина","Стиль данных","Тип данных","Примечание","Расшифровки","Родитель","Справочник","Свойство","Содержание","Допускает -"]
[2123,null,"Услуги, полученные от нерезидентов","Бейрезиденттерден алынған қызметтер",{"$f":"CONCATENATE(IF(B277<>\"\",CONCATENATE(B277,\" \"),\"\"),IF(p_language_current_id=1,C277,IF(p_language_current_id=2,D277,IF(C277=D277,C277,CONCATENATE(D277,IF(F277=0,\" / \",CHAR(10)),C277)))),IF(G277<>\"\",CONCATENATE(\" \",G277),\"\"))","v":"Бейрезиденттерден алынған қызметтер\nУслуги, полученные от нерезидентов"},1,null,"",11,null,3,1,null,null,0,0,null,null,1]
[2124,null,"Расходы на приобретение земельных участков на территории иностранных государств для строительства объектов недвижимости для посольств, консульств и других казахстанских дипломатических и официальных представительств за рубежом","Елшіліктер, консулдықтар және шетелдегі басқа да қазақстандық дипломатиялық және ресми өкілдіктер үшін жылжымайтын мүлік объектілерін салу үшін шетел мемлекеттерінің аумағында жер учаскелерін сатып алуға жұмсалған  шығыстар","Елшіліктер, консулдықтар және шетелдегі басқа да қазақстандық дипломатиялық және ресми өкілдіктер үшін жылжымайтын мүлік объектілерін салу үшін шетел мемлекеттерінің аумағында жер учаскелерін сатып алуға жұмсалған  шығыстар\nРасходы на приобретение земельных участков на территории иностранных государств для строительства объектов недвижимости для посольств, консульств и других казахстанских дипломатических и официальных представительств за рубежом",1,null,"10",11,null,0,1,null,null,0,0,null,null,1]
[2125,null,"Расходы на приобретение  объектов недвижимости на территории иностранных государств для посольств, консульств и других казахстанских дипломатических и официальных представительств за рубежом","Шетел мемлекеттерінің аумағында елшіліктер, консулдықтар және шетелдегі басқа да қазақстандық дипломатиялық және ресми өкілдіктер үшін жылжымайтын мүлік объектілерін сатып алуға жұмсалған шығыстар","Шетел мемлекеттерінің аумағында елшіліктер, консулдықтар және шетелдегі басқа да қазақстандық дипломатиялық және ресми өкілдіктер үшін жылжымайтын мүлік объектілерін сатып алуға жұмсалған шығыстар\nРасходы на приобретение  объектов недвижимости на территории иностранных государств для посольств, консульств и других казахстанских дипломатических и официальных представительств за рубежом",1,null,"20",11,null,0,1,null,null,0,0,null,null,1]
[2126,null,"Расходы на содержание  посольств, консульств и других казахстанских дипломатических и официальных представительств за рубежом (за исключением заработной платы)","Шетелдегі елшіліктерді, консулдықтарды және басқа да қазақстандық дипломатиялық және ресми өкілдіктерін күтіп-ұстауға жұмсалған шығыстар (жалақыны қоспағанда)","Шетелдегі елшіліктерді, консулдықтарды және басқа да қазақстандық дипломатиялық және ресми өкілдіктерін күтіп-ұстауға жұмсалған шығыстар (жалақыны қоспағанда)\nРасходы на содержание  посольств, консульств и других казахстанских дипломатических и официальных представительств за рубежом (за исключением заработной платы)",1,null,"30",11,null,0,1,null,null,0,0,null,null,1]
[68,null,"Заработная плата и другие выплаты, полученные резидентами Казахстана, работающими в посольствах, консульствах и других казахстанских дипломатических и официальных представительствах за рубежом","Шетелдегі елшіліктерде, консулдықтарда және басқа да қазақстандық дипломатиялық және ресми өкілдіктерінде жұмыс істейтін Қазақстан резиденттері алған жалақы және басқа да төлемдер","Шетелдегі елшіліктерде, консулдықтарда және басқа да қазақстандық дипломатиялық және ресми өкілдіктерінде жұмыс істейтін Қазақстан резиденттері алған жалақы және басқа да төлемдер\nЗаработная плата и другие выплаты, полученные резидентами Казахстана, работающими в посольствах, консульствах и других казахстанских дипломатических и официальных представительствах за рубежом",1,null,"40",11,null,0,1,null,null,0,0,null,null,1]
[69,null,"Заработная плата и другие выплаты нерезидентам Казахстана, работающим в посольствах, консульствах и других казахстанских дипломатических и официальных представительствах за рубежом","Шетелдегі елшіліктерде, консулдықтарда және басқа да қазақстандық дипломатиялық және ресми өкілдіктерде жұмыс істейтін Қазақстанның бейрезиденттеріне жалақы және басқа да төлемдер","Шетелдегі елшіліктерде, консулдықтарда және басқа да қазақстандық дипломатиялық және ресми өкілдіктерде жұмыс істейтін Қазақстанның бейрезиденттеріне жалақы және басқа да төлемдер\nЗаработная плата и другие выплаты нерезидентам Казахстана, работающим в посольствах, консульствах и других казахстанских дипломатических и официальных представительствах за рубежом",1,null,"50",11,null,0,1,null,null,0,0,null,null,1]
[2127,null,"Платежи за аренду (использование) природных ресурсов на территории иностранных государств","Шетел мемлекеттерінің аумағындағы табиғи ресурстарды жалға алу (пайдалану) үшін төлемдер","Шетел мемлекеттерінің аумағындағы табиғи ресурстарды жалға алу (пайдалану) үшін төлемдер\nПлатежи за аренду (использование) природных ресурсов на территории иностранных государств",1,null,"60",11,null,0,1,null,null,0,0,null,null,1]
[4967,null,"Сборы посольств и консульств иностранных государств за выдачу виз гражданам Казахстана","Қазақстан азаматтарына виза бергені үшін шетмемлекеттердің елшіліктері мен консулдықтарының алымдары","Қазақстан азаматтарына виза бергені үшін шетмемлекеттердің елшіліктері мен консулдықтарының алымдары\nСборы посольств и консульств иностранных государств за выдачу виз гражданам Казахстана",1,null,"62",11,null,0,1,null,null,0,0,null,null,0]
[2128,null,"Услуги, оказанные нерезидентам","Бейрезиденттерге көрсетілген қызметтер","Бейрезиденттерге көрсетілген қызметтер\nУслуги, оказанные нерезидентам",1,null,"",11,null,3,1,null,null,0,0,null,null,1]
[4424,null,"Сборы посольств и консульств Казахстана за выдачу виз нерезидентам Казахстана","Қазақстанның елшіліктері мен консулдықтарында Қазақстан резидент еместеріне  виза беру үшін алымдар","Қазақстанның елшіліктері мен консулдықтарында Қазақстан резидент еместеріне  виза беру үшін алымдар\nСборы посольств и консульств Казахстана за выдачу виз нерезидентам Казахстана",1,null,"65",11,null,0,1,null,null,0,0,null,null,1]
[2129,null,"Поступления от продажи  земельных участков на территории Казахстана для строительства объектов недвижимости для посольств, консульств и других иностранных дипломатических и официальных представительств в Казахстане","Қазақстанның аумағында елшіліктер, консулдықтар және Қазақстандағы басқа да шетелдік дипломатиялық және ресми өкілдіктер үшін жылжымайтын мүлік объектілерін салу үшін жер телімдерін сатудан түскен түсімдер","Қазақстанның аумағында елшіліктер, консулдықтар және Қазақстандағы басқа да шетелдік дипломатиялық және ресми өкілдіктер үшін жылжымайтын мүлік объектілерін салу үшін жер телімдерін сатудан түскен түсімдер\nПоступления от продажи  земельных участков на территории Казахстана для строительства объектов недвижимости для посольств, консульств и других иностранных дипломатических и официальных представительств в Казахстане",1,null,"70",11,null,0,1,null,null,0,0,null,null,1]
[2130,null,"Поступления от продажи объектов недвижимости на территории Казахстана для посольств, консульств и других иностранных дипломатических и официальных представительств в Казахстане","Қазақстанның аумағында елшіліктер, консулдықтар және Қазақстандағы басқа да шетелдік дипломатиялық және ресми өкілдіктер үшін жылжымайтын мүлік объектілерін сатудан түскен түсімдер","Қазақстанның аумағында елшіліктер, консулдықтар және Қазақстандағы басқа да шетелдік дипломатиялық және ресми өкілдіктер үшін жылжымайтын мүлік объектілерін сатудан түскен түсімдер\nПоступления от продажи объектов недвижимости на территории Казахстана для посольств, консульств и других иностранных дипломатических и официальных представительств в Казахстане",1,null,"80",11,null,0,1,null,null,0,0,null,null,1]
[2131,null,"Поступления от предоставления в аренду (пользование) природных ресурсов на территории Казахстана","Қазақстан аумағында табиғи ресурстарды жалға (пайдалануға) беруден түскен түсімдер","Қазақстан аумағында табиғи ресурстарды жалға (пайдалануға) беруден түскен түсімдер\nПоступления от предоставления в аренду (пользование) природных ресурсов на территории Казахстана",1,null,"90",11,null,0,1,null,null,0,0,null,null,1]
[4425,null,"Услуги, полученные от нерезидентов","Бейрезиденттерден алынған қызметтер","Бейрезиденттерден алынған қызметтер\nУслуги, полученные от нерезидентов",1,null,"",12,null,3,1,null,null,0,0,null,null,1]
[71,null,"Обучение граждан Казахстана за рубежом","Қазақстан азаматтарын шет елде оқыту","Қазақстан азаматтарын шет елде оқыту\nОбучение граждан Казахстана за рубежом",1,null,"100",12,null,0,1,null,null,0,0,null,null,1]
[4968,null,"Обучение граждан Казахстана, находящихся на территории РК (дистанционно, приезд иностранных преподавателей)","Қазақстан Республикасының аумағындағы Қазақстан азаматтарын оқыту (қашықтықтан, шетелдік оқытушылардың келуі)","Қазақстан Республикасының аумағындағы Қазақстан азаматтарын оқыту (қашықтықтан, шетелдік оқытушылардың келуі)\nОбучение граждан Казахстана, находящихся на территории РК (дистанционно, приезд иностранных преподавателей)",1,null,"101",12,null,0,1,null,null,0,0,null,null,0]
[4428,null,"Услуги здравоохранения, предоставленные гражданам Казахстана за рубежом","Қазақстан азаматтарына шет елде көрсетілген денсаулық сақтау қызметтері","Қазақстан азаматтарына шет елде көрсетілген денсаулық сақтау қызметтері\nУслуги здравоохранения, предоставленные гражданам Казахстана за рубежом",1,null,"105",12,null,0,1,null,null,0,0,null,null,1]
[4429,null,"Услуги здравоохранения, предоставленные гражданам Казахстана дистанционно, приезд иностранных медицинских работников","Қазақстан азаматтарына қашықтықтан көрсетілген денсаулық сақтау қызметтері, шетелдік медициналық қызметкерлердің келуі","Қазақстан азаматтарына қашықтықтан көрсетілген денсаулық сақтау қызметтері, шетелдік медициналық қызметкерлердің келуі\nУслуги здравоохранения, предоставленные гражданам Казахстана дистанционно, приезд иностранных медицинских работников",1,null,"106",12,null,0,1,null,null,0,0,null,null,1]
[72,null,"Строительные услуги (включая ремонт и техническое  обслуживание в связи со строительством), в том числе:","Құрылыс қызметтері (құрылыспен байланысты жөндеу және техникалық қызмет көрсетуді қосқанда) оның ішінде:","Құрылыс қызметтері (құрылыспен байланысты жөндеу және техникалық қызмет көрсетуді қосқанда) оның ішінде:\nСтроительные услуги (включая ремонт и техническое  обслуживание в связи со строительством), в том числе:",1,null,"110",12,null,1,1,null,null,0,0,null,null,1]
[4426,null,"        строительство за границей","        шетелдегі құрылыс","        шетелдегі құрылыс\n        строительство за границей",1,null,"111",12,null,0,1,null,null,0,0,null,null,1]
[4427,null,"        строительство в Казахстане","        Қазақстандағы құрылыс","        Қазақстандағы құрылыс\n        строительство в Казахстане",1,null,"117",12,null,0,1,null,null,0,0,null,null,1]
[2132,null,"Консультационные услуги в области управления","Басқару саласындағы  консультациялық қызметтер","Басқару саласындағы  консультациялық қызметтер\nКонсультационные услуги в области управления",1,null,"120",12,null,0,1,null,null,0,0,null,null,1]
[4430,null,"Юридические услуги","Заң қызметтері","Заң қызметтері\nЮридические услуги",1,null,"121",12,null,0,1,null,null,0,0,null,null,1]
[4431,null,"Финансовые услуги","Қаржы қызметтерін көрсету","Қаржы қызметтерін көрсету\nФинансовые услуги",1,null,"122",12,null,0,1,null,null,0,0,null,null,1]
[4432,null,"Телекоммуникационные услуги (услуги связи без учета стоимости передаваемой информации)","Телекоммуникациялық қызметтер (берілетін ақпараттың құнын есептемегендегі байланыс қызметтері)","Телекоммуникациялық қызметтер (берілетін ақпараттың құнын есептемегендегі байланыс қызметтері)\nТелекоммуникационные услуги (услуги связи без учета стоимости передаваемой информации)",1,null,"125",12,null,0,1,null,null,0,0,null,null,1]
[4433,null,"Информационные услуги","Ақпараттық қызметтер","Ақпараттық қызметтер\nИнформационные услуги",1,null,"127",12,null,0,1,null,null,0,0,null,null,1]
[2133,null,"Компьютерные услуги (включая ремонт и техническое обслуживание компьютеров)","Компьютерлік қызметтер (компьютерлерді жөндеу және қызмет көрсетуді қоса алғанда)","Компьютерлік қызметтер (компьютерлерді жөндеу және қызмет көрсетуді қоса алғанда)\nКомпьютерные услуги (включая ремонт и техническое обслуживание компьютеров)",1,null,"130",12,null,0,1,null,null,0,0,null,null,1]
[4434,null,"Услуги по ремонту и техническому обслуживанию, не отнесенные к другим категориям","Басқа санаттарға жатқызылмаған жөндеу және техникалық қызмет көрсету бойынша қызметтер","Басқа санаттарға жатқызылмаған жөндеу және техникалық қызмет көрсету бойынша қызметтер\nУслуги по ремонту и техническому обслуживанию, не отнесенные к другим категориям",1,null,"131",12,null,0,1,null,null,0,0,null,null,1]
[4438,null,"Услуги по обслуживанию нерезидентами транспортных средств (включая самолеты)","Бейрезиденттердің көлік құралдарына қызмет көрсету жөніндегі қызметтер (ұшақтарды қоса алғанда)","Бейрезиденттердің көлік құралдарына қызмет көрсету жөніндегі қызметтер (ұшақтарды қоса алғанда)\nУслуги по обслуживанию нерезидентами транспортных средств (включая самолеты)",1,null,"135",12,null,0,1,null,null,0,0,null,null,1]
[4969,null,"Доход иностранных спортсменов в зрелищных мероприятиях в Казахстане, доход за перевод иностранных спортсменов в казахстанские команды","Шетелдік спортшылардың Қазақстандағы ойын-сауық іс-шараларындағы табысы, шетелдік спортшыларды қазақстандық командаларға ауыстырғаны үшін табысы","Шетелдік спортшылардың Қазақстандағы ойын-сауық іс-шараларындағы табысы, шетелдік спортшыларды қазақстандық командаларға ауыстырғаны үшін табысы\nДоход иностранных спортсменов в зрелищных мероприятиях в Казахстане, доход за перевод иностранных спортсменов в казахстанские команды",1,null,"136",12,null,0,1,null,null,0,0,null,null,0]
[4970,null,"Доход иностранных артистов и других работников искусства в зрелищных мероприятиях в Казахстане","Қазақстандағы ойын-сауық іс-шараларындағы шетелдік әртістер мен басқа да өнер қызметкерлерінің табысы","Қазақстандағы ойын-сауық іс-шараларындағы шетелдік әртістер мен басқа да өнер қызметкерлерінің табысы\nДоход иностранных артистов и других работников искусства в зрелищных мероприятиях в Казахстане",1,null,"137",12,null,0,1,null,null,0,0,null,null,0]
[2134,null,"Прочие услуги (расшифровать)","Өзге қызметтер (толық көрсетіңіз)","Өзге қызметтер (толық көрсетіңіз)\nПрочие услуги (расшифровать)",1,null,"140",12,null,5,1,null,21,0,0,null,null,1]
[4439,null,"Услуги, оказанные нерезидентам","Бейрезиденттерге көрсетілген қызметтер",{"$f":"CONCATENATE(IF(B309<>\"\",CONCATENATE(B309,\" \"),\"\"),IF(p_language_current_id=1,C309,IF(p_language_current_id=2,D309,IF(C309=D309,C309,CONCATENATE(D309,IF(F309=0,\" / \",CHAR(10)),C309)))),IF(G309<>\"\",CONCATENATE(\" \",G309),\"\"))","v":"Бейрезиденттерге көрсетілген қызметтер\nУслуги, оказанные нерезидентам"},1,null,"",12,null,3,1,null,null,0,0,null,null,1]
[4440,null,"Услуги здравоохранения, предоставленные иностранным гражданам, находящимся на территории Казахстана","Қазақстан аумағындағы шетел азаматтарына көрсетілген денсаулық сақтау қызметтері","Қазақстан аумағындағы шетел азаматтарына көрсетілген денсаулық сақтау қызметтері\nУслуги здравоохранения, предоставленные иностранным гражданам, находящимся на территории Казахстана",1,null,"141",12,null,0,1,null,null,0,0,null,null,1]
[4441,null,"Услуги здравоохранения, предоставленные иностранным гражданам, находящимся за рубежом (дистанционно, выезд казахстанских медицинских работников)","Шетелдегі шетел азаматтарына көрсетілген денсаулық сақтау қызметтері (қашықтықтан, қазақстандық медицина қызметкерлерінің баруы)","Шетелдегі шетел азаматтарына көрсетілген денсаулық сақтау қызметтері (қашықтықтан, қазақстандық медицина қызметкерлерінің баруы)\nУслуги здравоохранения, предоставленные иностранным гражданам, находящимся за рубежом (дистанционно, выезд казахстанских медицинских работников)",1,null,"142",12,null,0,1,null,null,0,0,null,null,1]
[4442,null,"Консультационные услуги в области управления","Басқару саласындағы  консультациялық қызметтер","Басқару саласындағы  консультациялық қызметтер\nКонсультационные услуги в области управления",1,null,"143",12,null,0,1,null,null,0,0,null,null,1]
[4443,null,"Юридические услуги","Заң қызметтері","Заң қызметтері\nЮридические услуги",1,null,"144",12,null,0,1,null,null,0,0,null,null,1]
[4444,null,"Информационные услуги","Ақпараттық қызметтер","Ақпараттық қызметтер\nИнформационные услуги",1,null,"145",12,null,0,1,null,null,0,0,null,null,1]
[4971,null,"Доход казахстанских спортсменов в зрелищных мероприятиях за границей, доход за перевод казахстанских спортсменов в иностранные команды","Қазақстандық спортшылардың Шетелдегі ойын-сауық іс-шараларындағы табысы, қазақстандық спортшыларды шетелдік командаларға ауыстырғаны үшін табысы","Қазақстандық спортшылардың Шетелдегі ойын-сауық іс-шараларындағы табысы, қазақстандық спортшыларды шетелдік командаларға ауыстырғаны үшін табысы\nДоход казахстанских спортсменов в зрелищных мероприятиях за границей, доход за перевод казахстанских спортсменов в иностранные команды",1,null,"146",12,null,0,1,null,null,0,0,null,null,0]
[4972,null,"Доход казахстанских артистов и других работников искусства в зрелищных мероприятиях за границей","Қазақстандық әртістер мен басқа да өнер қызметкерлерінің Шетелдегі ойын-сауық іс-шараларындағы табысы","Қазақстандық әртістер мен басқа да өнер қызметкерлерінің Шетелдегі ойын-сауық іс-шараларындағы табысы\nДоход казахстанских артистов и других работников искусства в зрелищных мероприятиях за границей",1,null,"147",12,null,0,1,null,null,0,0,null,null,0]
[4445,null,"Прочие услуги (расшифровать)","Өзге қызметтер (толық көрсетіңіз)","Өзге қызметтер (толық көрсетіңіз)\nПрочие услуги (расшифровать)",1,null,"149",12,null,5,1,null,21,0,0,null,null,1]
[2135,null,"      Трансферты, предоставленные нерезидентам ","      Бейрезиденттерге ұсынылған трансферттер","      Бейрезиденттерге ұсынылған трансферттер\n      Трансферты, предоставленные нерезидентам ",1,null,"",13,null,3,1,null,null,0,0,null,null,1]
[73,null,"Членские взносы, выплаченные в международные организации и межгосударственные органы","Халықаралық ұйымдарға және мемлекетаралық органдарға төленген мүшелік жарналар","Халықаралық ұйымдарға және мемлекетаралық органдарға төленген мүшелік жарналар\nЧленские взносы, выплаченные в международные организации и межгосударственные органы",1,null,"150",13,null,0,1,null,null,0,0,null,null,1]
[2136,null,"Трансферты на инвестиционные цели","Инвестициялық мақсаттарға арналған трансферттер","Инвестициялық мақсаттарға арналған трансферттер\nТрансферты на инвестиционные цели",1,null,"160",13,null,0,1,null,null,0,0,null,null,1]
[2137,null,"Компенсационные выплаты в связи с нанесением ущерба капитальным активам и другими повреждениями","Күрделі активтерге келтірілген зиянға және басқа бұзушылықтарға байланысты өтемақы төлемдері","Күрделі активтерге келтірілген зиянға және басқа бұзушылықтарға байланысты өтемақы төлемдері\nКомпенсационные выплаты в связи с нанесением ущерба капитальным активам и другими повреждениями",1,null,"170",13,null,0,1,null,null,0,0,null,null,1]
[4446,null,"Текущие операции в рамках международного сотрудничества, в  том числе:","Халықаралық ынтымақтастық шеңберіндегі ағымдағы операциялар, оның ішінде:","Халықаралық ынтымақтастық шеңберіндегі ағымдағы операциялар, оның ішінде:\nТекущие операции в рамках международного сотрудничества, в  том числе:",1,null,"171",13,null,0,1,null,null,0,0,null,null,1]
[4447,null,"     гуманитарная помощь","     гуманитарлық көмек","     гуманитарлық көмек\n     гуманитарная помощь",1,null,"172",13,null,0,1,null,null,0,0,null,null,1]
[4448,null,"     техническая  помощь","     техникалық көмек","     техникалық көмек\n     техническая  помощь",1,null,"173",13,null,0,1,null,null,0,0,null,null,1]
[4449,null,"     таможенные платежи","     кеден төлемдері","     кеден төлемдері\n     таможенные платежи",1,null,"174",13,null,0,1,null,null,0,0,null,null,1]
[4450,null,"     прочие операции","     басқа да  операциялар","     басқа да  операциялар\n     прочие операции",1,null,"175",13,null,0,1,null,null,0,0,null,null,1]
[4451,null,"Платежи нерезидентам в виде пени, штрафов, налагаемых судами","Бейрезиденттерге сот шешімі бойынша салынатын өсімпұлдар, айыппұлдар түрінде төленетін төлемдер","Бейрезиденттерге сот шешімі бойынша салынатын өсімпұлдар, айыппұлдар түрінде төленетін төлемдер\nПлатежи нерезидентам в виде пени, штрафов, налагаемых судами",1,null,"179",13,null,0,1,null,null,0,0,null,null,1]
[4584,null,"Прочие трансферты (расшифровать)","Басқа да трансферттер (толық көрсетіңіз)","Басқа да трансферттер (толық көрсетіңіз)\nПрочие трансферты (расшифровать)",1,null,"180",13,null,5,1,null,20,0,0,null,null,1]
[2139,null,"      Трансферты, полученные от нерезидентов  ","      Бейрезиденттерден алынған трансферттер","      Бейрезиденттерден алынған трансферттер\n      Трансферты, полученные от нерезидентов  ",1,null,"",13,null,3,1,null,null,0,0,null,null,1]
[2140,null,"Трансферты на инвестиционные цели","Инвестициялық мақсаттарға арналған трансферттер","Инвестициялық мақсаттарға арналған трансферттер\nТрансферты на инвестиционные цели",1,null,"190",13,null,0,1,null,null,0,0,null,null,1]
[2141,null,"Компенсационные выплаты в связи с нанесением ущерба капитальным активам и другими повреждениями","Күрделі активтерге келтірілген зиянға және басқа бұзушылықтарға байланысты өтемақы төлемдері","Күрделі активтерге келтірілген зиянға және басқа бұзушылықтарға байланысты өтемақы төлемдері\nКомпенсационные выплаты в связи с нанесением ущерба капитальным активам и другими повреждениями",1,null,"200",13,null,0,1,null,null,0,0,null,null,1]
[4452,null,"Текущие операции в рамках международного сотрудничества, в  том числе:","Халықаралық ынтымақтастық шеңберіндегі ағымдағы операциялар, оның ішінде:","Халықаралық ынтымақтастық шеңберіндегі ағымдағы операциялар, оның ішінде:\nТекущие операции в рамках международного сотрудничества, в  том числе:",1,null,"201",13,null,0,1,null,null,0,0,null,null,1]
[4453,null,"     гуманитарная помощь","     гуманитарлық көмек","     гуманитарлық көмек\n     гуманитарная помощь",1,null,"202",13,null,0,1,null,null,0,0,null,null,1]
[4454,null,"     техническая  помощь","     техникалық көмек","     техникалық көмек\n     техническая  помощь",1,null,"203",13,null,0,1,null,null,0,0,null,null,1]
[4455,null,"     таможенные платежи","     кеден төлемдері","     кеден төлемдері\n     таможенные платежи",1,null,"204",13,null,0,1,null,null,0,0,null,null,1]
[4456,null,"     прочие операции","     басқа да  операциялар","     басқа да  операциялар\n     прочие операции",1,null,"205",13,null,0,1,null,null,0,0,null,null,1]
[4457,null,"Поступления от нерезидентов в виде пени, штрафов, налагаемых судами","Резидент еместерге сот шешімі бойынша салынатын өсімпұлдар, айыппұлдар түрінде  төленетін төлемдер","Резидент еместерге сот шешімі бойынша салынатын өсімпұлдар, айыппұлдар түрінде  төленетін төлемдер\nПоступления от нерезидентов в виде пени, штрафов, налагаемых судами",1,null,"209",13,null,0,1,null,null,0,0,null,null,1]
[4585,null,"Прочие трансферты (расшифровать)","Басқа да трансферттер (толық көрсетіңіз)","Басқа да трансферттер (толық көрсетіңіз)\nПрочие трансферты (расшифровать)",1,null,"210",13,null,5,1,null,20,0,0,null,null,1]
[2143,null,"Доля участия или вклада (взноса) в международную организацию, % (если применимо)","Халықаралық ұйымға қатысу немесе салым (жарна) үлесі % (қолданылатын болса)","Халықаралық ұйымға қатысу немесе салым (жарна) үлесі % (қолданылатын болса)\nДоля участия или вклада (взноса) в международную организацию, % (если применимо)",1,null,"220",162,null,0,1,null,null,0,0,null,null,1]
[2144,null,"Стоимость доли участия (вклада, взноса) на начало отчетного периода","Есептік кезеңнің басындағы қатысу (салым, жарна) үлесінің құны","Есептік кезеңнің басындағы қатысу (салым, жарна) үлесінің құны\nСтоимость доли участия (вклада, взноса) на начало отчетного периода",1,null,"230",162,null,0,1,null,null,0,0,null,null,1]
[2145,null,"Внесение доли (вклада, взноса) в отчетном периоде","Есептік кезеңде үлесті (салымды, жарнаны) енгізу",{"$f":"CONCATENATE(IF(B341<>\"\",CONCATENATE(B341,\" \"),\"\"),IF(p_language_current_id=1,C341,IF(p_language_current_id=2,D341,IF(C341=D341,C341,CONCATENATE(D341,IF(F341=0,\" / \",CHAR(10)),C341)))),IF(G341<>\"\",CONCATENATE(\" \",G341),\"\"))","v":"Есептік кезеңде үлесті (салымды, жарнаны) енгізу\nВнесение доли (вклада, взноса) в отчетном периоде"},1,null,"240",162,null,0,1,null,null,0,0,null,null,1]
[2146,null,"Переоценка (если применимо)","Қайта бағалау (қолданылатын болса)","Қайта бағалау (қолданылатын болса)\nПереоценка (если применимо)",1,null,"250",162,null,0,1,null,null,0,0,null,null,1]
[4586,null,"Изъятие доли (вклада, взноса) в отчетном периоде","Есептік кезеңде үлесті (салымды, жарнаны) алып қою","Есептік кезеңде үлесті (салымды, жарнаны) алып қою\nИзъятие доли (вклада, взноса) в отчетном периоде",1,null,"245",162,null,0,1,null,null,0,0,null,null,1]
[2147,null,"Прочие изменения","Басқа да өзгерістер","Басқа да өзгерістер\nПрочие изменения",1,null,"260",162,null,0,1,null,null,0,0,null,null,1]
[2148,null,"Стоимость доли участия (вклада, взноса) на конец отчетного периода","Есептік кезеңнің соңындағы қатысу (салым, жарна) үлесінің құны","Есептік кезеңнің соңындағы қатысу (салым, жарна) үлесінің құны\nСтоимость доли участия (вклада, взноса) на конец отчетного периода",1,null,"270",162,null,1,1,null,null,0,0,null,null,1]
[2149,null,"Дивиденды, полученные в отчетном периоде (если применимо)","Есептік кезеңде алынған дивиденттер (қолданылатын болса)","Есептік кезеңде алынған дивиденттер (қолданылатын болса)\nДивиденды, полученные в отчетном периоде (если применимо)",1,null,"280",162,null,0,1,null,null,0,0,null,null,1]
[2150,null,"Доля участия или вклада (взноса) в капитале нерезидента, % (если применимо)","Бейрезиденттің капиталына қатысу немесе салым (жарна) үлесі % (қолданылатын болса)","Бейрезиденттің капиталына қатысу немесе салым (жарна) үлесі % (қолданылатын болса)\nДоля участия или вклада (взноса) в капитале нерезидента, % (если применимо)",1,null,"290",163,null,0,1,null,null,0,0,null,null,1]
[2151,null,"Стоимость доли участия (вклада, взноса) в капитале нерезидента на начало отчетного периода","Есептік кезеңнің басындағы резидент еместің капиталына қатысу (салым, жарна) үлесінің құны","Есептік кезеңнің басындағы резидент еместің капиталына қатысу (салым, жарна) үлесінің құны\nСтоимость доли участия (вклада, взноса) в капитале нерезидента на начало отчетного периода",1,null,"300",163,null,0,1,null,null,0,0,null,null,1]
[2152,null,"Внесение капитала (доли, вклада, взноса), покупка простых акций (голосов участников) в отчетном периоде","Есептік кезеңде капиталды (үлесті, салымды, жарнаны) енгізу, жай акцияларды (қатысушылардың дауыстарын) сатып алу","Есептік кезеңде капиталды (үлесті, салымды, жарнаны) енгізу, жай акцияларды (қатысушылардың дауыстарын) сатып алу\nВнесение капитала (доли, вклада, взноса), покупка простых акций (голосов участников) в отчетном периоде",1,null,"310",163,null,0,1,null,null,0,0,null,null,1]
[2153,null,"Изъятие капитала (доли, вклада, взноса), продажа простых акций (голосов участников) в отчетном периоде ","Есептік кезеңде капиталды (үлесті, салымды, жарнаны) айырып алу, жай акцияларды (қатысушылардың дауыстарын) сату","Есептік кезеңде капиталды (үлесті, салымды, жарнаны) айырып алу, жай акцияларды (қатысушылардың дауыстарын) сату\nИзъятие капитала (доли, вклада, взноса), продажа простых акций (голосов участников) в отчетном периоде ",1,null,"320",163,null,0,1,null,null,0,0,null,null,1]
[2154,null,"Переоценка (если применимо)","Қайта бағалау (қолданылатын болса)","Қайта бағалау (қолданылатын болса)\nПереоценка (если применимо)",1,null,"330",163,null,0,1,null,null,0,0,null,null,1]
[2155,null,"Прочие изменения","Басқа да өзгерістер","Басқа да өзгерістер\nПрочие изменения",1,null,"340",163,null,0,1,null,null,0,0,null,null,1]
[2156,null,"Стоимость доли участия (вклада, взноса) на конец отчетного периода ","Есептік кезеңнің соңындағы қатысу (салым, жарна) үлесінің құны","Есептік кезеңнің соңындағы қатысу (салым, жарна) үлесінің құны\nСтоимость доли участия (вклада, взноса) на конец отчетного периода ",1,null,"350",163,null,1,1,null,null,0,0,null,null,1]
[2157,null,"Чистая прибыль (убыток) нерезидента за отчетный период, после уплаты налогов, приходящаяся на долю участия Вашей организации (если применимо)","Резидент еместің Сіздің ұйымыңыздың қатысу үлесіне келетін салықтарды төлегеннен кейінгі есептік кезеңдегі таза пайдасы (шығыны) (қолданылатын болса)","Резидент еместің Сіздің ұйымыңыздың қатысу үлесіне келетін салықтарды төлегеннен кейінгі есептік кезеңдегі таза пайдасы (шығыны) (қолданылатын болса)\nЧистая прибыль (убыток) нерезидента за отчетный период, после уплаты налогов, приходящаяся на долю участия Вашей организации (если применимо)",1,null,"360",163,null,0,1,null,null,0,0,null,null,1]
[2158,null,"Объявленные нерезидентом в отчетном периоде дивиденды, подлежащие оплате Вашей организации","Бейрезиденттің есептік кезеңде Сіздің ұйымыңызға төленуі тиіс жариялаған дивидендтері ","Бейрезиденттің есептік кезеңде Сіздің ұйымыңызға төленуі тиіс жариялаған дивидендтері \nОбъявленные нерезидентом в отчетном периоде дивиденды, подлежащие оплате Вашей организации",1,null,"370",163,null,0,1,null,null,0,0,null,null,1]
[2159,null,"Дивиденды, полученные в отчетном периоде Вашей организацией от нерезидента","Сіздің ұйымыңыздың есептік кезеңде бейрезиденттен алған дивидендтері","Сіздің ұйымыңыздың есептік кезеңде бейрезиденттен алған дивидендтері\nДивиденды, полученные в отчетном периоде Вашей организацией от нерезидента",1,null,"380",163,null,0,1,null,null,0,0,null,null,1]
[2160,null,"Дебиторская задолженность по отношению к нерезидентам и авансы, выданные нерезидентам","Бейрезиденттерге қатысты дебиторлық берешек және бейрезиденттерге берілген аванстар ","Бейрезиденттерге қатысты дебиторлық берешек және бейрезиденттерге берілген аванстар \nДебиторская задолженность по отношению к нерезидентам и авансы, выданные нерезидентам",1,null,"",164,null,3,1,null,null,0,0,null,null,1]
[2161,null,"Задолженность на начало отчетного периода","Есептік кезеңнің басындағы берешек","Есептік кезеңнің басындағы берешек\nЗадолженность на начало отчетного периода",1,null,"390",164,null,0,1,null,null,0,0,null,null,1]
[2162,null,"Увеличение в результате операций","Операциялар нәтижесінде ұлғаюы","Операциялар нәтижесінде ұлғаюы\nУвеличение в результате операций",1,null,"400",164,null,0,1,null,null,0,0,null,null,1]
[2163,null,"Уменьшение в результате операций","Операциялар нәтижесінде азаюы","Операциялар нәтижесінде азаюы\nУменьшение в результате операций",1,null,"410",164,null,0,1,null,null,0,0,null,null,1]
[2164,null,"Переоценка","Қайта бағалау","Қайта бағалау\nПереоценка",1,null,"420",164,null,0,1,null,null,0,0,null,null,1]
[2165,null,"Прочие изменения","Басқа да өзгерістер","Басқа да өзгерістер\nПрочие изменения",1,null,"430",164,null,0,1,null,null,0,0,null,null,1]
[2166,null,"Задолженность на конец отчетного периода","Есептік кезеңнің соңындағы берешек","Есептік кезеңнің соңындағы берешек\nЗадолженность на конец отчетного периода",1,null,"440",164,null,1,1,null,null,0,0,null,null,1]
[2167,null,"Ссуды и займы, предоставленные нерезидентам","Бейрезиденттерге берілген несиелер мен қарыздар","Бейрезиденттерге берілген несиелер мен қарыздар\nСсуды и займы, предоставленные нерезидентам",1,null,"",164,null,3,1,null,null,0,0,null,null,1]
[2168,null,"Задолженность на начало отчетного периода","Есептік кезеңнің басындағы берешек","Есептік кезеңнің басындағы берешек\nЗадолженность на начало отчетного периода",1,null,"450",164,null,0,1,null,null,0,0,null,null,1]
[2169,null,"Увеличение в результате операций","Операциялар нәтижесінде ұлғаюы","Операциялар нәтижесінде ұлғаюы\nУвеличение в результате операций",1,null,"460",164,null,0,1,null,null,0,0,null,null,1]
[2170,null,"Уменьшение в результате операций","Операциялар нәтижесінде азаюы","Операциялар нәтижесінде азаюы\nУменьшение в результате операций",1,null,"470",164,null,0,1,null,null,0,0,null,null,1]
[2171,null,"Переоценка","Қайта бағалау","Қайта бағалау\nПереоценка",1,null,"480",164,null,0,1,null,null,0,0,null,null,1]
[2172,null,"Прочие изменения","Басқа да өзгерістер","Басқа да өзгерістер\nПрочие изменения",1,null,"490",164,null,0,1,null,null,0,0,null,null,1]
[2173,null,"Задолженность на конец отчетного периода","Есептік кезеңнің соңындағы берешек","Есептік кезеңнің соңындағы берешек\nЗадолженность на конец отчетного периода",1,null,"500",164,null,1,1,null,null,0,0,null,null,1]
[2174,null,"Объем вознаграждения на начало отчетного периода","Есептік кезеңнің басындағы сыйақы көлемі","Есептік кезеңнің басындағы сыйақы көлемі\nОбъем вознаграждения на начало отчетного периода",1,null,"510",164,null,0,1,null,null,0,0,null,null,1]
[2175,null,"Вознаграждение, начисленное в отчетном периоде","Есептік кезеңде есептелген сыйақы","Есептік кезеңде есептелген сыйақы\nВознаграждение, начисленное в отчетном периоде",1,null,"520",164,null,0,1,null,null,0,0,null,null,1]
[2176,null,"Вознаграждение, полученное Вашей организацией в отчетном периоде","Есептік кезеңде Сіздің ұйымыңыз алған сыйақы",{"$f":"CONCATENATE(IF(B373<>\"\",CONCATENATE(B373,\" \"),\"\"),IF(p_language_current_id=1,C373,IF(p_language_current_id=2,D373,IF(C373=D373,C373,CONCATENATE(D373,IF(F373=0,\" / \",CHAR(10)),C373)))),IF(G373<>\"\",CONCATENATE(\" \",G373),\"\"))","v":"Есептік кезеңде Сіздің ұйымыңыз алған сыйақы\nВознаграждение, полученное Вашей организацией в отчетном периоде"},1,null,"530",164,null,0,1,null,null,0,0,null,null,1]
[2177,null,"Переоценка, прочие изменения","Қайта бағалау, басқа да өзгерістер","Қайта бағалау, басқа да өзгерістер\nПереоценка, прочие изменения",1,null,"540",164,null,0,1,null,null,0,0,null,null,1]
[2178,null,"Объем вознаграждения на конец отчетного периода","Есептік кезеңнің соңындағы сыйақы көлемі","Есептік кезеңнің соңындағы сыйақы көлемі\nОбъем вознаграждения на конец отчетного периода",1,null,"550",164,null,1,1,null,null,0,0,null,null,1]
[2179,null,"Наличная иностранная валюта, счета в банках за рубежом (текущие счета, счета до востребования, вклады)","Қолма-қол шетел валютасы, шетел банктеріндегі шоттар (ағымдағы шоттар, талап ету бойынша шоттар, салымдар)","Қолма-қол шетел валютасы, шетел банктеріндегі шоттар (ағымдағы шоттар, талап ету бойынша шоттар, салымдар)\nНаличная иностранная валюта, счета в банках за рубежом (текущие счета, счета до востребования, вклады)",1,null,"",164,null,3,1,null,null,0,0,null,null,1]
[2180,null,"Объем на начало отчетного периода","Есептік кезеңнің басындағы көлем","Есептік кезеңнің басындағы көлем\nОбъем на начало отчетного периода",1,null,"560",164,null,0,1,null,null,0,0,null,null,1]
[2181,null,"Покупка наличной валюты, поступление на счета","Қолма-қол валютаны сатып алу, шоттарға түсімдер","Қолма-қол валютаны сатып алу, шоттарға түсімдер\nПокупка наличной валюты, поступление на счета",1,null,"570",164,null,0,1,null,null,0,0,null,null,1]
[2182,null,"Продажа наличной валюты, израсходовано со счетов","Қолма-қол валютаны сату, шоттардан шығыстар","Қолма-қол валютаны сату, шоттардан шығыстар\nПродажа наличной валюты, израсходовано со счетов",1,null,"580",164,null,0,1,null,null,0,0,null,null,1]
[2183,null,"Переоценка, прочие изменения","Қайта бағалау, басқа да өзгерістер","Қайта бағалау, басқа да өзгерістер\nПереоценка, прочие изменения",1,null,"590",164,null,0,1,null,null,0,0,null,null,1]
[2184,null,"Объем на конец отчетного периода","Есептік кезеңнің соңындағы көлем","Есептік кезеңнің соңындағы көлем\nОбъем на конец отчетного периода",1,null,"600",164,null,1,1,null,null,0,0,null,null,1]
[2185,null,"Вознаграждение, начисленное в отчетном периоде","Есептік кезеңде есептелген сыйақы","Есептік кезеңде есептелген сыйақы\nВознаграждение, начисленное в отчетном периоде",1,null,"610",164,null,0,1,null,null,0,0,null,null,1]
[2186,null,"Недвижимость за рубежом (за исключением недвижимости для посольств и аналогичных учреждений за рубежом, часть А Раздела 1)","Шетелдегі жылжымайтын мүлік (елшіліктер және шетелдегі осындай мекемелерді қоспағанда, 1-бөлімнің, А бөлігі)","Шетелдегі жылжымайтын мүлік (елшіліктер және шетелдегі осындай мекемелерді қоспағанда, 1-бөлімнің, А бөлігі)\nНедвижимость за рубежом (за исключением недвижимости для посольств и аналогичных учреждений за рубежом, часть А Раздела 1)",1,null,"",164,null,3,1,null,null,0,0,null,null,1]
[2187,null,"Стоимость на начало отчетного периода","Есептік кезеңнің басындағы құн","Есептік кезеңнің басындағы құн\nСтоимость на начало отчетного периода",1,null,"620",164,null,0,1,null,null,0,0,null,null,1]
[2188,null,"Приобретение недвижимости","Жылжымайтын мүлікті сатып алу","Жылжымайтын мүлікті сатып алу\nПриобретение недвижимости",1,null,"630",164,null,0,1,null,null,0,0,null,null,1]
[2189,null,"Продажа недвижимости","Жылжымайтын  мүлікті сату","Жылжымайтын  мүлікті сату\nПродажа недвижимости",1,null,"640",164,null,0,1,null,null,0,0,null,null,1]
[2190,null,"Переоценка","Қайта бағалау","Қайта бағалау\nПереоценка",1,null,"650",164,null,0,1,null,null,0,0,null,null,1]
[2191,null,"Прочие изменения","Басқа да өзгерістер","Басқа да өзгерістер\nПрочие изменения",1,null,"660",164,null,0,1,null,null,0,0,null,null,1]
[2192,null,"Стоимость на конец отчетного периода","Есептік кезеңнің соңындағы құн","Есептік кезеңнің соңындағы құн\nСтоимость на конец отчетного периода",1,null,"670",164,null,1,1,null,null,0,0,null,null,1]
[2193,null,"Доход, полученный Вашей организацией в отчетном периоде","Есептік кезеңде Сіздің ұйымыңыз алған кіріс","Есептік кезеңде Сіздің ұйымыңыз алған кіріс\nДоход, полученный Вашей организацией в отчетном периоде",1,null,"680",164,null,0,1,null,null,0,0,null,null,1]
[2194,null,"Другие требования к нерезидентам","Бейрезиденттерге қойылатын өзге де талаптар","Бейрезиденттерге қойылатын өзге де талаптар\nДругие требования к нерезидентам",1,null,"",164,null,3,1,null,null,0,0,null,null,1]
[2195,null,"Объем на начало отчетного периода","Есептік кезеңнің басындағы көлем ","Есептік кезеңнің басындағы көлем \nОбъем на начало отчетного периода",1,null,"690",164,null,0,1,null,null,0,0,null,null,1]
[2196,null,"Увеличение в результате операций","Операциялар нәтижесінде ұлғаюы","Операциялар нәтижесінде ұлғаюы\nУвеличение в результате операций",1,null,"700",164,null,0,1,null,null,0,0,null,null,1]
[2197,null,"Уменьшение в результате операций","Операциялар нәтижесінде азаюы","Операциялар нәтижесінде азаюы\nУменьшение в результате операций",1,null,"710",164,null,0,1,null,null,0,0,null,null,1]
[2198,null,"Переоценка","Қайта бағалау","Қайта бағалау\nПереоценка",1,null,"720",164,null,0,1,null,null,0,0,null,null,1]
[2199,null,"Прочие изменения","Басқа да өзгерістер","Басқа да өзгерістер\nПрочие изменения",1,null,"730",164,null,0,1,null,null,0,0,null,null,1]
[2200,null,"Объем на конец отчетного периода","Есептік кезеңнің соңындағы көлем","Есептік кезеңнің соңындағы көлем\nОбъем на конец отчетного периода",1,null,"740",164,null,1,1,null,null,0,0,null,null,1]
[2201,null,"Кредиторская задолженность перед нерезидентами и авансы, полученные от нерезидентов","Бейрезиденттер алдындағы кредиторлық берешек және бейрезиденттерден алынған аванстар","Бейрезиденттер алдындағы кредиторлық берешек және бейрезиденттерден алынған аванстар\nКредиторская задолженность перед нерезидентами и авансы, полученные от нерезидентов",1,null,"",165,null,3,1,null,null,0,0,null,null,1]
[2202,null,"Задолженность на начало отчетного периода","Есептік кезеңнің басындағы  берешек","Есептік кезеңнің басындағы  берешек\nЗадолженность на начало отчетного периода",1,null,"750",165,null,0,1,null,null,0,0,null,null,1]
[2203,null,"Увеличение в результате операций","Операциялар нәтижесінде ұлғаюы","Операциялар нәтижесінде ұлғаюы\nУвеличение в результате операций",1,null,"760",165,null,0,1,null,null,0,0,null,null,1]
[2204,null,"Уменьшение в результате операций","Операциялар нәтижесінде азаюы","Операциялар нәтижесінде азаюы\nУменьшение в результате операций",1,null,"770",165,null,0,1,null,null,0,0,null,null,1]
[2205,null,"Переоценка","Қайта бағалау","Қайта бағалау\nПереоценка",1,null,"780",165,null,0,1,null,null,0,0,null,null,1]
[2206,null,"Прочие изменения","Басқа  өзгерістер","Басқа  өзгерістер\nПрочие изменения",1,null,"790",165,null,0,1,null,null,0,0,null,null,1]
[2207,null,"Задолженность на конец отчетного периода","Есептік кезеңнің соңындағы берешек","Есептік кезеңнің соңындағы берешек\nЗадолженность на конец отчетного периода",1,null,"800",165,null,1,1,null,null,0,0,null,null,1]
[2208,null,"Другие обязательства перед нерезидентами","Бейрезиденттер алдындағы басқа да міндеттемелер",{"$f":"CONCATENATE(IF(B405<>\"\",CONCATENATE(B405,\" \"),\"\"),IF(p_language_current_id=1,C405,IF(p_language_current_id=2,D405,IF(C405=D405,C405,CONCATENATE(D405,IF(F405=0,\" / \",CHAR(10)),C405)))),IF(G405<>\"\",CONCATENATE(\" \",G405),\"\"))","v":"Бейрезиденттер алдындағы басқа да міндеттемелер\nДругие обязательства перед нерезидентами"},1,null,"",165,null,3,1,null,null,0,0,null,null,1]
[2209,null,"Объем на начало отчетного периода","Есептік кезеңнің  басындағы көлем","Есептік кезеңнің  басындағы көлем\nОбъем на начало отчетного периода",1,null,"810",165,null,0,1,null,null,0,0,null,null,1]
[2210,null,"Увеличение в результате операций","Операциялар нәтижесінде ұлғаюы","Операциялар нәтижесінде ұлғаюы\nУвеличение в результате операций",1,null,"820",165,null,0,1,null,null,0,0,null,null,1]
[2211,null,"Уменьшение в результате операций","Операциялар нәтижесінде азаюы","Операциялар нәтижесінде азаюы\nУменьшение в результате операций",1,null,"830",165,null,0,1,null,null,0,0,null,null,1]
[2212,null,"Переоценка","Қайта  бағалау","Қайта  бағалау\nПереоценка",1,null,"840",165,null,0,1,null,null,0,0,null,null,1]
[2213,null,"Прочие изменения","Басқа да өзгерістер","Басқа да өзгерістер\nПрочие изменения",1,null,"850",165,null,0,1,null,null,0,0,null,null,1]
[2214,null,"Объем на конец отчетного периода","Есептік кезеңнің соңындағы көлем","Есептік кезеңнің соңындағы көлем\nОбъем на конец отчетного периода",1,null,"860",165,null,1,1,null,null,0,0,null,null,1]
[4973,null,"Индивидуальный подоходный налог с доходов иностранных граждан, удерживаемый у источника выплаты","Төлем көзінен ұсталатын шетел азаматтарының табыстарынан алынатын жеке табыс салығы","Төлем көзінен ұсталатын шетел азаматтарының табыстарынан алынатын жеке табыс салығы\nИндивидуальный подоходный налог с доходов иностранных граждан, удерживаемый у источника выплаты",1,null,"905",1065,null,0,1,null,null,0,0,null,null,0]
[4974,null,"Корпоративный подоходный налог с юридических лиц-нерезидентов, удерживаемый у источника выплаты","Резидент емес заңды тұлғалардан төленетін төлем көзінен ұсталатын корпоративтік табыс салығы","Резидент емес заңды тұлғалардан төленетін төлем көзінен ұсталатын корпоративтік табыс салығы\nКорпоративный подоходный налог с юридических лиц-нерезидентов, удерживаемый у источника выплаты",1,null,"906",1065,null,0,1,null,null,0,0,null,null,0]
[4975,null,"Обязательные взносы на социальное медицинское страхование, удержанные из заработной платы граждан Казахстана международными организациями и представительствами международных организаций в Казахстане, дипломатическими представительствами и консульскими учреждениями иностранных государств, аккредитованными в Казахстане","Қазақстанда аккредиттелген халықаралық ұйымдар мен халықаралық ұйымдардың Қазақстандағы өкілдіктері, шет мемлекеттердің дипломатиялық өкілдіктері мен консулдық мекемелері Қазақстан азаматтарының жалақысынан ұстаған әлеуметтік медициналық сақтандыруға міндетті жарналар","Қазақстанда аккредиттелген халықаралық ұйымдар мен халықаралық ұйымдардың Қазақстандағы өкілдіктері, шет мемлекеттердің дипломатиялық өкілдіктері мен консулдық мекемелері Қазақстан азаматтарының жалақысынан ұстаған әлеуметтік медициналық сақтандыруға міндетті жарналар\nОбязательные взносы на социальное медицинское страхование, удержанные из заработной платы граждан Казахстана международными организациями и представительствами международных организаций в Казахстане, дипломатическими представительствами и консульскими учреждениями иностранных государств, аккредитованными в Казахстане",1,null,"910",1065,null,0,1,null,null,0,0,null,null,0]
[4976,null,"Обязательные взносы на социальное медицинское страхование, удержанные прочими работодателями Казахстана из заработной платы иностранных граждан, не имеющих вида на жительство","Қазақстанның өзге жұмыс берушілері тұруға ықтиярхаты жоқ шетел азаматтарының жалақысынан ұстап қалған әлеуметтік медициналық сақтандыруға міндетті жарналар","Қазақстанның өзге жұмыс берушілері тұруға ықтиярхаты жоқ шетел азаматтарының жалақысынан ұстап қалған әлеуметтік медициналық сақтандыруға міндетті жарналар\nОбязательные взносы на социальное медицинское страхование, удержанные прочими работодателями Казахстана из заработной платы иностранных граждан, не имеющих вида на жительство",1,null,"912",1065,null,0,1,null,null,0,0,null,null,0]
[4977,null,"Обязательные пенсионные взносы представительств международных организаций в Республике Казахстан, дипломатических представительств и консульских учреждений иностранных государств, аккредитованных в Республике Казахстан, удержанные из заработной платы граждан Казахстана","Қазақстан Республикасындағы халықаралық ұйымдар өкілдіктерінің, Қазақстан Республикасында аккредиттелген шет мемлекеттердің дипломатиялық өкілдіктері мен консулдық мекемелерінің Қазақстан азаматтарының жалақысынан ұсталған міндетті зейнетақы жарналары","Қазақстан Республикасындағы халықаралық ұйымдар өкілдіктерінің, Қазақстан Республикасында аккредиттелген шет мемлекеттердің дипломатиялық өкілдіктері мен консулдық мекемелерінің Қазақстан азаматтарының жалақысынан ұсталған міндетті зейнетақы жарналары\nОбязательные пенсионные взносы представительств международных организаций в Республике Казахстан, дипломатических представительств и консульских учреждений иностранных государств, аккредитованных в Республике Казахстан, удержанные из заработной платы граждан Казахстана",1,null,"914",1065,null,0,1,null,null,0,0,null,null,0]
[4978,null,"Обязательные пенсионные взносы прочих работодателей Казахстана, удержанные из заработной платы иностранных граждан, не имеющих вид на жительство в Республике Казахстан","Қазақстан Республикасында тұруға ықтиярхаты жоқ шетел азаматтарының жалақысынан ұсталған Қазақстанның өзге де жұмыс берушілерінің міндетті зейнетақы жарналары","Қазақстан Республикасында тұруға ықтиярхаты жоқ шетел азаматтарының жалақысынан ұсталған Қазақстанның өзге де жұмыс берушілерінің міндетті зейнетақы жарналары\nОбязательные пенсионные взносы прочих работодателей Казахстана, удержанные из заработной платы иностранных граждан, не имеющих вид на жительство в Республике Казахстан",1,null,"916",1065,null,0,1,null,null,0,0,null,null,0]
[4979,null,"Выплаты пенсий и пенсионных накоплений трудящимся (членам семьи) государств - членов Евразийского экономического союза на территории Республики Казахстан","Қазақстан Республикасының аумағында Еуразиялық экономикалық одаққа мүше мемлекеттердің еңбекшілеріне (отбасы  мүшелеріне) зейнетақы және Зейнетақы жинақтарын төлеу","Қазақстан Республикасының аумағында Еуразиялық экономикалық одаққа мүше мемлекеттердің еңбекшілеріне (отбасы  мүшелеріне) зейнетақы және Зейнетақы жинақтарын төлеу\nВыплаты пенсий и пенсионных накоплений трудящимся (членам семьи) государств - членов Евразийского экономического союза на территории Республики Казахстан",1,null,"917",1065,null,0,1,null,null,0,0,null,null,0]
[4980,null,"Выплаты пенсионных накоплений иностранным гражданам и лицам без гражданства, выехавшим на постоянное место жительства за пределы Республики Казахстан","Қазақстан Республикасынан тысқары жерлерге тұрақты тұруға кеткен шетел азаматтары мен азаматтығы жоқ адамдарға зейнетақы жинақтарын төлеу","Қазақстан Республикасынан тысқары жерлерге тұрақты тұруға кеткен шетел азаматтары мен азаматтығы жоқ адамдарға зейнетақы жинақтарын төлеу\nВыплаты пенсионных накоплений иностранным гражданам и лицам без гражданства, выехавшим на постоянное место жительства за пределы Республики Казахстан",1,null,"918",1065,null,0,1,null,null,0,0,null,null,0]
[4981,null,"Выплаты пенсионных накоплений гражданам Казахстана в случае их выезда на постоянное место жительства за пределы Республики Казахстан","Қазақстан азаматтарына Қазақстан Республикасынан тысқары жерлерге тұрақты тұруға кеткен жағдайда зейнетақы жинақтарын төлеу","Қазақстан азаматтарына Қазақстан Республикасынан тысқары жерлерге тұрақты тұруға кеткен жағдайда зейнетақы жинақтарын төлеу\nВыплаты пенсионных накоплений гражданам Казахстана в случае их выезда на постоянное место жительства за пределы Республики Казахстан",1,null,"919",1065,null,0,1,null,null,0,0,null,null,0]
[4982,null,"Социальная помощь иностранцам и лицам без гражданства","Шетелдіктер мен азаматтығы жоқ адамдарға әлеуметтік көмек","Шетелдіктер мен азаматтығы жоқ адамдарға әлеуметтік көмек\nСоциальная помощь иностранцам и лицам без гражданства",1,null,"930",1065,null,0,1,null,null,0,0,null,null,0]
[]
["Справочник графов"]
["ID","Код слева","Наименование на русском языке","Наименование на казахском языке","Наименование","Перенос текста","Код справа","Код","Раздел","Ширина","Стиль данных","Тип данных","Примечание","Расшифровки","Родитель","Справочник","Свойство"]
[88,null,"В том числе по странам-партнерам","Оның ішінде әріптес-елдер бойынша",{"$f":"CONCATENATE(IF(B425<>\"\",CONCATENATE(B425,\" \"),\"\"),IF(p_language_current_id=1,C425,IF(p_language_current_id=2,D425,IF(C425=D425,C425,CONCATENATE(D425,IF(F425=0,\" / \",CHAR(10)),C425)))),IF(G425<>\"\",CONCATENATE(\" \",G425),\"\"))","v":"Оның ішінде әріптес-елдер бойынша\nВ том числе по странам-партнерам"},1,null,"country",11,null,0,1,null,null,0,0]
[146,null,"В том числе по странам-партнерам","Оның ішінде әріптес-елдер бойынша","Оның ішінде әріптес-елдер бойынша\nВ том числе по странам-партнерам",1,null,"country",12,null,0,1,null,null,0,0]
[147,null,"В том числе по странам-партнерам","Оның ішінде әріптес елдер бойынша","Оның ішінде әріптес елдер бойынша\nВ том числе по странам-партнерам",1,null,"country",13,null,0,1,null,null,0,0]
[148,null,"Наименование международной организации","Халықаралық ұйымның атауы","Халықаралық ұйымның атауы\nНаименование международной организации",1,null,"country",162,null,0,1,null,null,0,0]
[149,null,"Наименование нерезидентов и стран","Резидент еместердің және елдердің атауы","Резидент еместердің және елдердің атауы\nНаименование нерезидентов и стран",1,null,"inv_obj_country",163,null,0,1,null,null,0,0]
[150,null,"наименование нерезидента","резидент еместің атауы","резидент еместің атауы\nнаименование нерезидента",1,null,"inv_obj_name",163,null,0,1,null,null,149,0]
[151,null,"наименование страны","елдің атауы","елдің атауы\nнаименование страны",1,null,"country_name",163,null,0,1,null,null,149,0]
[152,null,"Наименование стран-партнеров","Әріптес елдердің атауы","Әріптес елдердің атауы\nНаименование стран-партнеров",1,null,"country",164,null,0,1,null,null,0,0]
[153,null,"Наименование стран-партнеров","Әріптес елдердің атауы","Әріптес елдердің атауы\nНаименование стран-партнеров",1,null,"country",165,null,0,1,null,null,0,0]
[182,null,"Всего","Барлығы","Барлығы\nВсего",1,null,"1",1065,null,0,1,null,null,0,0]
[]
["Справочник индексов"]
["ID STR","ID COL","Стиль данных","Код строки","Код графы","ID раздела"]
[]
["Справочник справочников"]
["ID","ID меню","Свойство","Справочник","Показывать пользователю"]
[null,100024,null,"p_currency_name",0]
[null,100025,"Country","p_country_name",1]
[null,100056,null,"p_receiptsrepaytype_name",0]
[null,100257,null,null,0]
[null,100180,null,"p_servicetype_name",0]
[]
["Формулы"]
["Левая часть формулы (ID)","Правая часть формулы (ID)","Тип"]
["72","+[4427]+[4426]",1]
["2148","+[2147]+[2146]-[4586]+[2145]+[2144]",1]
["2156","+[2155]+[2154]-[2153]+[2152]+[2151]",1]
["2166","+[2165]+[2164]-[2163]+[2162]+[2161]",1]
["2207","+[2206]+[2205]-[2204]+[2203]+[2202]",1]
["2173","+[2172]+[2171]-[2170]+[2169]+[2168]",1]
["2214","+[2213]+[2212]-[2211]+[2210]+[2209]",1]
["2178","+[2177]-[2176]+[2175]+[2174]",1]
["2184","+[2183]-[2182]+[2181]+[2180]",1]
["2192","+[2191]+[2190]-[2189]+[2188]+[2187]",1]
["2200","+[2199]+[2198]-[2197]+[2196]+[2195]",1]
[]
["Логический контроль"]
["Левая часть формулы","Правая часть формулы","Знак"]
[]
["Инвесторы"]
["Наименование","Код","ИИН/БИН","Юр. Лицо","Резидент","Раздел"]

{"sheet":"Расшифровки строк","index":34,"n_rows":8,"n_cols":9,"rows_kept":8,"cut":false,"hidden":true,"merged":[[0,0,0,8]]}
["Справочник расшифровок строк"]
["Код","Код слева","Наименование на русском языке","Наименование на казахском языке","Наименование","Перенос текста","Код справа","Примечание","Родитель"]
["1",null,"прочие деловые услуги","басқа да іскерлік қызметтер",{"$f":"CONCATENATE(IF(B3<>\"\",CONCATENATE(B3,\" \"),\"\"),IF(p_language_current_id=1,C3,IF(p_language_current_id=2,D3,IF(C3=D3,C3,CONCATENATE(D3,IF(F3=0,\" / \",CHAR(10)),C3)))),IF(G3<>\"\",CONCATENATE(\" \",G3),\"\"))","v":"басқа да іскерлік қызметтер\nпрочие деловые услуги"},1,null,null,21]
["2",null,"прочие","басқа да","басқа да\nпрочие",1,null,null,21]
["3",null,"3","3","3",1,null,null,21]
["4",null,"аэронавигационные сборы","аэронавигационные сборы","аэронавигационные сборы",1,null,null,21]
["1",null,"прочие","басқа да","басқа да\nпрочие",1,null,null,20]
["2",null,"рента Байконур","Байқоңыр рентасы","Байқоңыр рентасы\nрента Байконур",1,null,null,20]